{"text_format":"1","workbook":"xlsx","n_sheets":8,"sheets":["INTRO","COUNTRY_INFO","DEC","ALB_MBD","PZQ","IVM","SUMMARY","SHIPMENT"],"not_rendered":{"charts":0,"images":2,"macros":1,"external_links":0,"defined_names":4,"comments":0,"pivot_tables":0},"unopened":[],"bounds":{"document_bytes":16777216,"sheet_cells":100000,"rows_first":2000,"rows_last":500,"rows_between":2000,"halvings":0,"cell_chars":16384,"cell_head_chars":4096},"cells_cut":0,"cells_raw":0,"read":"whole","date_system":"1900"}

{"sheet":"INTRO","index":0,"n_rows":50,"n_cols":5,"rows_kept":50,"cut":false,"hidden":false,"merged":[[27,1,27,4],[32,1,32,2],[29,1,29,4],[30,1,30,4],[28,2,28,4],[24,1,24,4],[9,2,9,4],[46,1,46,4],[38,1,38,2],[40,1,40,2],[42,1,42,2],[44,1,44,2],[34,1,34,2],[36,1,36,2],[22,2,23,4],[25,2,26,4],[19,1,19,4],[12,1,12,4],[16,1,16,4],[14,1,14,4],[15,1,15,4],[0,1,0,4],[2,1,2,4],[1,1,1,4],[5,1,5,4],[3,1,3,4],[21,1,21,4],[7,2,7,4],[11,1,11,4],[4,1,4,4],[10,2,10,4],[20,2,20,4],[17,1,17,4],[13,1,13,4],[18,2,18,4],[8,2,8,4]]}
[]
[null,"Formulaire de demande commune de médicaments pour CP v.3"]
[]
[null,"Dans le cadre des efforts mondiaux entrepris pour accélérer l'expansion de la chimioprévention (CP) pour l'élimination de la filariose lymphatique et la lutte contre la schistosomiase et les géohelminthiases, l'Organisation mondiale de la Santé (OMS) facilite l'approvisionnement en albendazole, comprimés de 400 mg (GSK), pour les programmes nationaux d'élimination de la filariose lymphatique et programmes nationaux de lutte contre les géohelminthiases; en diethylcarbamazine, comprimés de 100 mg (Eisai), pour les programmes nationaux d'élimination de la filariose lymphatique; en mebendazole, comprimés de 500 mg (J&J) pour les programmes nationaux de lutte contre les géohelminthiases et en praziquantel, comprimés de 600 mg (Merck KGaA), destinés aux enfants d'âge scolaire, pour les programmes nationaux de lutte contre la schistosomiase. L'OMS contribue également à l'approvisionnement en ivermectine, comprimés de 3 mg (Merck), pour les programmes de donation pour l'onchocercose et la filariose lymphatique. \nCet outil Excel est concu pour aider les pays à quantifier le nombre de comprimés nécessaires, selon le traitement de chimioprévention requis, pour atteindre les objectifs de couverture de traitement de populations et districts pour l'année de la demande de médicaments. Le résultat de cet outil est une demande commune de médicaments pour la chimioprévention des maladies tropicales négligées, qui peut être imprimée, signée et soumise à l'OMS pour la demande de ces médicaments. "]
[]
[null,"Structure de l'application (feuilles de travail) :"]
[]
[null,"INTRO","Cette feuille contient des instructions pour compléter le formulaire de demande de médicaments pour la chimioprévention et des informations sur le statut de la chimioprévention pour les maladies d'endémie du pays."]
[null,"COUNTRY_INFO","Cette feuille contient des informations sur la structure administrative du pays, la population par groupe d'âge, le statut d'endémicité pour chaque maladie, la population devant être traitée par chimioprévention et les interventions prévues."]
[null,"DEC, ALB_MBD, PZQ et IVM","Ces feuilles contiennent des informations sur l'endémicité des districts ciblés pour le traitement aux médicaments spécifiques à la chimioprévention, les plans de traitement, et le nombre de comprimés requis et demandés."]
[null,"SUMMARY","Cette feuille inclut un résumé du nombre de comprimés demandés, des informations concernant le stock et les dates de soumission de la demande de médicaments. Avant de générer le rapport (run macros), veuillez sélectionner le médicament pour lequel le rapport est nécessaire. Veuillez suivre la même règle pour voir le nombre de personnes à traiter pour les maladies spécifiques. \nCette feuille doit être imprimée et soumise en tant que \"Formulaire de demande commune de médicaments pour chimioprévention\" (voir les instructions pour la soumission du formulaire sous la feuille SUMMARY)."]
[]
[null,"Instructions pour la saisie des données"]
[]
[null,"La plupart des cellules des feuilles de travail mentionnées ci-dessus contiennent des formules calculées automatiquement en fonction du protocole de traitement recommandé par l'OMS pour chaque maladie.\nVoir : http://www.who.int/neglected_diseases/preventive_chemotherapy/pct_manual/en/index.html"]
[]
[null,"Veuillez entrer vos données dans les cellules en fonction de leur code de couleur :"]
[]
[null,null,"Blanc - la cellule n'est pas protégée. Veuillez entrer la valeur de l'indicateur demandé."]
[]
[null,null,"Jaune - la cellule est protégée et inclut le nom de l'indicateur. Aucune entrée de données requise."]
[]
[null,null,"Orange - la cellule n'est pas protégée et contient un menu déroulant. Veuillez sélectionner la valeur dans le menu déroulant. "]
[]
[]
[null,null,"Vert - la cellule n'est pas protégée et contient des formules. Veuillez changer la valeur indiquée uniquement si vos données sont différentes de celles calculées automatiquement.  "]
[]
[]
[null,null,"Bleu - la cellule est protégée et contient des formules. Aucune entrée de données requise. "]
[]
[null,"Données pays"]
[]
[null,"PAYS",null,null,"Mauritania"]
[]
[null,"Année de la demande de médicaments",null,null,2019]
[]
[null,"Le pays est-il endémique à la filariose lymphatique (FL) ?",null,null,"Non endémique"]
[]
[null,"Le pays est-il endémique à l'onchocercose (ONCHO) ? ",null,null,"Non endémique"]
[]
[null,"Le pays est-il endémique aux géohelminthiases (STH) ?",null,null,"Endémique"]
[]
[null,"Le pays est-il endémique à la schistosomiase (SCH) ?",null,null,"Endémique"]
[]
[null,"Combien d'unités administratives compte le pays ?",null,null,57]
[]
[null,"Si les données démographiques par groupe d'âge ne sont pas disponibles au second niveau administratif, veuillez entrer la proportion (%) de population, par groupe d'âge, du pays. Si les données sont disponibles, veuillez laisser les cellules vierges."]
[null,"1-4 ans","Enfants d'âge pré-scolaire (EAPréS)",null,0.14000000000000001]
[null,"5-14 ans","Enfants d'âge scolaire (EAS)",null,0.23]
[null,"15 ans et plus","Adultes",null,0.58819999999999995]

{"sheet":"COUNTRY_INFO","index":1,"n_rows":77,"n_cols":55,"rows_kept":77,"cut":false,"hidden":false,"merged":[[5,0,5,2],[3,19,3,22],[5,19,5,22],[7,0,7,18],[5,3,5,6],[5,7,5,10],[5,11,5,14],[5,15,5,18],[3,0,3,2],[3,7,3,10],[3,15,3,18]]}
["INFORMATIONS PAYS"]
["Struture administrative, population par groupe d'âge, statut d'endémicité et interventions planifiées"]
[]
["TOTAL",null,null,{"$f":"SUM(D$9:D$1000)","v":3895381},{"$f":"SUM(E$9:E$1000)","v":545357},{"$f":"SUM(F$9:F$1000)","v":895936},{"$f":"SUM(G$9:G$1000)","v":2291268},null,null,null,null,{"$f":"SUM(L$9:L$1000)","v":0},{"$f":"SUM(M$9:M$1000)","v":0},{"$f":"SUM(N$9:N$1000)","v":29436},{"$f":"SUM(O$9:O$1000)","v":779395.52}]
[]
["Structure administrative du pays",null,null,"Population",null,null,null,"Endémicité",null,null,null,"Population nécessitant la CP",null,null,null,"Nombre de tournées de traitement prévues pour l'année",null,null,null,"Enquêtes épidémiologiques planifiées pour l’année"]
["Pays","Région/Département","District","Total","EAPréS","EAS","Adultes","FL","Oncho","STH","SCH","FL","Oncho","STH","SCH","FL","Oncho","STH","SCH","FL","Oncho","STH","SCH","IU_ID","IU_NAME",null,null,"PORTAL",null,null,null,"ROADMAP",null,null,null,null,null,null,null,null,null,null,null,2017,2018]
[]
[{"$f":"IF(INTRO!$E$33<>0,INTRO!$E$33, \" \")","v":"Mauritania"},"ADRAR","Aoujeft",14312,{"$f":"IF(INTRO!$E$48=\"\",\"\",ROUND($D9*INTRO!$E$48,0))","v":2004},{"$f":"IF(INTRO!$E$49=\"\",\"\",ROUND($D9*INTRO!$E$49,0))","v":3292},{"$f":"IF(INTRO!$E$50=\"\",\"\",ROUND($D9*INTRO!$E$50,0))","v":8418},null,null,1,0,{"$f":"IF(INTRO!$E$37=\"Endémique\",IF($H9>0,IF($H9=4,\"Inconnu\",IF($H9=99,\"Interrompu\",$D9)),0),\"Non requis\")","v":"Non requis"},{"$f":"IF(INTRO!$E$39=\"Endémique\", IF($I9>0, IF($I9=4,\"Inconnu\",IF($I9=99,\"Interrompu\",$D9)), 0),\"Non requis\")","v":"Non requis"},{"$f":"IF(INTRO!$E$41=\"Endémique\", IF(AND($J9>1,$J9<5), IF($J9=4, \"Inconnu\", E9+F9), 0),\"Non requis\")","v":0},{"$f":"IF(INTRO!$E$43=\"Endémique\", IF(AND($K9>0,$K9<5), IF($K9=4,\"Inconnu\", IF($K9=1, $F9*0.33, IF($K9=2, $F9*0.5+$G9*0.2, SUM(F9:G9)))), 0),\"Non requis\")","v":0},null,null,0,0,null,null,null,null,31035,"Aoujeft",null,"Aoujeft",0,0,0,{"$f":"AG9=C9","v":true},"ADRAR","Aoujeft",0,0,null,0,{"$f":"AK9=AD9","v":true},null,null,{"$f":"AQ9=C9","v":true},"ADRAR","Aoujeft",0,1,{"$f":"AR9+AS9","v":1},null,null,{"$f":"AY9=C9","v":true},"ADRAR","Aoujeft",1,1,{"$f":"AZ9=J9","v":true},{"$f":"BA9=K9","v":false}]
[{"$f":"IF(INTRO!$E$33<>0,INTRO!$E$33, \" \")","v":"Mauritania"},"ADRAR","Atar",42812,{"$f":"IF(INTRO!$E$48=\"\",\"\",ROUND($D10*INTRO!$E$48,0))","v":5994},{"$f":"IF(INTRO!$E$49=\"\",\"\",ROUND($D10*INTRO!$E$49,0))","v":9847},{"$f":"IF(INTRO!$E$50=\"\",\"\",ROUND($D10*INTRO!$E$50,0))","v":25182},null,null,1,1,{"$f":"IF(INTRO!$E$37=\"Endémique\",IF($H10>0,IF($H10=4,\"Inconnu\",IF($H10=99,\"Interrompu\",$D10)),0),\"Non requis\")","v":"Non requis"},{"$f":"IF(INTRO!$E$39=\"Endémique\", IF($I10>0, IF($I10=4,\"Inconnu\",IF($I10=99,\"Interrompu\",$D10)), 0),\"Non requis\")","v":"Non requis"},{"$f":"IF(INTRO!$E$41=\"Endémique\", IF(AND($J10>1,$J10<5), IF($J10=4, \"Inconnu\", E10+F10), 0),\"Non requis\")","v":0},{"$f":"IF(INTRO!$E$43=\"Endémique\", IF(AND($K10>0,$K10<5), IF($K10=4,\"Inconnu\", IF($K10=1, $F10*0.33, IF($K10=2, $F10*0.5+$G10*0.2, SUM(F10:G10)))), 0),\"Non requis\")","v":3249.51},null,null,0,0,null,null,null,null,31036,"Atar",null,"Atar",1.3333333333333333,4,1,{"$f":"AG10=C10","v":true},"ADRAR","Atar",4.5999999999999996,1,null,1,{"$f":"AK10=AD10","v":true},null,null,{"$f":"AQ10=C10","v":true},"ADRAR","Atar",0,1,{"$f":"AR10+AS10","v":1},null,null,{"$f":"AY10=C10","v":true},"ADRAR","Atar",1,1,{"$f":"AZ10=J10","v":true},{"$f":"BA10=K10","v":true}]
[{"$f":"IF(INTRO!$E$33<>0,INTRO!$E$33, \" \")","v":"Mauritania"},"ADRAR","Chinguitty",7501,{"$f":"IF(INTRO!$E$48=\"\",\"\",ROUND($D11*INTRO!$E$48,0))","v":1050},{"$f":"IF(INTRO!$E$49=\"\",\"\",ROUND($D11*INTRO!$E$49,0))","v":1725},{"$f":"IF(INTRO!$E$50=\"\",\"\",ROUND($D11*INTRO!$E$50,0))","v":4412},null,null,1,1,{"$f":"IF(INTRO!$E$37=\"Endémique\",IF($H11>0,IF($H11=4,\"Inconnu\",IF($H11=99,\"Interrompu\",$D11)),0),\"Non requis\")","v":"Non requis"},{"$f":"IF(INTRO!$E$39=\"Endémique\", IF($I11>0, IF($I11=4,\"Inconnu\",IF($I11=99,\"Interrompu\",$D11)), 0),\"Non requis\")","v":"Non requis"},{"$f":"IF(INTRO!$E$41=\"Endémique\", IF(AND($J11>1,$J11<5), IF($J11=4, \"Inconnu\", E11+F11), 0),\"Non requis\")","v":0},{"$f":"IF(INTRO!$E$43=\"Endémique\", IF(AND($K11>0,$K11<5), IF($K11=4,\"Inconnu\", IF($K11=1, $F11*0.33, IF($K11=2, $F11*0.5+$G11*0.2, SUM(F11:G11)))), 0),\"Non requis\")","v":569.25},null,null,0,0,null,null,null,null,31037,"Chinguitty",null,"Chinguetti",0.33800000000000002,0.96200001000000002,1,{"$f":"AG11=C11","v":true},"ADRAR","Chinguitty",0.39,1,null,1,true,null,null,{"$f":"AQ11=C11","v":true},"ADRAR","Chinguitty",0,1,1,null,null,{"$f":"AY11=C11","v":true},"ADRAR","Chinguitty",1,1,{"$f":"AZ11=J11","v":true},{"$f":"BA11=K11","v":true}]
[{"$f":"IF(INTRO!$E$33<>0,INTRO!$E$33, \" \")","v":"Mauritania"},"ADRAR","Ouadane",4375,{"$f":"IF(INTRO!$E$48=\"\",\"\",ROUND($D12*INTRO!$E$48,0))","v":613},{"$f":"IF(INTRO!$E$49=\"\",\"\",ROUND($D12*INTRO!$E$49,0))","v":1006},{"$f":"IF(INTRO!$E$50=\"\",\"\",ROUND($D12*INTRO!$E$50,0))","v":2573},null,null,1,1,{"$f":"IF(INTRO!$E$37=\"Endémique\",IF($H12>0,IF($H12=4,\"Inconnu\",IF($H12=99,\"Interrompu\",$D12)),0),\"Non requis\")","v":"Non requis"},{"$f":"IF(INTRO!$E$39=\"Endémique\", IF($I12>0, IF($I12=4,\"Inconnu\",IF($I12=99,\"Interrompu\",$D12)), 0),\"Non requis\")","v":"Non requis"},{"$f":"IF(INTRO!$E$41=\"Endémique\", IF(AND($J12>1,$J12<5), IF($J12=4, \"Inconnu\", E12+F12), 0),\"Non requis\")","v":0},{"$f":"IF(INTRO!$E$43=\"Endémique\", IF(AND($K12>0,$K12<5), IF($K12=4,\"Inconnu\", IF($K12=1, $F12*0.33, IF($K12=2, $F12*0.5+$G12*0.2, SUM(F12:G12)))), 0),\"Non requis\")","v":331.98},null,null,0,0,null,null,null,null,31038,"Ouadane",null,"Ouadane",1.6912499974999999,2.5,1,{"$f":"AG12=C12","v":true},"ADRAR","Ouadane",1.71,1,null,1,true,null,null,{"$f":"AQ12=C12","v":true},"ADRAR","Ouadane",0,1,1,null,null,{"$f":"AY12=C12","v":true},"ADRAR","Ouadane",1,1,{"$f":"AZ12=J12","v":true},{"$f":"BA12=K12","v":true}]
[{"$f":"IF(INTRO!$E$33<>0,INTRO!$E$33, \" \")","v":"Mauritania"},"ASSABA","Barkéol",87988,{"$f":"IF(INTRO!$E$48=\"\",\"\",ROUND($D13*INTRO!$E$48,0))","v":12318},{"$f":"IF(INTRO!$E$49=\"\",\"\",ROUND($D13*INTRO!$E$49,0))","v":20237},{"$f":"IF(INTRO!$E$50=\"\",\"\",ROUND($D13*INTRO!$E$50,0))","v":51755},null,null,1,2,{"$f":"IF(INTRO!$E$37=\"Endémique\",IF($H13>0,IF($H13=4,\"Inconnu\",IF($H13=99,\"Interrompu\",$D13)),0),\"Non requis\")","v":"Non requis"},{"$f":"IF(INTRO!$E$39=\"Endémique\", IF($I13>0, IF($I13=4,\"Inconnu\",IF($I13=99,\"Interrompu\",$D13)), 0),\"Non requis\")","v":"Non requis"},{"$f":"IF(INTRO!$E$41=\"Endémique\", IF(AND($J13>1,$J13<5), IF($J13=4, \"Inconnu\", E13+F13), 0),\"Non requis\")","v":0},{"$f":"IF(INTRO!$E$43=\"Endémique\", IF(AND($K13>0,$K13<5), IF($K13=4,\"Inconnu\", IF($K13=1, $F13*0.33, IF($K13=2, $F13*0.5+$G13*0.2, SUM(F13:G13)))), 0),\"Non requis\")","v":20469.5},null,null,0,1,null,null,null,null,31039,"Barkéol",null,"BarkÃ©ol",5.6469999999999994,10,2,{"$f":"AG13=C13","v":true},"ASSABA","Barkéol",4.8899999999999997,1,null,1,false,null,null,{"$f":"AQ13=C13","v":true},"ASSABA","Barkéol",9704.5,0,9704.5,null,null,{"$f":"AY13=C13","v":true},"ASSABA","Barkéol",1,2,{"$f":"AZ13=J13","v":true},{"$f":"BA13=K13","v":true}]
[{"$f":"IF(INTRO!$E$33<>0,INTRO!$E$33, \" \")","v":"Mauritania"},"ASSABA","Boumdeid",8719,{"$f":"IF(INTRO!$E$48=\"\",\"\",ROUND($D14*INTRO!$E$48,0))","v":1221},{"$f":"IF(INTRO!$E$49=\"\",\"\",ROUND($D14*INTRO!$E$49,0))","v":2005},{"$f":"IF(INTRO!$E$50=\"\",\"\",ROUND($D14*INTRO!$E$50,0))","v":5129},null,null,1,2,{"$f":"IF(INTRO!$E$37=\"Endémique\",IF($H14>0,IF($H14=4,\"Inconnu\",IF($H14=99,\"Interrompu\",$D14)),0),\"Non requis\")","v":"Non requis"},{"$f":"IF(INTRO!$E$39=\"Endémique\", IF($I14>0, IF($I14=4,\"Inconnu\",IF($I14=99,\"Interrompu\",$D14)), 0),\"Non requis\")","v":"Non requis"},{"$f":"IF(INTRO!$E$41=\"Endémique\", IF(AND($J14>1,$J14<5), IF($J14=4, \"Inconnu\", E14+F14), 0),\"Non requis\")","v":0},{"$f":"IF(INTRO!$E$43=\"Endémique\", IF(AND($K14>0,$K14<5), IF($K14=4,\"Inconnu\", IF($K14=1, $F14*0.33, IF($K14=2, $F14*0.5+$G14*0.2, SUM(F14:G14)))), 0),\"Non requis\")","v":2028.3},null,null,0,1,null,null,null,null,31040,"Boumdeid",null,"Boumdeid",11.037500025,22.440000999999999,2,{"$f":"AG14=C14","v":true},"ASSABA","Boumdeid",9.92,1,null,1,false,null,null,{"$f":"AQ14=C14","v":true},"ASSABA","Boumdeid",961.5,0,961.5,null,null,{"$f":"AY14=C14","v":true},"ASSABA","Boumdeid",1,2,{"$f":"AZ14=J14","v":true},{"$f":"BA14=K14","v":true}]
[{"$f":"IF(INTRO!$E$33<>0,INTRO!$E$33, \" \")","v":"Mauritania"},"ASSABA","Guérrou",49411,{"$f":"IF(INTRO!$E$48=\"\",\"\",ROUND($D15*INTRO!$E$48,0))","v":6918},{"$f":"IF(INTRO!$E$49=\"\",\"\",ROUND($D15*INTRO!$E$49,0))","v":11365},{"$f":"IF(INTRO!$E$50=\"\",\"\",ROUND($D15*INTRO!$E$50,0))","v":29064},null,null,1,2,{"$f":"IF(INTRO!$E$37=\"Endémique\",IF($H15>0,IF($H15=4,\"Inconnu\",IF($H15=99,\"Interrompu\",$D15)),0),\"Non requis\")","v":"Non requis"},{"$f":"IF(INTRO!$E$39=\"Endémique\", IF($I15>0, IF($I15=4,\"Inconnu\",IF($I15=99,\"Interrompu\",$D15)), 0),\"Non requis\")","v":"Non requis"},{"$f":"IF(INTRO!$E$41=\"Endémique\", IF(AND($J15>1,$J15<5), IF($J15=4, \"Inconnu\", E15+F15), 0),\"Non requis\")","v":0},{"$f":"IF(INTRO!$E$43=\"Endémique\", IF(AND($K15>0,$K15<5), IF($K15=4,\"Inconnu\", IF($K15=1, $F15*0.33, IF($K15=2, $F15*0.5+$G15*0.2, SUM(F15:G15)))), 0),\"Non requis\")","v":11495.3},null,null,0,1,null,null,null,null,31042,"Guérrou",null,"Guerou",16.031571328571427,36,2,{"$f":"AG15=C15","v":true},"ASSABA","Guérrou",7.6,1,null,2,true,null,null,{"$f":"AQ15=C15","v":true},"ASSABA","Guérrou",5450,0,5450,null,null,{"$f":"AY15=C15","v":true},"ASSABA","Guérrou",1,2,{"$f":"AZ15=J15","v":true},{"$f":"BA15=K15","v":true}]
[{"$f":"IF(INTRO!$E$33<>0,INTRO!$E$33, \" \")","v":"Mauritania"},"ASSABA","Kankossa",90845,{"$f":"IF(INTRO!$E$48=\"\",\"\",ROUND($D16*INTRO!$E$48,0))","v":12718},{"$f":"IF(INTRO!$E$49=\"\",\"\",ROUND($D16*INTRO!$E$49,0))","v":20894},{"$f":"IF(INTRO!$E$50=\"\",\"\",ROUND($D16*INTRO!$E$50,0))","v":53435},null,null,1,2,{"$f":"IF(INTRO!$E$37=\"Endémique\",IF($H16>0,IF($H16=4,\"Inconnu\",IF($H16=99,\"Interrompu\",$D16)),0),\"Non requis\")","v":"Non requis"},{"$f":"IF(INTRO!$E$39=\"Endémique\", IF($I16>0, IF($I16=4,\"Inconnu\",IF($I16=99,\"Interrompu\",$D16)), 0),\"Non requis\")","v":"Non requis"},{"$f":"IF(INTRO!$E$41=\"Endémique\", IF(AND($J16>1,$J16<5), IF($J16=4, \"Inconnu\", E16+F16), 0),\"Non requis\")","v":0},{"$f":"IF(INTRO!$E$43=\"Endémique\", IF(AND($K16>0,$K16<5), IF($K16=4,\"Inconnu\", IF($K16=1, $F16*0.33, IF($K16=2, $F16*0.5+$G16*0.2, SUM(F16:G16)))), 0),\"Non requis\")","v":21134},null,null,0,1,null,null,null,null,31043,"Kankossa",null,"Kankossa",35.049142428571429,44,2,{"$f":"AG16=C16","v":true},"ASSABA","Kankossa",32.200000000000003,2,null,2,true,null,null,{"$f":"AQ16=C16","v":true},"ASSABA","Kankossa",10020,0,10020,null,null,{"$f":"AY16=C16","v":true},"ASSABA","Kankossa",1,2,{"$f":"AZ16=J16","v":true},{"$f":"BA16=K16","v":true}]
[{"$f":"IF(INTRO!$E$33<>0,INTRO!$E$33, \" \")","v":"Mauritania"},"ASSABA","Kiffa",121920,{"$f":"IF(INTRO!$E$48=\"\",\"\",ROUND($D17*INTRO!$E$48,0))","v":17069},{"$f":"IF(INTRO!$E$49=\"\",\"\",ROUND($D17*INTRO!$E$49,0))","v":28042},{"$f":"IF(INTRO!$E$50=\"\",\"\",ROUND($D17*INTRO!$E$50,0))","v":71713},null,null,1,2,{"$f":"IF(INTRO!$E$37=\"Endémique\",IF($H17>0,IF($H17=4,\"Inconnu\",IF($H17=99,\"Interrompu\",$D17)),0),\"Non requis\")","v":"Non requis"},{"$f":"IF(INTRO!$E$39=\"Endémique\", IF($I17>0, IF($I17=4,\"Inconnu\",IF($I17=99,\"Interrompu\",$D17)), 0),\"Non requis\")","v":"Non requis"},{"$f":"IF(INTRO!$E$41=\"Endémique\", IF(AND($J17>1,$J17<5), IF($J17=4, \"Inconnu\", E17+F17), 0),\"Non requis\")","v":0},{"$f":"IF(INTRO!$E$43=\"Endémique\", IF(AND($K17>0,$K17<5), IF($K17=4,\"Inconnu\", IF($K17=1, $F17*0.33, IF($K17=2, $F17*0.5+$G17*0.2, SUM(F17:G17)))), 0),\"Non requis\")","v":28363.599999999999},null,null,0,1,null,null,null,null,31044,"Kiffa",null,"Kiffa",8.0207499999999996,16.48,2,{"$f":"AG17=C17","v":true},"ASSABA","Kiffa",27.7,2,null,1,false,null,null,{"$f":"AQ17=C17","v":true},"ASSABA","Kiffa",13447.5,0,13447.5,null,null,{"$f":"AY17=C17","v":true},"ASSABA","Kiffa",1,2,{"$f":"AZ17=J17","v":true},{"$f":"BA17=K17","v":true}]
[{"$f":"IF(INTRO!$E$33<>0,INTRO!$E$33, \" \")","v":"Mauritania"},"BRAKNA","Aleg",111786,{"$f":"IF(INTRO!$E$48=\"\",\"\",ROUND($D18*INTRO!$E$48,0))","v":15650},{"$f":"IF(INTRO!$E$49=\"\",\"\",ROUND($D18*INTRO!$E$49,0))","v":25711},{"$f":"IF(INTRO!$E$50=\"\",\"\",ROUND($D18*INTRO!$E$50,0))","v":65753},null,null,1,2,{"$f":"IF(INTRO!$E$37=\"Endémique\",IF($H18>0,IF($H18=4,\"Inconnu\",IF($H18=99,\"Interrompu\",$D18)),0),\"Non requis\")","v":"Non requis"},{"$f":"IF(INTRO!$E$39=\"Endémique\", IF($I18>0, IF($I18=4,\"Inconnu\",IF($I18=99,\"Interrompu\",$D18)), 0),\"Non requis\")","v":"Non requis"},{"$f":"IF(INTRO!$E$41=\"Endémique\", IF(AND($J18>1,$J18<5), IF($J18=4, \"Inconnu\", E18+F18), 0),\"Non requis\")","v":0},{"$f":"IF(INTRO!$E$43=\"Endémique\", IF(AND($K18>0,$K18<5), IF($K18=4,\"Inconnu\", IF($K18=1, $F18*0.33, IF($K18=2, $F18*0.5+$G18*0.2, SUM(F18:G18)))), 0),\"Non requis\")","v":26006.1},null,null,0,1,null,null,null,"Oui",31045,"Aleg",null,null,null,null,null,{"$f":"AG18=C18","v":true},"BRAKNA","Aleg",30.6,2,null,2,null,null,null,{"$f":"AQ18=C18","v":true},"BRAKNA","Aleg",6554,0,6554,null,null,{"$f":"AY18=C18","v":true},"BRAKNA","Aleg",1,2,{"$f":"AZ18=J18","v":true},{"$f":"BA18=K18","v":true}]
[{"$f":"IF(INTRO!$E$33<>0,INTRO!$E$33, \" \")","v":"Mauritania"},"BRAKNA","Bababé",41021,{"$f":"IF(INTRO!$E$48=\"\",\"\",ROUND($D19*INTRO!$E$48,0))","v":5743},{"$f":"IF(INTRO!$E$49=\"\",\"\",ROUND($D19*INTRO!$E$49,0))","v":9435},{"$f":"IF(INTRO!$E$50=\"\",\"\",ROUND($D19*INTRO!$E$50,0))","v":24129},null,null,1,2,{"$f":"IF(INTRO!$E$37=\"Endémique\",IF($H19>0,IF($H19=4,\"Inconnu\",IF($H19=99,\"Interrompu\",$D19)),0),\"Non requis\")","v":"Non requis"},{"$f":"IF(INTRO!$E$39=\"Endémique\", IF($I19>0, IF($I19=4,\"Inconnu\",IF($I19=99,\"Interrompu\",$D19)), 0),\"Non requis\")","v":"Non requis"},{"$f":"IF(INTRO!$E$41=\"Endémique\", IF(AND($J19>1,$J19<5), IF($J19=4, \"Inconnu\", E19+F19), 0),\"Non requis\")","v":0},{"$f":"IF(INTRO!$E$43=\"Endémique\", IF(AND($K19>0,$K19<5), IF($K19=4,\"Inconnu\", IF($K19=1, $F19*0.33, IF($K19=2, $F19*0.5+$G19*0.2, SUM(F19:G19)))), 0),\"Non requis\")","v":9543.2999999999993},null,null,0,0,null,null,null,"Oui",31046,"Bababé",null,null,null,null,null,{"$f":"AG19=C19","v":true},"BRAKNA","Bababé",30.6,2,null,2,null,null,null,{"$f":"AQ19=C19","v":true},"BRAKNA","Bababé",9049,1,9050,null,null,{"$f":"AY19=C19","v":true},"BRAKNA","Bababé",1,3,{"$f":"AZ19=J19","v":true},{"$f":"BA19=K19","v":false}]
[{"$f":"IF(INTRO!$E$33<>0,INTRO!$E$33, \" \")","v":"Mauritania"},"BRAKNA","Boghé",79554,{"$f":"IF(INTRO!$E$48=\"\",\"\",ROUND($D20*INTRO!$E$48,0))","v":11138},{"$f":"IF(INTRO!$E$49=\"\",\"\",ROUND($D20*INTRO!$E$49,0))","v":18297},{"$f":"IF(INTRO!$E$50=\"\",\"\",ROUND($D20*INTRO!$E$50,0))","v":46794},null,null,1,3,{"$f":"IF(INTRO!$E$37=\"Endémique\",IF($H20>0,IF($H20=4,\"Inconnu\",IF($H20=99,\"Interrompu\",$D20)),0),\"Non requis\")","v":"Non requis"},{"$f":"IF(INTRO!$E$39=\"Endémique\", IF($I20>0, IF($I20=4,\"Inconnu\",IF($I20=99,\"Interrompu\",$D20)), 0),\"Non requis\")","v":"Non requis"},{"$f":"IF(INTRO!$E$41=\"Endémique\", IF(AND($J20>1,$J20<5), IF($J20=4, \"Inconnu\", E20+F20), 0),\"Non requis\")","v":0},{"$f":"IF(INTRO!$E$43=\"Endémique\", IF(AND($K20>0,$K20<5), IF($K20=4,\"Inconnu\", IF($K20=1, $F20*0.33, IF($K20=2, $F20*0.5+$G20*0.2, SUM(F20:G20)))), 0),\"Non requis\")","v":65091},null,null,0,1,null,null,null,"Oui",31047,"Boghé",null,null,null,null,null,{"$f":"AG20=C20","v":true},"BRAKNA","Boghé",70,2,null,2,null,null,null,{"$f":"AQ20=C20","v":true},"BRAKNA","Boghé",14411,1,14412,null,null,{"$f":"AY20=C20","v":true},"BRAKNA","Boghé",1,3,{"$f":"AZ20=J20","v":true},{"$f":"BA20=K20","v":true}]
[{"$f":"IF(INTRO!$E$33<>0,INTRO!$E$33, \" \")","v":"Mauritania"},"BRAKNA","Maghtaa Lahjar",63509,{"$f":"IF(INTRO!$E$48=\"\",\"\",ROUND($D21*INTRO!$E$48,0))","v":8891},{"$f":"IF(INTRO!$E$49=\"\",\"\",ROUND($D21*INTRO!$E$49,0))","v":14607},{"$f":"IF(INTRO!$E$50=\"\",\"\",ROUND($D21*INTRO!$E$50,0))","v":37356},null,null,1,2,{"$f":"IF(INTRO!$E$37=\"Endémique\",IF($H21>0,IF($H21=4,\"Inconnu\",IF($H21=99,\"Interrompu\",$D21)),0),\"Non requis\")","v":"Non requis"},{"$f":"IF(INTRO!$E$39=\"Endémique\", IF($I21>0, IF($I21=4,\"Inconnu\",IF($I21=99,\"Interrompu\",$D21)), 0),\"Non requis\")","v":"Non requis"},{"$f":"IF(INTRO!$E$41=\"Endémique\", IF(AND($J21>1,$J21<5), IF($J21=4, \"Inconnu\", E21+F21), 0),\"Non requis\")","v":0},{"$f":"IF(INTRO!$E$43=\"Endémique\", IF(AND($K21>0,$K21<5), IF($K21=4,\"Inconnu\", IF($K21=1, $F21*0.33, IF($K21=2, $F21*0.5+$G21*0.2, SUM(F21:G21)))), 0),\"Non requis\")","v":14774.7},null,null,0,0,null,null,null,"Oui",31049,"Maghtaa Lahjar",null,null,null,null,null,{"$f":"AG21=C21","v":true},"BRAKNA","Maghtaa Lahjar",30.6,2,null,2,null,null,null,{"$f":"AQ21=C21","v":true},"BRAKNA","Maghtaa Lahjar",0,1,1,null,null,{"$f":"AY21=C21","v":true},"BRAKNA","Maghtaa Lahjar",1,2,{"$f":"AZ21=J21","v":true},{"$f":"BA21=K21","v":true}]
[{"$f":"IF(INTRO!$E$33<>0,INTRO!$E$33, \" \")","v":"Mauritania"},"BRAKNA","M'Bagne",48013,{"$f":"IF(INTRO!$E$48=\"\",\"\",ROUND($D22*INTRO!$E$48,0))","v":6722},{"$f":"IF(INTRO!$E$49=\"\",\"\",ROUND($D22*INTRO!$E$49,0))","v":11043},{"$f":"IF(INTRO!$E$50=\"\",\"\",ROUND($D22*INTRO!$E$50,0))","v":28241},null,null,1,2,{"$f":"IF(INTRO!$E$37=\"Endémique\",IF($H22>0,IF($H22=4,\"Inconnu\",IF($H22=99,\"Interrompu\",$D22)),0),\"Non requis\")","v":"Non requis"},{"$f":"IF(INTRO!$E$39=\"Endémique\", IF($I22>0, IF($I22=4,\"Inconnu\",IF($I22=99,\"Interrompu\",$D22)), 0),\"Non requis\")","v":"Non requis"},{"$f":"IF(INTRO!$E$41=\"Endémique\", IF(AND($J22>1,$J22<5), IF($J22=4, \"Inconnu\", E22+F22), 0),\"Non requis\")","v":0},{"$f":"IF(INTRO!$E$43=\"Endémique\", IF(AND($K22>0,$K22<5), IF($K22=4,\"Inconnu\", IF($K22=1, $F22*0.33, IF($K22=2, $F22*0.5+$G22*0.2, SUM(F22:G22)))), 0),\"Non requis\")","v":11169.7},null,null,0,0,null,null,null,"Oui",31048,"M'Bagne",null,null,null,null,null,{"$f":"AG22=C22","v":true},"BRAKNA","M'Bagne",30.6,2,null,2,null,null,null,{"$f":"AQ22=C22","v":true},"BRAKNA","M'Bagne",8079,1,8080,null,null,{"$f":"AY22=C22","v":true},"BRAKNA","M'Bagne",1,3,{"$f":"AZ22=J22","v":true},{"$f":"BA22=K22","v":false}]
[{"$f":"IF(INTRO!$E$33<>0,INTRO!$E$33, \" \")","v":"Mauritania"},"GORGOL","Kaédi",134046,{"$f":"IF(INTRO!$E$48=\"\",\"\",ROUND($D23*INTRO!$E$48,0))","v":18766},{"$f":"IF(INTRO!$E$49=\"\",\"\",ROUND($D23*INTRO!$E$49,0))","v":30831},{"$f":"IF(INTRO!$E$50=\"\",\"\",ROUND($D23*INTRO!$E$50,0))","v":78846},null,null,1,2,{"$f":"IF(INTRO!$E$37=\"Endémique\",IF($H23>0,IF($H23=4,\"Inconnu\",IF($H23=99,\"Interrompu\",$D23)),0),\"Non requis\")","v":"Non requis"},{"$f":"IF(INTRO!$E$39=\"Endémique\", IF($I23>0, IF($I23=4,\"Inconnu\",IF($I23=99,\"Interrompu\",$D23)), 0),\"Non requis\")","v":"Non requis"},{"$f":"IF(INTRO!$E$41=\"Endémique\", IF(AND($J23>1,$J23<5), IF($J23=4, \"Inconnu\", E23+F23), 0),\"Non requis\")","v":0},{"$f":"IF(INTRO!$E$43=\"Endémique\", IF(AND($K23>0,$K23<5), IF($K23=4,\"Inconnu\", IF($K23=1, $F23*0.33, IF($K23=2, $F23*0.5+$G23*0.2, SUM(F23:G23)))), 0),\"Non requis\")","v":31184.7},null,null,0,0,null,null,null,null,31052,"Kaédi",null,"Kaedi",10.856000220000002,23.83,2,{"$f":"AG23=C23","v":true},"GORGOL","Kaédi",17.600000000000001,2,null,2,true,null,null,{"$f":"AQ23=C23","v":true},"GORGOL","Kaédi",25257,1,25258,null,null,{"$f":"AY23=C23","v":true},"GORGOL","Kaédi",1,3,{"$f":"AZ23=J23","v":true},{"$f":"BA23=K23","v":false}]
[{"$f":"IF(INTRO!$E$33<>0,INTRO!$E$33, \" \")","v":"Mauritania"},"GORGOL","Maghama",75394,{"$f":"IF(INTRO!$E$48=\"\",\"\",ROUND($D24*INTRO!$E$48,0))","v":10555},{"$f":"IF(INTRO!$E$49=\"\",\"\",ROUND($D24*INTRO!$E$49,0))","v":17341},{"$f":"IF(INTRO!$E$50=\"\",\"\",ROUND($D24*INTRO!$E$50,0))","v":44347},null,null,1,2,{"$f":"IF(INTRO!$E$37=\"Endémique\",IF($H24>0,IF($H24=4,\"Inconnu\",IF($H24=99,\"Interrompu\",$D24)),0),\"Non requis\")","v":"Non requis"},{"$f":"IF(INTRO!$E$39=\"Endémique\", IF($I24>0, IF($I24=4,\"Inconnu\",IF($I24=99,\"Interrompu\",$D24)), 0),\"Non requis\")","v":"Non requis"},{"$f":"IF(INTRO!$E$41=\"Endémique\", IF(AND($J24>1,$J24<5), IF($J24=4, \"Inconnu\", E24+F24), 0),\"Non requis\")","v":0},{"$f":"IF(INTRO!$E$43=\"Endémique\", IF(AND($K24>0,$K24<5), IF($K24=4,\"Inconnu\", IF($K24=1, $F24*0.33, IF($K24=2, $F24*0.5+$G24*0.2, SUM(F24:G24)))), 0),\"Non requis\")","v":17539.900000000001},null,null,0,0,null,null,null,null,31054,"Maghama",null,"Maghama",7.9033329666666674,15.379999,2,{"$f":"AG24=C24","v":true},"GORGOL","Maghama",30.6,2,null,2,true,null,null,{"$f":"AQ24=C24","v":true},"GORGOL","Maghama",12234,1,12235,null,null,{"$f":"AY24=C24","v":true},"GORGOL","Maghama",1,3,{"$f":"AZ24=J24","v":true},{"$f":"BA24=K24","v":false}]
[{"$f":"IF(INTRO!$E$33<>0,INTRO!$E$33, \" \")","v":"Mauritania"},"GORGOL","M'Bout",112876,{"$f":"IF(INTRO!$E$48=\"\",\"\",ROUND($D25*INTRO!$E$48,0))","v":15803},{"$f":"IF(INTRO!$E$49=\"\",\"\",ROUND($D25*INTRO!$E$49,0))","v":25961},{"$f":"IF(INTRO!$E$50=\"\",\"\",ROUND($D25*INTRO!$E$50,0))","v":66394},null,null,1,2,{"$f":"IF(INTRO!$E$37=\"Endémique\",IF($H25>0,IF($H25=4,\"Inconnu\",IF($H25=99,\"Interrompu\",$D25)),0),\"Non requis\")","v":"Non requis"},{"$f":"IF(INTRO!$E$39=\"Endémique\", IF($I25>0, IF($I25=4,\"Inconnu\",IF($I25=99,\"Interrompu\",$D25)), 0),\"Non requis\")","v":"Non requis"},{"$f":"IF(INTRO!$E$41=\"Endémique\", IF(AND($J25>1,$J25<5), IF($J25=4, \"Inconnu\", E25+F25), 0),\"Non requis\")","v":0},{"$f":"IF(INTRO!$E$43=\"Endémique\", IF(AND($K25>0,$K25<5), IF($K25=4,\"Inconnu\", IF($K25=1, $F25*0.33, IF($K25=2, $F25*0.5+$G25*0.2, SUM(F25:G25)))), 0),\"Non requis\")","v":26259.300000000003},null,null,0,1,null,null,null,"Oui",31053,"M'Bout",null,"M Bout",15.7000005,30.120000999999998,2,{"$f":"AG25=C25","v":true},"GORGOL","M'Bout",79.2,3,null,2,true,null,null,{"$f":"AQ25=C25","v":true},"GORGOL","M'Bout",7183,0,7183,null,null,{"$f":"AY25=C25","v":true},"GORGOL","M'Bout",1,2,{"$f":"AZ25=J25","v":true},{"$f":"BA25=K25","v":true}]
[{"$f":"IF(INTRO!$E$33<>0,INTRO!$E$33, \" \")","v":"Mauritania"},"GORGOL","Monguel",47599,{"$f":"IF(INTRO!$E$48=\"\",\"\",ROUND($D26*INTRO!$E$48,0))","v":6664},{"$f":"IF(INTRO!$E$49=\"\",\"\",ROUND($D26*INTRO!$E$49,0))","v":10948},{"$f":"IF(INTRO!$E$50=\"\",\"\",ROUND($D26*INTRO!$E$50,0))","v":27998},null,null,1,1,{"$f":"IF(INTRO!$E$37=\"Endémique\",IF($H26>0,IF($H26=4,\"Inconnu\",IF($H26=99,\"Interrompu\",$D26)),0),\"Non requis\")","v":"Non requis"},{"$f":"IF(INTRO!$E$39=\"Endémique\", IF($I26>0, IF($I26=4,\"Inconnu\",IF($I26=99,\"Interrompu\",$D26)), 0),\"Non requis\")","v":"Non requis"},{"$f":"IF(INTRO!$E$41=\"Endémique\", IF(AND($J26>1,$J26<5), IF($J26=4, \"Inconnu\", E26+F26), 0),\"Non requis\")","v":0},{"$f":"IF(INTRO!$E$43=\"Endémique\", IF(AND($K26>0,$K26<5), IF($K26=4,\"Inconnu\", IF($K26=1, $F26*0.33, IF($K26=2, $F26*0.5+$G26*0.2, SUM(F26:G26)))), 0),\"Non requis\")","v":3612.84},null,null,0,0,null,null,null,"Oui",31055,"Monguel",null,"Monguel",1.64,1.64,1,{"$f":"AG26=C26","v":true},"GORGOL","Monguel",30.6,2,null,2,false,null,null,{"$f":"AQ26=C26","v":true},"GORGOL","Monguel",0,1,1,null,null,{"$f":"AY26=C26","v":true},"GORGOL","Monguel",1,2,{"$f":"AZ26=J26","v":true},{"$f":"BA26=K26","v":false}]
[{"$f":"IF(INTRO!$E$33<>0,INTRO!$E$33, \" \")","v":"Mauritania"},"GUIDIMAKHA","GHABOU",97542,{"$f":"IF(INTRO!$E$48=\"\",\"\",ROUND($D27*INTRO!$E$48,0))","v":13656},{"$f":"IF(INTRO!$E$49=\"\",\"\",ROUND($D27*INTRO!$E$49,0))","v":22435},{"$f":"IF(INTRO!$E$50=\"\",\"\",ROUND($D27*INTRO!$E$50,0))","v":57374},null,null,1,3,{"$f":"IF(INTRO!$E$37=\"Endémique\",IF($H27>0,IF($H27=4,\"Inconnu\",IF($H27=99,\"Interrompu\",$D27)),0),\"Non requis\")","v":"Non requis"},{"$f":"IF(INTRO!$E$39=\"Endémique\", IF($I27>0, IF($I27=4,\"Inconnu\",IF($I27=99,\"Interrompu\",$D27)), 0),\"Non requis\")","v":"Non requis"},{"$f":"IF(INTRO!$E$41=\"Endémique\", IF(AND($J27>1,$J27<5), IF($J27=4, \"Inconnu\", E27+F27), 0),\"Non requis\")","v":0},{"$f":"IF(INTRO!$E$43=\"Endémique\", IF(AND($K27>0,$K27<5), IF($K27=4,\"Inconnu\", IF($K27=1, $F27*0.33, IF($K27=2, $F27*0.5+$G27*0.2, SUM(F27:G27)))), 0),\"Non requis\")","v":79809},null,null,0,1,null,null,null,"Oui",31091,"GHABOU",null,null,null,null,null,{"$f":"AG27=C27","v":true},"GUIDIMAKHA","GHABOU",50.6,3,null,2,null,null,null,{"$f":"AQ27=C27","v":false},null,null,null,null,0,null,null,{"$f":"AY27=C27","v":false},null,null,null,null,{"$f":"AZ27=J27","v":false},{"$f":"BA27=K27","v":false}]
[{"$f":"IF(INTRO!$E$33<>0,INTRO!$E$33, \" \")","v":"Mauritania"},"GUIDIMAKHA","Ould Yengé",75258,{"$f":"IF(INTRO!$E$48=\"\",\"\",ROUND($D28*INTRO!$E$48,0))","v":10536},{"$f":"IF(INTRO!$E$49=\"\",\"\",ROUND($D28*INTRO!$E$49,0))","v":17309},{"$f":"IF(INTRO!$E$50=\"\",\"\",ROUND($D28*INTRO!$E$50,0))","v":44267},null,null,1,2,{"$f":"IF(INTRO!$E$37=\"Endémique\",IF($H28>0,IF($H28=4,\"Inconnu\",IF($H28=99,\"Interrompu\",$D28)),0),\"Non requis\")","v":"Non requis"},{"$f":"IF(INTRO!$E$39=\"Endémique\", IF($I28>0, IF($I28=4,\"Inconnu\",IF($I28=99,\"Interrompu\",$D28)), 0),\"Non requis\")","v":"Non requis"},{"$f":"IF(INTRO!$E$41=\"Endémique\", IF(AND($J28>1,$J28<5), IF($J28=4, \"Inconnu\", E28+F28), 0),\"Non requis\")","v":0},{"$f":"IF(INTRO!$E$43=\"Endémique\", IF(AND($K28>0,$K28<5), IF($K28=4,\"Inconnu\", IF($K28=1, $F28*0.33, IF($K28=2, $F28*0.5+$G28*0.2, SUM(F28:G28)))), 0),\"Non requis\")","v":17507.900000000001},null,null,0,1,null,null,null,"Oui",31056,"Ould Yengé",null,null,null,null,null,{"$f":"AG28=C28","v":true},"GUIDIMAKHA","Ould Yengé",23.6,2,null,2,null,null,null,{"$f":"AQ28=C28","v":true},"GUIDIMAKHA","Ould Yengé",4065,0,4065,null,null,{"$f":"AY28=C28","v":true},"GUIDIMAKHA","Ould Yengé",1,2,{"$f":"AZ28=J28","v":true},{"$f":"BA28=K28","v":true}]
[{"$f":"IF(INTRO!$E$33<>0,INTRO!$E$33, \" \")","v":"Mauritania"},"GUIDIMAKHA","Sélibaby",121255,{"$f":"IF(INTRO!$E$48=\"\",\"\",ROUND($D29*INTRO!$E$48,0))","v":16976},{"$f":"IF(INTRO!$E$49=\"\",\"\",ROUND($D29*INTRO!$E$49,0))","v":27889},{"$f":"IF(INTRO!$E$50=\"\",\"\",ROUND($D29*INTRO!$E$50,0))","v":71322},null,null,1,2,{"$f":"IF(INTRO!$E$37=\"Endémique\",IF($H29>0,IF($H29=4,\"Inconnu\",IF($H29=99,\"Interrompu\",$D29)),0),\"Non requis\")","v":"Non requis"},{"$f":"IF(INTRO!$E$39=\"Endémique\", IF($I29>0, IF($I29=4,\"Inconnu\",IF($I29=99,\"Interrompu\",$D29)), 0),\"Non requis\")","v":"Non requis"},{"$f":"IF(INTRO!$E$41=\"Endémique\", IF(AND($J29>1,$J29<5), IF($J29=4, \"Inconnu\", E29+F29), 0),\"Non requis\")","v":0},{"$f":"IF(INTRO!$E$43=\"Endémique\", IF(AND($K29>0,$K29<5), IF($K29=4,\"Inconnu\", IF($K29=1, $F29*0.33, IF($K29=2, $F29*0.5+$G29*0.2, SUM(F29:G29)))), 0),\"Non requis\")","v":28208.9},null,null,0,1,null,null,null,null,31057,"Sélibaby",null,"Selibaby",48.75,48.75,2,{"$f":"AG29=C29","v":true},"GUIDIMAKHA","Sélibaby",50.6,3,null,2,true,null,null,{"$f":"AQ29=C29","v":true},"GUIDIMAKHA","Sélibaby",22547,0,22547,null,null,{"$f":"AY29=C29","v":true},"GUIDIMAKHA","Sélibaby",1,2,{"$f":"AZ29=J29","v":true},{"$f":"BA29=K29","v":true}]
[{"$f":"IF(INTRO!$E$33<>0,INTRO!$E$33, \" \")","v":"Mauritania"},"HODH CHARQUI","Amourj",104129,{"$f":"IF(INTRO!$E$48=\"\",\"\",ROUND($D30*INTRO!$E$48,0))","v":14578},{"$f":"IF(INTRO!$E$49=\"\",\"\",ROUND($D30*INTRO!$E$49,0))","v":23950},{"$f":"IF(INTRO!$E$50=\"\",\"\",ROUND($D30*INTRO!$E$50,0))","v":61249},null,null,1,2,{"$f":"IF(INTRO!$E$37=\"Endémique\",IF($H30>0,IF($H30=4,\"Inconnu\",IF($H30=99,\"Interrompu\",$D30)),0),\"Non requis\")","v":"Non requis"},{"$f":"IF(INTRO!$E$39=\"Endémique\", IF($I30>0, IF($I30=4,\"Inconnu\",IF($I30=99,\"Interrompu\",$D30)), 0),\"Non requis\")","v":"Non requis"},{"$f":"IF(INTRO!$E$41=\"Endémique\", IF(AND($J30>1,$J30<5), IF($J30=4, \"Inconnu\", E30+F30), 0),\"Non requis\")","v":0},{"$f":"IF(INTRO!$E$43=\"Endémique\", IF(AND($K30>0,$K30<5), IF($K30=4,\"Inconnu\", IF($K30=1, $F30*0.33, IF($K30=2, $F30*0.5+$G30*0.2, SUM(F30:G30)))), 0),\"Non requis\")","v":24224.800000000003},null,null,0,0,null,null,null,"Oui",31058,"Amourj",null,"Amourj",17.774500099999997,26.087,2,{"$f":"AG30=C30","v":true},"HODH CHARQUI","Amourj",17.600000000000001,2,null,2,true,null,null,{"$f":"AQ30=C30","v":true},"HODH CHARQUI","Amourj",0,1,1,null,null,{"$f":"AY30=C30","v":true},"HODH CHARQUI","Amourj",1,2,{"$f":"AZ30=J30","v":true},{"$f":"BA30=K30","v":true}]
[{"$f":"IF(INTRO!$E$33<>0,INTRO!$E$33, \" \")","v":"Mauritania"},"HODH CHARQUI","Bassiknou",97382,{"$f":"IF(INTRO!$E$48=\"\",\"\",ROUND($D31*INTRO!$E$48,0))","v":13633},{"$f":"IF(INTRO!$E$49=\"\",\"\",ROUND($D31*INTRO!$E$49,0))","v":22398},{"$f":"IF(INTRO!$E$50=\"\",\"\",ROUND($D31*INTRO!$E$50,0))","v":57280},null,null,1,2,{"$f":"IF(INTRO!$E$37=\"Endémique\",IF($H31>0,IF($H31=4,\"Inconnu\",IF($H31=99,\"Interrompu\",$D31)),0),\"Non requis\")","v":"Non requis"},{"$f":"IF(INTRO!$E$39=\"Endémique\", IF($I31>0, IF($I31=4,\"Inconnu\",IF($I31=99,\"Interrompu\",$D31)), 0),\"Non requis\")","v":"Non requis"},{"$f":"IF(INTRO!$E$41=\"Endémique\", IF(AND($J31>1,$J31<5), IF($J31=4, \"Inconnu\", E31+F31), 0),\"Non requis\")","v":0},{"$f":"IF(INTRO!$E$43=\"Endémique\", IF(AND($K31>0,$K31<5), IF($K31=4,\"Inconnu\", IF($K31=1, $F31*0.33, IF($K31=2, $F31*0.5+$G31*0.2, SUM(F31:G31)))), 0),\"Non requis\")","v":22655},null,null,0,0,null,null,null,"Oui",31059,"Bassiknou",null,"Bassikounou",15.621500000000001,21.254000000000001,2,{"$f":"AG31=C31","v":true},"HODH CHARQUI","Bassiknou",13.02,2,null,2,true,null,null,{"$f":"AQ31=C31","v":true},"HODH CHARQUI","Bassiknou",0,1,1,null,null,{"$f":"AY31=C31","v":true},"HODH CHARQUI","Bassiknou",1,2,{"$f":"AZ31=J31","v":true},{"$f":"BA31=K31","v":true}]
[{"$f":"IF(INTRO!$E$33<>0,INTRO!$E$33, \" \")","v":"Mauritania"},"HODH CHARQUI","Djigueni",65647,{"$f":"IF(INTRO!$E$48=\"\",\"\",ROUND($D32*INTRO!$E$48,0))","v":9191},{"$f":"IF(INTRO!$E$49=\"\",\"\",ROUND($D32*INTRO!$E$49,0))","v":15099},{"$f":"IF(INTRO!$E$50=\"\",\"\",ROUND($D32*INTRO!$E$50,0))","v":38614},null,null,1,2,{"$f":"IF(INTRO!$E$37=\"Endémique\",IF($H32>0,IF($H32=4,\"Inconnu\",IF($H32=99,\"Interrompu\",$D32)),0),\"Non requis\")","v":"Non requis"},{"$f":"IF(INTRO!$E$39=\"Endémique\", IF($I32>0, IF($I32=4,\"Inconnu\",IF($I32=99,\"Interrompu\",$D32)), 0),\"Non requis\")","v":"Non requis"},{"$f":"IF(INTRO!$E$41=\"Endémique\", IF(AND($J32>1,$J32<5), IF($J32=4, \"Inconnu\", E32+F32), 0),\"Non requis\")","v":0},{"$f":"IF(INTRO!$E$43=\"Endémique\", IF(AND($K32>0,$K32<5), IF($K32=4,\"Inconnu\", IF($K32=1, $F32*0.33, IF($K32=2, $F32*0.5+$G32*0.2, SUM(F32:G32)))), 0),\"Non requis\")","v":15272.3},null,null,0,0,null,null,null,null,31060,"Djigueni",null,"Djiguenni",26,26,2,{"$f":"AG32=C32","v":true},"HODH CHARQUI","Djigueni",16.940000000000001,2,null,2,true,null,null,{"$f":"AQ32=C32","v":true},"HODH CHARQUI","Djigueni",0,1,1,null,null,{"$f":"AY32=C32","v":true},"HODH CHARQUI","Djigueni",1,2,{"$f":"AZ32=J32","v":true},{"$f":"BA32=K32","v":true}]
[{"$f":"IF(INTRO!$E$33<>0,INTRO!$E$33, \" \")","v":"Mauritania"},"HODH CHARQUI","Nbaikit Lahouache",9757,{"$f":"IF(INTRO!$E$48=\"\",\"\",ROUND($D33*INTRO!$E$48,0))","v":1366},{"$f":"IF(INTRO!$E$49=\"\",\"\",ROUND($D33*INTRO!$E$49,0))","v":2244},{"$f":"IF(INTRO!$E$50=\"\",\"\",ROUND($D33*INTRO!$E$50,0))","v":5739},null,null,1,2,{"$f":"IF(INTRO!$E$37=\"Endémique\",IF($H33>0,IF($H33=4,\"Inconnu\",IF($H33=99,\"Interrompu\",$D33)),0),\"Non requis\")","v":"Non requis"},{"$f":"IF(INTRO!$E$39=\"Endémique\", IF($I33>0, IF($I33=4,\"Inconnu\",IF($I33=99,\"Interrompu\",$D33)), 0),\"Non requis\")","v":"Non requis"},{"$f":"IF(INTRO!$E$41=\"Endémique\", IF(AND($J33>1,$J33<5), IF($J33=4, \"Inconnu\", E33+F33), 0),\"Non requis\")","v":0},{"$f":"IF(INTRO!$E$43=\"Endémique\", IF(AND($K33>0,$K33<5), IF($K33=4,\"Inconnu\", IF($K33=1, $F33*0.33, IF($K33=2, $F33*0.5+$G33*0.2, SUM(F33:G33)))), 0),\"Non requis\")","v":2269.8000000000002},null,null,0,0,null,null,null,null,31090,"Nbaikit Lahouache",null,null,null,null,null,{"$f":"AG33=C33","v":true},"HODH CHARQUI","Nbaikit Lahouache",13.02,2,null,2,null,null,null,{"$f":"AQ33=C33","v":true},"HODH CHARQUI","Nbaikit Lahouache",0,1,1,null,null,{"$f":"AY33=C33","v":true},"HODH CHARQUI","Nbaikit Lahouache",1,2,{"$f":"AZ33=J33","v":true},{"$f":"BA33=K33","v":true}]
[{"$f":"IF(INTRO!$E$33<>0,INTRO!$E$33, \" \")","v":"Mauritania"},"HODH CHARQUI","Néma",95858,{"$f":"IF(INTRO!$E$48=\"\",\"\",ROUND($D34*INTRO!$E$48,0))","v":13420},{"$f":"IF(INTRO!$E$49=\"\",\"\",ROUND($D34*INTRO!$E$49,0))","v":22047},{"$f":"IF(INTRO!$E$50=\"\",\"\",ROUND($D34*INTRO!$E$50,0))","v":56384},null,null,1,2,{"$f":"IF(INTRO!$E$37=\"Endémique\",IF($H34>0,IF($H34=4,\"Inconnu\",IF($H34=99,\"Interrompu\",$D34)),0),\"Non requis\")","v":"Non requis"},{"$f":"IF(INTRO!$E$39=\"Endémique\", IF($I34>0, IF($I34=4,\"Inconnu\",IF($I34=99,\"Interrompu\",$D34)), 0),\"Non requis\")","v":"Non requis"},{"$f":"IF(INTRO!$E$41=\"Endémique\", IF(AND($J34>1,$J34<5), IF($J34=4, \"Inconnu\", E34+F34), 0),\"Non requis\")","v":0},{"$f":"IF(INTRO!$E$43=\"Endémique\", IF(AND($K34>0,$K34<5), IF($K34=4,\"Inconnu\", IF($K34=1, $F34*0.33, IF($K34=2, $F34*0.5+$G34*0.2, SUM(F34:G34)))), 0),\"Non requis\")","v":22300.300000000003},null,null,0,0,null,null,null,null,31061,"Néma",null,"Nema",12.533333300000001,24,2,{"$f":"AG34=C34","v":true},"HODH CHARQUI","Néma",5.7,1,null,2,true,null,null,{"$f":"AQ34=C34","v":true},"HODH CHARQUI","Néma",0,1,1,null,null,{"$f":"AY34=C34","v":true},"HODH CHARQUI","Néma",1,2,{"$f":"AZ34=J34","v":true},{"$f":"BA34=K34","v":true}]
[{"$f":"IF(INTRO!$E$33<>0,INTRO!$E$33, \" \")","v":"Mauritania"},"HODH CHARQUI","Oualatta",14410,{"$f":"IF(INTRO!$E$48=\"\",\"\",ROUND($D35*INTRO!$E$48,0))","v":2017},{"$f":"IF(INTRO!$E$49=\"\",\"\",ROUND($D35*INTRO!$E$49,0))","v":3314},{"$f":"IF(INTRO!$E$50=\"\",\"\",ROUND($D35*INTRO!$E$50,0))","v":8476},null,null,1,1,{"$f":"IF(INTRO!$E$37=\"Endémique\",IF($H35>0,IF($H35=4,\"Inconnu\",IF($H35=99,\"Interrompu\",$D35)),0),\"Non requis\")","v":"Non requis"},{"$f":"IF(INTRO!$E$39=\"Endémique\", IF($I35>0, IF($I35=4,\"Inconnu\",IF($I35=99,\"Interrompu\",$D35)), 0),\"Non requis\")","v":"Non requis"},{"$f":"IF(INTRO!$E$41=\"Endémique\", IF(AND($J35>1,$J35<5), IF($J35=4, \"Inconnu\", E35+F35), 0),\"Non requis\")","v":0},{"$f":"IF(INTRO!$E$43=\"Endémique\", IF(AND($K35>0,$K35<5), IF($K35=4,\"Inconnu\", IF($K35=1, $F35*0.33, IF($K35=2, $F35*0.5+$G35*0.2, SUM(F35:G35)))), 0),\"Non requis\")","v":1093.6200000000001},null,null,0,0,null,null,null,null,31062,"Oualatta",null,"Oualata",3.2789999999999999,3.2789999999999999,1,{"$f":"AG35=C35","v":true},"HODH CHARQUI","Oualatta",0,0,null,2,false,null,null,{"$f":"AQ35=C35","v":true},"HODH CHARQUI","Oualatta",0,1,1,null,null,{"$f":"AY35=C35","v":true},"HODH CHARQUI","Oualatta",1,2,{"$f":"AZ35=J35","v":true},{"$f":"BA35=K35","v":false}]
[{"$f":"IF(INTRO!$E$33<>0,INTRO!$E$33, \" \")","v":"Mauritania"},"HODH CHARQUI","Timbedra",87071,{"$f":"IF(INTRO!$E$48=\"\",\"\",ROUND($D36*INTRO!$E$48,0))","v":12190},{"$f":"IF(INTRO!$E$49=\"\",\"\",ROUND($D36*INTRO!$E$49,0))","v":20026},{"$f":"IF(INTRO!$E$50=\"\",\"\",ROUND($D36*INTRO!$E$50,0))","v":51215},null,null,1,2,{"$f":"IF(INTRO!$E$37=\"Endémique\",IF($H36>0,IF($H36=4,\"Inconnu\",IF($H36=99,\"Interrompu\",$D36)),0),\"Non requis\")","v":"Non requis"},{"$f":"IF(INTRO!$E$39=\"Endémique\", IF($I36>0, IF($I36=4,\"Inconnu\",IF($I36=99,\"Interrompu\",$D36)), 0),\"Non requis\")","v":"Non requis"},{"$f":"IF(INTRO!$E$41=\"Endémique\", IF(AND($J36>1,$J36<5), IF($J36=4, \"Inconnu\", E36+F36), 0),\"Non requis\")","v":0},{"$f":"IF(INTRO!$E$43=\"Endémique\", IF(AND($K36>0,$K36<5), IF($K36=4,\"Inconnu\", IF($K36=1, $F36*0.33, IF($K36=2, $F36*0.5+$G36*0.2, SUM(F36:G36)))), 0),\"Non requis\")","v":20256},null,null,0,0,null,null,null,null,31063,"Timbedra",null,"Timbedra",13.755333333333333,15.385,2,{"$f":"AG36=C36","v":true},"HODH CHARQUI","Timbedra",12.1,2,null,2,true,null,null,{"$f":"AQ36=C36","v":true},"HODH CHARQUI","Timbedra",0,1,1,null,null,{"$f":"AY36=C36","v":true},"HODH CHARQUI","Timbedra",1,2,{"$f":"AZ36=J36","v":true},{"$f":"BA36=K36","v":true}]
[{"$f":"IF(INTRO!$E$33<>0,INTRO!$E$33, \" \")","v":"Mauritania"},"HODH GHARBI","Aioun",71839,{"$f":"IF(INTRO!$E$48=\"\",\"\",ROUND($D37*INTRO!$E$48,0))","v":10057},{"$f":"IF(INTRO!$E$49=\"\",\"\",ROUND($D37*INTRO!$E$49,0))","v":16523},{"$f":"IF(INTRO!$E$50=\"\",\"\",ROUND($D37*INTRO!$E$50,0))","v":42256},null,null,0,2,{"$f":"IF(INTRO!$E$37=\"Endémique\",IF($H37>0,IF($H37=4,\"Inconnu\",IF($H37=99,\"Interrompu\",$D37)),0),\"Non requis\")","v":"Non requis"},{"$f":"IF(INTRO!$E$39=\"Endémique\", IF($I37>0, IF($I37=4,\"Inconnu\",IF($I37=99,\"Interrompu\",$D37)), 0),\"Non requis\")","v":"Non requis"},{"$f":"IF(INTRO!$E$41=\"Endémique\", IF(AND($J37>1,$J37<5), IF($J37=4, \"Inconnu\", E37+F37), 0),\"Non requis\")","v":0},{"$f":"IF(INTRO!$E$43=\"Endémique\", IF(AND($K37>0,$K37<5), IF($K37=4,\"Inconnu\", IF($K37=1, $F37*0.33, IF($K37=2, $F37*0.5+$G37*0.2, SUM(F37:G37)))), 0),\"Non requis\")","v":16712.7},null,null,0,0,null,null,null,null,31064,"Aioun",null,"Aioun Al Atrous",18.323250000000002,27.344000000000001,2,{"$f":"AG37=C37","v":true},"HODH GHARBI","Aioun",11.95,2,null,0,false,null,null,{"$f":"AQ37=C37","v":true},"HODH GHARBI","Aioun",7923.5,0,7923.5,null,null,{"$f":"AY37=C37","v":true},"HODH GHARBI","Aioun",1,2,{"$f":"AZ37=J37","v":false},{"$f":"BA37=K37","v":true}]
[{"$f":"IF(INTRO!$E$33<>0,INTRO!$E$33, \" \")","v":"Mauritania"},"HODH GHARBI","Kobeni",102071,{"$f":"IF(INTRO!$E$48=\"\",\"\",ROUND($D38*INTRO!$E$48,0))","v":14290},{"$f":"IF(INTRO!$E$49=\"\",\"\",ROUND($D38*INTRO!$E$49,0))","v":23476},{"$f":"IF(INTRO!$E$50=\"\",\"\",ROUND($D38*INTRO!$E$50,0))","v":60038},null,null,1,2,{"$f":"IF(INTRO!$E$37=\"Endémique\",IF($H38>0,IF($H38=4,\"Inconnu\",IF($H38=99,\"Interrompu\",$D38)),0),\"Non requis\")","v":"Non requis"},{"$f":"IF(INTRO!$E$39=\"Endémique\", IF($I38>0, IF($I38=4,\"Inconnu\",IF($I38=99,\"Interrompu\",$D38)), 0),\"Non requis\")","v":"Non requis"},{"$f":"IF(INTRO!$E$41=\"Endémique\", IF(AND($J38>1,$J38<5), IF($J38=4, \"Inconnu\", E38+F38), 0),\"Non requis\")","v":0},{"$f":"IF(INTRO!$E$43=\"Endémique\", IF(AND($K38>0,$K38<5), IF($K38=4,\"Inconnu\", IF($K38=1, $F38*0.33, IF($K38=2, $F38*0.5+$G38*0.2, SUM(F38:G38)))), 0),\"Non requis\")","v":23745.599999999999},null,null,0,0,null,null,null,null,31065,"Kobeni",null,"Kobenni",23.305999666666665,30.136998999999999,2,{"$f":"AG38=C38","v":true},"HODH GHARBI","Kobeni",26.47,2,null,2,true,null,null,{"$f":"AQ38=C38","v":true},"HODH GHARBI","Kobeni",11258,0,11258,null,null,{"$f":"AY38=C38","v":true},"HODH GHARBI","Kobeni",1,2,{"$f":"AZ38=J38","v":true},{"$f":"BA38=K38","v":true}]
[{"$f":"IF(INTRO!$E$33<>0,INTRO!$E$33, \" \")","v":"Mauritania"},"HODH GHARBI","Tamchekett",42961,{"$f":"IF(INTRO!$E$48=\"\",\"\",ROUND($D39*INTRO!$E$48,0))","v":6015},{"$f":"IF(INTRO!$E$49=\"\",\"\",ROUND($D39*INTRO!$E$49,0))","v":9881},{"$f":"IF(INTRO!$E$50=\"\",\"\",ROUND($D39*INTRO!$E$50,0))","v":25270},null,null,1,2,{"$f":"IF(INTRO!$E$37=\"Endémique\",IF($H39>0,IF($H39=4,\"Inconnu\",IF($H39=99,\"Interrompu\",$D39)),0),\"Non requis\")","v":"Non requis"},{"$f":"IF(INTRO!$E$39=\"Endémique\", IF($I39>0, IF($I39=4,\"Inconnu\",IF($I39=99,\"Interrompu\",$D39)), 0),\"Non requis\")","v":"Non requis"},{"$f":"IF(INTRO!$E$41=\"Endémique\", IF(AND($J39>1,$J39<5), IF($J39=4, \"Inconnu\", E39+F39), 0),\"Non requis\")","v":0},{"$f":"IF(INTRO!$E$43=\"Endémique\", IF(AND($K39>0,$K39<5), IF($K39=4,\"Inconnu\", IF($K39=1, $F39*0.33, IF($K39=2, $F39*0.5+$G39*0.2, SUM(F39:G39)))), 0),\"Non requis\")","v":9994.5},null,null,0,1,null,null,null,null,31066,"Tamchekett",null,"Tamchekket",32.262750250000003,43.651001000000001,2,{"$f":"AG39=C39","v":true},"HODH GHARBI","Tamchekett",31.36,2,null,2,true,null,null,{"$f":"AQ39=C39","v":true},"HODH GHARBI","Tamchekett",4738.5,0,4738.5,null,null,{"$f":"AY39=C39","v":true},"HODH GHARBI","Tamchekett",1,2,{"$f":"AZ39=J39","v":true},{"$f":"BA39=K39","v":true}]
[{"$f":"IF(INTRO!$E$33<>0,INTRO!$E$33, \" \")","v":"Mauritania"},"HODH GHARBI","Tintane",107004,{"$f":"IF(INTRO!$E$48=\"\",\"\",ROUND($D40*INTRO!$E$48,0))","v":14981},{"$f":"IF(INTRO!$E$49=\"\",\"\",ROUND($D40*INTRO!$E$49,0))","v":24611},{"$f":"IF(INTRO!$E$50=\"\",\"\",ROUND($D40*INTRO!$E$50,0))","v":62940},null,null,1,2,{"$f":"IF(INTRO!$E$37=\"Endémique\",IF($H40>0,IF($H40=4,\"Inconnu\",IF($H40=99,\"Interrompu\",$D40)),0),\"Non requis\")","v":"Non requis"},{"$f":"IF(INTRO!$E$39=\"Endémique\", IF($I40>0, IF($I40=4,\"Inconnu\",IF($I40=99,\"Interrompu\",$D40)), 0),\"Non requis\")","v":"Non requis"},{"$f":"IF(INTRO!$E$41=\"Endémique\", IF(AND($J40>1,$J40<5), IF($J40=4, \"Inconnu\", E40+F40), 0),\"Non requis\")","v":0},{"$f":"IF(INTRO!$E$43=\"Endémique\", IF(AND($K40>0,$K40<5), IF($K40=4,\"Inconnu\", IF($K40=1, $F40*0.33, IF($K40=2, $F40*0.5+$G40*0.2, SUM(F40:G40)))), 0),\"Non requis\")","v":24893.5},null,null,0,0,null,null,null,null,31067,"Tintane",null,"Tintane",64.985248499999997,73.393996999999999,2,{"$f":"AG40=C40","v":true},"HODH GHARBI","Tintane",63.89,3,null,2,true,null,null,{"$f":"AQ40=C40","v":true},"HODH GHARBI","Tintane",11802,1,11803,null,null,{"$f":"AY40=C40","v":true},"HODH GHARBI","Tintane",1,2,{"$f":"AZ40=J40","v":true},{"$f":"BA40=K40","v":true}]
[{"$f":"IF(INTRO!$E$33<>0,INTRO!$E$33, \" \")","v":"Mauritania"},"INCHIRI","Akjoujt",14408,{"$f":"IF(INTRO!$E$48=\"\",\"\",ROUND($D41*INTRO!$E$48,0))","v":2017},{"$f":"IF(INTRO!$E$49=\"\",\"\",ROUND($D41*INTRO!$E$49,0))","v":3314},{"$f":"IF(INTRO!$E$50=\"\",\"\",ROUND($D41*INTRO!$E$50,0))","v":8475},null,null,1,1,{"$f":"IF(INTRO!$E$37=\"Endémique\",IF($H41>0,IF($H41=4,\"Inconnu\",IF($H41=99,\"Interrompu\",$D41)),0),\"Non requis\")","v":"Non requis"},{"$f":"IF(INTRO!$E$39=\"Endémique\", IF($I41>0, IF($I41=4,\"Inconnu\",IF($I41=99,\"Interrompu\",$D41)), 0),\"Non requis\")","v":"Non requis"},{"$f":"IF(INTRO!$E$41=\"Endémique\", IF(AND($J41>1,$J41<5), IF($J41=4, \"Inconnu\", E41+F41), 0),\"Non requis\")","v":0},{"$f":"IF(INTRO!$E$43=\"Endémique\", IF(AND($K41>0,$K41<5), IF($K41=4,\"Inconnu\", IF($K41=1, $F41*0.33, IF($K41=2, $F41*0.5+$G41*0.2, SUM(F41:G41)))), 0),\"Non requis\")","v":1093.6200000000001},null,null,0,0,null,null,null,null,31068,"Akjoujt",null,"Akjoujt",3.0515714000000003,7.6919998999999999,1,{"$f":"AG41=C41","v":true},"INCHIRI","Akjoujt",4.2,1,null,2,false,null,null,{"$f":"AQ41=C41","v":true},"INCHIRI","Akjoujt",0,1,1,null,null,{"$f":"AY41=C41","v":true},"INCHIRI","Akjoujt",1,1,{"$f":"AZ41=J41","v":true},{"$f":"BA41=K41","v":true}]
[{"$f":"IF(INTRO!$E$33<>0,INTRO!$E$33, \" \")","v":"Mauritania"},"INCHIRI","BENICHAB",7218,{"$f":"IF(INTRO!$E$48=\"\",\"\",ROUND($D42*INTRO!$E$48,0))","v":1011},{"$f":"IF(INTRO!$E$49=\"\",\"\",ROUND($D42*INTRO!$E$49,0))","v":1660},{"$f":"IF(INTRO!$E$50=\"\",\"\",ROUND($D42*INTRO!$E$50,0))","v":4246},null,null,1,3,{"$f":"IF(INTRO!$E$37=\"Endémique\",IF($H42>0,IF($H42=4,\"Inconnu\",IF($H42=99,\"Interrompu\",$D42)),0),\"Non requis\")","v":"Non requis"},{"$f":"IF(INTRO!$E$39=\"Endémique\", IF($I42>0, IF($I42=4,\"Inconnu\",IF($I42=99,\"Interrompu\",$D42)), 0),\"Non requis\")","v":"Non requis"},{"$f":"IF(INTRO!$E$41=\"Endémique\", IF(AND($J42>1,$J42<5), IF($J42=4, \"Inconnu\", E42+F42), 0),\"Non requis\")","v":0},{"$f":"IF(INTRO!$E$43=\"Endémique\", IF(AND($K42>0,$K42<5), IF($K42=4,\"Inconnu\", IF($K42=1, $F42*0.33, IF($K42=2, $F42*0.5+$G42*0.2, SUM(F42:G42)))), 0),\"Non requis\")","v":5906},null,null,0,1,null,null,null,null,31092,"BENICHAB",null,null,null,null,null,{"$f":"AG42=C42","v":true},"INCHIRI","BENICHAB",4.2,1,null,3,false,null,null,{"$f":"AQ42=C42","v":false},null,null,null,null,0,null,null,{"$f":"AY42=C42","v":false},null,null,null,null,{"$f":"AZ42=J42","v":false},{"$f":"BA42=K42","v":false}]
[{"$f":"IF(INTRO!$E$33<>0,INTRO!$E$33, \" \")","v":"Mauritania"},"NOUADHIBOU","Chami",2926,{"$f":"IF(INTRO!$E$48=\"\",\"\",ROUND($D43*INTRO!$E$48,0))","v":410},{"$f":"IF(INTRO!$E$49=\"\",\"\",ROUND($D43*INTRO!$E$49,0))","v":673},{"$f":"IF(INTRO!$E$50=\"\",\"\",ROUND($D43*INTRO!$E$50,0))","v":1721},null,null,0,1,{"$f":"IF(INTRO!$E$37=\"Endémique\",IF($H43>0,IF($H43=4,\"Inconnu\",IF($H43=99,\"Interrompu\",$D43)),0),\"Non requis\")","v":"Non requis"},{"$f":"IF(INTRO!$E$39=\"Endémique\", IF($I43>0, IF($I43=4,\"Inconnu\",IF($I43=99,\"Interrompu\",$D43)), 0),\"Non requis\")","v":"Non requis"},{"$f":"IF(INTRO!$E$41=\"Endémique\", IF(AND($J43>1,$J43<5), IF($J43=4, \"Inconnu\", E43+F43), 0),\"Non requis\")","v":0},{"$f":"IF(INTRO!$E$43=\"Endémique\", IF(AND($K43>0,$K43<5), IF($K43=4,\"Inconnu\", IF($K43=1, $F43*0.33, IF($K43=2, $F43*0.5+$G43*0.2, SUM(F43:G43)))), 0),\"Non requis\")","v":222.09},null,null,0,0,null,null,null,null,31050,"Chami",null,null,null,null,null,{"$f":"AG43=C43","v":true},"DAKHLET NOUADHIBOU","Chami",null,null,null,1,null,null,null,{"$f":"AQ43=C43","v":true},"NOUADHIBOU","Chami",0,0,0,null,null,{"$f":"AY43=C43","v":true},"NOUADHIBOU","Chami",1,0,{"$f":"AZ43=J43","v":false},{"$f":"BA43=K43","v":false}]
[{"$f":"IF(INTRO!$E$33<>0,INTRO!$E$33, \" \")","v":"Mauritania"},"NOUADHIBOU","Nouadhibou",133380,{"$f":"IF(INTRO!$E$48=\"\",\"\",ROUND($D44*INTRO!$E$48,0))","v":18673},{"$f":"IF(INTRO!$E$49=\"\",\"\",ROUND($D44*INTRO!$E$49,0))","v":30677},{"$f":"IF(INTRO!$E$50=\"\",\"\",ROUND($D44*INTRO!$E$50,0))","v":78454},null,null,0,1,{"$f":"IF(INTRO!$E$37=\"Endémique\",IF($H44>0,IF($H44=4,\"Inconnu\",IF($H44=99,\"Interrompu\",$D44)),0),\"Non requis\")","v":"Non requis"},{"$f":"IF(INTRO!$E$39=\"Endémique\", IF($I44>0, IF($I44=4,\"Inconnu\",IF($I44=99,\"Interrompu\",$D44)), 0),\"Non requis\")","v":"Non requis"},{"$f":"IF(INTRO!$E$41=\"Endémique\", IF(AND($J44>1,$J44<5), IF($J44=4, \"Inconnu\", E44+F44), 0),\"Non requis\")","v":0},{"$f":"IF(INTRO!$E$43=\"Endémique\", IF(AND($K44>0,$K44<5), IF($K44=4,\"Inconnu\", IF($K44=1, $F44*0.33, IF($K44=2, $F44*0.5+$G44*0.2, SUM(F44:G44)))), 0),\"Non requis\")","v":10123.41},null,null,0,0,null,null,null,null,31051,"Nouadhibou",null,"Nouadhibou",0.4,2,1,{"$f":"AG44=C44","v":true},"DAKHLET NOUADHIBOU","Nouadhibou",null,null,null,1,true,null,null,{"$f":"AQ44=C44","v":true},"NOUADHIBOU","Nouadhibou",0,1,1,null,null,{"$f":"AY44=C44","v":true},"NOUADHIBOU","Nouadhibou",1,0,{"$f":"AZ44=J44","v":false},{"$f":"BA44=K44","v":false}]
[{"$f":"IF(INTRO!$E$33<>0,INTRO!$E$33, \" \")","v":"Mauritania"},"NOUAKCHOTT","ARAFAT",193779,{"$f":"IF(INTRO!$E$48=\"\",\"\",ROUND($D45*INTRO!$E$48,0))","v":27129},{"$f":"IF(INTRO!$E$49=\"\",\"\",ROUND($D45*INTRO!$E$49,0))","v":44569},{"$f":"IF(INTRO!$E$50=\"\",\"\",ROUND($D45*INTRO!$E$50,0))","v":113981},null,null,1,4,{"$f":"IF(INTRO!$E$37=\"Endémique\",IF($H45>0,IF($H45=4,\"Inconnu\",IF($H45=99,\"Interrompu\",$D45)),0),\"Non requis\")","v":"Non requis"},{"$f":"IF(INTRO!$E$39=\"Endémique\", IF($I45>0, IF($I45=4,\"Inconnu\",IF($I45=99,\"Interrompu\",$D45)), 0),\"Non requis\")","v":"Non requis"},{"$f":"IF(INTRO!$E$41=\"Endémique\", IF(AND($J45>1,$J45<5), IF($J45=4, \"Inconnu\", E45+F45), 0),\"Non requis\")","v":0},{"$f":"IF(INTRO!$E$43=\"Endémique\", IF(AND($K45>0,$K45<5), IF($K45=4,\"Inconnu\", IF($K45=1, $F45*0.33, IF($K45=2, $F45*0.5+$G45*0.2, SUM(F45:G45)))), 0),\"Non requis\")","v":"Inconnu"},null,null,0,0,null,null,null,null,31069,"ARAFAT",null,null,null,null,null,{"$f":"AG45=C45","v":true},"NOUAKCHOTT SUD","ARAFAT",null,null,null,4,null,null,null,{"$f":"AQ45=C45","v":true},"NOUAKCHOTT","ARAFAT",0,0,0,null,null,{"$f":"AY45=C45","v":true},"NOUAKCHOTT","ARAFAT",1,0,{"$f":"AZ45=J45","v":true},{"$f":"BA45=K45","v":false}]
[{"$f":"IF(INTRO!$E$33<>0,INTRO!$E$33, \" \")","v":"Mauritania"},"NOUAKCHOTT","DAR NAIM",158622,{"$f":"IF(INTRO!$E$48=\"\",\"\",ROUND($D46*INTRO!$E$48,0))","v":22207},{"$f":"IF(INTRO!$E$49=\"\",\"\",ROUND($D46*INTRO!$E$49,0))","v":36483},{"$f":"IF(INTRO!$E$50=\"\",\"\",ROUND($D46*INTRO!$E$50,0))","v":93301},null,null,1,4,{"$f":"IF(INTRO!$E$37=\"Endémique\",IF($H46>0,IF($H46=4,\"Inconnu\",IF($H46=99,\"Interrompu\",$D46)),0),\"Non requis\")","v":"Non requis"},{"$f":"IF(INTRO!$E$39=\"Endémique\", IF($I46>0, IF($I46=4,\"Inconnu\",IF($I46=99,\"Interrompu\",$D46)), 0),\"Non requis\")","v":"Non requis"},{"$f":"IF(INTRO!$E$41=\"Endémique\", IF(AND($J46>1,$J46<5), IF($J46=4, \"Inconnu\", E46+F46), 0),\"Non requis\")","v":0},{"$f":"IF(INTRO!$E$43=\"Endémique\", IF(AND($K46>0,$K46<5), IF($K46=4,\"Inconnu\", IF($K46=1, $F46*0.33, IF($K46=2, $F46*0.5+$G46*0.2, SUM(F46:G46)))), 0),\"Non requis\")","v":"Inconnu"},null,null,0,0,null,null,null,null,31070,"DAR NAIM",null,null,null,null,null,{"$f":"AG46=C46","v":true},"NOUAKCHOTT NORD","DAR NAIM",null,null,null,4,null,null,null,{"$f":"AQ46=C46","v":true},"NOUAKCHOTT","DAR NAIM",0,1,1,null,null,{"$f":"AY46=C46","v":true},"NOUAKCHOTT","DAR NAIM",1,0,{"$f":"AZ46=J46","v":true},{"$f":"BA46=K46","v":false}]
[{"$f":"IF(INTRO!$E$33<>0,INTRO!$E$33, \" \")","v":"Mauritania"},"NOUAKCHOTT","ELMINA",146102,{"$f":"IF(INTRO!$E$48=\"\",\"\",ROUND($D47*INTRO!$E$48,0))","v":20454},{"$f":"IF(INTRO!$E$49=\"\",\"\",ROUND($D47*INTRO!$E$49,0))","v":33603},{"$f":"IF(INTRO!$E$50=\"\",\"\",ROUND($D47*INTRO!$E$50,0))","v":85937},null,null,1,4,{"$f":"IF(INTRO!$E$37=\"Endémique\",IF($H47>0,IF($H47=4,\"Inconnu\",IF($H47=99,\"Interrompu\",$D47)),0),\"Non requis\")","v":"Non requis"},{"$f":"IF(INTRO!$E$39=\"Endémique\", IF($I47>0, IF($I47=4,\"Inconnu\",IF($I47=99,\"Interrompu\",$D47)), 0),\"Non requis\")","v":"Non requis"},{"$f":"IF(INTRO!$E$41=\"Endémique\", IF(AND($J47>1,$J47<5), IF($J47=4, \"Inconnu\", E47+F47), 0),\"Non requis\")","v":0},{"$f":"IF(INTRO!$E$43=\"Endémique\", IF(AND($K47>0,$K47<5), IF($K47=4,\"Inconnu\", IF($K47=1, $F47*0.33, IF($K47=2, $F47*0.5+$G47*0.2, SUM(F47:G47)))), 0),\"Non requis\")","v":"Inconnu"},null,null,0,0,null,null,null,null,31071,"ELMINA",null,null,null,null,null,{"$f":"AG47=C47","v":true},"NOUAKCHOTT SUD","ELMINA",null,null,null,4,null,null,null,{"$f":"AQ47=C47","v":true},"NOUAKCHOTT","ELMINA",0,0,0,null,null,{"$f":"AY47=C47","v":true},"NOUAKCHOTT","ELMINA",1,0,{"$f":"AZ47=J47","v":true},{"$f":"BA47=K47","v":false}]
[{"$f":"IF(INTRO!$E$33<>0,INTRO!$E$33, \" \")","v":"Mauritania"},"NOUAKCHOTT","KSAR",52013,{"$f":"IF(INTRO!$E$48=\"\",\"\",ROUND($D48*INTRO!$E$48,0))","v":7282},{"$f":"IF(INTRO!$E$49=\"\",\"\",ROUND($D48*INTRO!$E$49,0))","v":11963},{"$f":"IF(INTRO!$E$50=\"\",\"\",ROUND($D48*INTRO!$E$50,0))","v":30594},null,null,1,4,{"$f":"IF(INTRO!$E$37=\"Endémique\",IF($H48>0,IF($H48=4,\"Inconnu\",IF($H48=99,\"Interrompu\",$D48)),0),\"Non requis\")","v":"Non requis"},{"$f":"IF(INTRO!$E$39=\"Endémique\", IF($I48>0, IF($I48=4,\"Inconnu\",IF($I48=99,\"Interrompu\",$D48)), 0),\"Non requis\")","v":"Non requis"},{"$f":"IF(INTRO!$E$41=\"Endémique\", IF(AND($J48>1,$J48<5), IF($J48=4, \"Inconnu\", E48+F48), 0),\"Non requis\")","v":0},{"$f":"IF(INTRO!$E$43=\"Endémique\", IF(AND($K48>0,$K48<5), IF($K48=4,\"Inconnu\", IF($K48=1, $F48*0.33, IF($K48=2, $F48*0.5+$G48*0.2, SUM(F48:G48)))), 0),\"Non requis\")","v":"Inconnu"},null,null,1,0,null,null,null,null,31072,"KSAR",null,null,null,null,null,{"$f":"AG48=C48","v":true},"NOUAKCHOTT OUEST","KSAR",null,null,null,4,null,null,null,{"$f":"AQ48=C48","v":true},"NOUAKCHOTT","KSAR",0,0,0,null,null,{"$f":"AY48=C48","v":true},"NOUAKCHOTT","KSAR",1,0,{"$f":"AZ48=J48","v":true},{"$f":"BA48=K48","v":false}]
[{"$f":"IF(INTRO!$E$33<>0,INTRO!$E$33, \" \")","v":"Mauritania"},"NOUAKCHOTT","RIYAD",128874,{"$f":"IF(INTRO!$E$48=\"\",\"\",ROUND($D49*INTRO!$E$48,0))","v":18042},{"$f":"IF(INTRO!$E$49=\"\",\"\",ROUND($D49*INTRO!$E$49,0))","v":29641},{"$f":"IF(INTRO!$E$50=\"\",\"\",ROUND($D49*INTRO!$E$50,0))","v":75804},null,null,1,4,{"$f":"IF(INTRO!$E$37=\"Endémique\",IF($H49>0,IF($H49=4,\"Inconnu\",IF($H49=99,\"Interrompu\",$D49)),0),\"Non requis\")","v":"Non requis"},{"$f":"IF(INTRO!$E$39=\"Endémique\", IF($I49>0, IF($I49=4,\"Inconnu\",IF($I49=99,\"Interrompu\",$D49)), 0),\"Non requis\")","v":"Non requis"},{"$f":"IF(INTRO!$E$41=\"Endémique\", IF(AND($J49>1,$J49<5), IF($J49=4, \"Inconnu\", E49+F49), 0),\"Non requis\")","v":0},{"$f":"IF(INTRO!$E$43=\"Endémique\", IF(AND($K49>0,$K49<5), IF($K49=4,\"Inconnu\", IF($K49=1, $F49*0.33, IF($K49=2, $F49*0.5+$G49*0.2, SUM(F49:G49)))), 0),\"Non requis\")","v":"Inconnu"},null,null,1,0,null,null,null,null,31073,"RIYAD",null,null,null,null,null,{"$f":"AG49=C49","v":true},"NOUAKCHOTT SUD","RIYAD",null,null,null,4,null,null,null,{"$f":"AQ49=C49","v":true},"NOUAKCHOTT","RIYAD",0,1,1,null,null,{"$f":"AY49=C49","v":true},"NOUAKCHOTT","RIYAD",1,0,{"$f":"AZ49=J49","v":true},{"$f":"BA49=K49","v":false}]
[{"$f":"IF(INTRO!$E$33<>0,INTRO!$E$33, \" \")","v":"Mauritania"},"NOUAKCHOTT","SEBKHA",79557,{"$f":"IF(INTRO!$E$48=\"\",\"\",ROUND($D50*INTRO!$E$48,0))","v":11138},{"$f":"IF(INTRO!$E$49=\"\",\"\",ROUND($D50*INTRO!$E$49,0))","v":18298},{"$f":"IF(INTRO!$E$50=\"\",\"\",ROUND($D50*INTRO!$E$50,0))","v":46795},null,null,2,2,{"$f":"IF(INTRO!$E$37=\"Endémique\",IF($H50>0,IF($H50=4,\"Inconnu\",IF($H50=99,\"Interrompu\",$D50)),0),\"Non requis\")","v":"Non requis"},{"$f":"IF(INTRO!$E$39=\"Endémique\", IF($I50>0, IF($I50=4,\"Inconnu\",IF($I50=99,\"Interrompu\",$D50)), 0),\"Non requis\")","v":"Non requis"},{"$f":"IF(INTRO!$E$41=\"Endémique\", IF(AND($J50>1,$J50<5), IF($J50=4, \"Inconnu\", E50+F50), 0),\"Non requis\")","v":29436},{"$f":"IF(INTRO!$E$43=\"Endémique\", IF(AND($K50>0,$K50<5), IF($K50=4,\"Inconnu\", IF($K50=1, $F50*0.33, IF($K50=2, $F50*0.5+$G50*0.2, SUM(F50:G50)))), 0),\"Non requis\")","v":18508},null,null,1,0,null,null,null,null,31074,"SEBKHA",null,"Sebkha",5.836666666666666,10,2,{"$f":"AG50=C50","v":true},"NOUAKCHOTT OUEST","SEBKHA",null,null,null,4,false,null,null,{"$f":"AQ50=C50","v":true},"NOUAKCHOTT","SEBKHA",0,1,1,null,null,{"$f":"AY50=C50","v":true},"NOUAKCHOTT","SEBKHA",1,0,{"$f":"AZ50=J50","v":false},{"$f":"BA50=K50","v":false}]
[{"$f":"IF(INTRO!$E$33<>0,INTRO!$E$33, \" \")","v":"Mauritania"},"NOUAKCHOTT","TEVRAGH ZEIN",51026,{"$f":"IF(INTRO!$E$48=\"\",\"\",ROUND($D51*INTRO!$E$48,0))","v":7144},{"$f":"IF(INTRO!$E$49=\"\",\"\",ROUND($D51*INTRO!$E$49,0))","v":11736},{"$f":"IF(INTRO!$E$50=\"\",\"\",ROUND($D51*INTRO!$E$50,0))","v":30013},null,null,1,4,{"$f":"IF(INTRO!$E$37=\"Endémique\",IF($H51>0,IF($H51=4,\"Inconnu\",IF($H51=99,\"Interrompu\",$D51)),0),\"Non requis\")","v":"Non requis"},{"$f":"IF(INTRO!$E$39=\"Endémique\", IF($I51>0, IF($I51=4,\"Inconnu\",IF($I51=99,\"Interrompu\",$D51)), 0),\"Non requis\")","v":"Non requis"},{"$f":"IF(INTRO!$E$41=\"Endémique\", IF(AND($J51>1,$J51<5), IF($J51=4, \"Inconnu\", E51+F51), 0),\"Non requis\")","v":0},{"$f":"IF(INTRO!$E$43=\"Endémique\", IF(AND($K51>0,$K51<5), IF($K51=4,\"Inconnu\", IF($K51=1, $F51*0.33, IF($K51=2, $F51*0.5+$G51*0.2, SUM(F51:G51)))), 0),\"Non requis\")","v":"Inconnu"},null,null,0,0,null,null,null,null,31075,"TEVRAGH ZEIN",null,null,null,null,null,{"$f":"AG51=C51","v":true},"NOUAKCHOTT OUEST","TEVRAGH ZEIN",null,null,null,4,null,null,null,{"$f":"AQ51=C51","v":true},"NOUAKCHOTT","TEVRAGH ZEIN",0,0,0,null,null,{"$f":"AY51=C51","v":true},"NOUAKCHOTT","TEVRAGH ZEIN",1,0,{"$f":"AZ51=J51","v":true},{"$f":"BA51=K51","v":false}]
[{"$f":"IF(INTRO!$E$33<>0,INTRO!$E$33, \" \")","v":"Mauritania"},"NOUAKCHOTT","TEYARET",86806,{"$f":"IF(INTRO!$E$48=\"\",\"\",ROUND($D52*INTRO!$E$48,0))","v":12153},{"$f":"IF(INTRO!$E$49=\"\",\"\",ROUND($D52*INTRO!$E$49,0))","v":19965},{"$f":"IF(INTRO!$E$50=\"\",\"\",ROUND($D52*INTRO!$E$50,0))","v":51059},null,null,1,4,{"$f":"IF(INTRO!$E$37=\"Endémique\",IF($H52>0,IF($H52=4,\"Inconnu\",IF($H52=99,\"Interrompu\",$D52)),0),\"Non requis\")","v":"Non requis"},{"$f":"IF(INTRO!$E$39=\"Endémique\", IF($I52>0, IF($I52=4,\"Inconnu\",IF($I52=99,\"Interrompu\",$D52)), 0),\"Non requis\")","v":"Non requis"},{"$f":"IF(INTRO!$E$41=\"Endémique\", IF(AND($J52>1,$J52<5), IF($J52=4, \"Inconnu\", E52+F52), 0),\"Non requis\")","v":0},{"$f":"IF(INTRO!$E$43=\"Endémique\", IF(AND($K52>0,$K52<5), IF($K52=4,\"Inconnu\", IF($K52=1, $F52*0.33, IF($K52=2, $F52*0.5+$G52*0.2, SUM(F52:G52)))), 0),\"Non requis\")","v":"Inconnu"},null,null,0,0,null,null,null,null,31076,"TEYARET",null,null,null,null,null,{"$f":"AG52=C52","v":true},"NOUAKCHOTT NORD","TEYARET",null,null,null,4,null,null,null,{"$f":"AQ52=C52","v":true},"NOUAKCHOTT","TEYARET",0,0,0,null,null,{"$f":"AY52=C52","v":true},"NOUAKCHOTT","TEYARET",1,0,{"$f":"AZ52=J52","v":true},{"$f":"BA52=K52","v":false}]
[{"$f":"IF(INTRO!$E$33<>0,INTRO!$E$33, \" \")","v":"Mauritania"},"NOUAKCHOTT","TOUJENINE",158619,{"$f":"IF(INTRO!$E$48=\"\",\"\",ROUND($D53*INTRO!$E$48,0))","v":22207},{"$f":"IF(INTRO!$E$49=\"\",\"\",ROUND($D53*INTRO!$E$49,0))","v":36482},{"$f":"IF(INTRO!$E$50=\"\",\"\",ROUND($D53*INTRO!$E$50,0))","v":93300},null,null,1,4,{"$f":"IF(INTRO!$E$37=\"Endémique\",IF($H53>0,IF($H53=4,\"Inconnu\",IF($H53=99,\"Interrompu\",$D53)),0),\"Non requis\")","v":"Non requis"},{"$f":"IF(INTRO!$E$39=\"Endémique\", IF($I53>0, IF($I53=4,\"Inconnu\",IF($I53=99,\"Interrompu\",$D53)), 0),\"Non requis\")","v":"Non requis"},{"$f":"IF(INTRO!$E$41=\"Endémique\", IF(AND($J53>1,$J53<5), IF($J53=4, \"Inconnu\", E53+F53), 0),\"Non requis\")","v":0},{"$f":"IF(INTRO!$E$43=\"Endémique\", IF(AND($K53>0,$K53<5), IF($K53=4,\"Inconnu\", IF($K53=1, $F53*0.33, IF($K53=2, $F53*0.5+$G53*0.2, SUM(F53:G53)))), 0),\"Non requis\")","v":"Inconnu"},null,null,0,0,null,null,null,null,31077,"TOUJENINE",null,null,null,null,null,{"$f":"AG53=C53","v":true},"NOUAKCHOTT NORD","TOUJENINE",null,null,null,4,null,null,null,{"$f":"AQ53=C53","v":true},"NOUAKCHOTT","TOUJENINE",0,0,0,null,null,{"$f":"AY53=C53","v":true},"NOUAKCHOTT","TOUJENINE",1,0,{"$f":"AZ53=J53","v":true},{"$f":"BA53=K53","v":false}]
[{"$f":"IF(INTRO!$E$33<>0,INTRO!$E$33, \" \")","v":"Mauritania"},"TAGANT","Moudjéria",45962,{"$f":"IF(INTRO!$E$48=\"\",\"\",ROUND($D54*INTRO!$E$48,0))","v":6435},{"$f":"IF(INTRO!$E$49=\"\",\"\",ROUND($D54*INTRO!$E$49,0))","v":10571},{"$f":"IF(INTRO!$E$50=\"\",\"\",ROUND($D54*INTRO!$E$50,0))","v":27035},null,null,1,3,{"$f":"IF(INTRO!$E$37=\"Endémique\",IF($H54>0,IF($H54=4,\"Inconnu\",IF($H54=99,\"Interrompu\",$D54)),0),\"Non requis\")","v":"Non requis"},{"$f":"IF(INTRO!$E$39=\"Endémique\", IF($I54>0, IF($I54=4,\"Inconnu\",IF($I54=99,\"Interrompu\",$D54)), 0),\"Non requis\")","v":"Non requis"},{"$f":"IF(INTRO!$E$41=\"Endémique\", IF(AND($J54>1,$J54<5), IF($J54=4, \"Inconnu\", E54+F54), 0),\"Non requis\")","v":0},{"$f":"IF(INTRO!$E$43=\"Endémique\", IF(AND($K54>0,$K54<5), IF($K54=4,\"Inconnu\", IF($K54=1, $F54*0.33, IF($K54=2, $F54*0.5+$G54*0.2, SUM(F54:G54)))), 0),\"Non requis\")","v":37606},null,null,0,1,null,null,null,null,31078,"Moudjéria",null,"Moudjeria",35.246500249999997,68,3,{"$f":"AG54=C54","v":true},"TAGANT","Moudjéria",36.5,2,null,2,false,null,null,{"$f":"AQ54=C54","v":true},"TAGANT","Moudjéria",5069.5,0,5069.5,null,null,{"$f":"AY54=C54","v":true},"TAGANT","Moudjéria",1,2,{"$f":"AZ54=J54","v":true},{"$f":"BA54=K54","v":false}]
[{"$f":"IF(INTRO!$E$33<>0,INTRO!$E$33, \" \")","v":"Mauritania"},"TAGANT","Tichitt",4789,{"$f":"IF(INTRO!$E$48=\"\",\"\",ROUND($D55*INTRO!$E$48,0))","v":670},{"$f":"IF(INTRO!$E$49=\"\",\"\",ROUND($D55*INTRO!$E$49,0))","v":1101},{"$f":"IF(INTRO!$E$50=\"\",\"\",ROUND($D55*INTRO!$E$50,0))","v":2817},null,null,0,2,{"$f":"IF(INTRO!$E$37=\"Endémique\",IF($H55>0,IF($H55=4,\"Inconnu\",IF($H55=99,\"Interrompu\",$D55)),0),\"Non requis\")","v":"Non requis"},{"$f":"IF(INTRO!$E$39=\"Endémique\", IF($I55>0, IF($I55=4,\"Inconnu\",IF($I55=99,\"Interrompu\",$D55)), 0),\"Non requis\")","v":"Non requis"},{"$f":"IF(INTRO!$E$41=\"Endémique\", IF(AND($J55>1,$J55<5), IF($J55=4, \"Inconnu\", E55+F55), 0),\"Non requis\")","v":0},{"$f":"IF(INTRO!$E$43=\"Endémique\", IF(AND($K55>0,$K55<5), IF($K55=4,\"Inconnu\", IF($K55=1, $F55*0.33, IF($K55=2, $F55*0.5+$G55*0.2, SUM(F55:G55)))), 0),\"Non requis\")","v":1113.9000000000001},null,null,0,0,null,null,null,null,31079,"Tichitt",null,"Barkewol",5.8333332999999996,10.41,2,{"$f":"AG55=C55","v":true},"TAGANT","Tichitt",null,null,null,4,false,null,null,{"$f":"AQ55=C55","v":true},"TAGANT","Tichitt",0,0,0,null,null,{"$f":"AY55=C55","v":true},"TAGANT","Tichitt",1,0,{"$f":"AZ55=J55","v":false},{"$f":"BA55=K55","v":false}]
[{"$f":"IF(INTRO!$E$33<>0,INTRO!$E$33, \" \")","v":"Mauritania"},"TAGANT","Tidjikja",38405,{"$f":"IF(INTRO!$E$48=\"\",\"\",ROUND($D56*INTRO!$E$48,0))","v":5377},{"$f":"IF(INTRO!$E$49=\"\",\"\",ROUND($D56*INTRO!$E$49,0))","v":8833},{"$f":"IF(INTRO!$E$50=\"\",\"\",ROUND($D56*INTRO!$E$50,0))","v":22590},null,null,1,2,{"$f":"IF(INTRO!$E$37=\"Endémique\",IF($H56>0,IF($H56=4,\"Inconnu\",IF($H56=99,\"Interrompu\",$D56)),0),\"Non requis\")","v":"Non requis"},{"$f":"IF(INTRO!$E$39=\"Endémique\", IF($I56>0, IF($I56=4,\"Inconnu\",IF($I56=99,\"Interrompu\",$D56)), 0),\"Non requis\")","v":"Non requis"},{"$f":"IF(INTRO!$E$41=\"Endémique\", IF(AND($J56>1,$J56<5), IF($J56=4, \"Inconnu\", E56+F56), 0),\"Non requis\")","v":0},{"$f":"IF(INTRO!$E$43=\"Endémique\", IF(AND($K56>0,$K56<5), IF($K56=4,\"Inconnu\", IF($K56=1, $F56*0.33, IF($K56=2, $F56*0.5+$G56*0.2, SUM(F56:G56)))), 0),\"Non requis\")","v":8934.5},null,null,0,1,null,null,null,null,31080,"Tidjikja",null,null,null,null,null,{"$f":"AG56=C56","v":true},"TAGANT","Tidjikja",24.01,2,null,2,null,null,null,{"$f":"AQ56=C56","v":true},"TAGANT","Tidjikja",4236,0,4236,null,null,{"$f":"AY56=C56","v":true},"TAGANT","Tidjikja",1,2,{"$f":"AZ56=J56","v":true},{"$f":"BA56=K56","v":true}]
[{"$f":"IF(INTRO!$E$33<>0,INTRO!$E$33, \" \")","v":"Mauritania"},"TIRIS ZEMOUR","Bir Moghrein",4292,{"$f":"IF(INTRO!$E$48=\"\",\"\",ROUND($D57*INTRO!$E$48,0))","v":601},{"$f":"IF(INTRO!$E$49=\"\",\"\",ROUND($D57*INTRO!$E$49,0))","v":987},{"$f":"IF(INTRO!$E$50=\"\",\"\",ROUND($D57*INTRO!$E$50,0))","v":2525},null,null,0,4,{"$f":"IF(INTRO!$E$37=\"Endémique\",IF($H57>0,IF($H57=4,\"Inconnu\",IF($H57=99,\"Interrompu\",$D57)),0),\"Non requis\")","v":"Non requis"},{"$f":"IF(INTRO!$E$39=\"Endémique\", IF($I57>0, IF($I57=4,\"Inconnu\",IF($I57=99,\"Interrompu\",$D57)), 0),\"Non requis\")","v":"Non requis"},{"$f":"IF(INTRO!$E$41=\"Endémique\", IF(AND($J57>1,$J57<5), IF($J57=4, \"Inconnu\", E57+F57), 0),\"Non requis\")","v":0},{"$f":"IF(INTRO!$E$43=\"Endémique\", IF(AND($K57>0,$K57<5), IF($K57=4,\"Inconnu\", IF($K57=1, $F57*0.33, IF($K57=2, $F57*0.5+$G57*0.2, SUM(F57:G57)))), 0),\"Non requis\")","v":"Inconnu"},null,null,0,0,null,null,null,null,31081,"Bir Moghrein",null,null,null,null,null,{"$f":"AG57=C57","v":true},"TIRIS ZEMOUR","Bir Moghrein",null,null,null,4,null,null,null,{"$f":"AQ57=C57","v":true},"TIRIS ZEMOUR","Bir Moghrein",0,0,0,null,null,{"$f":"AY57=C57","v":true},"TIRIS ZEMOUR","Bir Moghrein",1,0,{"$f":"AZ57=J57","v":false},{"$f":"BA57=K57","v":false}]
[{"$f":"IF(INTRO!$E$33<>0,INTRO!$E$33, \" \")","v":"Mauritania"},"TIRIS ZEMOUR","F'Dérick",5192,{"$f":"IF(INTRO!$E$48=\"\",\"\",ROUND($D58*INTRO!$E$48,0))","v":727},{"$f":"IF(INTRO!$E$49=\"\",\"\",ROUND($D58*INTRO!$E$49,0))","v":1194},{"$f":"IF(INTRO!$E$50=\"\",\"\",ROUND($D58*INTRO!$E$50,0))","v":3054},null,null,1,0,{"$f":"IF(INTRO!$E$37=\"Endémique\",IF($H58>0,IF($H58=4,\"Inconnu\",IF($H58=99,\"Interrompu\",$D58)),0),\"Non requis\")","v":"Non requis"},{"$f":"IF(INTRO!$E$39=\"Endémique\", IF($I58>0, IF($I58=4,\"Inconnu\",IF($I58=99,\"Interrompu\",$D58)), 0),\"Non requis\")","v":"Non requis"},{"$f":"IF(INTRO!$E$41=\"Endémique\", IF(AND($J58>1,$J58<5), IF($J58=4, \"Inconnu\", E58+F58), 0),\"Non requis\")","v":0},{"$f":"IF(INTRO!$E$43=\"Endémique\", IF(AND($K58>0,$K58<5), IF($K58=4,\"Inconnu\", IF($K58=1, $F58*0.33, IF($K58=2, $F58*0.5+$G58*0.2, SUM(F58:G58)))), 0),\"Non requis\")","v":0},null,null,0,0,null,null,null,null,31082,"F'Dérick",null,"F Derik",0,0,0,{"$f":"AG58=C58","v":true},"TIRIS ZEMOUR","F'Dérick",null,null,null,4,false,null,null,{"$f":"AQ58=C58","v":true},"TIRIS ZEMOUR","F'Dérick",0,1,1,null,null,{"$f":"AY58=C58","v":true},"TIRIS ZEMOUR","F'Dérick",1,0,{"$f":"AZ58=J58","v":true},{"$f":"BA58=K58","v":true}]
[{"$f":"IF(INTRO!$E$33<>0,INTRO!$E$33, \" \")","v":"Mauritania"},"TIRIS ZEMOUR","Zouératt",49168,{"$f":"IF(INTRO!$E$48=\"\",\"\",ROUND($D59*INTRO!$E$48,0))","v":6884},{"$f":"IF(INTRO!$E$49=\"\",\"\",ROUND($D59*INTRO!$E$49,0))","v":11309},{"$f":"IF(INTRO!$E$50=\"\",\"\",ROUND($D59*INTRO!$E$50,0))","v":28921},null,null,1,0,{"$f":"IF(INTRO!$E$37=\"Endémique\",IF($H59>0,IF($H59=4,\"Inconnu\",IF($H59=99,\"Interrompu\",$D59)),0),\"Non requis\")","v":"Non requis"},{"$f":"IF(INTRO!$E$39=\"Endémique\", IF($I59>0, IF($I59=4,\"Inconnu\",IF($I59=99,\"Interrompu\",$D59)), 0),\"Non requis\")","v":"Non requis"},{"$f":"IF(INTRO!$E$41=\"Endémique\", IF(AND($J59>1,$J59<5), IF($J59=4, \"Inconnu\", E59+F59), 0),\"Non requis\")","v":0},{"$f":"IF(INTRO!$E$43=\"Endémique\", IF(AND($K59>0,$K59<5), IF($K59=4,\"Inconnu\", IF($K59=1, $F59*0.33, IF($K59=2, $F59*0.5+$G59*0.2, SUM(F59:G59)))), 0),\"Non requis\")","v":0},null,null,0,0,null,null,null,null,31083,"Zouératt",null,"Zouerate",0,0,0,{"$f":"AG59=C59","v":true},"TIRIS ZEMOUR","Zouératt",null,null,null,4,false,null,null,{"$f":"AQ59=C59","v":true},"TIRIS ZEMOUR","Zouératt",0,0,0,null,null,{"$f":"AY59=C59","v":true},"TIRIS ZEMOUR","Zouératt",1,0,{"$f":"AZ59=J59","v":true},{"$f":"BA59=K59","v":true}]
[{"$f":"IF(INTRO!$E$33<>0,INTRO!$E$33, \" \")","v":"Mauritania"},"TRARZA","Boutilimitt",69588,{"$f":"IF(INTRO!$E$48=\"\",\"\",ROUND($D60*INTRO!$E$48,0))","v":9742},{"$f":"IF(INTRO!$E$49=\"\",\"\",ROUND($D60*INTRO!$E$49,0))","v":16005},{"$f":"IF(INTRO!$E$50=\"\",\"\",ROUND($D60*INTRO!$E$50,0))","v":40932},null,null,0,3,{"$f":"IF(INTRO!$E$37=\"Endémique\",IF($H60>0,IF($H60=4,\"Inconnu\",IF($H60=99,\"Interrompu\",$D60)),0),\"Non requis\")","v":"Non requis"},{"$f":"IF(INTRO!$E$39=\"Endémique\", IF($I60>0, IF($I60=4,\"Inconnu\",IF($I60=99,\"Interrompu\",$D60)), 0),\"Non requis\")","v":"Non requis"},{"$f":"IF(INTRO!$E$41=\"Endémique\", IF(AND($J60>1,$J60<5), IF($J60=4, \"Inconnu\", E60+F60), 0),\"Non requis\")","v":0},{"$f":"IF(INTRO!$E$43=\"Endémique\", IF(AND($K60>0,$K60<5), IF($K60=4,\"Inconnu\", IF($K60=1, $F60*0.33, IF($K60=2, $F60*0.5+$G60*0.2, SUM(F60:G60)))), 0),\"Non requis\")","v":56937},null,null,0,1,null,null,null,null,31084,"Boutilimitt",null,"Boutilimit",29.45,61.400002000000001,3,{"$f":"AG60=C60","v":true},"TRARZA","Boutilimitt",null,null,null,4,false,null,null,{"$f":"AQ60=C60","v":true},"TRARZA","Boutilimitt",0,0,0,null,null,{"$f":"AY60=C60","v":true},"TRARZA","Boutilimitt",1,0,{"$f":"AZ60=J60","v":false},{"$f":"BA60=K60","v":false}]
[{"$f":"IF(INTRO!$E$33<>0,INTRO!$E$33, \" \")","v":"Mauritania"},"TRARZA","Keur Maceine",29468,{"$f":"IF(INTRO!$E$48=\"\",\"\",ROUND($D61*INTRO!$E$48,0))","v":4126},{"$f":"IF(INTRO!$E$49=\"\",\"\",ROUND($D61*INTRO!$E$49,0))","v":6778},{"$f":"IF(INTRO!$E$50=\"\",\"\",ROUND($D61*INTRO!$E$50,0))","v":17333},null,null,1,1,{"$f":"IF(INTRO!$E$37=\"Endémique\",IF($H61>0,IF($H61=4,\"Inconnu\",IF($H61=99,\"Interrompu\",$D61)),0),\"Non requis\")","v":"Non requis"},{"$f":"IF(INTRO!$E$39=\"Endémique\", IF($I61>0, IF($I61=4,\"Inconnu\",IF($I61=99,\"Interrompu\",$D61)), 0),\"Non requis\")","v":"Non requis"},{"$f":"IF(INTRO!$E$41=\"Endémique\", IF(AND($J61>1,$J61<5), IF($J61=4, \"Inconnu\", E61+F61), 0),\"Non requis\")","v":0},{"$f":"IF(INTRO!$E$43=\"Endémique\", IF(AND($K61>0,$K61<5), IF($K61=4,\"Inconnu\", IF($K61=1, $F61*0.33, IF($K61=2, $F61*0.5+$G61*0.2, SUM(F61:G61)))), 0),\"Non requis\")","v":2236.7400000000002},null,null,0,0,null,null,null,"Oui",31085,"Keur Maceine",null,"Keur Massene",1.1000000000000001,1.1000000000000001,1,{"$f":"AG61=C61","v":true},"TRARZA","Keur Maceine",20.8,2,null,3,false,null,null,{"$f":"AQ61=C61","v":true},"TRARZA","Keur Maceine",1625,1,1626,null,null,{"$f":"AY61=C61","v":true},"TRARZA","Keur Maceine",1,3,{"$f":"AZ61=J61","v":true},{"$f":"BA61=K61","v":false}]
[{"$f":"IF(INTRO!$E$33<>0,INTRO!$E$33, \" \")","v":"Mauritania"},"TRARZA","Mederdra",33521,{"$f":"IF(INTRO!$E$48=\"\",\"\",ROUND($D62*INTRO!$E$48,0))","v":4693},{"$f":"IF(INTRO!$E$49=\"\",\"\",ROUND($D62*INTRO!$E$49,0))","v":7710},{"$f":"IF(INTRO!$E$50=\"\",\"\",ROUND($D62*INTRO!$E$50,0))","v":19717},null,null,0,4,{"$f":"IF(INTRO!$E$37=\"Endémique\",IF($H62>0,IF($H62=4,\"Inconnu\",IF($H62=99,\"Interrompu\",$D62)),0),\"Non requis\")","v":"Non requis"},{"$f":"IF(INTRO!$E$39=\"Endémique\", IF($I62>0, IF($I62=4,\"Inconnu\",IF($I62=99,\"Interrompu\",$D62)), 0),\"Non requis\")","v":"Non requis"},{"$f":"IF(INTRO!$E$41=\"Endémique\", IF(AND($J62>1,$J62<5), IF($J62=4, \"Inconnu\", E62+F62), 0),\"Non requis\")","v":0},{"$f":"IF(INTRO!$E$43=\"Endémique\", IF(AND($K62>0,$K62<5), IF($K62=4,\"Inconnu\", IF($K62=1, $F62*0.33, IF($K62=2, $F62*0.5+$G62*0.2, SUM(F62:G62)))), 0),\"Non requis\")","v":"Inconnu"},null,null,0,0,null,null,null,null,31086,"Mederdra",null,null,null,null,null,{"$f":"AG62=C62","v":true},"TRARZA","Mederdra",null,null,null,4,null,null,null,{"$f":"AQ62=C62","v":true},"TRARZA","Mederdra",0,0,0,null,null,{"$f":"AY62=C62","v":true},"TRARZA","Mederdra",1,0,{"$f":"AZ62=J62","v":false},{"$f":"BA62=K62","v":false}]
[{"$f":"IF(INTRO!$E$33<>0,INTRO!$E$33, \" \")","v":"Mauritania"},"TRARZA","Ouad Naga",26096,{"$f":"IF(INTRO!$E$48=\"\",\"\",ROUND($D63*INTRO!$E$48,0))","v":3653},{"$f":"IF(INTRO!$E$49=\"\",\"\",ROUND($D63*INTRO!$E$49,0))","v":6002},{"$f":"IF(INTRO!$E$50=\"\",\"\",ROUND($D63*INTRO!$E$50,0))","v":15350},null,null,0,1,{"$f":"IF(INTRO!$E$37=\"Endémique\",IF($H63>0,IF($H63=4,\"Inconnu\",IF($H63=99,\"Interrompu\",$D63)),0),\"Non requis\")","v":"Non requis"},{"$f":"IF(INTRO!$E$39=\"Endémique\", IF($I63>0, IF($I63=4,\"Inconnu\",IF($I63=99,\"Interrompu\",$D63)), 0),\"Non requis\")","v":"Non requis"},{"$f":"IF(INTRO!$E$41=\"Endémique\", IF(AND($J63>1,$J63<5), IF($J63=4, \"Inconnu\", E63+F63), 0),\"Non requis\")","v":0},{"$f":"IF(INTRO!$E$43=\"Endémique\", IF(AND($K63>0,$K63<5), IF($K63=4,\"Inconnu\", IF($K63=1, $F63*0.33, IF($K63=2, $F63*0.5+$G63*0.2, SUM(F63:G63)))), 0),\"Non requis\")","v":1980.66},null,null,0,0,null,null,null,null,31087,"Ouad Naga",null,"Riyad",3.2791666666666668,8.1630000999999996,1,{"$f":"AG63=C63","v":true},"TRARZA","Ouad Naga",null,null,null,4,false,null,null,{"$f":"AQ63=C63","v":true},"TRARZA","Ouad Naga",0,0,0,null,null,{"$f":"AY63=C63","v":true},"TRARZA","Ouad Naga",1,0,{"$f":"AZ63=J63","v":false},{"$f":"BA63=K63","v":false}]
[{"$f":"IF(INTRO!$E$33<>0,INTRO!$E$33, \" \")","v":"Mauritania"},"TRARZA","R'Kiz",78137,{"$f":"IF(INTRO!$E$48=\"\",\"\",ROUND($D64*INTRO!$E$48,0))","v":10939},{"$f":"IF(INTRO!$E$49=\"\",\"\",ROUND($D64*INTRO!$E$49,0))","v":17972},{"$f":"IF(INTRO!$E$50=\"\",\"\",ROUND($D64*INTRO!$E$50,0))","v":45960},null,null,1,2,{"$f":"IF(INTRO!$E$37=\"Endémique\",IF($H64>0,IF($H64=4,\"Inconnu\",IF($H64=99,\"Interrompu\",$D64)),0),\"Non requis\")","v":"Non requis"},{"$f":"IF(INTRO!$E$39=\"Endémique\", IF($I64>0, IF($I64=4,\"Inconnu\",IF($I64=99,\"Interrompu\",$D64)), 0),\"Non requis\")","v":"Non requis"},{"$f":"IF(INTRO!$E$41=\"Endémique\", IF(AND($J64>1,$J64<5), IF($J64=4, \"Inconnu\", E64+F64), 0),\"Non requis\")","v":0},{"$f":"IF(INTRO!$E$43=\"Endémique\", IF(AND($K64>0,$K64<5), IF($K64=4,\"Inconnu\", IF($K64=1, $F64*0.33, IF($K64=2, $F64*0.5+$G64*0.2, SUM(F64:G64)))), 0),\"Non requis\")","v":18178},null,null,0,0,null,null,null,"Oui",31088,"R'Kiz",null,"R Kiz",10.8,10.8,2,{"$f":"AG64=C64","v":true},"TRARZA","R'Kiz",91.3,3,null,3,false,null,null,{"$f":"AQ64=C64","v":true},"TRARZA","R'Kiz",10019,1,10020,null,null,{"$f":"AY64=C64","v":true},"TRARZA","R'Kiz",1,3,{"$f":"AZ64=J64","v":true},{"$f":"BA64=K64","v":false}]
[{"$f":"IF(INTRO!$E$33<>0,INTRO!$E$33, \" \")","v":"Mauritania"},"TRARZA","Rosso",63568,{"$f":"IF(INTRO!$E$48=\"\",\"\",ROUND($D65*INTRO!$E$48,0))","v":8900},{"$f":"IF(INTRO!$E$49=\"\",\"\",ROUND($D65*INTRO!$E$49,0))","v":14621},{"$f":"IF(INTRO!$E$50=\"\",\"\",ROUND($D65*INTRO!$E$50,0))","v":37391},null,null,1,2,{"$f":"IF(INTRO!$E$37=\"Endémique\",IF($H65>0,IF($H65=4,\"Inconnu\",IF($H65=99,\"Interrompu\",$D65)),0),\"Non requis\")","v":"Non requis"},{"$f":"IF(INTRO!$E$39=\"Endémique\", IF($I65>0, IF($I65=4,\"Inconnu\",IF($I65=99,\"Interrompu\",$D65)), 0),\"Non requis\")","v":"Non requis"},{"$f":"IF(INTRO!$E$41=\"Endémique\", IF(AND($J65>1,$J65<5), IF($J65=4, \"Inconnu\", E65+F65), 0),\"Non requis\")","v":0},{"$f":"IF(INTRO!$E$43=\"Endémique\", IF(AND($K65>0,$K65<5), IF($K65=4,\"Inconnu\", IF($K65=1, $F65*0.33, IF($K65=2, $F65*0.5+$G65*0.2, SUM(F65:G65)))), 0),\"Non requis\")","v":14788.7},null,null,0,0,null,null,null,null,31089,"Rosso",null,"Rosso",17.374999899999999,40.700001,2,{"$f":"AG65=C65","v":true},"TRARZA","Rosso",26.6,2,null,3,false,null,null,{"$f":"AQ65=C65","v":true},"TRARZA","Rosso",11731,1,11732,null,null,{"$f":"AY65=C65","v":true},"TRARZA","Rosso",1,3,{"$f":"AZ65=J65","v":true},{"$f":"BA65=K65","v":false}]
[]
[]
[]
[null,null,null,null,null,null,null,null,null,null,null,null,null,null,null,null,null,null,null,null,null,null,null,null,null,null,"Dar Naim",0.41349998333333332,2.0409999000000001]
[]
[]
[]
[]
[null,null,null,null,null,null,null,null,null,null,null,null,null,null,null,null,null,null,null,null,null,null,null,null,null,null,"Tidjikja",22.999199600000001,55.34]
[]
[]
[null,null,null,null,null,null,null,null,null,null,null,null,null,null,null,null,null,null,null,null,null,null,null,null,null,null,"Djigueni",9.3840000999999997,10.968]

{"sheet":"DEC","index":2,"n_rows":65,"n_cols":13,"rows_kept":65,"cut":false,"hidden":true,"merged":[[5,9,5,12],[6,11,7,11],[6,4,7,4],[6,3,7,3],[6,8,7,8],[6,7,7,7],[6,9,7,9],[6,10,7,10],[6,12,7,12],[3,0,3,2],[5,0,5,2],[6,5,7,5],[6,2,7,2],[6,1,7,1],[6,0,7,0],[5,3,5,6],[6,6,7,6]]}
["Diethylcarbamazine (DEC)"]
["Structure administrative, population ciblée par groupe d'âge, plan de traitement et information sur les comprimés"]
[]
["TOTAL",null,null,{"$f":"SUM(D$9:D$1000)","v":0},{"$f":"SUM(E$9:E$1000)","v":0},{"$f":"SUM(F$9:F$1000)","v":0},{"$f":"SUM(G$9:G$1000)","v":0},null,{"$f":"SUM(I$9:I$1000)","v":0},{"$f":"SUM(J$9:J$1000)","v":0},{"$f":"SUM(K$9:K$1000)","v":0},{"$f":"SUM(L$9:L$1000)","v":0},{"$f":"SUM(M$9:M$1000)","v":0}]
[]
["Structure administrative du pays",null,null,"Population nécessitant un traitement avec DEC",null,null,null,"Plan de traitement","Population cible","Diethylcarbamazine (DEC)"]
["Pays","Région/Département","District","EAPréS","EAS","Adultes","Total","FL","FL","Total requis","Reste en stock","Comprimés devant être fournis","Flacons (100mg)\n1000 comprimés"]
[]
[{"$f":"IF(INTRO!$E$39<>\"Non endémique\", \" \", IF(INTRO!$E$37=\"Non endémique\",\" \", IF(COUNTRY_INFO!A9=0,\" \",COUNTRY_INFO!A9)))","v":" "},{"$f":"IF(INTRO!$E$39<>\"Non endémique\", \" \", IF(INTRO!$E$37=\"Non endémique\",\" \", IF(COUNTRY_INFO!B9=0,\" \",COUNTRY_INFO!B9)))","v":" "},{"$f":"IF(INTRO!$E$39<>\"Non endémique\", \" \", IF(INTRO!$E$37=\"Non endémique\",\" \", IF(COUNTRY_INFO!C9=0,\" \",COUNTRY_INFO!C9)))","v":" "},{"$f":"IF(INTRO!$E$39<>\"Non endémique\", 0, IF(INTRO!$E$37=\"Non endémique\",0,IF(COUNTRY_INFO!$H9=1,COUNTRY_INFO!E9,0)))","v":0},{"$f":"IF(INTRO!$E$39<>\"Non endémique\", 0, IF(INTRO!$E$37=\"Non endémique\",0,IF(COUNTRY_INFO!$H9=1,COUNTRY_INFO!F9,0)))","v":0},{"$f":"IF(INTRO!$E$39<>\"Non endémique\", 0, IF(INTRO!$E$37=\"Non endémique\",0,IF(COUNTRY_INFO!$H9=1,COUNTRY_INFO!G9,0)))","v":0},{"$f":"SUM(D9:F9)","v":0},{"$f":"IF(INTRO!$E$39=\"Non endémique\",IF(INTRO!$E$37=\"Non endémique\",\"Non requis\",COUNTRY_INFO!P9),\"Traiter avec IVM\")","v":"Non requis"},{"$f":"IF(H9=1,G9,0)","v":0},{"$f":"IF(I9>0,I9*2.5,0)","v":0},null,{"$f":"IF($J9>$K9,$J9-$K9,0)","v":0},{"$f":"ROUNDUP($J9/1000,0)","v":0}]
[{"$f":"IF(INTRO!$E$39<>\"Non endémique\", \" \", IF(INTRO!$E$37=\"Non endémique\",\" \", IF(COUNTRY_INFO!A10=0,\" \",COUNTRY_INFO!A10)))","v":" "},{"$f":"IF(INTRO!$E$39<>\"Non endémique\", \" \", IF(INTRO!$E$37=\"Non endémique\",\" \", IF(COUNTRY_INFO!B10=0,\" \",COUNTRY_INFO!B10)))","v":" "},{"$f":"IF(INTRO!$E$39<>\"Non endémique\", \" \", IF(INTRO!$E$37=\"Non endémique\",\" \", IF(COUNTRY_INFO!C10=0,\" \",COUNTRY_INFO!C10)))","v":" "},{"$f":"IF(INTRO!$E$39<>\"Non endémique\", 0, IF(INTRO!$E$37=\"Non endémique\",0,IF(COUNTRY_INFO!$H10=1,COUNTRY_INFO!E10,0)))","v":0},{"$f":"IF(INTRO!$E$39<>\"Non endémique\", 0, IF(INTRO!$E$37=\"Non endémique\",0,IF(COUNTRY_INFO!$H10=1,COUNTRY_INFO!F10,0)))","v":0},{"$f":"IF(INTRO!$E$39<>\"Non endémique\", 0, IF(INTRO!$E$37=\"Non endémique\",0,IF(COUNTRY_INFO!$H10=1,COUNTRY_INFO!G10,0)))","v":0},0,{"$f":"IF(INTRO!$E$39=\"Non endémique\",IF(INTRO!$E$37=\"Non endémique\",\"Non requis\",COUNTRY_INFO!P10),\"Traiter avec IVM\")","v":"Non requis"},0,0,null,0,0]
[{"$f":"IF(INTRO!$E$39<>\"Non endémique\", \" \", IF(INTRO!$E$37=\"Non endémique\",\" \", IF(COUNTRY_INFO!A11=0,\" \",COUNTRY_INFO!A11)))","v":" "},{"$f":"IF(INTRO!$E$39<>\"Non endémique\", \" \", IF(INTRO!$E$37=\"Non endémique\",\" \", IF(COUNTRY_INFO!B11=0,\" \",COUNTRY_INFO!B11)))","v":" "},{"$f":"IF(INTRO!$E$39<>\"Non endémique\", \" \", IF(INTRO!$E$37=\"Non endémique\",\" \", IF(COUNTRY_INFO!C11=0,\" \",COUNTRY_INFO!C11)))","v":" "},{"$f":"IF(INTRO!$E$39<>\"Non endémique\", 0, IF(INTRO!$E$37=\"Non endémique\",0,IF(COUNTRY_INFO!$H11=1,COUNTRY_INFO!E11,0)))","v":0},{"$f":"IF(INTRO!$E$39<>\"Non endémique\", 0, IF(INTRO!$E$37=\"Non endémique\",0,IF(COUNTRY_INFO!$H11=1,COUNTRY_INFO!F11,0)))","v":0},{"$f":"IF(INTRO!$E$39<>\"Non endémique\", 0, IF(INTRO!$E$37=\"Non endémique\",0,IF(COUNTRY_INFO!$H11=1,COUNTRY_INFO!G11,0)))","v":0},0,{"$f":"IF(INTRO!$E$39=\"Non endémique\",IF(INTRO!$E$37=\"Non endémique\",\"Non requis\",COUNTRY_INFO!P11),\"Traiter avec IVM\")","v":"Non requis"},0,0,null,0,0]
[{"$f":"IF(INTRO!$E$39<>\"Non endémique\", \" \", IF(INTRO!$E$37=\"Non endémique\",\" \", IF(COUNTRY_INFO!A12=0,\" \",COUNTRY_INFO!A12)))","v":" "},{"$f":"IF(INTRO!$E$39<>\"Non endémique\", \" \", IF(INTRO!$E$37=\"Non endémique\",\" \", IF(COUNTRY_INFO!B12=0,\" \",COUNTRY_INFO!B12)))","v":" "},{"$f":"IF(INTRO!$E$39<>\"Non endémique\", \" \", IF(INTRO!$E$37=\"Non endémique\",\" \", IF(COUNTRY_INFO!C12=0,\" \",COUNTRY_INFO!C12)))","v":" "},{"$f":"IF(INTRO!$E$39<>\"Non endémique\", 0, IF(INTRO!$E$37=\"Non endémique\",0,IF(COUNTRY_INFO!$H12=1,COUNTRY_INFO!E12,0)))","v":0},{"$f":"IF(INTRO!$E$39<>\"Non endémique\", 0, IF(INTRO!$E$37=\"Non endémique\",0,IF(COUNTRY_INFO!$H12=1,COUNTRY_INFO!F12,0)))","v":0},{"$f":"IF(INTRO!$E$39<>\"Non endémique\", 0, IF(INTRO!$E$37=\"Non endémique\",0,IF(COUNTRY_INFO!$H12=1,COUNTRY_INFO!G12,0)))","v":0},0,{"$f":"IF(INTRO!$E$39=\"Non endémique\",IF(INTRO!$E$37=\"Non endémique\",\"Non requis\",COUNTRY_INFO!P12),\"Traiter avec IVM\")","v":"Non requis"},0,0,null,0,0]
[{"$f":"IF(INTRO!$E$39<>\"Non endémique\", \" \", IF(INTRO!$E$37=\"Non endémique\",\" \", IF(COUNTRY_INFO!A13=0,\" \",COUNTRY_INFO!A13)))","v":" "},{"$f":"IF(INTRO!$E$39<>\"Non endémique\", \" \", IF(INTRO!$E$37=\"Non endémique\",\" \", IF(COUNTRY_INFO!B13=0,\" \",COUNTRY_INFO!B13)))","v":" "},{"$f":"IF(INTRO!$E$39<>\"Non endémique\", \" \", IF(INTRO!$E$37=\"Non endémique\",\" \", IF(COUNTRY_INFO!C13=0,\" \",COUNTRY_INFO!C13)))","v":" "},{"$f":"IF(INTRO!$E$39<>\"Non endémique\", 0, IF(INTRO!$E$37=\"Non endémique\",0,IF(COUNTRY_INFO!$H13=1,COUNTRY_INFO!E13,0)))","v":0},{"$f":"IF(INTRO!$E$39<>\"Non endémique\", 0, IF(INTRO!$E$37=\"Non endémique\",0,IF(COUNTRY_INFO!$H13=1,COUNTRY_INFO!F13,0)))","v":0},{"$f":"IF(INTRO!$E$39<>\"Non endémique\", 0, IF(INTRO!$E$37=\"Non endémique\",0,IF(COUNTRY_INFO!$H13=1,COUNTRY_INFO!G13,0)))","v":0},0,{"$f":"IF(INTRO!$E$39=\"Non endémique\",IF(INTRO!$E$37=\"Non endémique\",\"Non requis\",COUNTRY_INFO!P13),\"Traiter avec IVM\")","v":"Non requis"},0,0,null,0,0]
[{"$f":"IF(INTRO!$E$39<>\"Non endémique\", \" \", IF(INTRO!$E$37=\"Non endémique\",\" \", IF(COUNTRY_INFO!A14=0,\" \",COUNTRY_INFO!A14)))","v":" "},{"$f":"IF(INTRO!$E$39<>\"Non endémique\", \" \", IF(INTRO!$E$37=\"Non endémique\",\" \", IF(COUNTRY_INFO!B14=0,\" \",COUNTRY_INFO!B14)))","v":" "},{"$f":"IF(INTRO!$E$39<>\"Non endémique\", \" \", IF(INTRO!$E$37=\"Non endémique\",\" \", IF(COUNTRY_INFO!C14=0,\" \",COUNTRY_INFO!C14)))","v":" "},{"$f":"IF(INTRO!$E$39<>\"Non endémique\", 0, IF(INTRO!$E$37=\"Non endémique\",0,IF(COUNTRY_INFO!$H14=1,COUNTRY_INFO!E14,0)))","v":0},{"$f":"IF(INTRO!$E$39<>\"Non endémique\", 0, IF(INTRO!$E$37=\"Non endémique\",0,IF(COUNTRY_INFO!$H14=1,COUNTRY_INFO!F14,0)))","v":0},{"$f":"IF(INTRO!$E$39<>\"Non endémique\", 0, IF(INTRO!$E$37=\"Non endémique\",0,IF(COUNTRY_INFO!$H14=1,COUNTRY_INFO!G14,0)))","v":0},0,{"$f":"IF(INTRO!$E$39=\"Non endémique\",IF(INTRO!$E$37=\"Non endémique\",\"Non requis\",COUNTRY_INFO!P14),\"Traiter avec IVM\")","v":"Non requis"},0,0,null,0,0]
[{"$f":"IF(INTRO!$E$39<>\"Non endémique\", \" \", IF(INTRO!$E$37=\"Non endémique\",\" \", IF(COUNTRY_INFO!A15=0,\" \",COUNTRY_INFO!A15)))","v":" "},{"$f":"IF(INTRO!$E$39<>\"Non endémique\", \" \", IF(INTRO!$E$37=\"Non endémique\",\" \", IF(COUNTRY_INFO!B15=0,\" \",COUNTRY_INFO!B15)))","v":" "},{"$f":"IF(INTRO!$E$39<>\"Non endémique\", \" \", IF(INTRO!$E$37=\"Non endémique\",\" \", IF(COUNTRY_INFO!C15=0,\" \",COUNTRY_INFO!C15)))","v":" "},{"$f":"IF(INTRO!$E$39<>\"Non endémique\", 0, IF(INTRO!$E$37=\"Non endémique\",0,IF(COUNTRY_INFO!$H15=1,COUNTRY_INFO!E15,0)))","v":0},{"$f":"IF(INTRO!$E$39<>\"Non endémique\", 0, IF(INTRO!$E$37=\"Non endémique\",0,IF(COUNTRY_INFO!$H15=1,COUNTRY_INFO!F15,0)))","v":0},{"$f":"IF(INTRO!$E$39<>\"Non endémique\", 0, IF(INTRO!$E$37=\"Non endémique\",0,IF(COUNTRY_INFO!$H15=1,COUNTRY_INFO!G15,0)))","v":0},0,{"$f":"IF(INTRO!$E$39=\"Non endémique\",IF(INTRO!$E$37=\"Non endémique\",\"Non requis\",COUNTRY_INFO!P15),\"Traiter avec IVM\")","v":"Non requis"},0,0,null,0,0]
[{"$f":"IF(INTRO!$E$39<>\"Non endémique\", \" \", IF(INTRO!$E$37=\"Non endémique\",\" \", IF(COUNTRY_INFO!A16=0,\" \",COUNTRY_INFO!A16)))","v":" "},{"$f":"IF(INTRO!$E$39<>\"Non endémique\", \" \", IF(INTRO!$E$37=\"Non endémique\",\" \", IF(COUNTRY_INFO!B16=0,\" \",COUNTRY_INFO!B16)))","v":" "},{"$f":"IF(INTRO!$E$39<>\"Non endémique\", \" \", IF(INTRO!$E$37=\"Non endémique\",\" \", IF(COUNTRY_INFO!C16=0,\" \",COUNTRY_INFO!C16)))","v":" "},{"$f":"IF(INTRO!$E$39<>\"Non endémique\", 0, IF(INTRO!$E$37=\"Non endémique\",0,IF(COUNTRY_INFO!$H16=1,COUNTRY_INFO!E16,0)))","v":0},{"$f":"IF(INTRO!$E$39<>\"Non endémique\", 0, IF(INTRO!$E$37=\"Non endémique\",0,IF(COUNTRY_INFO!$H16=1,COUNTRY_INFO!F16,0)))","v":0},{"$f":"IF(INTRO!$E$39<>\"Non endémique\", 0, IF(INTRO!$E$37=\"Non endémique\",0,IF(COUNTRY_INFO!$H16=1,COUNTRY_INFO!G16,0)))","v":0},0,{"$f":"IF(INTRO!$E$39=\"Non endémique\",IF(INTRO!$E$37=\"Non endémique\",\"Non requis\",COUNTRY_INFO!P16),\"Traiter avec IVM\")","v":"Non requis"},0,0,null,0,0]
[{"$f":"IF(INTRO!$E$39<>\"Non endémique\", \" \", IF(INTRO!$E$37=\"Non endémique\",\" \", IF(COUNTRY_INFO!A17=0,\" \",COUNTRY_INFO!A17)))","v":" "},{"$f":"IF(INTRO!$E$39<>\"Non endémique\", \" \", IF(INTRO!$E$37=\"Non endémique\",\" \", IF(COUNTRY_INFO!B17=0,\" \",COUNTRY_INFO!B17)))","v":" "},{"$f":"IF(INTRO!$E$39<>\"Non endémique\", \" \", IF(INTRO!$E$37=\"Non endémique\",\" \", IF(COUNTRY_INFO!C17=0,\" \",COUNTRY_INFO!C17)))","v":" "},{"$f":"IF(INTRO!$E$39<>\"Non endémique\", 0, IF(INTRO!$E$37=\"Non endémique\",0,IF(COUNTRY_INFO!$H17=1,COUNTRY_INFO!E17,0)))","v":0},{"$f":"IF(INTRO!$E$39<>\"Non endémique\", 0, IF(INTRO!$E$37=\"Non endémique\",0,IF(COUNTRY_INFO!$H17=1,COUNTRY_INFO!F17,0)))","v":0},{"$f":"IF(INTRO!$E$39<>\"Non endémique\", 0, IF(INTRO!$E$37=\"Non endémique\",0,IF(COUNTRY_INFO!$H17=1,COUNTRY_INFO!G17,0)))","v":0},0,{"$f":"IF(INTRO!$E$39=\"Non endémique\",IF(INTRO!$E$37=\"Non endémique\",\"Non requis\",COUNTRY_INFO!P17),\"Traiter avec IVM\")","v":"Non requis"},0,0,null,0,0]
[{"$f":"IF(INTRO!$E$39<>\"Non endémique\", \" \", IF(INTRO!$E$37=\"Non endémique\",\" \", IF(COUNTRY_INFO!A18=0,\" \",COUNTRY_INFO!A18)))","v":" "},{"$f":"IF(INTRO!$E$39<>\"Non endémique\", \" \", IF(INTRO!$E$37=\"Non endémique\",\" \", IF(COUNTRY_INFO!B18=0,\" \",COUNTRY_INFO!B18)))","v":" "},{"$f":"IF(INTRO!$E$39<>\"Non endémique\", \" \", IF(INTRO!$E$37=\"Non endémique\",\" \", IF(COUNTRY_INFO!C18=0,\" \",COUNTRY_INFO!C18)))","v":" "},{"$f":"IF(INTRO!$E$39<>\"Non endémique\", 0, IF(INTRO!$E$37=\"Non endémique\",0,IF(COUNTRY_INFO!$H18=1,COUNTRY_INFO!E18,0)))","v":0},{"$f":"IF(INTRO!$E$39<>\"Non endémique\", 0, IF(INTRO!$E$37=\"Non endémique\",0,IF(COUNTRY_INFO!$H18=1,COUNTRY_INFO!F18,0)))","v":0},{"$f":"IF(INTRO!$E$39<>\"Non endémique\", 0, IF(INTRO!$E$37=\"Non endémique\",0,IF(COUNTRY_INFO!$H18=1,COUNTRY_INFO!G18,0)))","v":0},0,{"$f":"IF(INTRO!$E$39=\"Non endémique\",IF(INTRO!$E$37=\"Non endémique\",\"Non requis\",COUNTRY_INFO!P18),\"Traiter avec IVM\")","v":"Non requis"},0,0,null,0,0]
[{"$f":"IF(INTRO!$E$39<>\"Non endémique\", \" \", IF(INTRO!$E$37=\"Non endémique\",\" \", IF(COUNTRY_INFO!A19=0,\" \",COUNTRY_INFO!A19)))","v":" "},{"$f":"IF(INTRO!$E$39<>\"Non endémique\", \" \", IF(INTRO!$E$37=\"Non endémique\",\" \", IF(COUNTRY_INFO!B19=0,\" \",COUNTRY_INFO!B19)))","v":" "},{"$f":"IF(INTRO!$E$39<>\"Non endémique\", \" \", IF(INTRO!$E$37=\"Non endémique\",\" \", IF(COUNTRY_INFO!C19=0,\" \",COUNTRY_INFO!C19)))","v":" "},{"$f":"IF(INTRO!$E$39<>\"Non endémique\", 0, IF(INTRO!$E$37=\"Non endémique\",0,IF(COUNTRY_INFO!$H19=1,COUNTRY_INFO!E19,0)))","v":0},{"$f":"IF(INTRO!$E$39<>\"Non endémique\", 0, IF(INTRO!$E$37=\"Non endémique\",0,IF(COUNTRY_INFO!$H19=1,COUNTRY_INFO!F19,0)))","v":0},{"$f":"IF(INTRO!$E$39<>\"Non endémique\", 0, IF(INTRO!$E$37=\"Non endémique\",0,IF(COUNTRY_INFO!$H19=1,COUNTRY_INFO!G19,0)))","v":0},0,{"$f":"IF(INTRO!$E$39=\"Non endémique\",IF(INTRO!$E$37=\"Non endémique\",\"Non requis\",COUNTRY_INFO!P19),\"Traiter avec IVM\")","v":"Non requis"},0,0,null,0,0]
[{"$f":"IF(INTRO!$E$39<>\"Non endémique\", \" \", IF(INTRO!$E$37=\"Non endémique\",\" \", IF(COUNTRY_INFO!A20=0,\" \",COUNTRY_INFO!A20)))","v":" "},{"$f":"IF(INTRO!$E$39<>\"Non endémique\", \" \", IF(INTRO!$E$37=\"Non endémique\",\" \", IF(COUNTRY_INFO!B20=0,\" \",COUNTRY_INFO!B20)))","v":" "},{"$f":"IF(INTRO!$E$39<>\"Non endémique\", \" \", IF(INTRO!$E$37=\"Non endémique\",\" \", IF(COUNTRY_INFO!C20=0,\" \",COUNTRY_INFO!C20)))","v":" "},{"$f":"IF(INTRO!$E$39<>\"Non endémique\", 0, IF(INTRO!$E$37=\"Non endémique\",0,IF(COUNTRY_INFO!$H20=1,COUNTRY_INFO!E20,0)))","v":0},{"$f":"IF(INTRO!$E$39<>\"Non endémique\", 0, IF(INTRO!$E$37=\"Non endémique\",0,IF(COUNTRY_INFO!$H20=1,COUNTRY_INFO!F20,0)))","v":0},{"$f":"IF(INTRO!$E$39<>\"Non endémique\", 0, IF(INTRO!$E$37=\"Non endémique\",0,IF(COUNTRY_INFO!$H20=1,COUNTRY_INFO!G20,0)))","v":0},0,{"$f":"IF(INTRO!$E$39=\"Non endémique\",IF(INTRO!$E$37=\"Non endémique\",\"Non requis\",COUNTRY_INFO!P20),\"Traiter avec IVM\")","v":"Non requis"},0,0,null,0,0]
[{"$f":"IF(INTRO!$E$39<>\"Non endémique\", \" \", IF(INTRO!$E$37=\"Non endémique\",\" \", IF(COUNTRY_INFO!A21=0,\" \",COUNTRY_INFO!A21)))","v":" "},{"$f":"IF(INTRO!$E$39<>\"Non endémique\", \" \", IF(INTRO!$E$37=\"Non endémique\",\" \", IF(COUNTRY_INFO!B21=0,\" \",COUNTRY_INFO!B21)))","v":" "},{"$f":"IF(INTRO!$E$39<>\"Non endémique\", \" \", IF(INTRO!$E$37=\"Non endémique\",\" \", IF(COUNTRY_INFO!C21=0,\" \",COUNTRY_INFO!C21)))","v":" "},{"$f":"IF(INTRO!$E$39<>\"Non endémique\", 0, IF(INTRO!$E$37=\"Non endémique\",0,IF(COUNTRY_INFO!$H21=1,COUNTRY_INFO!E21,0)))","v":0},{"$f":"IF(INTRO!$E$39<>\"Non endémique\", 0, IF(INTRO!$E$37=\"Non endémique\",0,IF(COUNTRY_INFO!$H21=1,COUNTRY_INFO!F21,0)))","v":0},{"$f":"IF(INTRO!$E$39<>\"Non endémique\", 0, IF(INTRO!$E$37=\"Non endémique\",0,IF(COUNTRY_INFO!$H21=1,COUNTRY_INFO!G21,0)))","v":0},0,{"$f":"IF(INTRO!$E$39=\"Non endémique\",IF(INTRO!$E$37=\"Non endémique\",\"Non requis\",COUNTRY_INFO!P21),\"Traiter avec IVM\")","v":"Non requis"},0,0,null,0,0]
[{"$f":"IF(INTRO!$E$39<>\"Non endémique\", \" \", IF(INTRO!$E$37=\"Non endémique\",\" \", IF(COUNTRY_INFO!A22=0,\" \",COUNTRY_INFO!A22)))","v":" "},{"$f":"IF(INTRO!$E$39<>\"Non endémique\", \" \", IF(INTRO!$E$37=\"Non endémique\",\" \", IF(COUNTRY_INFO!B22=0,\" \",COUNTRY_INFO!B22)))","v":" "},{"$f":"IF(INTRO!$E$39<>\"Non endémique\", \" \", IF(INTRO!$E$37=\"Non endémique\",\" \", IF(COUNTRY_INFO!C22=0,\" \",COUNTRY_INFO!C22)))","v":" "},{"$f":"IF(INTRO!$E$39<>\"Non endémique\", 0, IF(INTRO!$E$37=\"Non endémique\",0,IF(COUNTRY_INFO!$H22=1,COUNTRY_INFO!E22,0)))","v":0},{"$f":"IF(INTRO!$E$39<>\"Non endémique\", 0, IF(INTRO!$E$37=\"Non endémique\",0,IF(COUNTRY_INFO!$H22=1,COUNTRY_INFO!F22,0)))","v":0},{"$f":"IF(INTRO!$E$39<>\"Non endémique\", 0, IF(INTRO!$E$37=\"Non endémique\",0,IF(COUNTRY_INFO!$H22=1,COUNTRY_INFO!G22,0)))","v":0},0,{"$f":"IF(INTRO!$E$39=\"Non endémique\",IF(INTRO!$E$37=\"Non endémique\",\"Non requis\",COUNTRY_INFO!P22),\"Traiter avec IVM\")","v":"Non requis"},0,0,null,0,0]
[{"$f":"IF(INTRO!$E$39<>\"Non endémique\", \" \", IF(INTRO!$E$37=\"Non endémique\",\" \", IF(COUNTRY_INFO!A23=0,\" \",COUNTRY_INFO!A23)))","v":" "},{"$f":"IF(INTRO!$E$39<>\"Non endémique\", \" \", IF(INTRO!$E$37=\"Non endémique\",\" \", IF(COUNTRY_INFO!B23=0,\" \",COUNTRY_INFO!B23)))","v":" "},{"$f":"IF(INTRO!$E$39<>\"Non endémique\", \" \", IF(INTRO!$E$37=\"Non endémique\",\" \", IF(COUNTRY_INFO!C23=0,\" \",COUNTRY_INFO!C23)))","v":" "},{"$f":"IF(INTRO!$E$39<>\"Non endémique\", 0, IF(INTRO!$E$37=\"Non endémique\",0,IF(COUNTRY_INFO!$H23=1,COUNTRY_INFO!E23,0)))","v":0},{"$f":"IF(INTRO!$E$39<>\"Non endémique\", 0, IF(INTRO!$E$37=\"Non endémique\",0,IF(COUNTRY_INFO!$H23=1,COUNTRY_INFO!F23,0)))","v":0},{"$f":"IF(INTRO!$E$39<>\"Non endémique\", 0, IF(INTRO!$E$37=\"Non endémique\",0,IF(COUNTRY_INFO!$H23=1,COUNTRY_INFO!G23,0)))","v":0},0,{"$f":"IF(INTRO!$E$39=\"Non endémique\",IF(INTRO!$E$37=\"Non endémique\",\"Non requis\",COUNTRY_INFO!P23),\"Traiter avec IVM\")","v":"Non requis"},0,0,null,0,0]
[{"$f":"IF(INTRO!$E$39<>\"Non endémique\", \" \", IF(INTRO!$E$37=\"Non endémique\",\" \", IF(COUNTRY_INFO!A24=0,\" \",COUNTRY_INFO!A24)))","v":" "},{"$f":"IF(INTRO!$E$39<>\"Non endémique\", \" \", IF(INTRO!$E$37=\"Non endémique\",\" \", IF(COUNTRY_INFO!B24=0,\" \",COUNTRY_INFO!B24)))","v":" "},{"$f":"IF(INTRO!$E$39<>\"Non endémique\", \" \", IF(INTRO!$E$37=\"Non endémique\",\" \", IF(COUNTRY_INFO!C24=0,\" \",COUNTRY_INFO!C24)))","v":" "},{"$f":"IF(INTRO!$E$39<>\"Non endémique\", 0, IF(INTRO!$E$37=\"Non endémique\",0,IF(COUNTRY_INFO!$H24=1,COUNTRY_INFO!E24,0)))","v":0},{"$f":"IF(INTRO!$E$39<>\"Non endémique\", 0, IF(INTRO!$E$37=\"Non endémique\",0,IF(COUNTRY_INFO!$H24=1,COUNTRY_INFO!F24,0)))","v":0},{"$f":"IF(INTRO!$E$39<>\"Non endémique\", 0, IF(INTRO!$E$37=\"Non endémique\",0,IF(COUNTRY_INFO!$H24=1,COUNTRY_INFO!G24,0)))","v":0},0,{"$f":"IF(INTRO!$E$39=\"Non endémique\",IF(INTRO!$E$37=\"Non endémique\",\"Non requis\",COUNTRY_INFO!P24),\"Traiter avec IVM\")","v":"Non requis"},0,0,null,0,0]
[{"$f":"IF(INTRO!$E$39<>\"Non endémique\", \" \", IF(INTRO!$E$37=\"Non endémique\",\" \", IF(COUNTRY_INFO!A25=0,\" \",COUNTRY_INFO!A25)))","v":" "},{"$f":"IF(INTRO!$E$39<>\"Non endémique\", \" \", IF(INTRO!$E$37=\"Non endémique\",\" \", IF(COUNTRY_INFO!B25=0,\" \",COUNTRY_INFO!B25)))","v":" "},{"$f":"IF(INTRO!$E$39<>\"Non endémique\", \" \", IF(INTRO!$E$37=\"Non endémique\",\" \", IF(COUNTRY_INFO!C25=0,\" \",COUNTRY_INFO!C25)))","v":" "},{"$f":"IF(INTRO!$E$39<>\"Non endémique\", 0, IF(INTRO!$E$37=\"Non endémique\",0,IF(COUNTRY_INFO!$H25=1,COUNTRY_INFO!E25,0)))","v":0},{"$f":"IF(INTRO!$E$39<>\"Non endémique\", 0, IF(INTRO!$E$37=\"Non endémique\",0,IF(COUNTRY_INFO!$H25=1,COUNTRY_INFO!F25,0)))","v":0},{"$f":"IF(INTRO!$E$39<>\"Non endémique\", 0, IF(INTRO!$E$37=\"Non endémique\",0,IF(COUNTRY_INFO!$H25=1,COUNTRY_INFO!G25,0)))","v":0},0,{"$f":"IF(INTRO!$E$39=\"Non endémique\",IF(INTRO!$E$37=\"Non endémique\",\"Non requis\",COUNTRY_INFO!P25),\"Traiter avec IVM\")","v":"Non requis"},0,0,null,0,0]
[{"$f":"IF(INTRO!$E$39<>\"Non endémique\", \" \", IF(INTRO!$E$37=\"Non endémique\",\" \", IF(COUNTRY_INFO!A26=0,\" \",COUNTRY_INFO!A26)))","v":" "},{"$f":"IF(INTRO!$E$39<>\"Non endémique\", \" \", IF(INTRO!$E$37=\"Non endémique\",\" \", IF(COUNTRY_INFO!B26=0,\" \",COUNTRY_INFO!B26)))","v":" "},{"$f":"IF(INTRO!$E$39<>\"Non endémique\", \" \", IF(INTRO!$E$37=\"Non endémique\",\" \", IF(COUNTRY_INFO!C26=0,\" \",COUNTRY_INFO!C26)))","v":" "},{"$f":"IF(INTRO!$E$39<>\"Non endémique\", 0, IF(INTRO!$E$37=\"Non endémique\",0,IF(COUNTRY_INFO!$H26=1,COUNTRY_INFO!E26,0)))","v":0},{"$f":"IF(INTRO!$E$39<>\"Non endémique\", 0, IF(INTRO!$E$37=\"Non endémique\",0,IF(COUNTRY_INFO!$H26=1,COUNTRY_INFO!F26,0)))","v":0},{"$f":"IF(INTRO!$E$39<>\"Non endémique\", 0, IF(INTRO!$E$37=\"Non endémique\",0,IF(COUNTRY_INFO!$H26=1,COUNTRY_INFO!G26,0)))","v":0},0,{"$f":"IF(INTRO!$E$39=\"Non endémique\",IF(INTRO!$E$37=\"Non endémique\",\"Non requis\",COUNTRY_INFO!P26),\"Traiter avec IVM\")","v":"Non requis"},0,0,null,0,0]
[{"$f":"IF(INTRO!$E$39<>\"Non endémique\", \" \", IF(INTRO!$E$37=\"Non endémique\",\" \", IF(COUNTRY_INFO!A27=0,\" \",COUNTRY_INFO!A27)))","v":" "},{"$f":"IF(INTRO!$E$39<>\"Non endémique\", \" \", IF(INTRO!$E$37=\"Non endémique\",\" \", IF(COUNTRY_INFO!B27=0,\" \",COUNTRY_INFO!B27)))","v":" "},{"$f":"IF(INTRO!$E$39<>\"Non endémique\", \" \", IF(INTRO!$E$37=\"Non endémique\",\" \", IF(COUNTRY_INFO!C27=0,\" \",COUNTRY_INFO!C27)))","v":" "},{"$f":"IF(INTRO!$E$39<>\"Non endémique\", 0, IF(INTRO!$E$37=\"Non endémique\",0,IF(COUNTRY_INFO!$H27=1,COUNTRY_INFO!E27,0)))","v":0},{"$f":"IF(INTRO!$E$39<>\"Non endémique\", 0, IF(INTRO!$E$37=\"Non endémique\",0,IF(COUNTRY_INFO!$H27=1,COUNTRY_INFO!F27,0)))","v":0},{"$f":"IF(INTRO!$E$39<>\"Non endémique\", 0, IF(INTRO!$E$37=\"Non endémique\",0,IF(COUNTRY_INFO!$H27=1,COUNTRY_INFO!G27,0)))","v":0},0,{"$f":"IF(INTRO!$E$39=\"Non endémique\",IF(INTRO!$E$37=\"Non endémique\",\"Non requis\",COUNTRY_INFO!P27),\"Traiter avec IVM\")","v":"Non requis"},0,0,null,0,0]
[{"$f":"IF(INTRO!$E$39<>\"Non endémique\", \" \", IF(INTRO!$E$37=\"Non endémique\",\" \", IF(COUNTRY_INFO!A28=0,\" \",COUNTRY_INFO!A28)))","v":" "},{"$f":"IF(INTRO!$E$39<>\"Non endémique\", \" \", IF(INTRO!$E$37=\"Non endémique\",\" \", IF(COUNTRY_INFO!B28=0,\" \",COUNTRY_INFO!B28)))","v":" "},{"$f":"IF(INTRO!$E$39<>\"Non endémique\", \" \", IF(INTRO!$E$37=\"Non endémique\",\" \", IF(COUNTRY_INFO!C28=0,\" \",COUNTRY_INFO!C28)))","v":" "},{"$f":"IF(INTRO!$E$39<>\"Non endémique\", 0, IF(INTRO!$E$37=\"Non endémique\",0,IF(COUNTRY_INFO!$H28=1,COUNTRY_INFO!E28,0)))","v":0},{"$f":"IF(INTRO!$E$39<>\"Non endémique\", 0, IF(INTRO!$E$37=\"Non endémique\",0,IF(COUNTRY_INFO!$H28=1,COUNTRY_INFO!F28,0)))","v":0},{"$f":"IF(INTRO!$E$39<>\"Non endémique\", 0, IF(INTRO!$E$37=\"Non endémique\",0,IF(COUNTRY_INFO!$H28=1,COUNTRY_INFO!G28,0)))","v":0},0,{"$f":"IF(INTRO!$E$39=\"Non endémique\",IF(INTRO!$E$37=\"Non endémique\",\"Non requis\",COUNTRY_INFO!P28),\"Traiter avec IVM\")","v":"Non requis"},0,0,null,0,0]
[{"$f":"IF(INTRO!$E$39<>\"Non endémique\", \" \", IF(INTRO!$E$37=\"Non endémique\",\" \", IF(COUNTRY_INFO!A29=0,\" \",COUNTRY_INFO!A29)))","v":" "},{"$f":"IF(INTRO!$E$39<>\"Non endémique\", \" \", IF(INTRO!$E$37=\"Non endémique\",\" \", IF(COUNTRY_INFO!B29=0,\" \",COUNTRY_INFO!B29)))","v":" "},{"$f":"IF(INTRO!$E$39<>\"Non endémique\", \" \", IF(INTRO!$E$37=\"Non endémique\",\" \", IF(COUNTRY_INFO!C29=0,\" \",COUNTRY_INFO!C29)))","v":" "},{"$f":"IF(INTRO!$E$39<>\"Non endémique\", 0, IF(INTRO!$E$37=\"Non endémique\",0,IF(COUNTRY_INFO!$H29=1,COUNTRY_INFO!E29,0)))","v":0},{"$f":"IF(INTRO!$E$39<>\"Non endémique\", 0, IF(INTRO!$E$37=\"Non endémique\",0,IF(COUNTRY_INFO!$H29=1,COUNTRY_INFO!F29,0)))","v":0},{"$f":"IF(INTRO!$E$39<>\"Non endémique\", 0, IF(INTRO!$E$37=\"Non endémique\",0,IF(COUNTRY_INFO!$H29=1,COUNTRY_INFO!G29,0)))","v":0},0,{"$f":"IF(INTRO!$E$39=\"Non endémique\",IF(INTRO!$E$37=\"Non endémique\",\"Non requis\",COUNTRY_INFO!P29),\"Traiter avec IVM\")","v":"Non requis"},0,0,null,0,0]
[{"$f":"IF(INTRO!$E$39<>\"Non endémique\", \" \", IF(INTRO!$E$37=\"Non endémique\",\" \", IF(COUNTRY_INFO!A30=0,\" \",COUNTRY_INFO!A30)))","v":" "},{"$f":"IF(INTRO!$E$39<>\"Non endémique\", \" \", IF(INTRO!$E$37=\"Non endémique\",\" \", IF(COUNTRY_INFO!B30=0,\" \",COUNTRY_INFO!B30)))","v":" "},{"$f":"IF(INTRO!$E$39<>\"Non endémique\", \" \", IF(INTRO!$E$37=\"Non endémique\",\" \", IF(COUNTRY_INFO!C30=0,\" \",COUNTRY_INFO!C30)))","v":" "},{"$f":"IF(INTRO!$E$39<>\"Non endémique\", 0, IF(INTRO!$E$37=\"Non endémique\",0,IF(COUNTRY_INFO!$H30=1,COUNTRY_INFO!E30,0)))","v":0},{"$f":"IF(INTRO!$E$39<>\"Non endémique\", 0, IF(INTRO!$E$37=\"Non endémique\",0,IF(COUNTRY_INFO!$H30=1,COUNTRY_INFO!F30,0)))","v":0},{"$f":"IF(INTRO!$E$39<>\"Non endémique\", 0, IF(INTRO!$E$37=\"Non endémique\",0,IF(COUNTRY_INFO!$H30=1,COUNTRY_INFO!G30,0)))","v":0},0,{"$f":"IF(INTRO!$E$39=\"Non endémique\",IF(INTRO!$E$37=\"Non endémique\",\"Non requis\",COUNTRY_INFO!P30),\"Traiter avec IVM\")","v":"Non requis"},0,0,null,0,0]
[{"$f":"IF(INTRO!$E$39<>\"Non endémique\", \" \", IF(INTRO!$E$37=\"Non endémique\",\" \", IF(COUNTRY_INFO!A31=0,\" \",COUNTRY_INFO!A31)))","v":" "},{"$f":"IF(INTRO!$E$39<>\"Non endémique\", \" \", IF(INTRO!$E$37=\"Non endémique\",\" \", IF(COUNTRY_INFO!B31=0,\" \",COUNTRY_INFO!B31)))","v":" "},{"$f":"IF(INTRO!$E$39<>\"Non endémique\", \" \", IF(INTRO!$E$37=\"Non endémique\",\" \", IF(COUNTRY_INFO!C31=0,\" \",COUNTRY_INFO!C31)))","v":" "},{"$f":"IF(INTRO!$E$39<>\"Non endémique\", 0, IF(INTRO!$E$37=\"Non endémique\",0,IF(COUNTRY_INFO!$H31=1,COUNTRY_INFO!E31,0)))","v":0},{"$f":"IF(INTRO!$E$39<>\"Non endémique\", 0, IF(INTRO!$E$37=\"Non endémique\",0,IF(COUNTRY_INFO!$H31=1,COUNTRY_INFO!F31,0)))","v":0},{"$f":"IF(INTRO!$E$39<>\"Non endémique\", 0, IF(INTRO!$E$37=\"Non endémique\",0,IF(COUNTRY_INFO!$H31=1,COUNTRY_INFO!G31,0)))","v":0},0,{"$f":"IF(INTRO!$E$39=\"Non endémique\",IF(INTRO!$E$37=\"Non endémique\",\"Non requis\",COUNTRY_INFO!P31),\"Traiter avec IVM\")","v":"Non requis"},0,0,null,0,0]
[{"$f":"IF(INTRO!$E$39<>\"Non endémique\", \" \", IF(INTRO!$E$37=\"Non endémique\",\" \", IF(COUNTRY_INFO!A32=0,\" \",COUNTRY_INFO!A32)))","v":" "},{"$f":"IF(INTRO!$E$39<>\"Non endémique\", \" \", IF(INTRO!$E$37=\"Non endémique\",\" \", IF(COUNTRY_INFO!B32=0,\" \",COUNTRY_INFO!B32)))","v":" "},{"$f":"IF(INTRO!$E$39<>\"Non endémique\", \" \", IF(INTRO!$E$37=\"Non endémique\",\" \", IF(COUNTRY_INFO!C32=0,\" \",COUNTRY_INFO!C32)))","v":" "},{"$f":"IF(INTRO!$E$39<>\"Non endémique\", 0, IF(INTRO!$E$37=\"Non endémique\",0,IF(COUNTRY_INFO!$H32=1,COUNTRY_INFO!E32,0)))","v":0},{"$f":"IF(INTRO!$E$39<>\"Non endémique\", 0, IF(INTRO!$E$37=\"Non endémique\",0,IF(COUNTRY_INFO!$H32=1,COUNTRY_INFO!F32,0)))","v":0},{"$f":"IF(INTRO!$E$39<>\"Non endémique\", 0, IF(INTRO!$E$37=\"Non endémique\",0,IF(COUNTRY_INFO!$H32=1,COUNTRY_INFO!G32,0)))","v":0},0,{"$f":"IF(INTRO!$E$39=\"Non endémique\",IF(INTRO!$E$37=\"Non endémique\",\"Non requis\",COUNTRY_INFO!P32),\"Traiter avec IVM\")","v":"Non requis"},0,0,null,0,0]
[{"$f":"IF(INTRO!$E$39<>\"Non endémique\", \" \", IF(INTRO!$E$37=\"Non endémique\",\" \", IF(COUNTRY_INFO!A33=0,\" \",COUNTRY_INFO!A33)))","v":" "},{"$f":"IF(INTRO!$E$39<>\"Non endémique\", \" \", IF(INTRO!$E$37=\"Non endémique\",\" \", IF(COUNTRY_INFO!B33=0,\" \",COUNTRY_INFO!B33)))","v":" "},{"$f":"IF(INTRO!$E$39<>\"Non endémique\", \" \", IF(INTRO!$E$37=\"Non endémique\",\" \", IF(COUNTRY_INFO!C33=0,\" \",COUNTRY_INFO!C33)))","v":" "},{"$f":"IF(INTRO!$E$39<>\"Non endémique\", 0, IF(INTRO!$E$37=\"Non endémique\",0,IF(COUNTRY_INFO!$H33=1,COUNTRY_INFO!E33,0)))","v":0},{"$f":"IF(INTRO!$E$39<>\"Non endémique\", 0, IF(INTRO!$E$37=\"Non endémique\",0,IF(COUNTRY_INFO!$H33=1,COUNTRY_INFO!F33,0)))","v":0},{"$f":"IF(INTRO!$E$39<>\"Non endémique\", 0, IF(INTRO!$E$37=\"Non endémique\",0,IF(COUNTRY_INFO!$H33=1,COUNTRY_INFO!G33,0)))","v":0},0,{"$f":"IF(INTRO!$E$39=\"Non endémique\",IF(INTRO!$E$37=\"Non endémique\",\"Non requis\",COUNTRY_INFO!P33),\"Traiter avec IVM\")","v":"Non requis"},0,0,null,0,0]
[{"$f":"IF(INTRO!$E$39<>\"Non endémique\", \" \", IF(INTRO!$E$37=\"Non endémique\",\" \", IF(COUNTRY_INFO!A34=0,\" \",COUNTRY_INFO!A34)))","v":" "},{"$f":"IF(INTRO!$E$39<>\"Non endémique\", \" \", IF(INTRO!$E$37=\"Non endémique\",\" \", IF(COUNTRY_INFO!B34=0,\" \",COUNTRY_INFO!B34)))","v":" "},{"$f":"IF(INTRO!$E$39<>\"Non endémique\", \" \", IF(INTRO!$E$37=\"Non endémique\",\" \", IF(COUNTRY_INFO!C34=0,\" \",COUNTRY_INFO!C34)))","v":" "},{"$f":"IF(INTRO!$E$39<>\"Non endémique\", 0, IF(INTRO!$E$37=\"Non endémique\",0,IF(COUNTRY_INFO!$H34=1,COUNTRY_INFO!E34,0)))","v":0},{"$f":"IF(INTRO!$E$39<>\"Non endémique\", 0, IF(INTRO!$E$37=\"Non endémique\",0,IF(COUNTRY_INFO!$H34=1,COUNTRY_INFO!F34,0)))","v":0},{"$f":"IF(INTRO!$E$39<>\"Non endémique\", 0, IF(INTRO!$E$37=\"Non endémique\",0,IF(COUNTRY_INFO!$H34=1,COUNTRY_INFO!G34,0)))","v":0},0,{"$f":"IF(INTRO!$E$39=\"Non endémique\",IF(INTRO!$E$37=\"Non endémique\",\"Non requis\",COUNTRY_INFO!P34),\"Traiter avec IVM\")","v":"Non requis"},0,0,null,0,0]
[{"$f":"IF(INTRO!$E$39<>\"Non endémique\", \" \", IF(INTRO!$E$37=\"Non endémique\",\" \", IF(COUNTRY_INFO!A35=0,\" \",COUNTRY_INFO!A35)))","v":" "},{"$f":"IF(INTRO!$E$39<>\"Non endémique\", \" \", IF(INTRO!$E$37=\"Non endémique\",\" \", IF(COUNTRY_INFO!B35=0,\" \",COUNTRY_INFO!B35)))","v":" "},{"$f":"IF(INTRO!$E$39<>\"Non endémique\", \" \", IF(INTRO!$E$37=\"Non endémique\",\" \", IF(COUNTRY_INFO!C35=0,\" \",COUNTRY_INFO!C35)))","v":" "},{"$f":"IF(INTRO!$E$39<>\"Non endémique\", 0, IF(INTRO!$E$37=\"Non endémique\",0,IF(COUNTRY_INFO!$H35=1,COUNTRY_INFO!E35,0)))","v":0},{"$f":"IF(INTRO!$E$39<>\"Non endémique\", 0, IF(INTRO!$E$37=\"Non endémique\",0,IF(COUNTRY_INFO!$H35=1,COUNTRY_INFO!F35,0)))","v":0},{"$f":"IF(INTRO!$E$39<>\"Non endémique\", 0, IF(INTRO!$E$37=\"Non endémique\",0,IF(COUNTRY_INFO!$H35=1,COUNTRY_INFO!G35,0)))","v":0},0,{"$f":"IF(INTRO!$E$39=\"Non endémique\",IF(INTRO!$E$37=\"Non endémique\",\"Non requis\",COUNTRY_INFO!P35),\"Traiter avec IVM\")","v":"Non requis"},0,0,null,0,0]
[{"$f":"IF(INTRO!$E$39<>\"Non endémique\", \" \", IF(INTRO!$E$37=\"Non endémique\",\" \", IF(COUNTRY_INFO!A36=0,\" \",COUNTRY_INFO!A36)))","v":" "},{"$f":"IF(INTRO!$E$39<>\"Non endémique\", \" \", IF(INTRO!$E$37=\"Non endémique\",\" \", IF(COUNTRY_INFO!B36=0,\" \",COUNTRY_INFO!B36)))","v":" "},{"$f":"IF(INTRO!$E$39<>\"Non endémique\", \" \", IF(INTRO!$E$37=\"Non endémique\",\" \", IF(COUNTRY_INFO!C36=0,\" \",COUNTRY_INFO!C36)))","v":" "},{"$f":"IF(INTRO!$E$39<>\"Non endémique\", 0, IF(INTRO!$E$37=\"Non endémique\",0,IF(COUNTRY_INFO!$H36=1,COUNTRY_INFO!E36,0)))","v":0},{"$f":"IF(INTRO!$E$39<>\"Non endémique\", 0, IF(INTRO!$E$37=\"Non endémique\",0,IF(COUNTRY_INFO!$H36=1,COUNTRY_INFO!F36,0)))","v":0},{"$f":"IF(INTRO!$E$39<>\"Non endémique\", 0, IF(INTRO!$E$37=\"Non endémique\",0,IF(COUNTRY_INFO!$H36=1,COUNTRY_INFO!G36,0)))","v":0},0,{"$f":"IF(INTRO!$E$39=\"Non endémique\",IF(INTRO!$E$37=\"Non endémique\",\"Non requis\",COUNTRY_INFO!P36),\"Traiter avec IVM\")","v":"Non requis"},0,0,null,0,0]
[{"$f":"IF(INTRO!$E$39<>\"Non endémique\", \" \", IF(INTRO!$E$37=\"Non endémique\",\" \", IF(COUNTRY_INFO!A37=0,\" \",COUNTRY_INFO!A37)))","v":" "},{"$f":"IF(INTRO!$E$39<>\"Non endémique\", \" \", IF(INTRO!$E$37=\"Non endémique\",\" \", IF(COUNTRY_INFO!B37=0,\" \",COUNTRY_INFO!B37)))","v":" "},{"$f":"IF(INTRO!$E$39<>\"Non endémique\", \" \", IF(INTRO!$E$37=\"Non endémique\",\" \", IF(COUNTRY_INFO!C37=0,\" \",COUNTRY_INFO!C37)))","v":" "},{"$f":"IF(INTRO!$E$39<>\"Non endémique\", 0, IF(INTRO!$E$37=\"Non endémique\",0,IF(COUNTRY_INFO!$H37=1,COUNTRY_INFO!E37,0)))","v":0},{"$f":"IF(INTRO!$E$39<>\"Non endémique\", 0, IF(INTRO!$E$37=\"Non endémique\",0,IF(COUNTRY_INFO!$H37=1,COUNTRY_INFO!F37,0)))","v":0},{"$f":"IF(INTRO!$E$39<>\"Non endémique\", 0, IF(INTRO!$E$37=\"Non endémique\",0,IF(COUNTRY_INFO!$H37=1,COUNTRY_INFO!G37,0)))","v":0},0,{"$f":"IF(INTRO!$E$39=\"Non endémique\",IF(INTRO!$E$37=\"Non endémique\",\"Non requis\",COUNTRY_INFO!P37),\"Traiter avec IVM\")","v":"Non requis"},0,0,null,0,0]
[{"$f":"IF(INTRO!$E$39<>\"Non endémique\", \" \", IF(INTRO!$E$37=\"Non endémique\",\" \", IF(COUNTRY_INFO!A38=0,\" \",COUNTRY_INFO!A38)))","v":" "},{"$f":"IF(INTRO!$E$39<>\"Non endémique\", \" \", IF(INTRO!$E$37=\"Non endémique\",\" \", IF(COUNTRY_INFO!B38=0,\" \",COUNTRY_INFO!B38)))","v":" "},{"$f":"IF(INTRO!$E$39<>\"Non endémique\", \" \", IF(INTRO!$E$37=\"Non endémique\",\" \", IF(COUNTRY_INFO!C38=0,\" \",COUNTRY_INFO!C38)))","v":" "},{"$f":"IF(INTRO!$E$39<>\"Non endémique\", 0, IF(INTRO!$E$37=\"Non endémique\",0,IF(COUNTRY_INFO!$H38=1,COUNTRY_INFO!E38,0)))","v":0},{"$f":"IF(INTRO!$E$39<>\"Non endémique\", 0, IF(INTRO!$E$37=\"Non endémique\",0,IF(COUNTRY_INFO!$H38=1,COUNTRY_INFO!F38,0)))","v":0},{"$f":"IF(INTRO!$E$39<>\"Non endémique\", 0, IF(INTRO!$E$37=\"Non endémique\",0,IF(COUNTRY_INFO!$H38=1,COUNTRY_INFO!G38,0)))","v":0},0,{"$f":"IF(INTRO!$E$39=\"Non endémique\",IF(INTRO!$E$37=\"Non endémique\",\"Non requis\",COUNTRY_INFO!P38),\"Traiter avec IVM\")","v":"Non requis"},0,0,null,0,0]
[{"$f":"IF(INTRO!$E$39<>\"Non endémique\", \" \", IF(INTRO!$E$37=\"Non endémique\",\" \", IF(COUNTRY_INFO!A39=0,\" \",COUNTRY_INFO!A39)))","v":" "},{"$f":"IF(INTRO!$E$39<>\"Non endémique\", \" \", IF(INTRO!$E$37=\"Non endémique\",\" \", IF(COUNTRY_INFO!B39=0,\" \",COUNTRY_INFO!B39)))","v":" "},{"$f":"IF(INTRO!$E$39<>\"Non endémique\", \" \", IF(INTRO!$E$37=\"Non endémique\",\" \", IF(COUNTRY_INFO!C39=0,\" \",COUNTRY_INFO!C39)))","v":" "},{"$f":"IF(INTRO!$E$39<>\"Non endémique\", 0, IF(INTRO!$E$37=\"Non endémique\",0,IF(COUNTRY_INFO!$H39=1,COUNTRY_INFO!E39,0)))","v":0},{"$f":"IF(INTRO!$E$39<>\"Non endémique\", 0, IF(INTRO!$E$37=\"Non endémique\",0,IF(COUNTRY_INFO!$H39=1,COUNTRY_INFO!F39,0)))","v":0},{"$f":"IF(INTRO!$E$39<>\"Non endémique\", 0, IF(INTRO!$E$37=\"Non endémique\",0,IF(COUNTRY_INFO!$H39=1,COUNTRY_INFO!G39,0)))","v":0},0,{"$f":"IF(INTRO!$E$39=\"Non endémique\",IF(INTRO!$E$37=\"Non endémique\",\"Non requis\",COUNTRY_INFO!P39),\"Traiter avec IVM\")","v":"Non requis"},0,0,null,0,0]
[{"$f":"IF(INTRO!$E$39<>\"Non endémique\", \" \", IF(INTRO!$E$37=\"Non endémique\",\" \", IF(COUNTRY_INFO!A40=0,\" \",COUNTRY_INFO!A40)))","v":" "},{"$f":"IF(INTRO!$E$39<>\"Non endémique\", \" \", IF(INTRO!$E$37=\"Non endémique\",\" \", IF(COUNTRY_INFO!B40=0,\" \",COUNTRY_INFO!B40)))","v":" "},{"$f":"IF(INTRO!$E$39<>\"Non endémique\", \" \", IF(INTRO!$E$37=\"Non endémique\",\" \", IF(COUNTRY_INFO!C40=0,\" \",COUNTRY_INFO!C40)))","v":" "},{"$f":"IF(INTRO!$E$39<>\"Non endémique\", 0, IF(INTRO!$E$37=\"Non endémique\",0,IF(COUNTRY_INFO!$H40=1,COUNTRY_INFO!E40,0)))","v":0},{"$f":"IF(INTRO!$E$39<>\"Non endémique\", 0, IF(INTRO!$E$37=\"Non endémique\",0,IF(COUNTRY_INFO!$H40=1,COUNTRY_INFO!F40,0)))","v":0},{"$f":"IF(INTRO!$E$39<>\"Non endémique\", 0, IF(INTRO!$E$37=\"Non endémique\",0,IF(COUNTRY_INFO!$H40=1,COUNTRY_INFO!G40,0)))","v":0},0,{"$f":"IF(INTRO!$E$39=\"Non endémique\",IF(INTRO!$E$37=\"Non endémique\",\"Non requis\",COUNTRY_INFO!P40),\"Traiter avec IVM\")","v":"Non requis"},0,0,null,0,0]
[{"$f":"IF(INTRO!$E$39<>\"Non endémique\", \" \", IF(INTRO!$E$37=\"Non endémique\",\" \", IF(COUNTRY_INFO!A41=0,\" \",COUNTRY_INFO!A41)))","v":" "},{"$f":"IF(INTRO!$E$39<>\"Non endémique\", \" \", IF(INTRO!$E$37=\"Non endémique\",\" \", IF(COUNTRY_INFO!B41=0,\" \",COUNTRY_INFO!B41)))","v":" "},{"$f":"IF(INTRO!$E$39<>\"Non endémique\", \" \", IF(INTRO!$E$37=\"Non endémique\",\" \", IF(COUNTRY_INFO!C41=0,\" \",COUNTRY_INFO!C41)))","v":" "},{"$f":"IF(INTRO!$E$39<>\"Non endémique\", 0, IF(INTRO!$E$37=\"Non endémique\",0,IF(COUNTRY_INFO!$H41=1,COUNTRY_INFO!E41,0)))","v":0},{"$f":"IF(INTRO!$E$39<>\"Non endémique\", 0, IF(INTRO!$E$37=\"Non endémique\",0,IF(COUNTRY_INFO!$H41=1,COUNTRY_INFO!F41,0)))","v":0},{"$f":"IF(INTRO!$E$39<>\"Non endémique\", 0, IF(INTRO!$E$37=\"Non endémique\",0,IF(COUNTRY_INFO!$H41=1,COUNTRY_INFO!G41,0)))","v":0},{"$f":"SUM(D41:F41)","v":0},{"$f":"IF(INTRO!$E$39=\"Non endémique\",IF(INTRO!$E$37=\"Non endémique\",\"Non requis\",COUNTRY_INFO!P41),\"Traiter avec IVM\")","v":"Non requis"},{"$f":"IF(H41=1,G41,0)","v":0},{"$f":"IF(I41>0,I41*2.5,0)","v":0},null,{"$f":"IF($J41>$K41,$J41-$K41,0)","v":0},{"$f":"ROUNDUP($J41/1000,0)","v":0}]
[{"$f":"IF(INTRO!$E$39<>\"Non endémique\", \" \", IF(INTRO!$E$37=\"Non endémique\",\" \", IF(COUNTRY_INFO!A42=0,\" \",COUNTRY_INFO!A42)))","v":" "},{"$f":"IF(INTRO!$E$39<>\"Non endémique\", \" \", IF(INTRO!$E$37=\"Non endémique\",\" \", IF(COUNTRY_INFO!B42=0,\" \",COUNTRY_INFO!B42)))","v":" "},{"$f":"IF(INTRO!$E$39<>\"Non endémique\", \" \", IF(INTRO!$E$37=\"Non endémique\",\" \", IF(COUNTRY_INFO!C42=0,\" \",COUNTRY_INFO!C42)))","v":" "},{"$f":"IF(INTRO!$E$39<>\"Non endémique\", 0, IF(INTRO!$E$37=\"Non endémique\",0,IF(COUNTRY_INFO!$H42=1,COUNTRY_INFO!E42,0)))","v":0},{"$f":"IF(INTRO!$E$39<>\"Non endémique\", 0, IF(INTRO!$E$37=\"Non endémique\",0,IF(COUNTRY_INFO!$H42=1,COUNTRY_INFO!F42,0)))","v":0},{"$f":"IF(INTRO!$E$39<>\"Non endémique\", 0, IF(INTRO!$E$37=\"Non endémique\",0,IF(COUNTRY_INFO!$H42=1,COUNTRY_INFO!G42,0)))","v":0},0,{"$f":"IF(INTRO!$E$39=\"Non endémique\",IF(INTRO!$E$37=\"Non endémique\",\"Non requis\",COUNTRY_INFO!P42),\"Traiter avec IVM\")","v":"Non requis"},0,0,null,0,0]
[{"$f":"IF(INTRO!$E$39<>\"Non endémique\", \" \", IF(INTRO!$E$37=\"Non endémique\",\" \", IF(COUNTRY_INFO!A43=0,\" \",COUNTRY_INFO!A43)))","v":" "},{"$f":"IF(INTRO!$E$39<>\"Non endémique\", \" \", IF(INTRO!$E$37=\"Non endémique\",\" \", IF(COUNTRY_INFO!B43=0,\" \",COUNTRY_INFO!B43)))","v":" "},{"$f":"IF(INTRO!$E$39<>\"Non endémique\", \" \", IF(INTRO!$E$37=\"Non endémique\",\" \", IF(COUNTRY_INFO!C43=0,\" \",COUNTRY_INFO!C43)))","v":" "},{"$f":"IF(INTRO!$E$39<>\"Non endémique\", 0, IF(INTRO!$E$37=\"Non endémique\",0,IF(COUNTRY_INFO!$H43=1,COUNTRY_INFO!E43,0)))","v":0},{"$f":"IF(INTRO!$E$39<>\"Non endémique\", 0, IF(INTRO!$E$37=\"Non endémique\",0,IF(COUNTRY_INFO!$H43=1,COUNTRY_INFO!F43,0)))","v":0},{"$f":"IF(INTRO!$E$39<>\"Non endémique\", 0, IF(INTRO!$E$37=\"Non endémique\",0,IF(COUNTRY_INFO!$H43=1,COUNTRY_INFO!G43,0)))","v":0},0,{"$f":"IF(INTRO!$E$39=\"Non endémique\",IF(INTRO!$E$37=\"Non endémique\",\"Non requis\",COUNTRY_INFO!P43),\"Traiter avec IVM\")","v":"Non requis"},0,0,null,0,0]
[{"$f":"IF(INTRO!$E$39<>\"Non endémique\", \" \", IF(INTRO!$E$37=\"Non endémique\",\" \", IF(COUNTRY_INFO!A44=0,\" \",COUNTRY_INFO!A44)))","v":" "},{"$f":"IF(INTRO!$E$39<>\"Non endémique\", \" \", IF(INTRO!$E$37=\"Non endémique\",\" \", IF(COUNTRY_INFO!B44=0,\" \",COUNTRY_INFO!B44)))","v":" "},{"$f":"IF(INTRO!$E$39<>\"Non endémique\", \" \", IF(INTRO!$E$37=\"Non endémique\",\" \", IF(COUNTRY_INFO!C44=0,\" \",COUNTRY_INFO!C44)))","v":" "},{"$f":"IF(INTRO!$E$39<>\"Non endémique\", 0, IF(INTRO!$E$37=\"Non endémique\",0,IF(COUNTRY_INFO!$H44=1,COUNTRY_INFO!E44,0)))","v":0},{"$f":"IF(INTRO!$E$39<>\"Non endémique\", 0, IF(INTRO!$E$37=\"Non endémique\",0,IF(COUNTRY_INFO!$H44=1,COUNTRY_INFO!F44,0)))","v":0},{"$f":"IF(INTRO!$E$39<>\"Non endémique\", 0, IF(INTRO!$E$37=\"Non endémique\",0,IF(COUNTRY_INFO!$H44=1,COUNTRY_INFO!G44,0)))","v":0},0,{"$f":"IF(INTRO!$E$39=\"Non endémique\",IF(INTRO!$E$37=\"Non endémique\",\"Non requis\",COUNTRY_INFO!P44),\"Traiter avec IVM\")","v":"Non requis"},0,0,null,0,0]
[{"$f":"IF(INTRO!$E$39<>\"Non endémique\", \" \", IF(INTRO!$E$37=\"Non endémique\",\" \", IF(COUNTRY_INFO!A45=0,\" \",COUNTRY_INFO!A45)))","v":" "},{"$f":"IF(INTRO!$E$39<>\"Non endémique\", \" \", IF(INTRO!$E$37=\"Non endémique\",\" \", IF(COUNTRY_INFO!B45=0,\" \",COUNTRY_INFO!B45)))","v":" "},{"$f":"IF(INTRO!$E$39<>\"Non endémique\", \" \", IF(INTRO!$E$37=\"Non endémique\",\" \", IF(COUNTRY_INFO!C45=0,\" \",COUNTRY_INFO!C45)))","v":" "},{"$f":"IF(INTRO!$E$39<>\"Non endémique\", 0, IF(INTRO!$E$37=\"Non endémique\",0,IF(COUNTRY_INFO!$H45=1,COUNTRY_INFO!E45,0)))","v":0},{"$f":"IF(INTRO!$E$39<>\"Non endémique\", 0, IF(INTRO!$E$37=\"Non endémique\",0,IF(COUNTRY_INFO!$H45=1,COUNTRY_INFO!F45,0)))","v":0},{"$f":"IF(INTRO!$E$39<>\"Non endémique\", 0, IF(INTRO!$E$37=\"Non endémique\",0,IF(COUNTRY_INFO!$H45=1,COUNTRY_INFO!G45,0)))","v":0},0,{"$f":"IF(INTRO!$E$39=\"Non endémique\",IF(INTRO!$E$37=\"Non endémique\",\"Non requis\",COUNTRY_INFO!P45),\"Traiter avec IVM\")","v":"Non requis"},0,0,null,0,0]
[{"$f":"IF(INTRO!$E$39<>\"Non endémique\", \" \", IF(INTRO!$E$37=\"Non endémique\",\" \", IF(COUNTRY_INFO!A46=0,\" \",COUNTRY_INFO!A46)))","v":" "},{"$f":"IF(INTRO!$E$39<>\"Non endémique\", \" \", IF(INTRO!$E$37=\"Non endémique\",\" \", IF(COUNTRY_INFO!B46=0,\" \",COUNTRY_INFO!B46)))","v":" "},{"$f":"IF(INTRO!$E$39<>\"Non endémique\", \" \", IF(INTRO!$E$37=\"Non endémique\",\" \", IF(COUNTRY_INFO!C46=0,\" \",COUNTRY_INFO!C46)))","v":" "},{"$f":"IF(INTRO!$E$39<>\"Non endémique\", 0, IF(INTRO!$E$37=\"Non endémique\",0,IF(COUNTRY_INFO!$H46=1,COUNTRY_INFO!E46,0)))","v":0},{"$f":"IF(INTRO!$E$39<>\"Non endémique\", 0, IF(INTRO!$E$37=\"Non endémique\",0,IF(COUNTRY_INFO!$H46=1,COUNTRY_INFO!F46,0)))","v":0},{"$f":"IF(INTRO!$E$39<>\"Non endémique\", 0, IF(INTRO!$E$37=\"Non endémique\",0,IF(COUNTRY_INFO!$H46=1,COUNTRY_INFO!G46,0)))","v":0},0,{"$f":"IF(INTRO!$E$39=\"Non endémique\",IF(INTRO!$E$37=\"Non endémique\",\"Non requis\",COUNTRY_INFO!P46),\"Traiter avec IVM\")","v":"Non requis"},0,0,null,0,0]
[{"$f":"IF(INTRO!$E$39<>\"Non endémique\", \" \", IF(INTRO!$E$37=\"Non endémique\",\" \", IF(COUNTRY_INFO!A47=0,\" \",COUNTRY_INFO!A47)))","v":" "},{"$f":"IF(INTRO!$E$39<>\"Non endémique\", \" \", IF(INTRO!$E$37=\"Non endémique\",\" \", IF(COUNTRY_INFO!B47=0,\" \",COUNTRY_INFO!B47)))","v":" "},{"$f":"IF(INTRO!$E$39<>\"Non endémique\", \" \", IF(INTRO!$E$37=\"Non endémique\",\" \", IF(COUNTRY_INFO!C47=0,\" \",COUNTRY_INFO!C47)))","v":" "},{"$f":"IF(INTRO!$E$39<>\"Non endémique\", 0, IF(INTRO!$E$37=\"Non endémique\",0,IF(COUNTRY_INFO!$H47=1,COUNTRY_INFO!E47,0)))","v":0},{"$f":"IF(INTRO!$E$39<>\"Non endémique\", 0, IF(INTRO!$E$37=\"Non endémique\",0,IF(COUNTRY_INFO!$H47=1,COUNTRY_INFO!F47,0)))","v":0},{"$f":"IF(INTRO!$E$39<>\"Non endémique\", 0, IF(INTRO!$E$37=\"Non endémique\",0,IF(COUNTRY_INFO!$H47=1,COUNTRY_INFO!G47,0)))","v":0},0,{"$f":"IF(INTRO!$E$39=\"Non endémique\",IF(INTRO!$E$37=\"Non endémique\",\"Non requis\",COUNTRY_INFO!P47),\"Traiter avec IVM\")","v":"Non requis"},0,0,null,0,0]
[{"$f":"IF(INTRO!$E$39<>\"Non endémique\", \" \", IF(INTRO!$E$37=\"Non endémique\",\" \", IF(COUNTRY_INFO!A48=0,\" \",COUNTRY_INFO!A48)))","v":" "},{"$f":"IF(INTRO!$E$39<>\"Non endémique\", \" \", IF(INTRO!$E$37=\"Non endémique\",\" \", IF(COUNTRY_INFO!B48=0,\" \",COUNTRY_INFO!B48)))","v":" "},{"$f":"IF(INTRO!$E$39<>\"Non endémique\", \" \", IF(INTRO!$E$37=\"Non endémique\",\" \", IF(COUNTRY_INFO!C48=0,\" \",COUNTRY_INFO!C48)))","v":" "},{"$f":"IF(INTRO!$E$39<>\"Non endémique\", 0, IF(INTRO!$E$37=\"Non endémique\",0,IF(COUNTRY_INFO!$H48=1,COUNTRY_INFO!E48,0)))","v":0},{"$f":"IF(INTRO!$E$39<>\"Non endémique\", 0, IF(INTRO!$E$37=\"Non endémique\",0,IF(COUNTRY_INFO!$H48=1,COUNTRY_INFO!F48,0)))","v":0},{"$f":"IF(INTRO!$E$39<>\"Non endémique\", 0, IF(INTRO!$E$37=\"Non endémique\",0,IF(COUNTRY_INFO!$H48=1,COUNTRY_INFO!G48,0)))","v":0},0,{"$f":"IF(INTRO!$E$39=\"Non endémique\",IF(INTRO!$E$37=\"Non endémique\",\"Non requis\",COUNTRY_INFO!P48),\"Traiter avec IVM\")","v":"Non requis"},0,0,null,0,0]
[{"$f":"IF(INTRO!$E$39<>\"Non endémique\", \" \", IF(INTRO!$E$37=\"Non endémique\",\" \", IF(COUNTRY_INFO!A49=0,\" \",COUNTRY_INFO!A49)))","v":" "},{"$f":"IF(INTRO!$E$39<>\"Non endémique\", \" \", IF(INTRO!$E$37=\"Non endémique\",\" \", IF(COUNTRY_INFO!B49=0,\" \",COUNTRY_INFO!B49)))","v":" "},{"$f":"IF(INTRO!$E$39<>\"Non endémique\", \" \", IF(INTRO!$E$37=\"Non endémique\",\" \", IF(COUNTRY_INFO!C49=0,\" \",COUNTRY_INFO!C49)))","v":" "},{"$f":"IF(INTRO!$E$39<>\"Non endémique\", 0, IF(INTRO!$E$37=\"Non endémique\",0,IF(COUNTRY_INFO!$H49=1,COUNTRY_INFO!E49,0)))","v":0},{"$f":"IF(INTRO!$E$39<>\"Non endémique\", 0, IF(INTRO!$E$37=\"Non endémique\",0,IF(COUNTRY_INFO!$H49=1,COUNTRY_INFO!F49,0)))","v":0},{"$f":"IF(INTRO!$E$39<>\"Non endémique\", 0, IF(INTRO!$E$37=\"Non endémique\",0,IF(COUNTRY_INFO!$H49=1,COUNTRY_INFO!G49,0)))","v":0},0,{"$f":"IF(INTRO!$E$39=\"Non endémique\",IF(INTRO!$E$37=\"Non endémique\",\"Non requis\",COUNTRY_INFO!P49),\"Traiter avec IVM\")","v":"Non requis"},0,0,null,0,0]
[{"$f":"IF(INTRO!$E$39<>\"Non endémique\", \" \", IF(INTRO!$E$37=\"Non endémique\",\" \", IF(COUNTRY_INFO!A50=0,\" \",COUNTRY_INFO!A50)))","v":" "},{"$f":"IF(INTRO!$E$39<>\"Non endémique\", \" \", IF(INTRO!$E$37=\"Non endémique\",\" \", IF(COUNTRY_INFO!B50=0,\" \",COUNTRY_INFO!B50)))","v":" "},{"$f":"IF(INTRO!$E$39<>\"Non endémique\", \" \", IF(INTRO!$E$37=\"Non endémique\",\" \", IF(COUNTRY_INFO!C50=0,\" \",COUNTRY_INFO!C50)))","v":" "},{"$f":"IF(INTRO!$E$39<>\"Non endémique\", 0, IF(INTRO!$E$37=\"Non endémique\",0,IF(COUNTRY_INFO!$H50=1,COUNTRY_INFO!E50,0)))","v":0},{"$f":"IF(INTRO!$E$39<>\"Non endémique\", 0, IF(INTRO!$E$37=\"Non endémique\",0,IF(COUNTRY_INFO!$H50=1,COUNTRY_INFO!F50,0)))","v":0},{"$f":"IF(INTRO!$E$39<>\"Non endémique\", 0, IF(INTRO!$E$37=\"Non endémique\",0,IF(COUNTRY_INFO!$H50=1,COUNTRY_INFO!G50,0)))","v":0},0,{"$f":"IF(INTRO!$E$39=\"Non endémique\",IF(INTRO!$E$37=\"Non endémique\",\"Non requis\",COUNTRY_INFO!P50),\"Traiter avec IVM\")","v":"Non requis"},0,0,null,0,0]
[{"$f":"IF(INTRO!$E$39<>\"Non endémique\", \" \", IF(INTRO!$E$37=\"Non endémique\",\" \", IF(COUNTRY_INFO!A51=0,\" \",COUNTRY_INFO!A51)))","v":" "},{"$f":"IF(INTRO!$E$39<>\"Non endémique\", \" \", IF(INTRO!$E$37=\"Non endémique\",\" \", IF(COUNTRY_INFO!B51=0,\" \",COUNTRY_INFO!B51)))","v":" "},{"$f":"IF(INTRO!$E$39<>\"Non endémique\", \" \", IF(INTRO!$E$37=\"Non endémique\",\" \", IF(COUNTRY_INFO!C51=0,\" \",COUNTRY_INFO!C51)))","v":" "},{"$f":"IF(INTRO!$E$39<>\"Non endémique\", 0, IF(INTRO!$E$37=\"Non endémique\",0,IF(COUNTRY_INFO!$H51=1,COUNTRY_INFO!E51,0)))","v":0},{"$f":"IF(INTRO!$E$39<>\"Non endémique\", 0, IF(INTRO!$E$37=\"Non endémique\",0,IF(COUNTRY_INFO!$H51=1,COUNTRY_INFO!F51,0)))","v":0},{"$f":"IF(INTRO!$E$39<>\"Non endémique\", 0, IF(INTRO!$E$37=\"Non endémique\",0,IF(COUNTRY_INFO!$H51=1,COUNTRY_INFO!G51,0)))","v":0},0,{"$f":"IF(INTRO!$E$39=\"Non endémique\",IF(INTRO!$E$37=\"Non endémique\",\"Non requis\",COUNTRY_INFO!P51),\"Traiter avec IVM\")","v":"Non requis"},0,0,null,0,0]
[{"$f":"IF(INTRO!$E$39<>\"Non endémique\", \" \", IF(INTRO!$E$37=\"Non endémique\",\" \", IF(COUNTRY_INFO!A52=0,\" \",COUNTRY_INFO!A52)))","v":" "},{"$f":"IF(INTRO!$E$39<>\"Non endémique\", \" \", IF(INTRO!$E$37=\"Non endémique\",\" \", IF(COUNTRY_INFO!B52=0,\" \",COUNTRY_INFO!B52)))","v":" "},{"$f":"IF(INTRO!$E$39<>\"Non endémique\", \" \", IF(INTRO!$E$37=\"Non endémique\",\" \", IF(COUNTRY_INFO!C52=0,\" \",COUNTRY_INFO!C52)))","v":" "},{"$f":"IF(INTRO!$E$39<>\"Non endémique\", 0, IF(INTRO!$E$37=\"Non endémique\",0,IF(COUNTRY_INFO!$H52=1,COUNTRY_INFO!E52,0)))","v":0},{"$f":"IF(INTRO!$E$39<>\"Non endémique\", 0, IF(INTRO!$E$37=\"Non endémique\",0,IF(COUNTRY_INFO!$H52=1,COUNTRY_INFO!F52,0)))","v":0},{"$f":"IF(INTRO!$E$39<>\"Non endémique\", 0, IF(INTRO!$E$37=\"Non endémique\",0,IF(COUNTRY_INFO!$H52=1,COUNTRY_INFO!G52,0)))","v":0},0,{"$f":"IF(INTRO!$E$39=\"Non endémique\",IF(INTRO!$E$37=\"Non endémique\",\"Non requis\",COUNTRY_INFO!P52),\"Traiter avec IVM\")","v":"Non requis"},0,0,null,0,0]
[{"$f":"IF(INTRO!$E$39<>\"Non endémique\", \" \", IF(INTRO!$E$37=\"Non endémique\",\" \", IF(COUNTRY_INFO!A53=0,\" \",COUNTRY_INFO!A53)))","v":" "},{"$f":"IF(INTRO!$E$39<>\"Non endémique\", \" \", IF(INTRO!$E$37=\"Non endémique\",\" \", IF(COUNTRY_INFO!B53=0,\" \",COUNTRY_INFO!B53)))","v":" "},{"$f":"IF(INTRO!$E$39<>\"Non endémique\", \" \", IF(INTRO!$E$37=\"Non endémique\",\" \", IF(COUNTRY_INFO!C53=0,\" \",COUNTRY_INFO!C53)))","v":" "},{"$f":"IF(INTRO!$E$39<>\"Non endémique\", 0, IF(INTRO!$E$37=\"Non endémique\",0,IF(COUNTRY_INFO!$H53=1,COUNTRY_INFO!E53,0)))","v":0},{"$f":"IF(INTRO!$E$39<>\"Non endémique\", 0, IF(INTRO!$E$37=\"Non endémique\",0,IF(COUNTRY_INFO!$H53=1,COUNTRY_INFO!F53,0)))","v":0},{"$f":"IF(INTRO!$E$39<>\"Non endémique\", 0, IF(INTRO!$E$37=\"Non endémique\",0,IF(COUNTRY_INFO!$H53=1,COUNTRY_INFO!G53,0)))","v":0},0,{"$f":"IF(INTRO!$E$39=\"Non endémique\",IF(INTRO!$E$37=\"Non endémique\",\"Non requis\",COUNTRY_INFO!P53),\"Traiter avec IVM\")","v":"Non requis"},0,0,null,0,0]
[{"$f":"IF(INTRO!$E$39<>\"Non endémique\", \" \", IF(INTRO!$E$37=\"Non endémique\",\" \", IF(COUNTRY_INFO!A54=0,\" \",COUNTRY_INFO!A54)))","v":" "},{"$f":"IF(INTRO!$E$39<>\"Non endémique\", \" \", IF(INTRO!$E$37=\"Non endémique\",\" \", IF(COUNTRY_INFO!B54=0,\" \",COUNTRY_INFO!B54)))","v":" "},{"$f":"IF(INTRO!$E$39<>\"Non endémique\", \" \", IF(INTRO!$E$37=\"Non endémique\",\" \", IF(COUNTRY_INFO!C54=0,\" \",COUNTRY_INFO!C54)))","v":" "},{"$f":"IF(INTRO!$E$39<>\"Non endémique\", 0, IF(INTRO!$E$37=\"Non endémique\",0,IF(COUNTRY_INFO!$H54=1,COUNTRY_INFO!E54,0)))","v":0},{"$f":"IF(INTRO!$E$39<>\"Non endémique\", 0, IF(INTRO!$E$37=\"Non endémique\",0,IF(COUNTRY_INFO!$H54=1,COUNTRY_INFO!F54,0)))","v":0},{"$f":"IF(INTRO!$E$39<>\"Non endémique\", 0, IF(INTRO!$E$37=\"Non endémique\",0,IF(COUNTRY_INFO!$H54=1,COUNTRY_INFO!G54,0)))","v":0},0,{"$f":"IF(INTRO!$E$39=\"Non endémique\",IF(INTRO!$E$37=\"Non endémique\",\"Non requis\",COUNTRY_INFO!P54),\"Traiter avec IVM\")","v":"Non requis"},0,0,null,0,0]
[{"$f":"IF(INTRO!$E$39<>\"Non endémique\", \" \", IF(INTRO!$E$37=\"Non endémique\",\" \", IF(COUNTRY_INFO!A55=0,\" \",COUNTRY_INFO!A55)))","v":" "},{"$f":"IF(INTRO!$E$39<>\"Non endémique\", \" \", IF(INTRO!$E$37=\"Non endémique\",\" \", IF(COUNTRY_INFO!B55=0,\" \",COUNTRY_INFO!B55)))","v":" "},{"$f":"IF(INTRO!$E$39<>\"Non endémique\", \" \", IF(INTRO!$E$37=\"Non endémique\",\" \", IF(COUNTRY_INFO!C55=0,\" \",COUNTRY_INFO!C55)))","v":" "},{"$f":"IF(INTRO!$E$39<>\"Non endémique\", 0, IF(INTRO!$E$37=\"Non endémique\",0,IF(COUNTRY_INFO!$H55=1,COUNTRY_INFO!E55,0)))","v":0},{"$f":"IF(INTRO!$E$39<>\"Non endémique\", 0, IF(INTRO!$E$37=\"Non endémique\",0,IF(COUNTRY_INFO!$H55=1,COUNTRY_INFO!F55,0)))","v":0},{"$f":"IF(INTRO!$E$39<>\"Non endémique\", 0, IF(INTRO!$E$37=\"Non endémique\",0,IF(COUNTRY_INFO!$H55=1,COUNTRY_INFO!G55,0)))","v":0},0,{"$f":"IF(INTRO!$E$39=\"Non endémique\",IF(INTRO!$E$37=\"Non endémique\",\"Non requis\",COUNTRY_INFO!P55),\"Traiter avec IVM\")","v":"Non requis"},0,0,null,0,0]
[{"$f":"IF(INTRO!$E$39<>\"Non endémique\", \" \", IF(INTRO!$E$37=\"Non endémique\",\" \", IF(COUNTRY_INFO!A56=0,\" \",COUNTRY_INFO!A56)))","v":" "},{"$f":"IF(INTRO!$E$39<>\"Non endémique\", \" \", IF(INTRO!$E$37=\"Non endémique\",\" \", IF(COUNTRY_INFO!B56=0,\" \",COUNTRY_INFO!B56)))","v":" "},{"$f":"IF(INTRO!$E$39<>\"Non endémique\", \" \", IF(INTRO!$E$37=\"Non endémique\",\" \", IF(COUNTRY_INFO!C56=0,\" \",COUNTRY_INFO!C56)))","v":" "},{"$f":"IF(INTRO!$E$39<>\"Non endémique\", 0, IF(INTRO!$E$37=\"Non endémique\",0,IF(COUNTRY_INFO!$H56=1,COUNTRY_INFO!E56,0)))","v":0},{"$f":"IF(INTRO!$E$39<>\"Non endémique\", 0, IF(INTRO!$E$37=\"Non endémique\",0,IF(COUNTRY_INFO!$H56=1,COUNTRY_INFO!F56,0)))","v":0},{"$f":"IF(INTRO!$E$39<>\"Non endémique\", 0, IF(INTRO!$E$37=\"Non endémique\",0,IF(COUNTRY_INFO!$H56=1,COUNTRY_INFO!G56,0)))","v":0},0,{"$f":"IF(INTRO!$E$39=\"Non endémique\",IF(INTRO!$E$37=\"Non endémique\",\"Non requis\",COUNTRY_INFO!P56),\"Traiter avec IVM\")","v":"Non requis"},0,0,null,0,0]
[{"$f":"IF(INTRO!$E$39<>\"Non endémique\", \" \", IF(INTRO!$E$37=\"Non endémique\",\" \", IF(COUNTRY_INFO!A57=0,\" \",COUNTRY_INFO!A57)))","v":" "},{"$f":"IF(INTRO!$E$39<>\"Non endémique\", \" \", IF(INTRO!$E$37=\"Non endémique\",\" \", IF(COUNTRY_INFO!B57=0,\" \",COUNTRY_INFO!B57)))","v":" "},{"$f":"IF(INTRO!$E$39<>\"Non endémique\", \" \", IF(INTRO!$E$37=\"Non endémique\",\" \", IF(COUNTRY_INFO!C57=0,\" \",COUNTRY_INFO!C57)))","v":" "},{"$f":"IF(INTRO!$E$39<>\"Non endémique\", 0, IF(INTRO!$E$37=\"Non endémique\",0,IF(COUNTRY_INFO!$H57=1,COUNTRY_INFO!E57,0)))","v":0},{"$f":"IF(INTRO!$E$39<>\"Non endémique\", 0, IF(INTRO!$E$37=\"Non endémique\",0,IF(COUNTRY_INFO!$H57=1,COUNTRY_INFO!F57,0)))","v":0},{"$f":"IF(INTRO!$E$39<>\"Non endémique\", 0, IF(INTRO!$E$37=\"Non endémique\",0,IF(COUNTRY_INFO!$H57=1,COUNTRY_INFO!G57,0)))","v":0},0,{"$f":"IF(INTRO!$E$39=\"Non endémique\",IF(INTRO!$E$37=\"Non endémique\",\"Non requis\",COUNTRY_INFO!P57),\"Traiter avec IVM\")","v":"Non requis"},0,0,null,0,0]
[{"$f":"IF(INTRO!$E$39<>\"Non endémique\", \" \", IF(INTRO!$E$37=\"Non endémique\",\" \", IF(COUNTRY_INFO!A58=0,\" \",COUNTRY_INFO!A58)))","v":" "},{"$f":"IF(INTRO!$E$39<>\"Non endémique\", \" \", IF(INTRO!$E$37=\"Non endémique\",\" \", IF(COUNTRY_INFO!B58=0,\" \",COUNTRY_INFO!B58)))","v":" "},{"$f":"IF(INTRO!$E$39<>\"Non endémique\", \" \", IF(INTRO!$E$37=\"Non endémique\",\" \", IF(COUNTRY_INFO!C58=0,\" \",COUNTRY_INFO!C58)))","v":" "},{"$f":"IF(INTRO!$E$39<>\"Non endémique\", 0, IF(INTRO!$E$37=\"Non endémique\",0,IF(COUNTRY_INFO!$H58=1,COUNTRY_INFO!E58,0)))","v":0},{"$f":"IF(INTRO!$E$39<>\"Non endémique\", 0, IF(INTRO!$E$37=\"Non endémique\",0,IF(COUNTRY_INFO!$H58=1,COUNTRY_INFO!F58,0)))","v":0},{"$f":"IF(INTRO!$E$39<>\"Non endémique\", 0, IF(INTRO!$E$37=\"Non endémique\",0,IF(COUNTRY_INFO!$H58=1,COUNTRY_INFO!G58,0)))","v":0},0,{"$f":"IF(INTRO!$E$39=\"Non endémique\",IF(INTRO!$E$37=\"Non endémique\",\"Non requis\",COUNTRY_INFO!P58),\"Traiter avec IVM\")","v":"Non requis"},0,0,null,0,0]
[{"$f":"IF(INTRO!$E$39<>\"Non endémique\", \" \", IF(INTRO!$E$37=\"Non endémique\",\" \", IF(COUNTRY_INFO!A59=0,\" \",COUNTRY_INFO!A59)))","v":" "},{"$f":"IF(INTRO!$E$39<>\"Non endémique\", \" \", IF(INTRO!$E$37=\"Non endémique\",\" \", IF(COUNTRY_INFO!B59=0,\" \",COUNTRY_INFO!B59)))","v":" "},{"$f":"IF(INTRO!$E$39<>\"Non endémique\", \" \", IF(INTRO!$E$37=\"Non endémique\",\" \", IF(COUNTRY_INFO!C59=0,\" \",COUNTRY_INFO!C59)))","v":" "},{"$f":"IF(INTRO!$E$39<>\"Non endémique\", 0, IF(INTRO!$E$37=\"Non endémique\",0,IF(COUNTRY_INFO!$H59=1,COUNTRY_INFO!E59,0)))","v":0},{"$f":"IF(INTRO!$E$39<>\"Non endémique\", 0, IF(INTRO!$E$37=\"Non endémique\",0,IF(COUNTRY_INFO!$H59=1,COUNTRY_INFO!F59,0)))","v":0},{"$f":"IF(INTRO!$E$39<>\"Non endémique\", 0, IF(INTRO!$E$37=\"Non endémique\",0,IF(COUNTRY_INFO!$H59=1,COUNTRY_INFO!G59,0)))","v":0},0,{"$f":"IF(INTRO!$E$39=\"Non endémique\",IF(INTRO!$E$37=\"Non endémique\",\"Non requis\",COUNTRY_INFO!P59),\"Traiter avec IVM\")","v":"Non requis"},0,0,null,0,0]
[{"$f":"IF(INTRO!$E$39<>\"Non endémique\", \" \", IF(INTRO!$E$37=\"Non endémique\",\" \", IF(COUNTRY_INFO!A60=0,\" \",COUNTRY_INFO!A60)))","v":" "},{"$f":"IF(INTRO!$E$39<>\"Non endémique\", \" \", IF(INTRO!$E$37=\"Non endémique\",\" \", IF(COUNTRY_INFO!B60=0,\" \",COUNTRY_INFO!B60)))","v":" "},{"$f":"IF(INTRO!$E$39<>\"Non endémique\", \" \", IF(INTRO!$E$37=\"Non endémique\",\" \", IF(COUNTRY_INFO!C60=0,\" \",COUNTRY_INFO!C60)))","v":" "},{"$f":"IF(INTRO!$E$39<>\"Non endémique\", 0, IF(INTRO!$E$37=\"Non endémique\",0,IF(COUNTRY_INFO!$H60=1,COUNTRY_INFO!E60,0)))","v":0},{"$f":"IF(INTRO!$E$39<>\"Non endémique\", 0, IF(INTRO!$E$37=\"Non endémique\",0,IF(COUNTRY_INFO!$H60=1,COUNTRY_INFO!F60,0)))","v":0},{"$f":"IF(INTRO!$E$39<>\"Non endémique\", 0, IF(INTRO!$E$37=\"Non endémique\",0,IF(COUNTRY_INFO!$H60=1,COUNTRY_INFO!G60,0)))","v":0},0,{"$f":"IF(INTRO!$E$39=\"Non endémique\",IF(INTRO!$E$37=\"Non endémique\",\"Non requis\",COUNTRY_INFO!P60),\"Traiter avec IVM\")","v":"Non requis"},0,0,null,0,0]
[{"$f":"IF(INTRO!$E$39<>\"Non endémique\", \" \", IF(INTRO!$E$37=\"Non endémique\",\" \", IF(COUNTRY_INFO!A61=0,\" \",COUNTRY_INFO!A61)))","v":" "},{"$f":"IF(INTRO!$E$39<>\"Non endémique\", \" \", IF(INTRO!$E$37=\"Non endémique\",\" \", IF(COUNTRY_INFO!B61=0,\" \",COUNTRY_INFO!B61)))","v":" "},{"$f":"IF(INTRO!$E$39<>\"Non endémique\", \" \", IF(INTRO!$E$37=\"Non endémique\",\" \", IF(COUNTRY_INFO!C61=0,\" \",COUNTRY_INFO!C61)))","v":" "},{"$f":"IF(INTRO!$E$39<>\"Non endémique\", 0, IF(INTRO!$E$37=\"Non endémique\",0,IF(COUNTRY_INFO!$H61=1,COUNTRY_INFO!E61,0)))","v":0},{"$f":"IF(INTRO!$E$39<>\"Non endémique\", 0, IF(INTRO!$E$37=\"Non endémique\",0,IF(COUNTRY_INFO!$H61=1,COUNTRY_INFO!F61,0)))","v":0},{"$f":"IF(INTRO!$E$39<>\"Non endémique\", 0, IF(INTRO!$E$37=\"Non endémique\",0,IF(COUNTRY_INFO!$H61=1,COUNTRY_INFO!G61,0)))","v":0},0,{"$f":"IF(INTRO!$E$39=\"Non endémique\",IF(INTRO!$E$37=\"Non endémique\",\"Non requis\",COUNTRY_INFO!P61),\"Traiter avec IVM\")","v":"Non requis"},0,0,null,0,0]
[{"$f":"IF(INTRO!$E$39<>\"Non endémique\", \" \", IF(INTRO!$E$37=\"Non endémique\",\" \", IF(COUNTRY_INFO!A62=0,\" \",COUNTRY_INFO!A62)))","v":" "},{"$f":"IF(INTRO!$E$39<>\"Non endémique\", \" \", IF(INTRO!$E$37=\"Non endémique\",\" \", IF(COUNTRY_INFO!B62=0,\" \",COUNTRY_INFO!B62)))","v":" "},{"$f":"IF(INTRO!$E$39<>\"Non endémique\", \" \", IF(INTRO!$E$37=\"Non endémique\",\" \", IF(COUNTRY_INFO!C62=0,\" \",COUNTRY_INFO!C62)))","v":" "},{"$f":"IF(INTRO!$E$39<>\"Non endémique\", 0, IF(INTRO!$E$37=\"Non endémique\",0,IF(COUNTRY_INFO!$H62=1,COUNTRY_INFO!E62,0)))","v":0},{"$f":"IF(INTRO!$E$39<>\"Non endémique\", 0, IF(INTRO!$E$37=\"Non endémique\",0,IF(COUNTRY_INFO!$H62=1,COUNTRY_INFO!F62,0)))","v":0},{"$f":"IF(INTRO!$E$39<>\"Non endémique\", 0, IF(INTRO!$E$37=\"Non endémique\",0,IF(COUNTRY_INFO!$H62=1,COUNTRY_INFO!G62,0)))","v":0},0,{"$f":"IF(INTRO!$E$39=\"Non endémique\",IF(INTRO!$E$37=\"Non endémique\",\"Non requis\",COUNTRY_INFO!P62),\"Traiter avec IVM\")","v":"Non requis"},0,0,null,0,0]
[{"$f":"IF(INTRO!$E$39<>\"Non endémique\", \" \", IF(INTRO!$E$37=\"Non endémique\",\" \", IF(COUNTRY_INFO!A63=0,\" \",COUNTRY_INFO!A63)))","v":" "},{"$f":"IF(INTRO!$E$39<>\"Non endémique\", \" \", IF(INTRO!$E$37=\"Non endémique\",\" \", IF(COUNTRY_INFO!B63=0,\" \",COUNTRY_INFO!B63)))","v":" "},{"$f":"IF(INTRO!$E$39<>\"Non endémique\", \" \", IF(INTRO!$E$37=\"Non endémique\",\" \", IF(COUNTRY_INFO!C63=0,\" \",COUNTRY_INFO!C63)))","v":" "},{"$f":"IF(INTRO!$E$39<>\"Non endémique\", 0, IF(INTRO!$E$37=\"Non endémique\",0,IF(COUNTRY_INFO!$H63=1,COUNTRY_INFO!E63,0)))","v":0},{"$f":"IF(INTRO!$E$39<>\"Non endémique\", 0, IF(INTRO!$E$37=\"Non endémique\",0,IF(COUNTRY_INFO!$H63=1,COUNTRY_INFO!F63,0)))","v":0},{"$f":"IF(INTRO!$E$39<>\"Non endémique\", 0, IF(INTRO!$E$37=\"Non endémique\",0,IF(COUNTRY_INFO!$H63=1,COUNTRY_INFO!G63,0)))","v":0},0,{"$f":"IF(INTRO!$E$39=\"Non endémique\",IF(INTRO!$E$37=\"Non endémique\",\"Non requis\",COUNTRY_INFO!P63),\"Traiter avec IVM\")","v":"Non requis"},0,0,null,0,0]
[{"$f":"IF(INTRO!$E$39<>\"Non endémique\", \" \", IF(INTRO!$E$37=\"Non endémique\",\" \", IF(COUNTRY_INFO!A64=0,\" \",COUNTRY_INFO!A64)))","v":" "},{"$f":"IF(INTRO!$E$39<>\"Non endémique\", \" \", IF(INTRO!$E$37=\"Non endémique\",\" \", IF(COUNTRY_INFO!B64=0,\" \",COUNTRY_INFO!B64)))","v":" "},{"$f":"IF(INTRO!$E$39<>\"Non endémique\", \" \", IF(INTRO!$E$37=\"Non endémique\",\" \", IF(COUNTRY_INFO!C64=0,\" \",COUNTRY_INFO!C64)))","v":" "},{"$f":"IF(INTRO!$E$39<>\"Non endémique\", 0, IF(INTRO!$E$37=\"Non endémique\",0,IF(COUNTRY_INFO!$H64=1,COUNTRY_INFO!E64,0)))","v":0},{"$f":"IF(INTRO!$E$39<>\"Non endémique\", 0, IF(INTRO!$E$37=\"Non endémique\",0,IF(COUNTRY_INFO!$H64=1,COUNTRY_INFO!F64,0)))","v":0},{"$f":"IF(INTRO!$E$39<>\"Non endémique\", 0, IF(INTRO!$E$37=\"Non endémique\",0,IF(COUNTRY_INFO!$H64=1,COUNTRY_INFO!G64,0)))","v":0},0,{"$f":"IF(INTRO!$E$39=\"Non endémique\",IF(INTRO!$E$37=\"Non endémique\",\"Non requis\",COUNTRY_INFO!P64),\"Traiter avec IVM\")","v":"Non requis"},0,0,null,0,0]
[{"$f":"IF(INTRO!$E$39<>\"Non endémique\", \" \", IF(INTRO!$E$37=\"Non endémique\",\" \", IF(COUNTRY_INFO!A65=0,\" \",COUNTRY_INFO!A65)))","v":" "},{"$f":"IF(INTRO!$E$39<>\"Non endémique\", \" \", IF(INTRO!$E$37=\"Non endémique\",\" \", IF(COUNTRY_INFO!B65=0,\" \",COUNTRY_INFO!B65)))","v":" "},{"$f":"IF(INTRO!$E$39<>\"Non endémique\", \" \", IF(INTRO!$E$37=\"Non endémique\",\" \", IF(COUNTRY_INFO!C65=0,\" \",COUNTRY_INFO!C65)))","v":" "},{"$f":"IF(INTRO!$E$39<>\"Non endémique\", 0, IF(INTRO!$E$37=\"Non endémique\",0,IF(COUNTRY_INFO!$H65=1,COUNTRY_INFO!E65,0)))","v":0},{"$f":"IF(INTRO!$E$39<>\"Non endémique\", 0, IF(INTRO!$E$37=\"Non endémique\",0,IF(COUNTRY_INFO!$H65=1,COUNTRY_INFO!F65,0)))","v":0},{"$f":"IF(INTRO!$E$39<>\"Non endémique\", 0, IF(INTRO!$E$37=\"Non endémique\",0,IF(COUNTRY_INFO!$H65=1,COUNTRY_INFO!G65,0)))","v":0},0,{"$f":"IF(INTRO!$E$39=\"Non endémique\",IF(INTRO!$E$37=\"Non endémique\",\"Non requis\",COUNTRY_INFO!P65),\"Traiter avec IVM\")","v":"Non requis"},0,0,null,0,0]

{"sheet":"ALB_MBD","index":3,"n_rows":65,"n_cols":27,"rows_kept":65,"cut":false,"hidden":false,"merged":[[5,24,5,26],[6,24,7,24],[6,21,7,21],[6,18,7,18],[6,19,7,19],[6,23,7,23],[6,25,7,25],[6,26,7,26],[6,0,7,0],[6,1,7,1],[6,2,7,2],[6,3,7,3],[5,18,5,23],[6,4,7,4],[6,5,7,5],[6,6,7,6],[6,7,7,7],[6,14,6,17],[5,9,7,9],[6,10,6,13],[5,10,5,17],[5,8,7,8],[6,20,7,20],[6,22,7,22],[3,0,3,2],[3,6,3,7],[5,0,5,2],[5,6,5,7],[5,3,5,5]]}
["Albendazole (ALB) et Mebendazole (MBD)"]
["Structure administrative, population ciblée par groupe d'âge, plan de traitement et information sur les comprimés"]
[]
["TOTAL",null,null,{"$f":"SUM(D$9:D$1000)","v":496858},{"$f":"SUM(E$9:E$1000)","v":816258},{"$f":"SUM(F$9:F$1000)","v":1313116},null,null,{"$f":"SUM(I$9:I$1000)","v":0},null,{"$f":"SUM(K$9:K$1000)","v":36462},{"$f":"SUM(L$9:L$1000)","v":59902},{"$f":"SUM(M$9:M$1000)","v":0},{"$f":"SUM(N$9:N$1000)","v":96364},{"$f":"SUM(O$9:O$1000)","v":0},{"$f":"SUM(P$9:P$1000)","v":0},0,0,0,0,0,0,59902,301,0,0,0]
[]
["Structure administrative du pays",null,null,"Population nécessitant un traitement avec ALB/MBD",null,null,"Plan de traitement",null,"Population couverte par le PEFL avec ALB","Médicament choisi pour le traitement des STH","Population cible",null,null,null,null,null,null,null,"Albendazole (ALB)",null,null,null,null,null,"Mebendazole (MBD)"]
["Pays","Région/Département","District","EAPréS","EAS","Total","FL","STH",null,null,"STH (ALB)",null,null,null,"STH (MBD)",null,null,null,"Reste en stock (FL)","Comprimés devant être fournis (FL)","Flacons (400mg)\n200 comprimés (FL)","Reste en stock (STH)","Comprimés devant être fournis pour EAS (STH)","Flacons (400mg)\n200 comprimés (STH)","Reste en stock","Comprimés devant être fournis pour EAS","Flacons (500mg)\n150 comprimés"]
[null,null,null,null,null,null,null,null,null,null,"EAPréS","EAS","Autres","Total","EAPréS","EAS","Autres","Total"]
[{"$f":"IF(AND(INTRO!$E$37=\"Non endémique\",INTRO!$E$41=\"Non endémique\"),\" \",IF(COUNTRY_INFO!A9=0,\" \",COUNTRY_INFO!A9))","v":"Mauritania"},{"$f":"IF(AND(INTRO!$E$37=\"Non endémique\",INTRO!$E$41=\"Non endémique\"),\" \",IF(COUNTRY_INFO!B9=0,\" \",COUNTRY_INFO!B9))","v":"ADRAR"},{"$f":"IF(AND(INTRO!$E$37=\"Non endémique\",INTRO!$E$41=\"Non endémique\"),\" \",IF(COUNTRY_INFO!C9=0,\" \",COUNTRY_INFO!C9))","v":"Aoujeft"},{"$f":"IF(AND(INTRO!$E$37=\"Non endémique\",INTRO!$E$41=\"Non endémique\"),0,IF(AND(OR(COUNTRY_INFO!$H9=0,COUNTRY_INFO!$H9=4,COUNTRY_INFO!$H9=99),OR(COUNTRY_INFO!$J9=0,COUNTRY_INFO!$J9=4)),0,COUNTRY_INFO!$E9))","v":2004},{"$f":"IF(AND(INTRO!$E$37=\"Non endémique\",INTRO!$E$41=\"Non endémique\"),0,IF(AND(OR(COUNTRY_INFO!$H9=0,COUNTRY_INFO!$H9=4,COUNTRY_INFO!$H9=99),OR(COUNTRY_INFO!$J9=0,COUNTRY_INFO!$J9=4)),0,COUNTRY_INFO!$F9))","v":3292},{"$f":"SUM(D9:E9)","v":5296},{"$f":"IF(AND(INTRO!$E$37=\"Non endémique\",INTRO!$E$41=\"Non endémique\"),0,COUNTRY_INFO!P9)","v":0},{"$f":"IF(AND(INTRO!$E$37=\"Non endémique\",INTRO!$E$41=\"Non endémique\"),0,COUNTRY_INFO!R9)","v":0},{"$f":"IF(INTRO!$E$39=\"Non endémique\",IF($G9=1,DEC!I9,0),IF($G9=1,IVM!G9,0))","v":0},null,{"$f":"IF($J9=\"ALB\", IF(INTRO!$E$39=\"Non endémique\",IF($H9<>0,$D9*($H9-$G9),0),$D9*$H9), 0)","v":0},{"$f":"IF($J9=\"ALB\", IF($H9<>0, IF($I9=0, $E9*$H9, $E9*($H9-$G9)),0), 0)","v":0},null,{"$f":"SUM(K9:M9)","v":0},{"$f":"IF($J9=\"MBD\", IF(INTRO!$E$39=\"Non endémique\",IF($H9<>0,$D9*($H9-$G9),0),$D9*$H9),0)","v":0},{"$f":"IF($J9=\"MBD\", IF($H9<>0,IF($I9=0, $E9*$H9, $E9*($H9-$G9)),0), 0 )","v":0},null,{"$f":"SUM(O9:Q9)","v":0},null,{"$f":"IF($I9>$S9, $I9-$S9,0)","v":0},{"$f":"ROUNDUP($I9/200,0)","v":0},null,{"$f":"IF($L9>$V9,$L9-$V9,0)","v":0},{"$f":"ROUNDUP($L9/200,0)","v":0},null,{"$f":"IF($P9>$Y9,$P9-$Y9,0)","v":0},{"$f":"ROUNDUP($P9/150,0)","v":0}]
[{"$f":"IF(AND(INTRO!$E$37=\"Non endémique\",INTRO!$E$41=\"Non endémique\"),\" \",IF(COUNTRY_INFO!A10=0,\" \",COUNTRY_INFO!A10))","v":"Mauritania"},{"$f":"IF(AND(INTRO!$E$37=\"Non endémique\",INTRO!$E$41=\"Non endémique\"),\" \",IF(COUNTRY_INFO!B10=0,\" \",COUNTRY_INFO!B10))","v":"ADRAR"},{"$f":"IF(AND(INTRO!$E$37=\"Non endémique\",INTRO!$E$41=\"Non endémique\"),\" \",IF(COUNTRY_INFO!C10=0,\" \",COUNTRY_INFO!C10))","v":"Atar"},{"$f":"IF(AND(INTRO!$E$37=\"Non endémique\",INTRO!$E$41=\"Non endémique\"),0,IF(AND(OR(COUNTRY_INFO!$H10=0,COUNTRY_INFO!$H10=4,COUNTRY_INFO!$H10=99),OR(COUNTRY_INFO!$J10=0,COUNTRY_INFO!$J10=4)),0,COUNTRY_INFO!$E10))","v":5994},{"$f":"IF(AND(INTRO!$E$37=\"Non endémique\",INTRO!$E$41=\"Non endémique\"),0,IF(AND(OR(COUNTRY_INFO!$H10=0,COUNTRY_INFO!$H10=4,COUNTRY_INFO!$H10=99),OR(COUNTRY_INFO!$J10=0,COUNTRY_INFO!$J10=4)),0,COUNTRY_INFO!$F10))","v":9847},15841,{"$f":"IF(AND(INTRO!$E$37=\"Non endémique\",INTRO!$E$41=\"Non endémique\"),0,COUNTRY_INFO!P10)","v":0},{"$f":"IF(AND(INTRO!$E$37=\"Non endémique\",INTRO!$E$41=\"Non endémique\"),0,COUNTRY_INFO!R10)","v":0},{"$f":"IF(INTRO!$E$39=\"Non endémique\",IF($G10=1,DEC!I10,0),IF($G10=1,IVM!G10,0))","v":0},null,{"$f":"IF($J10=\"ALB\", IF(INTRO!$E$39=\"Non endémique\",IF($H10<>0,$D10*($H10-$G10),0),$D10*$H10), 0)","v":0},0,null,0,{"$f":"IF($J10=\"MBD\", IF(INTRO!$E$39=\"Non endémique\",IF($H10<>0,$D10*($H10-$G10),0),$D10*$H10),0)","v":0},0,null,0,null,0,0,null,0,0,null,0,0]
[{"$f":"IF(AND(INTRO!$E$37=\"Non endémique\",INTRO!$E$41=\"Non endémique\"),\" \",IF(COUNTRY_INFO!A11=0,\" \",COUNTRY_INFO!A11))","v":"Mauritania"},{"$f":"IF(AND(INTRO!$E$37=\"Non endémique\",INTRO!$E$41=\"Non endémique\"),\" \",IF(COUNTRY_INFO!B11=0,\" \",COUNTRY_INFO!B11))","v":"ADRAR"},{"$f":"IF(AND(INTRO!$E$37=\"Non endémique\",INTRO!$E$41=\"Non endémique\"),\" \",IF(COUNTRY_INFO!C11=0,\" \",COUNTRY_INFO!C11))","v":"Chinguitty"},{"$f":"IF(AND(INTRO!$E$37=\"Non endémique\",INTRO!$E$41=\"Non endémique\"),0,IF(AND(OR(COUNTRY_INFO!$H11=0,COUNTRY_INFO!$H11=4,COUNTRY_INFO!$H11=99),OR(COUNTRY_INFO!$J11=0,COUNTRY_INFO!$J11=4)),0,COUNTRY_INFO!$E11))","v":1050},{"$f":"IF(AND(INTRO!$E$37=\"Non endémique\",INTRO!$E$41=\"Non endémique\"),0,IF(AND(OR(COUNTRY_INFO!$H11=0,COUNTRY_INFO!$H11=4,COUNTRY_INFO!$H11=99),OR(COUNTRY_INFO!$J11=0,COUNTRY_INFO!$J11=4)),0,COUNTRY_INFO!$F11))","v":1725},2775,{"$f":"IF(AND(INTRO!$E$37=\"Non endémique\",INTRO!$E$41=\"Non endémique\"),0,COUNTRY_INFO!P11)","v":0},{"$f":"IF(AND(INTRO!$E$37=\"Non endémique\",INTRO!$E$41=\"Non endémique\"),0,COUNTRY_INFO!R11)","v":0},{"$f":"IF(INTRO!$E$39=\"Non endémique\",IF($G11=1,DEC!I11,0),IF($G11=1,IVM!G11,0))","v":0},null,{"$f":"IF($J11=\"ALB\", IF(INTRO!$E$39=\"Non endémique\",IF($H11<>0,$D11*($H11-$G11),0),$D11*$H11), 0)","v":0},0,null,0,{"$f":"IF($J11=\"MBD\", IF(INTRO!$E$39=\"Non endémique\",IF($H11<>0,$D11*($H11-$G11),0),$D11*$H11),0)","v":0},0,null,0,null,0,0,null,0,0,null,0,0]
[{"$f":"IF(AND(INTRO!$E$37=\"Non endémique\",INTRO!$E$41=\"Non endémique\"),\" \",IF(COUNTRY_INFO!A12=0,\" \",COUNTRY_INFO!A12))","v":"Mauritania"},{"$f":"IF(AND(INTRO!$E$37=\"Non endémique\",INTRO!$E$41=\"Non endémique\"),\" \",IF(COUNTRY_INFO!B12=0,\" \",COUNTRY_INFO!B12))","v":"ADRAR"},{"$f":"IF(AND(INTRO!$E$37=\"Non endémique\",INTRO!$E$41=\"Non endémique\"),\" \",IF(COUNTRY_INFO!C12=0,\" \",COUNTRY_INFO!C12))","v":"Ouadane"},{"$f":"IF(AND(INTRO!$E$37=\"Non endémique\",INTRO!$E$41=\"Non endémique\"),0,IF(AND(OR(COUNTRY_INFO!$H12=0,COUNTRY_INFO!$H12=4,COUNTRY_INFO!$H12=99),OR(COUNTRY_INFO!$J12=0,COUNTRY_INFO!$J12=4)),0,COUNTRY_INFO!$E12))","v":613},{"$f":"IF(AND(INTRO!$E$37=\"Non endémique\",INTRO!$E$41=\"Non endémique\"),0,IF(AND(OR(COUNTRY_INFO!$H12=0,COUNTRY_INFO!$H12=4,COUNTRY_INFO!$H12=99),OR(COUNTRY_INFO!$J12=0,COUNTRY_INFO!$J12=4)),0,COUNTRY_INFO!$F12))","v":1006},1619,{"$f":"IF(AND(INTRO!$E$37=\"Non endémique\",INTRO!$E$41=\"Non endémique\"),0,COUNTRY_INFO!P12)","v":0},{"$f":"IF(AND(INTRO!$E$37=\"Non endémique\",INTRO!$E$41=\"Non endémique\"),0,COUNTRY_INFO!R12)","v":0},{"$f":"IF(INTRO!$E$39=\"Non endémique\",IF($G12=1,DEC!I12,0),IF($G12=1,IVM!G12,0))","v":0},null,{"$f":"IF($J12=\"ALB\", IF(INTRO!$E$39=\"Non endémique\",IF($H12<>0,$D12*($H12-$G12),0),$D12*$H12), 0)","v":0},0,null,0,{"$f":"IF($J12=\"MBD\", IF(INTRO!$E$39=\"Non endémique\",IF($H12<>0,$D12*($H12-$G12),0),$D12*$H12),0)","v":0},0,null,0,null,0,0,null,0,0,null,0,0]
[{"$f":"IF(AND(INTRO!$E$37=\"Non endémique\",INTRO!$E$41=\"Non endémique\"),\" \",IF(COUNTRY_INFO!A13=0,\" \",COUNTRY_INFO!A13))","v":"Mauritania"},{"$f":"IF(AND(INTRO!$E$37=\"Non endémique\",INTRO!$E$41=\"Non endémique\"),\" \",IF(COUNTRY_INFO!B13=0,\" \",COUNTRY_INFO!B13))","v":"ASSABA"},{"$f":"IF(AND(INTRO!$E$37=\"Non endémique\",INTRO!$E$41=\"Non endémique\"),\" \",IF(COUNTRY_INFO!C13=0,\" \",COUNTRY_INFO!C13))","v":"Barkéol"},{"$f":"IF(AND(INTRO!$E$37=\"Non endémique\",INTRO!$E$41=\"Non endémique\"),0,IF(AND(OR(COUNTRY_INFO!$H13=0,COUNTRY_INFO!$H13=4,COUNTRY_INFO!$H13=99),OR(COUNTRY_INFO!$J13=0,COUNTRY_INFO!$J13=4)),0,COUNTRY_INFO!$E13))","v":12318},{"$f":"IF(AND(INTRO!$E$37=\"Non endémique\",INTRO!$E$41=\"Non endémique\"),0,IF(AND(OR(COUNTRY_INFO!$H13=0,COUNTRY_INFO!$H13=4,COUNTRY_INFO!$H13=99),OR(COUNTRY_INFO!$J13=0,COUNTRY_INFO!$J13=4)),0,COUNTRY_INFO!$F13))","v":20237},32555,{"$f":"IF(AND(INTRO!$E$37=\"Non endémique\",INTRO!$E$41=\"Non endémique\"),0,COUNTRY_INFO!P13)","v":0},{"$f":"IF(AND(INTRO!$E$37=\"Non endémique\",INTRO!$E$41=\"Non endémique\"),0,COUNTRY_INFO!R13)","v":0},{"$f":"IF(INTRO!$E$39=\"Non endémique\",IF($G13=1,DEC!I13,0),IF($G13=1,IVM!G13,0))","v":0},null,{"$f":"IF($J13=\"ALB\", IF(INTRO!$E$39=\"Non endémique\",IF($H13<>0,$D13*($H13-$G13),0),$D13*$H13), 0)","v":0},0,null,0,{"$f":"IF($J13=\"MBD\", IF(INTRO!$E$39=\"Non endémique\",IF($H13<>0,$D13*($H13-$G13),0),$D13*$H13),0)","v":0},0,null,0,null,0,0,null,0,0,null,0,0]
[{"$f":"IF(AND(INTRO!$E$37=\"Non endémique\",INTRO!$E$41=\"Non endémique\"),\" \",IF(COUNTRY_INFO!A14=0,\" \",COUNTRY_INFO!A14))","v":"Mauritania"},{"$f":"IF(AND(INTRO!$E$37=\"Non endémique\",INTRO!$E$41=\"Non endémique\"),\" \",IF(COUNTRY_INFO!B14=0,\" \",COUNTRY_INFO!B14))","v":"ASSABA"},{"$f":"IF(AND(INTRO!$E$37=\"Non endémique\",INTRO!$E$41=\"Non endémique\"),\" \",IF(COUNTRY_INFO!C14=0,\" \",COUNTRY_INFO!C14))","v":"Boumdeid"},{"$f":"IF(AND(INTRO!$E$37=\"Non endémique\",INTRO!$E$41=\"Non endémique\"),0,IF(AND(OR(COUNTRY_INFO!$H14=0,COUNTRY_INFO!$H14=4,COUNTRY_INFO!$H14=99),OR(COUNTRY_INFO!$J14=0,COUNTRY_INFO!$J14=4)),0,COUNTRY_INFO!$E14))","v":1221},{"$f":"IF(AND(INTRO!$E$37=\"Non endémique\",INTRO!$E$41=\"Non endémique\"),0,IF(AND(OR(COUNTRY_INFO!$H14=0,COUNTRY_INFO!$H14=4,COUNTRY_INFO!$H14=99),OR(COUNTRY_INFO!$J14=0,COUNTRY_INFO!$J14=4)),0,COUNTRY_INFO!$F14))","v":2005},3226,{"$f":"IF(AND(INTRO!$E$37=\"Non endémique\",INTRO!$E$41=\"Non endémique\"),0,COUNTRY_INFO!P14)","v":0},{"$f":"IF(AND(INTRO!$E$37=\"Non endémique\",INTRO!$E$41=\"Non endémique\"),0,COUNTRY_INFO!R14)","v":0},{"$f":"IF(INTRO!$E$39=\"Non endémique\",IF($G14=1,DEC!I14,0),IF($G14=1,IVM!G14,0))","v":0},null,{"$f":"IF($J14=\"ALB\", IF(INTRO!$E$39=\"Non endémique\",IF($H14<>0,$D14*($H14-$G14),0),$D14*$H14), 0)","v":0},0,null,0,{"$f":"IF($J14=\"MBD\", IF(INTRO!$E$39=\"Non endémique\",IF($H14<>0,$D14*($H14-$G14),0),$D14*$H14),0)","v":0},0,null,0,null,0,0,null,0,0,null,0,0]
[{"$f":"IF(AND(INTRO!$E$37=\"Non endémique\",INTRO!$E$41=\"Non endémique\"),\" \",IF(COUNTRY_INFO!A15=0,\" \",COUNTRY_INFO!A15))","v":"Mauritania"},{"$f":"IF(AND(INTRO!$E$37=\"Non endémique\",INTRO!$E$41=\"Non endémique\"),\" \",IF(COUNTRY_INFO!B15=0,\" \",COUNTRY_INFO!B15))","v":"ASSABA"},{"$f":"IF(AND(INTRO!$E$37=\"Non endémique\",INTRO!$E$41=\"Non endémique\"),\" \",IF(COUNTRY_INFO!C15=0,\" \",COUNTRY_INFO!C15))","v":"Guérrou"},{"$f":"IF(AND(INTRO!$E$37=\"Non endémique\",INTRO!$E$41=\"Non endémique\"),0,IF(AND(OR(COUNTRY_INFO!$H15=0,COUNTRY_INFO!$H15=4,COUNTRY_INFO!$H15=99),OR(COUNTRY_INFO!$J15=0,COUNTRY_INFO!$J15=4)),0,COUNTRY_INFO!$E15))","v":6918},{"$f":"IF(AND(INTRO!$E$37=\"Non endémique\",INTRO!$E$41=\"Non endémique\"),0,IF(AND(OR(COUNTRY_INFO!$H15=0,COUNTRY_INFO!$H15=4,COUNTRY_INFO!$H15=99),OR(COUNTRY_INFO!$J15=0,COUNTRY_INFO!$J15=4)),0,COUNTRY_INFO!$F15))","v":11365},18283,{"$f":"IF(AND(INTRO!$E$37=\"Non endémique\",INTRO!$E$41=\"Non endémique\"),0,COUNTRY_INFO!P15)","v":0},{"$f":"IF(AND(INTRO!$E$37=\"Non endémique\",INTRO!$E$41=\"Non endémique\"),0,COUNTRY_INFO!R15)","v":0},{"$f":"IF(INTRO!$E$39=\"Non endémique\",IF($G15=1,DEC!I15,0),IF($G15=1,IVM!G15,0))","v":0},null,{"$f":"IF($J15=\"ALB\", IF(INTRO!$E$39=\"Non endémique\",IF($H15<>0,$D15*($H15-$G15),0),$D15*$H15), 0)","v":0},0,null,0,{"$f":"IF($J15=\"MBD\", IF(INTRO!$E$39=\"Non endémique\",IF($H15<>0,$D15*($H15-$G15),0),$D15*$H15),0)","v":0},0,null,0,null,0,0,null,0,0,null,0,0]
[{"$f":"IF(AND(INTRO!$E$37=\"Non endémique\",INTRO!$E$41=\"Non endémique\"),\" \",IF(COUNTRY_INFO!A16=0,\" \",COUNTRY_INFO!A16))","v":"Mauritania"},{"$f":"IF(AND(INTRO!$E$37=\"Non endémique\",INTRO!$E$41=\"Non endémique\"),\" \",IF(COUNTRY_INFO!B16=0,\" \",COUNTRY_INFO!B16))","v":"ASSABA"},{"$f":"IF(AND(INTRO!$E$37=\"Non endémique\",INTRO!$E$41=\"Non endémique\"),\" \",IF(COUNTRY_INFO!C16=0,\" \",COUNTRY_INFO!C16))","v":"Kankossa"},{"$f":"IF(AND(INTRO!$E$37=\"Non endémique\",INTRO!$E$41=\"Non endémique\"),0,IF(AND(OR(COUNTRY_INFO!$H16=0,COUNTRY_INFO!$H16=4,COUNTRY_INFO!$H16=99),OR(COUNTRY_INFO!$J16=0,COUNTRY_INFO!$J16=4)),0,COUNTRY_INFO!$E16))","v":12718},{"$f":"IF(AND(INTRO!$E$37=\"Non endémique\",INTRO!$E$41=\"Non endémique\"),0,IF(AND(OR(COUNTRY_INFO!$H16=0,COUNTRY_INFO!$H16=4,COUNTRY_INFO!$H16=99),OR(COUNTRY_INFO!$J16=0,COUNTRY_INFO!$J16=4)),0,COUNTRY_INFO!$F16))","v":20894},33612,{"$f":"IF(AND(INTRO!$E$37=\"Non endémique\",INTRO!$E$41=\"Non endémique\"),0,COUNTRY_INFO!P16)","v":0},{"$f":"IF(AND(INTRO!$E$37=\"Non endémique\",INTRO!$E$41=\"Non endémique\"),0,COUNTRY_INFO!R16)","v":0},{"$f":"IF(INTRO!$E$39=\"Non endémique\",IF($G16=1,DEC!I16,0),IF($G16=1,IVM!G16,0))","v":0},null,{"$f":"IF($J16=\"ALB\", IF(INTRO!$E$39=\"Non endémique\",IF($H16<>0,$D16*($H16-$G16),0),$D16*$H16), 0)","v":0},0,null,0,{"$f":"IF($J16=\"MBD\", IF(INTRO!$E$39=\"Non endémique\",IF($H16<>0,$D16*($H16-$G16),0),$D16*$H16),0)","v":0},0,null,0,null,0,0,null,0,0,null,0,0]
[{"$f":"IF(AND(INTRO!$E$37=\"Non endémique\",INTRO!$E$41=\"Non endémique\"),\" \",IF(COUNTRY_INFO!A17=0,\" \",COUNTRY_INFO!A17))","v":"Mauritania"},{"$f":"IF(AND(INTRO!$E$37=\"Non endémique\",INTRO!$E$41=\"Non endémique\"),\" \",IF(COUNTRY_INFO!B17=0,\" \",COUNTRY_INFO!B17))","v":"ASSABA"},{"$f":"IF(AND(INTRO!$E$37=\"Non endémique\",INTRO!$E$41=\"Non endémique\"),\" \",IF(COUNTRY_INFO!C17=0,\" \",COUNTRY_INFO!C17))","v":"Kiffa"},{"$f":"IF(AND(INTRO!$E$37=\"Non endémique\",INTRO!$E$41=\"Non endémique\"),0,IF(AND(OR(COUNTRY_INFO!$H17=0,COUNTRY_INFO!$H17=4,COUNTRY_INFO!$H17=99),OR(COUNTRY_INFO!$J17=0,COUNTRY_INFO!$J17=4)),0,COUNTRY_INFO!$E17))","v":17069},{"$f":"IF(AND(INTRO!$E$37=\"Non endémique\",INTRO!$E$41=\"Non endémique\"),0,IF(AND(OR(COUNTRY_INFO!$H17=0,COUNTRY_INFO!$H17=4,COUNTRY_INFO!$H17=99),OR(COUNTRY_INFO!$J17=0,COUNTRY_INFO!$J17=4)),0,COUNTRY_INFO!$F17))","v":28042},45111,{"$f":"IF(AND(INTRO!$E$37=\"Non endémique\",INTRO!$E$41=\"Non endémique\"),0,COUNTRY_INFO!P17)","v":0},{"$f":"IF(AND(INTRO!$E$37=\"Non endémique\",INTRO!$E$41=\"Non endémique\"),0,COUNTRY_INFO!R17)","v":0},{"$f":"IF(INTRO!$E$39=\"Non endémique\",IF($G17=1,DEC!I17,0),IF($G17=1,IVM!G17,0))","v":0},null,{"$f":"IF($J17=\"ALB\", IF(INTRO!$E$39=\"Non endémique\",IF($H17<>0,$D17*($H17-$G17),0),$D17*$H17), 0)","v":0},0,null,0,{"$f":"IF($J17=\"MBD\", IF(INTRO!$E$39=\"Non endémique\",IF($H17<>0,$D17*($H17-$G17),0),$D17*$H17),0)","v":0},0,null,0,null,0,0,null,0,0,null,0,0]
[{"$f":"IF(AND(INTRO!$E$37=\"Non endémique\",INTRO!$E$41=\"Non endémique\"),\" \",IF(COUNTRY_INFO!A18=0,\" \",COUNTRY_INFO!A18))","v":"Mauritania"},{"$f":"IF(AND(INTRO!$E$37=\"Non endémique\",INTRO!$E$41=\"Non endémique\"),\" \",IF(COUNTRY_INFO!B18=0,\" \",COUNTRY_INFO!B18))","v":"BRAKNA"},{"$f":"IF(AND(INTRO!$E$37=\"Non endémique\",INTRO!$E$41=\"Non endémique\"),\" \",IF(COUNTRY_INFO!C18=0,\" \",COUNTRY_INFO!C18))","v":"Aleg"},{"$f":"IF(AND(INTRO!$E$37=\"Non endémique\",INTRO!$E$41=\"Non endémique\"),0,IF(AND(OR(COUNTRY_INFO!$H18=0,COUNTRY_INFO!$H18=4,COUNTRY_INFO!$H18=99),OR(COUNTRY_INFO!$J18=0,COUNTRY_INFO!$J18=4)),0,COUNTRY_INFO!$E18))","v":15650},{"$f":"IF(AND(INTRO!$E$37=\"Non endémique\",INTRO!$E$41=\"Non endémique\"),0,IF(AND(OR(COUNTRY_INFO!$H18=0,COUNTRY_INFO!$H18=4,COUNTRY_INFO!$H18=99),OR(COUNTRY_INFO!$J18=0,COUNTRY_INFO!$J18=4)),0,COUNTRY_INFO!$F18))","v":25711},41361,{"$f":"IF(AND(INTRO!$E$37=\"Non endémique\",INTRO!$E$41=\"Non endémique\"),0,COUNTRY_INFO!P18)","v":0},{"$f":"IF(AND(INTRO!$E$37=\"Non endémique\",INTRO!$E$41=\"Non endémique\"),0,COUNTRY_INFO!R18)","v":0},{"$f":"IF(INTRO!$E$39=\"Non endémique\",IF($G18=1,DEC!I18,0),IF($G18=1,IVM!G18,0))","v":0},null,{"$f":"IF($J18=\"ALB\", IF(INTRO!$E$39=\"Non endémique\",IF($H18<>0,$D18*($H18-$G18),0),$D18*$H18), 0)","v":0},0,null,0,{"$f":"IF($J18=\"MBD\", IF(INTRO!$E$39=\"Non endémique\",IF($H18<>0,$D18*($H18-$G18),0),$D18*$H18),0)","v":0},0,null,0,null,0,0,null,0,0,null,0,0]
[{"$f":"IF(AND(INTRO!$E$37=\"Non endémique\",INTRO!$E$41=\"Non endémique\"),\" \",IF(COUNTRY_INFO!A19=0,\" \",COUNTRY_INFO!A19))","v":"Mauritania"},{"$f":"IF(AND(INTRO!$E$37=\"Non endémique\",INTRO!$E$41=\"Non endémique\"),\" \",IF(COUNTRY_INFO!B19=0,\" \",COUNTRY_INFO!B19))","v":"BRAKNA"},{"$f":"IF(AND(INTRO!$E$37=\"Non endémique\",INTRO!$E$41=\"Non endémique\"),\" \",IF(COUNTRY_INFO!C19=0,\" \",COUNTRY_INFO!C19))","v":"Bababé"},{"$f":"IF(AND(INTRO!$E$37=\"Non endémique\",INTRO!$E$41=\"Non endémique\"),0,IF(AND(OR(COUNTRY_INFO!$H19=0,COUNTRY_INFO!$H19=4,COUNTRY_INFO!$H19=99),OR(COUNTRY_INFO!$J19=0,COUNTRY_INFO!$J19=4)),0,COUNTRY_INFO!$E19))","v":5743},{"$f":"IF(AND(INTRO!$E$37=\"Non endémique\",INTRO!$E$41=\"Non endémique\"),0,IF(AND(OR(COUNTRY_INFO!$H19=0,COUNTRY_INFO!$H19=4,COUNTRY_INFO!$H19=99),OR(COUNTRY_INFO!$J19=0,COUNTRY_INFO!$J19=4)),0,COUNTRY_INFO!$F19))","v":9435},15178,{"$f":"IF(AND(INTRO!$E$37=\"Non endémique\",INTRO!$E$41=\"Non endémique\"),0,COUNTRY_INFO!P19)","v":0},{"$f":"IF(AND(INTRO!$E$37=\"Non endémique\",INTRO!$E$41=\"Non endémique\"),0,COUNTRY_INFO!R19)","v":0},{"$f":"IF(INTRO!$E$39=\"Non endémique\",IF($G19=1,DEC!I19,0),IF($G19=1,IVM!G19,0))","v":0},null,{"$f":"IF($J19=\"ALB\", IF(INTRO!$E$39=\"Non endémique\",IF($H19<>0,$D19*($H19-$G19),0),$D19*$H19), 0)","v":0},0,null,0,{"$f":"IF($J19=\"MBD\", IF(INTRO!$E$39=\"Non endémique\",IF($H19<>0,$D19*($H19-$G19),0),$D19*$H19),0)","v":0},0,null,0,null,0,0,null,0,0,null,0,0]
[{"$f":"IF(AND(INTRO!$E$37=\"Non endémique\",INTRO!$E$41=\"Non endémique\"),\" \",IF(COUNTRY_INFO!A20=0,\" \",COUNTRY_INFO!A20))","v":"Mauritania"},{"$f":"IF(AND(INTRO!$E$37=\"Non endémique\",INTRO!$E$41=\"Non endémique\"),\" \",IF(COUNTRY_INFO!B20=0,\" \",COUNTRY_INFO!B20))","v":"BRAKNA"},{"$f":"IF(AND(INTRO!$E$37=\"Non endémique\",INTRO!$E$41=\"Non endémique\"),\" \",IF(COUNTRY_INFO!C20=0,\" \",COUNTRY_INFO!C20))","v":"Boghé"},{"$f":"IF(AND(INTRO!$E$37=\"Non endémique\",INTRO!$E$41=\"Non endémique\"),0,IF(AND(OR(COUNTRY_INFO!$H20=0,COUNTRY_INFO!$H20=4,COUNTRY_INFO!$H20=99),OR(COUNTRY_INFO!$J20=0,COUNTRY_INFO!$J20=4)),0,COUNTRY_INFO!$E20))","v":11138},{"$f":"IF(AND(INTRO!$E$37=\"Non endémique\",INTRO!$E$41=\"Non endémique\"),0,IF(AND(OR(COUNTRY_INFO!$H20=0,COUNTRY_INFO!$H20=4,COUNTRY_INFO!$H20=99),OR(COUNTRY_INFO!$J20=0,COUNTRY_INFO!$J20=4)),0,COUNTRY_INFO!$F20))","v":18297},29435,{"$f":"IF(AND(INTRO!$E$37=\"Non endémique\",INTRO!$E$41=\"Non endémique\"),0,COUNTRY_INFO!P20)","v":0},{"$f":"IF(AND(INTRO!$E$37=\"Non endémique\",INTRO!$E$41=\"Non endémique\"),0,COUNTRY_INFO!R20)","v":0},{"$f":"IF(INTRO!$E$39=\"Non endémique\",IF($G20=1,DEC!I20,0),IF($G20=1,IVM!G20,0))","v":0},null,{"$f":"IF($J20=\"ALB\", IF(INTRO!$E$39=\"Non endémique\",IF($H20<>0,$D20*($H20-$G20),0),$D20*$H20), 0)","v":0},0,null,0,{"$f":"IF($J20=\"MBD\", IF(INTRO!$E$39=\"Non endémique\",IF($H20<>0,$D20*($H20-$G20),0),$D20*$H20),0)","v":0},0,null,0,null,0,0,null,0,0,null,0,0]
[{"$f":"IF(AND(INTRO!$E$37=\"Non endémique\",INTRO!$E$41=\"Non endémique\"),\" \",IF(COUNTRY_INFO!A21=0,\" \",COUNTRY_INFO!A21))","v":"Mauritania"},{"$f":"IF(AND(INTRO!$E$37=\"Non endémique\",INTRO!$E$41=\"Non endémique\"),\" \",IF(COUNTRY_INFO!B21=0,\" \",COUNTRY_INFO!B21))","v":"BRAKNA"},{"$f":"IF(AND(INTRO!$E$37=\"Non endémique\",INTRO!$E$41=\"Non endémique\"),\" \",IF(COUNTRY_INFO!C21=0,\" \",COUNTRY_INFO!C21))","v":"Maghtaa Lahjar"},{"$f":"IF(AND(INTRO!$E$37=\"Non endémique\",INTRO!$E$41=\"Non endémique\"),0,IF(AND(OR(COUNTRY_INFO!$H21=0,COUNTRY_INFO!$H21=4,COUNTRY_INFO!$H21=99),OR(COUNTRY_INFO!$J21=0,COUNTRY_INFO!$J21=4)),0,COUNTRY_INFO!$E21))","v":8891},{"$f":"IF(AND(INTRO!$E$37=\"Non endémique\",INTRO!$E$41=\"Non endémique\"),0,IF(AND(OR(COUNTRY_INFO!$H21=0,COUNTRY_INFO!$H21=4,COUNTRY_INFO!$H21=99),OR(COUNTRY_INFO!$J21=0,COUNTRY_INFO!$J21=4)),0,COUNTRY_INFO!$F21))","v":14607},23498,{"$f":"IF(AND(INTRO!$E$37=\"Non endémique\",INTRO!$E$41=\"Non endémique\"),0,COUNTRY_INFO!P21)","v":0},{"$f":"IF(AND(INTRO!$E$37=\"Non endémique\",INTRO!$E$41=\"Non endémique\"),0,COUNTRY_INFO!R21)","v":0},{"$f":"IF(INTRO!$E$39=\"Non endémique\",IF($G21=1,DEC!I21,0),IF($G21=1,IVM!G21,0))","v":0},null,{"$f":"IF($J21=\"ALB\", IF(INTRO!$E$39=\"Non endémique\",IF($H21<>0,$D21*($H21-$G21),0),$D21*$H21), 0)","v":0},0,null,0,{"$f":"IF($J21=\"MBD\", IF(INTRO!$E$39=\"Non endémique\",IF($H21<>0,$D21*($H21-$G21),0),$D21*$H21),0)","v":0},0,null,0,null,0,0,null,0,0,null,0,0]
[{"$f":"IF(AND(INTRO!$E$37=\"Non endémique\",INTRO!$E$41=\"Non endémique\"),\" \",IF(COUNTRY_INFO!A22=0,\" \",COUNTRY_INFO!A22))","v":"Mauritania"},{"$f":"IF(AND(INTRO!$E$37=\"Non endémique\",INTRO!$E$41=\"Non endémique\"),\" \",IF(COUNTRY_INFO!B22=0,\" \",COUNTRY_INFO!B22))","v":"BRAKNA"},{"$f":"IF(AND(INTRO!$E$37=\"Non endémique\",INTRO!$E$41=\"Non endémique\"),\" \",IF(COUNTRY_INFO!C22=0,\" \",COUNTRY_INFO!C22))","v":"M'Bagne"},{"$f":"IF(AND(INTRO!$E$37=\"Non endémique\",INTRO!$E$41=\"Non endémique\"),0,IF(AND(OR(COUNTRY_INFO!$H22=0,COUNTRY_INFO!$H22=4,COUNTRY_INFO!$H22=99),OR(COUNTRY_INFO!$J22=0,COUNTRY_INFO!$J22=4)),0,COUNTRY_INFO!$E22))","v":6722},{"$f":"IF(AND(INTRO!$E$37=\"Non endémique\",INTRO!$E$41=\"Non endémique\"),0,IF(AND(OR(COUNTRY_INFO!$H22=0,COUNTRY_INFO!$H22=4,COUNTRY_INFO!$H22=99),OR(COUNTRY_INFO!$J22=0,COUNTRY_INFO!$J22=4)),0,COUNTRY_INFO!$F22))","v":11043},17765,{"$f":"IF(AND(INTRO!$E$37=\"Non endémique\",INTRO!$E$41=\"Non endémique\"),0,COUNTRY_INFO!P22)","v":0},{"$f":"IF(AND(INTRO!$E$37=\"Non endémique\",INTRO!$E$41=\"Non endémique\"),0,COUNTRY_INFO!R22)","v":0},{"$f":"IF(INTRO!$E$39=\"Non endémique\",IF($G22=1,DEC!I22,0),IF($G22=1,IVM!G22,0))","v":0},null,{"$f":"IF($J22=\"ALB\", IF(INTRO!$E$39=\"Non endémique\",IF($H22<>0,$D22*($H22-$G22),0),$D22*$H22), 0)","v":0},0,null,0,{"$f":"IF($J22=\"MBD\", IF(INTRO!$E$39=\"Non endémique\",IF($H22<>0,$D22*($H22-$G22),0),$D22*$H22),0)","v":0},0,null,0,null,0,0,null,0,0,null,0,0]
[{"$f":"IF(AND(INTRO!$E$37=\"Non endémique\",INTRO!$E$41=\"Non endémique\"),\" \",IF(COUNTRY_INFO!A23=0,\" \",COUNTRY_INFO!A23))","v":"Mauritania"},{"$f":"IF(AND(INTRO!$E$37=\"Non endémique\",INTRO!$E$41=\"Non endémique\"),\" \",IF(COUNTRY_INFO!B23=0,\" \",COUNTRY_INFO!B23))","v":"GORGOL"},{"$f":"IF(AND(INTRO!$E$37=\"Non endémique\",INTRO!$E$41=\"Non endémique\"),\" \",IF(COUNTRY_INFO!C23=0,\" \",COUNTRY_INFO!C23))","v":"Kaédi"},{"$f":"IF(AND(INTRO!$E$37=\"Non endémique\",INTRO!$E$41=\"Non endémique\"),0,IF(AND(OR(COUNTRY_INFO!$H23=0,COUNTRY_INFO!$H23=4,COUNTRY_INFO!$H23=99),OR(COUNTRY_INFO!$J23=0,COUNTRY_INFO!$J23=4)),0,COUNTRY_INFO!$E23))","v":18766},{"$f":"IF(AND(INTRO!$E$37=\"Non endémique\",INTRO!$E$41=\"Non endémique\"),0,IF(AND(OR(COUNTRY_INFO!$H23=0,COUNTRY_INFO!$H23=4,COUNTRY_INFO!$H23=99),OR(COUNTRY_INFO!$J23=0,COUNTRY_INFO!$J23=4)),0,COUNTRY_INFO!$F23))","v":30831},49597,{"$f":"IF(AND(INTRO!$E$37=\"Non endémique\",INTRO!$E$41=\"Non endémique\"),0,COUNTRY_INFO!P23)","v":0},{"$f":"IF(AND(INTRO!$E$37=\"Non endémique\",INTRO!$E$41=\"Non endémique\"),0,COUNTRY_INFO!R23)","v":0},{"$f":"IF(INTRO!$E$39=\"Non endémique\",IF($G23=1,DEC!I23,0),IF($G23=1,IVM!G23,0))","v":0},null,{"$f":"IF($J23=\"ALB\", IF(INTRO!$E$39=\"Non endémique\",IF($H23<>0,$D23*($H23-$G23),0),$D23*$H23), 0)","v":0},0,null,0,{"$f":"IF($J23=\"MBD\", IF(INTRO!$E$39=\"Non endémique\",IF($H23<>0,$D23*($H23-$G23),0),$D23*$H23),0)","v":0},0,null,0,null,0,0,null,0,0,null,0,0]
[{"$f":"IF(AND(INTRO!$E$37=\"Non endémique\",INTRO!$E$41=\"Non endémique\"),\" \",IF(COUNTRY_INFO!A24=0,\" \",COUNTRY_INFO!A24))","v":"Mauritania"},{"$f":"IF(AND(INTRO!$E$37=\"Non endémique\",INTRO!$E$41=\"Non endémique\"),\" \",IF(COUNTRY_INFO!B24=0,\" \",COUNTRY_INFO!B24))","v":"GORGOL"},{"$f":"IF(AND(INTRO!$E$37=\"Non endémique\",INTRO!$E$41=\"Non endémique\"),\" \",IF(COUNTRY_INFO!C24=0,\" \",COUNTRY_INFO!C24))","v":"Maghama"},{"$f":"IF(AND(INTRO!$E$37=\"Non endémique\",INTRO!$E$41=\"Non endémique\"),0,IF(AND(OR(COUNTRY_INFO!$H24=0,COUNTRY_INFO!$H24=4,COUNTRY_INFO!$H24=99),OR(COUNTRY_INFO!$J24=0,COUNTRY_INFO!$J24=4)),0,COUNTRY_INFO!$E24))","v":10555},{"$f":"IF(AND(INTRO!$E$37=\"Non endémique\",INTRO!$E$41=\"Non endémique\"),0,IF(AND(OR(COUNTRY_INFO!$H24=0,COUNTRY_INFO!$H24=4,COUNTRY_INFO!$H24=99),OR(COUNTRY_INFO!$J24=0,COUNTRY_INFO!$J24=4)),0,COUNTRY_INFO!$F24))","v":17341},27896,{"$f":"IF(AND(INTRO!$E$37=\"Non endémique\",INTRO!$E$41=\"Non endémique\"),0,COUNTRY_INFO!P24)","v":0},{"$f":"IF(AND(INTRO!$E$37=\"Non endémique\",INTRO!$E$41=\"Non endémique\"),0,COUNTRY_INFO!R24)","v":0},{"$f":"IF(INTRO!$E$39=\"Non endémique\",IF($G24=1,DEC!I24,0),IF($G24=1,IVM!G24,0))","v":0},null,{"$f":"IF($J24=\"ALB\", IF(INTRO!$E$39=\"Non endémique\",IF($H24<>0,$D24*($H24-$G24),0),$D24*$H24), 0)","v":0},0,null,0,{"$f":"IF($J24=\"MBD\", IF(INTRO!$E$39=\"Non endémique\",IF($H24<>0,$D24*($H24-$G24),0),$D24*$H24),0)","v":0},0,null,0,null,0,0,null,0,0,null,0,0]
[{"$f":"IF(AND(INTRO!$E$37=\"Non endémique\",INTRO!$E$41=\"Non endémique\"),\" \",IF(COUNTRY_INFO!A25=0,\" \",COUNTRY_INFO!A25))","v":"Mauritania"},{"$f":"IF(AND(INTRO!$E$37=\"Non endémique\",INTRO!$E$41=\"Non endémique\"),\" \",IF(COUNTRY_INFO!B25=0,\" \",COUNTRY_INFO!B25))","v":"GORGOL"},{"$f":"IF(AND(INTRO!$E$37=\"Non endémique\",INTRO!$E$41=\"Non endémique\"),\" \",IF(COUNTRY_INFO!C25=0,\" \",COUNTRY_INFO!C25))","v":"M'Bout"},{"$f":"IF(AND(INTRO!$E$37=\"Non endémique\",INTRO!$E$41=\"Non endémique\"),0,IF(AND(OR(COUNTRY_INFO!$H25=0,COUNTRY_INFO!$H25=4,COUNTRY_INFO!$H25=99),OR(COUNTRY_INFO!$J25=0,COUNTRY_INFO!$J25=4)),0,COUNTRY_INFO!$E25))","v":15803},{"$f":"IF(AND(INTRO!$E$37=\"Non endémique\",INTRO!$E$41=\"Non endémique\"),0,IF(AND(OR(COUNTRY_INFO!$H25=0,COUNTRY_INFO!$H25=4,COUNTRY_INFO!$H25=99),OR(COUNTRY_INFO!$J25=0,COUNTRY_INFO!$J25=4)),0,COUNTRY_INFO!$F25))","v":25961},41764,{"$f":"IF(AND(INTRO!$E$37=\"Non endémique\",INTRO!$E$41=\"Non endémique\"),0,COUNTRY_INFO!P25)","v":0},{"$f":"IF(AND(INTRO!$E$37=\"Non endémique\",INTRO!$E$41=\"Non endémique\"),0,COUNTRY_INFO!R25)","v":0},{"$f":"IF(INTRO!$E$39=\"Non endémique\",IF($G25=1,DEC!I25,0),IF($G25=1,IVM!G25,0))","v":0},null,{"$f":"IF($J25=\"ALB\", IF(INTRO!$E$39=\"Non endémique\",IF($H25<>0,$D25*($H25-$G25),0),$D25*$H25), 0)","v":0},0,null,0,{"$f":"IF($J25=\"MBD\", IF(INTRO!$E$39=\"Non endémique\",IF($H25<>0,$D25*($H25-$G25),0),$D25*$H25),0)","v":0},0,null,0,null,0,0,null,0,0,null,0,0]
[{"$f":"IF(AND(INTRO!$E$37=\"Non endémique\",INTRO!$E$41=\"Non endémique\"),\" \",IF(COUNTRY_INFO!A26=0,\" \",COUNTRY_INFO!A26))","v":"Mauritania"},{"$f":"IF(AND(INTRO!$E$37=\"Non endémique\",INTRO!$E$41=\"Non endémique\"),\" \",IF(COUNTRY_INFO!B26=0,\" \",COUNTRY_INFO!B26))","v":"GORGOL"},{"$f":"IF(AND(INTRO!$E$37=\"Non endémique\",INTRO!$E$41=\"Non endémique\"),\" \",IF(COUNTRY_INFO!C26=0,\" \",COUNTRY_INFO!C26))","v":"Monguel"},{"$f":"IF(AND(INTRO!$E$37=\"Non endémique\",INTRO!$E$41=\"Non endémique\"),0,IF(AND(OR(COUNTRY_INFO!$H26=0,COUNTRY_INFO!$H26=4,COUNTRY_INFO!$H26=99),OR(COUNTRY_INFO!$J26=0,COUNTRY_INFO!$J26=4)),0,COUNTRY_INFO!$E26))","v":6664},{"$f":"IF(AND(INTRO!$E$37=\"Non endémique\",INTRO!$E$41=\"Non endémique\"),0,IF(AND(OR(COUNTRY_INFO!$H26=0,COUNTRY_INFO!$H26=4,COUNTRY_INFO!$H26=99),OR(COUNTRY_INFO!$J26=0,COUNTRY_INFO!$J26=4)),0,COUNTRY_INFO!$F26))","v":10948},17612,{"$f":"IF(AND(INTRO!$E$37=\"Non endémique\",INTRO!$E$41=\"Non endémique\"),0,COUNTRY_INFO!P26)","v":0},{"$f":"IF(AND(INTRO!$E$37=\"Non endémique\",INTRO!$E$41=\"Non endémique\"),0,COUNTRY_INFO!R26)","v":0},{"$f":"IF(INTRO!$E$39=\"Non endémique\",IF($G26=1,DEC!I26,0),IF($G26=1,IVM!G26,0))","v":0},null,{"$f":"IF($J26=\"ALB\", IF(INTRO!$E$39=\"Non endémique\",IF($H26<>0,$D26*($H26-$G26),0),$D26*$H26), 0)","v":0},0,null,0,{"$f":"IF($J26=\"MBD\", IF(INTRO!$E$39=\"Non endémique\",IF($H26<>0,$D26*($H26-$G26),0),$D26*$H26),0)","v":0},0,null,0,null,0,0,null,0,0,null,0,0]
[{"$f":"IF(AND(INTRO!$E$37=\"Non endémique\",INTRO!$E$41=\"Non endémique\"),\" \",IF(COUNTRY_INFO!A27=0,\" \",COUNTRY_INFO!A27))","v":"Mauritania"},{"$f":"IF(AND(INTRO!$E$37=\"Non endémique\",INTRO!$E$41=\"Non endémique\"),\" \",IF(COUNTRY_INFO!B27=0,\" \",COUNTRY_INFO!B27))","v":"GUIDIMAKHA"},{"$f":"IF(AND(INTRO!$E$37=\"Non endémique\",INTRO!$E$41=\"Non endémique\"),\" \",IF(COUNTRY_INFO!C27=0,\" \",COUNTRY_INFO!C27))","v":"GHABOU"},{"$f":"IF(AND(INTRO!$E$37=\"Non endémique\",INTRO!$E$41=\"Non endémique\"),0,IF(AND(OR(COUNTRY_INFO!$H27=0,COUNTRY_INFO!$H27=4,COUNTRY_INFO!$H27=99),OR(COUNTRY_INFO!$J27=0,COUNTRY_INFO!$J27=4)),0,COUNTRY_INFO!$E27))","v":13656},{"$f":"IF(AND(INTRO!$E$37=\"Non endémique\",INTRO!$E$41=\"Non endémique\"),0,IF(AND(OR(COUNTRY_INFO!$H27=0,COUNTRY_INFO!$H27=4,COUNTRY_INFO!$H27=99),OR(COUNTRY_INFO!$J27=0,COUNTRY_INFO!$J27=4)),0,COUNTRY_INFO!$F27))","v":22435},36091,{"$f":"IF(AND(INTRO!$E$37=\"Non endémique\",INTRO!$E$41=\"Non endémique\"),0,COUNTRY_INFO!P27)","v":0},{"$f":"IF(AND(INTRO!$E$37=\"Non endémique\",INTRO!$E$41=\"Non endémique\"),0,COUNTRY_INFO!R27)","v":0},{"$f":"IF(INTRO!$E$39=\"Non endémique\",IF($G27=1,DEC!I27,0),IF($G27=1,IVM!G27,0))","v":0},null,{"$f":"IF($J27=\"ALB\", IF(INTRO!$E$39=\"Non endémique\",IF($H27<>0,$D27*($H27-$G27),0),$D27*$H27), 0)","v":0},0,null,0,{"$f":"IF($J27=\"MBD\", IF(INTRO!$E$39=\"Non endémique\",IF($H27<>0,$D27*($H27-$G27),0),$D27*$H27),0)","v":0},0,null,0,null,0,0,null,0,0,null,0,0]
[{"$f":"IF(AND(INTRO!$E$37=\"Non endémique\",INTRO!$E$41=\"Non endémique\"),\" \",IF(COUNTRY_INFO!A28=0,\" \",COUNTRY_INFO!A28))","v":"Mauritania"},{"$f":"IF(AND(INTRO!$E$37=\"Non endémique\",INTRO!$E$41=\"Non endémique\"),\" \",IF(COUNTRY_INFO!B28=0,\" \",COUNTRY_INFO!B28))","v":"GUIDIMAKHA"},{"$f":"IF(AND(INTRO!$E$37=\"Non endémique\",INTRO!$E$41=\"Non endémique\"),\" \",IF(COUNTRY_INFO!C28=0,\" \",COUNTRY_INFO!C28))","v":"Ould Yengé"},{"$f":"IF(AND(INTRO!$E$37=\"Non endémique\",INTRO!$E$41=\"Non endémique\"),0,IF(AND(OR(COUNTRY_INFO!$H28=0,COUNTRY_INFO!$H28=4,COUNTRY_INFO!$H28=99),OR(COUNTRY_INFO!$J28=0,COUNTRY_INFO!$J28=4)),0,COUNTRY_INFO!$E28))","v":10536},{"$f":"IF(AND(INTRO!$E$37=\"Non endémique\",INTRO!$E$41=\"Non endémique\"),0,IF(AND(OR(COUNTRY_INFO!$H28=0,COUNTRY_INFO!$H28=4,COUNTRY_INFO!$H28=99),OR(COUNTRY_INFO!$J28=0,COUNTRY_INFO!$J28=4)),0,COUNTRY_INFO!$F28))","v":17309},27845,{"$f":"IF(AND(INTRO!$E$37=\"Non endémique\",INTRO!$E$41=\"Non endémique\"),0,COUNTRY_INFO!P28)","v":0},{"$f":"IF(AND(INTRO!$E$37=\"Non endémique\",INTRO!$E$41=\"Non endémique\"),0,COUNTRY_INFO!R28)","v":0},{"$f":"IF(INTRO!$E$39=\"Non endémique\",IF($G28=1,DEC!I28,0),IF($G28=1,IVM!G28,0))","v":0},null,{"$f":"IF($J28=\"ALB\", IF(INTRO!$E$39=\"Non endémique\",IF($H28<>0,$D28*($H28-$G28),0),$D28*$H28), 0)","v":0},0,null,0,{"$f":"IF($J28=\"MBD\", IF(INTRO!$E$39=\"Non endémique\",IF($H28<>0,$D28*($H28-$G28),0),$D28*$H28),0)","v":0},0,null,0,null,0,0,null,0,0,null,0,0]
[{"$f":"IF(AND(INTRO!$E$37=\"Non endémique\",INTRO!$E$41=\"Non endémique\"),\" \",IF(COUNTRY_INFO!A29=0,\" \",COUNTRY_INFO!A29))","v":"Mauritania"},{"$f":"IF(AND(INTRO!$E$37=\"Non endémique\",INTRO!$E$41=\"Non endémique\"),\" \",IF(COUNTRY_INFO!B29=0,\" \",COUNTRY_INFO!B29))","v":"GUIDIMAKHA"},{"$f":"IF(AND(INTRO!$E$37=\"Non endémique\",INTRO!$E$41=\"Non endémique\"),\" \",IF(COUNTRY_INFO!C29=0,\" \",COUNTRY_INFO!C29))","v":"Sélibaby"},{"$f":"IF(AND(INTRO!$E$37=\"Non endémique\",INTRO!$E$41=\"Non endémique\"),0,IF(AND(OR(COUNTRY_INFO!$H29=0,COUNTRY_INFO!$H29=4,COUNTRY_INFO!$H29=99),OR(COUNTRY_INFO!$J29=0,COUNTRY_INFO!$J29=4)),0,COUNTRY_INFO!$E29))","v":16976},{"$f":"IF(AND(INTRO!$E$37=\"Non endémique\",INTRO!$E$41=\"Non endémique\"),0,IF(AND(OR(COUNTRY_INFO!$H29=0,COUNTRY_INFO!$H29=4,COUNTRY_INFO!$H29=99),OR(COUNTRY_INFO!$J29=0,COUNTRY_INFO!$J29=4)),0,COUNTRY_INFO!$F29))","v":27889},44865,{"$f":"IF(AND(INTRO!$E$37=\"Non endémique\",INTRO!$E$41=\"Non endémique\"),0,COUNTRY_INFO!P29)","v":0},{"$f":"IF(AND(INTRO!$E$37=\"Non endémique\",INTRO!$E$41=\"Non endémique\"),0,COUNTRY_INFO!R29)","v":0},{"$f":"IF(INTRO!$E$39=\"Non endémique\",IF($G29=1,DEC!I29,0),IF($G29=1,IVM!G29,0))","v":0},null,{"$f":"IF($J29=\"ALB\", IF(INTRO!$E$39=\"Non endémique\",IF($H29<>0,$D29*($H29-$G29),0),$D29*$H29), 0)","v":0},0,null,0,{"$f":"IF($J29=\"MBD\", IF(INTRO!$E$39=\"Non endémique\",IF($H29<>0,$D29*($H29-$G29),0),$D29*$H29),0)","v":0},0,null,0,null,0,0,null,0,0,null,0,0]
[{"$f":"IF(AND(INTRO!$E$37=\"Non endémique\",INTRO!$E$41=\"Non endémique\"),\" \",IF(COUNTRY_INFO!A30=0,\" \",COUNTRY_INFO!A30))","v":"Mauritania"},{"$f":"IF(AND(INTRO!$E$37=\"Non endémique\",INTRO!$E$41=\"Non endémique\"),\" \",IF(COUNTRY_INFO!B30=0,\" \",COUNTRY_INFO!B30))","v":"HODH CHARQUI"},{"$f":"IF(AND(INTRO!$E$37=\"Non endémique\",INTRO!$E$41=\"Non endémique\"),\" \",IF(COUNTRY_INFO!C30=0,\" \",COUNTRY_INFO!C30))","v":"Amourj"},{"$f":"IF(AND(INTRO!$E$37=\"Non endémique\",INTRO!$E$41=\"Non endémique\"),0,IF(AND(OR(COUNTRY_INFO!$H30=0,COUNTRY_INFO!$H30=4,COUNTRY_INFO!$H30=99),OR(COUNTRY_INFO!$J30=0,COUNTRY_INFO!$J30=4)),0,COUNTRY_INFO!$E30))","v":14578},{"$f":"IF(AND(INTRO!$E$37=\"Non endémique\",INTRO!$E$41=\"Non endémique\"),0,IF(AND(OR(COUNTRY_INFO!$H30=0,COUNTRY_INFO!$H30=4,COUNTRY_INFO!$H30=99),OR(COUNTRY_INFO!$J30=0,COUNTRY_INFO!$J30=4)),0,COUNTRY_INFO!$F30))","v":23950},38528,{"$f":"IF(AND(INTRO!$E$37=\"Non endémique\",INTRO!$E$41=\"Non endémique\"),0,COUNTRY_INFO!P30)","v":0},{"$f":"IF(AND(INTRO!$E$37=\"Non endémique\",INTRO!$E$41=\"Non endémique\"),0,COUNTRY_INFO!R30)","v":0},{"$f":"IF(INTRO!$E$39=\"Non endémique\",IF($G30=1,DEC!I30,0),IF($G30=1,IVM!G30,0))","v":0},null,{"$f":"IF($J30=\"ALB\", IF(INTRO!$E$39=\"Non endémique\",IF($H30<>0,$D30*($H30-$G30),0),$D30*$H30), 0)","v":0},0,null,0,{"$f":"IF($J30=\"MBD\", IF(INTRO!$E$39=\"Non endémique\",IF($H30<>0,$D30*($H30-$G30),0),$D30*$H30),0)","v":0},0,null,0,null,0,0,null,0,0,null,0,0]
[{"$f":"IF(AND(INTRO!$E$37=\"Non endémique\",INTRO!$E$41=\"Non endémique\"),\" \",IF(COUNTRY_INFO!A31=0,\" \",COUNTRY_INFO!A31))","v":"Mauritania"},{"$f":"IF(AND(INTRO!$E$37=\"Non endémique\",INTRO!$E$41=\"Non endémique\"),\" \",IF(COUNTRY_INFO!B31=0,\" \",COUNTRY_INFO!B31))","v":"HODH CHARQUI"},{"$f":"IF(AND(INTRO!$E$37=\"Non endémique\",INTRO!$E$41=\"Non endémique\"),\" \",IF(COUNTRY_INFO!C31=0,\" \",COUNTRY_INFO!C31))","v":"Bassiknou"},{"$f":"IF(AND(INTRO!$E$37=\"Non endémique\",INTRO!$E$41=\"Non endémique\"),0,IF(AND(OR(COUNTRY_INFO!$H31=0,COUNTRY_INFO!$H31=4,COUNTRY_INFO!$H31=99),OR(COUNTRY_INFO!$J31=0,COUNTRY_INFO!$J31=4)),0,COUNTRY_INFO!$E31))","v":13633},{"$f":"IF(AND(INTRO!$E$37=\"Non endémique\",INTRO!$E$41=\"Non endémique\"),0,IF(AND(OR(COUNTRY_INFO!$H31=0,COUNTRY_INFO!$H31=4,COUNTRY_INFO!$H31=99),OR(COUNTRY_INFO!$J31=0,COUNTRY_INFO!$J31=4)),0,COUNTRY_INFO!$F31))","v":22398},36031,{"$f":"IF(AND(INTRO!$E$37=\"Non endémique\",INTRO!$E$41=\"Non endémique\"),0,COUNTRY_INFO!P31)","v":0},{"$f":"IF(AND(INTRO!$E$37=\"Non endémique\",INTRO!$E$41=\"Non endémique\"),0,COUNTRY_INFO!R31)","v":0},{"$f":"IF(INTRO!$E$39=\"Non endémique\",IF($G31=1,DEC!I31,0),IF($G31=1,IVM!G31,0))","v":0},null,{"$f":"IF($J31=\"ALB\", IF(INTRO!$E$39=\"Non endémique\",IF($H31<>0,$D31*($H31-$G31),0),$D31*$H31), 0)","v":0},0,null,0,{"$f":"IF($J31=\"MBD\", IF(INTRO!$E$39=\"Non endémique\",IF($H31<>0,$D31*($H31-$G31),0),$D31*$H31),0)","v":0},0,null,0,null,0,0,null,0,0,null,0,0]
[{"$f":"IF(AND(INTRO!$E$37=\"Non endémique\",INTRO!$E$41=\"Non endémique\"),\" \",IF(COUNTRY_INFO!A32=0,\" \",COUNTRY_INFO!A32))","v":"Mauritania"},{"$f":"IF(AND(INTRO!$E$37=\"Non endémique\",INTRO!$E$41=\"Non endémique\"),\" \",IF(COUNTRY_INFO!B32=0,\" \",COUNTRY_INFO!B32))","v":"HODH CHARQUI"},{"$f":"IF(AND(INTRO!$E$37=\"Non endémique\",INTRO!$E$41=\"Non endémique\"),\" \",IF(COUNTRY_INFO!C32=0,\" \",COUNTRY_INFO!C32))","v":"Djigueni"},{"$f":"IF(AND(INTRO!$E$37=\"Non endémique\",INTRO!$E$41=\"Non endémique\"),0,IF(AND(OR(COUNTRY_INFO!$H32=0,COUNTRY_INFO!$H32=4,COUNTRY_INFO!$H32=99),OR(COUNTRY_INFO!$J32=0,COUNTRY_INFO!$J32=4)),0,COUNTRY_INFO!$E32))","v":9191},{"$f":"IF(AND(INTRO!$E$37=\"Non endémique\",INTRO!$E$41=\"Non endémique\"),0,IF(AND(OR(COUNTRY_INFO!$H32=0,COUNTRY_INFO!$H32=4,COUNTRY_INFO!$H32=99),OR(COUNTRY_INFO!$J32=0,COUNTRY_INFO!$J32=4)),0,COUNTRY_INFO!$F32))","v":15099},24290,{"$f":"IF(AND(INTRO!$E$37=\"Non endémique\",INTRO!$E$41=\"Non endémique\"),0,COUNTRY_INFO!P32)","v":0},{"$f":"IF(AND(INTRO!$E$37=\"Non endémique\",INTRO!$E$41=\"Non endémique\"),0,COUNTRY_INFO!R32)","v":0},{"$f":"IF(INTRO!$E$39=\"Non endémique\",IF($G32=1,DEC!I32,0),IF($G32=1,IVM!G32,0))","v":0},null,{"$f":"IF($J32=\"ALB\", IF(INTRO!$E$39=\"Non endémique\",IF($H32<>0,$D32*($H32-$G32),0),$D32*$H32), 0)","v":0},0,null,0,{"$f":"IF($J32=\"MBD\", IF(INTRO!$E$39=\"Non endémique\",IF($H32<>0,$D32*($H32-$G32),0),$D32*$H32),0)","v":0},0,null,0,null,0,0,null,0,0,null,0,0]
[{"$f":"IF(AND(INTRO!$E$37=\"Non endémique\",INTRO!$E$41=\"Non endémique\"),\" \",IF(COUNTRY_INFO!A33=0,\" \",COUNTRY_INFO!A33))","v":"Mauritania"},{"$f":"IF(AND(INTRO!$E$37=\"Non endémique\",INTRO!$E$41=\"Non endémique\"),\" \",IF(COUNTRY_INFO!B33=0,\" \",COUNTRY_INFO!B33))","v":"HODH CHARQUI"},{"$f":"IF(AND(INTRO!$E$37=\"Non endémique\",INTRO!$E$41=\"Non endémique\"),\" \",IF(COUNTRY_INFO!C33=0,\" \",COUNTRY_INFO!C33))","v":"Nbaikit Lahouache"},{"$f":"IF(AND(INTRO!$E$37=\"Non endémique\",INTRO!$E$41=\"Non endémique\"),0,IF(AND(OR(COUNTRY_INFO!$H33=0,COUNTRY_INFO!$H33=4,COUNTRY_INFO!$H33=99),OR(COUNTRY_INFO!$J33=0,COUNTRY_INFO!$J33=4)),0,COUNTRY_INFO!$E33))","v":1366},{"$f":"IF(AND(INTRO!$E$37=\"Non endémique\",INTRO!$E$41=\"Non endémique\"),0,IF(AND(OR(COUNTRY_INFO!$H33=0,COUNTRY_INFO!$H33=4,COUNTRY_INFO!$H33=99),OR(COUNTRY_INFO!$J33=0,COUNTRY_INFO!$J33=4)),0,COUNTRY_INFO!$F33))","v":2244},3610,{"$f":"IF(AND(INTRO!$E$37=\"Non endémique\",INTRO!$E$41=\"Non endémique\"),0,COUNTRY_INFO!P33)","v":0},{"$f":"IF(AND(INTRO!$E$37=\"Non endémique\",INTRO!$E$41=\"Non endémique\"),0,COUNTRY_INFO!R33)","v":0},{"$f":"IF(INTRO!$E$39=\"Non endémique\",IF($G33=1,DEC!I33,0),IF($G33=1,IVM!G33,0))","v":0},null,{"$f":"IF($J33=\"ALB\", IF(INTRO!$E$39=\"Non endémique\",IF($H33<>0,$D33*($H33-$G33),0),$D33*$H33), 0)","v":0},0,null,0,{"$f":"IF($J33=\"MBD\", IF(INTRO!$E$39=\"Non endémique\",IF($H33<>0,$D33*($H33-$G33),0),$D33*$H33),0)","v":0},0,null,0,null,0,0,null,0,0,null,0,0]
[{"$f":"IF(AND(INTRO!$E$37=\"Non endémique\",INTRO!$E$41=\"Non endémique\"),\" \",IF(COUNTRY_INFO!A34=0,\" \",COUNTRY_INFO!A34))","v":"Mauritania"},{"$f":"IF(AND(INTRO!$E$37=\"Non endémique\",INTRO!$E$41=\"Non endémique\"),\" \",IF(COUNTRY_INFO!B34=0,\" \",COUNTRY_INFO!B34))","v":"HODH CHARQUI"},{"$f":"IF(AND(INTRO!$E$37=\"Non endémique\",INTRO!$E$41=\"Non endémique\"),\" \",IF(COUNTRY_INFO!C34=0,\" \",COUNTRY_INFO!C34))","v":"Néma"},{"$f":"IF(AND(INTRO!$E$37=\"Non endémique\",INTRO!$E$41=\"Non endémique\"),0,IF(AND(OR(COUNTRY_INFO!$H34=0,COUNTRY_INFO!$H34=4,COUNTRY_INFO!$H34=99),OR(COUNTRY_INFO!$J34=0,COUNTRY_INFO!$J34=4)),0,COUNTRY_INFO!$E34))","v":13420},{"$f":"IF(AND(INTRO!$E$37=\"Non endémique\",INTRO!$E$41=\"Non endémique\"),0,IF(AND(OR(COUNTRY_INFO!$H34=0,COUNTRY_INFO!$H34=4,COUNTRY_INFO!$H34=99),OR(COUNTRY_INFO!$J34=0,COUNTRY_INFO!$J34=4)),0,COUNTRY_INFO!$F34))","v":22047},35467,{"$f":"IF(AND(INTRO!$E$37=\"Non endémique\",INTRO!$E$41=\"Non endémique\"),0,COUNTRY_INFO!P34)","v":0},{"$f":"IF(AND(INTRO!$E$37=\"Non endémique\",INTRO!$E$41=\"Non endémique\"),0,COUNTRY_INFO!R34)","v":0},{"$f":"IF(INTRO!$E$39=\"Non endémique\",IF($G34=1,DEC!I34,0),IF($G34=1,IVM!G34,0))","v":0},null,{"$f":"IF($J34=\"ALB\", IF(INTRO!$E$39=\"Non endémique\",IF($H34<>0,$D34*($H34-$G34),0),$D34*$H34), 0)","v":0},0,null,0,{"$f":"IF($J34=\"MBD\", IF(INTRO!$E$39=\"Non endémique\",IF($H34<>0,$D34*($H34-$G34),0),$D34*$H34),0)","v":0},0,null,0,null,0,0,null,0,0,null,0,0]
[{"$f":"IF(AND(INTRO!$E$37=\"Non endémique\",INTRO!$E$41=\"Non endémique\"),\" \",IF(COUNTRY_INFO!A35=0,\" \",COUNTRY_INFO!A35))","v":"Mauritania"},{"$f":"IF(AND(INTRO!$E$37=\"Non endémique\",INTRO!$E$41=\"Non endémique\"),\" \",IF(COUNTRY_INFO!B35=0,\" \",COUNTRY_INFO!B35))","v":"HODH CHARQUI"},{"$f":"IF(AND(INTRO!$E$37=\"Non endémique\",INTRO!$E$41=\"Non endémique\"),\" \",IF(COUNTRY_INFO!C35=0,\" \",COUNTRY_INFO!C35))","v":"Oualatta"},{"$f":"IF(AND(INTRO!$E$37=\"Non endémique\",INTRO!$E$41=\"Non endémique\"),0,IF(AND(OR(COUNTRY_INFO!$H35=0,COUNTRY_INFO!$H35=4,COUNTRY_INFO!$H35=99),OR(COUNTRY_INFO!$J35=0,COUNTRY_INFO!$J35=4)),0,COUNTRY_INFO!$E35))","v":2017},{"$f":"IF(AND(INTRO!$E$37=\"Non endémique\",INTRO!$E$41=\"Non endémique\"),0,IF(AND(OR(COUNTRY_INFO!$H35=0,COUNTRY_INFO!$H35=4,COUNTRY_INFO!$H35=99),OR(COUNTRY_INFO!$J35=0,COUNTRY_INFO!$J35=4)),0,COUNTRY_INFO!$F35))","v":3314},5331,{"$f":"IF(AND(INTRO!$E$37=\"Non endémique\",INTRO!$E$41=\"Non endémique\"),0,COUNTRY_INFO!P35)","v":0},{"$f":"IF(AND(INTRO!$E$37=\"Non endémique\",INTRO!$E$41=\"Non endémique\"),0,COUNTRY_INFO!R35)","v":0},{"$f":"IF(INTRO!$E$39=\"Non endémique\",IF($G35=1,DEC!I35,0),IF($G35=1,IVM!G35,0))","v":0},null,{"$f":"IF($J35=\"ALB\", IF(INTRO!$E$39=\"Non endémique\",IF($H35<>0,$D35*($H35-$G35),0),$D35*$H35), 0)","v":0},0,null,0,{"$f":"IF($J35=\"MBD\", IF(INTRO!$E$39=\"Non endémique\",IF($H35<>0,$D35*($H35-$G35),0),$D35*$H35),0)","v":0},0,null,0,null,0,0,null,0,0,null,0,0]
[{"$f":"IF(AND(INTRO!$E$37=\"Non endémique\",INTRO!$E$41=\"Non endémique\"),\" \",IF(COUNTRY_INFO!A36=0,\" \",COUNTRY_INFO!A36))","v":"Mauritania"},{"$f":"IF(AND(INTRO!$E$37=\"Non endémique\",INTRO!$E$41=\"Non endémique\"),\" \",IF(COUNTRY_INFO!B36=0,\" \",COUNTRY_INFO!B36))","v":"HODH CHARQUI"},{"$f":"IF(AND(INTRO!$E$37=\"Non endémique\",INTRO!$E$41=\"Non endémique\"),\" \",IF(COUNTRY_INFO!C36=0,\" \",COUNTRY_INFO!C36))","v":"Timbedra"},{"$f":"IF(AND(INTRO!$E$37=\"Non endémique\",INTRO!$E$41=\"Non endémique\"),0,IF(AND(OR(COUNTRY_INFO!$H36=0,COUNTRY_INFO!$H36=4,COUNTRY_INFO!$H36=99),OR(COUNTRY_INFO!$J36=0,COUNTRY_INFO!$J36=4)),0,COUNTRY_INFO!$E36))","v":12190},{"$f":"IF(AND(INTRO!$E$37=\"Non endémique\",INTRO!$E$41=\"Non endémique\"),0,IF(AND(OR(COUNTRY_INFO!$H36=0,COUNTRY_INFO!$H36=4,COUNTRY_INFO!$H36=99),OR(COUNTRY_INFO!$J36=0,COUNTRY_INFO!$J36=4)),0,COUNTRY_INFO!$F36))","v":20026},32216,{"$f":"IF(AND(INTRO!$E$37=\"Non endémique\",INTRO!$E$41=\"Non endémique\"),0,COUNTRY_INFO!P36)","v":0},{"$f":"IF(AND(INTRO!$E$37=\"Non endémique\",INTRO!$E$41=\"Non endémique\"),0,COUNTRY_INFO!R36)","v":0},{"$f":"IF(INTRO!$E$39=\"Non endémique\",IF($G36=1,DEC!I36,0),IF($G36=1,IVM!G36,0))","v":0},null,{"$f":"IF($J36=\"ALB\", IF(INTRO!$E$39=\"Non endémique\",IF($H36<>0,$D36*($H36-$G36),0),$D36*$H36), 0)","v":0},0,null,0,{"$f":"IF($J36=\"MBD\", IF(INTRO!$E$39=\"Non endémique\",IF($H36<>0,$D36*($H36-$G36),0),$D36*$H36),0)","v":0},0,null,0,null,0,0,null,0,0,null,0,0]
[{"$f":"IF(AND(INTRO!$E$37=\"Non endémique\",INTRO!$E$41=\"Non endémique\"),\" \",IF(COUNTRY_INFO!A37=0,\" \",COUNTRY_INFO!A37))","v":"Mauritania"},{"$f":"IF(AND(INTRO!$E$37=\"Non endémique\",INTRO!$E$41=\"Non endémique\"),\" \",IF(COUNTRY_INFO!B37=0,\" \",COUNTRY_INFO!B37))","v":"HODH GHARBI"},{"$f":"IF(AND(INTRO!$E$37=\"Non endémique\",INTRO!$E$41=\"Non endémique\"),\" \",IF(COUNTRY_INFO!C37=0,\" \",COUNTRY_INFO!C37))","v":"Aioun"},{"$f":"IF(AND(INTRO!$E$37=\"Non endémique\",INTRO!$E$41=\"Non endémique\"),0,IF(AND(OR(COUNTRY_INFO!$H37=0,COUNTRY_INFO!$H37=4,COUNTRY_INFO!$H37=99),OR(COUNTRY_INFO!$J37=0,COUNTRY_INFO!$J37=4)),0,COUNTRY_INFO!$E37))","v":0},{"$f":"IF(AND(INTRO!$E$37=\"Non endémique\",INTRO!$E$41=\"Non endémique\"),0,IF(AND(OR(COUNTRY_INFO!$H37=0,COUNTRY_INFO!$H37=4,COUNTRY_INFO!$H37=99),OR(COUNTRY_INFO!$J37=0,COUNTRY_INFO!$J37=4)),0,COUNTRY_INFO!$F37))","v":0},0,{"$f":"IF(AND(INTRO!$E$37=\"Non endémique\",INTRO!$E$41=\"Non endémique\"),0,COUNTRY_INFO!P37)","v":0},{"$f":"IF(AND(INTRO!$E$37=\"Non endémique\",INTRO!$E$41=\"Non endémique\"),0,COUNTRY_INFO!R37)","v":0},{"$f":"IF(INTRO!$E$39=\"Non endémique\",IF($G37=1,DEC!I37,0),IF($G37=1,IVM!G37,0))","v":0},null,{"$f":"IF($J37=\"ALB\", IF(INTRO!$E$39=\"Non endémique\",IF($H37<>0,$D37*($H37-$G37),0),$D37*$H37), 0)","v":0},0,null,0,{"$f":"IF($J37=\"MBD\", IF(INTRO!$E$39=\"Non endémique\",IF($H37<>0,$D37*($H37-$G37),0),$D37*$H37),0)","v":0},0,null,0,null,0,0,null,0,0,null,0,0]
[{"$f":"IF(AND(INTRO!$E$37=\"Non endémique\",INTRO!$E$41=\"Non endémique\"),\" \",IF(COUNTRY_INFO!A38=0,\" \",COUNTRY_INFO!A38))","v":"Mauritania"},{"$f":"IF(AND(INTRO!$E$37=\"Non endémique\",INTRO!$E$41=\"Non endémique\"),\" \",IF(COUNTRY_INFO!B38=0,\" \",COUNTRY_INFO!B38))","v":"HODH GHARBI"},{"$f":"IF(AND(INTRO!$E$37=\"Non endémique\",INTRO!$E$41=\"Non endémique\"),\" \",IF(COUNTRY_INFO!C38=0,\" \",COUNTRY_INFO!C38))","v":"Kobeni"},{"$f":"IF(AND(INTRO!$E$37=\"Non endémique\",INTRO!$E$41=\"Non endémique\"),0,IF(AND(OR(COUNTRY_INFO!$H38=0,COUNTRY_INFO!$H38=4,COUNTRY_INFO!$H38=99),OR(COUNTRY_INFO!$J38=0,COUNTRY_INFO!$J38=4)),0,COUNTRY_INFO!$E38))","v":14290},{"$f":"IF(AND(INTRO!$E$37=\"Non endémique\",INTRO!$E$41=\"Non endémique\"),0,IF(AND(OR(COUNTRY_INFO!$H38=0,COUNTRY_INFO!$H38=4,COUNTRY_INFO!$H38=99),OR(COUNTRY_INFO!$J38=0,COUNTRY_INFO!$J38=4)),0,COUNTRY_INFO!$F38))","v":23476},37766,{"$f":"IF(AND(INTRO!$E$37=\"Non endémique\",INTRO!$E$41=\"Non endémique\"),0,COUNTRY_INFO!P38)","v":0},{"$f":"IF(AND(INTRO!$E$37=\"Non endémique\",INTRO!$E$41=\"Non endémique\"),0,COUNTRY_INFO!R38)","v":0},{"$f":"IF(INTRO!$E$39=\"Non endémique\",IF($G38=1,DEC!I38,0),IF($G38=1,IVM!G38,0))","v":0},null,{"$f":"IF($J38=\"ALB\", IF(INTRO!$E$39=\"Non endémique\",IF($H38<>0,$D38*($H38-$G38),0),$D38*$H38), 0)","v":0},0,null,0,{"$f":"IF($J38=\"MBD\", IF(INTRO!$E$39=\"Non endémique\",IF($H38<>0,$D38*($H38-$G38),0),$D38*$H38),0)","v":0},0,null,0,null,0,0,null,0,0,null,0,0]
[{"$f":"IF(AND(INTRO!$E$37=\"Non endémique\",INTRO!$E$41=\"Non endémique\"),\" \",IF(COUNTRY_INFO!A39=0,\" \",COUNTRY_INFO!A39))","v":"Mauritania"},{"$f":"IF(AND(INTRO!$E$37=\"Non endémique\",INTRO!$E$41=\"Non endémique\"),\" \",IF(COUNTRY_INFO!B39=0,\" \",COUNTRY_INFO!B39))","v":"HODH GHARBI"},{"$f":"IF(AND(INTRO!$E$37=\"Non endémique\",INTRO!$E$41=\"Non endémique\"),\" \",IF(COUNTRY_INFO!C39=0,\" \",COUNTRY_INFO!C39))","v":"Tamchekett"},{"$f":"IF(AND(INTRO!$E$37=\"Non endémique\",INTRO!$E$41=\"Non endémique\"),0,IF(AND(OR(COUNTRY_INFO!$H39=0,COUNTRY_INFO!$H39=4,COUNTRY_INFO!$H39=99),OR(COUNTRY_INFO!$J39=0,COUNTRY_INFO!$J39=4)),0,COUNTRY_INFO!$E39))","v":6015},{"$f":"IF(AND(INTRO!$E$37=\"Non endémique\",INTRO!$E$41=\"Non endémique\"),0,IF(AND(OR(COUNTRY_INFO!$H39=0,COUNTRY_INFO!$H39=4,COUNTRY_INFO!$H39=99),OR(COUNTRY_INFO!$J39=0,COUNTRY_INFO!$J39=4)),0,COUNTRY_INFO!$F39))","v":9881},15896,{"$f":"IF(AND(INTRO!$E$37=\"Non endémique\",INTRO!$E$41=\"Non endémique\"),0,COUNTRY_INFO!P39)","v":0},{"$f":"IF(AND(INTRO!$E$37=\"Non endémique\",INTRO!$E$41=\"Non endémique\"),0,COUNTRY_INFO!R39)","v":0},{"$f":"IF(INTRO!$E$39=\"Non endémique\",IF($G39=1,DEC!I39,0),IF($G39=1,IVM!G39,0))","v":0},null,{"$f":"IF($J39=\"ALB\", IF(INTRO!$E$39=\"Non endémique\",IF($H39<>0,$D39*($H39-$G39),0),$D39*$H39), 0)","v":0},0,null,0,{"$f":"IF($J39=\"MBD\", IF(INTRO!$E$39=\"Non endémique\",IF($H39<>0,$D39*($H39-$G39),0),$D39*$H39),0)","v":0},0,null,0,null,0,0,null,0,0,null,0,0]
[{"$f":"IF(AND(INTRO!$E$37=\"Non endémique\",INTRO!$E$41=\"Non endémique\"),\" \",IF(COUNTRY_INFO!A40=0,\" \",COUNTRY_INFO!A40))","v":"Mauritania"},{"$f":"IF(AND(INTRO!$E$37=\"Non endémique\",INTRO!$E$41=\"Non endémique\"),\" \",IF(COUNTRY_INFO!B40=0,\" \",COUNTRY_INFO!B40))","v":"HODH GHARBI"},{"$f":"IF(AND(INTRO!$E$37=\"Non endémique\",INTRO!$E$41=\"Non endémique\"),\" \",IF(COUNTRY_INFO!C40=0,\" \",COUNTRY_INFO!C40))","v":"Tintane"},{"$f":"IF(AND(INTRO!$E$37=\"Non endémique\",INTRO!$E$41=\"Non endémique\"),0,IF(AND(OR(COUNTRY_INFO!$H40=0,COUNTRY_INFO!$H40=4,COUNTRY_INFO!$H40=99),OR(COUNTRY_INFO!$J40=0,COUNTRY_INFO!$J40=4)),0,COUNTRY_INFO!$E40))","v":14981},{"$f":"IF(AND(INTRO!$E$37=\"Non endémique\",INTRO!$E$41=\"Non endémique\"),0,IF(AND(OR(COUNTRY_INFO!$H40=0,COUNTRY_INFO!$H40=4,COUNTRY_INFO!$H40=99),OR(COUNTRY_INFO!$J40=0,COUNTRY_INFO!$J40=4)),0,COUNTRY_INFO!$F40))","v":24611},39592,{"$f":"IF(AND(INTRO!$E$37=\"Non endémique\",INTRO!$E$41=\"Non endémique\"),0,COUNTRY_INFO!P40)","v":0},{"$f":"IF(AND(INTRO!$E$37=\"Non endémique\",INTRO!$E$41=\"Non endémique\"),0,COUNTRY_INFO!R40)","v":0},{"$f":"IF(INTRO!$E$39=\"Non endémique\",IF($G40=1,DEC!I40,0),IF($G40=1,IVM!G40,0))","v":0},null,{"$f":"IF($J40=\"ALB\", IF(INTRO!$E$39=\"Non endémique\",IF($H40<>0,$D40*($H40-$G40),0),$D40*$H40), 0)","v":0},0,null,0,{"$f":"IF($J40=\"MBD\", IF(INTRO!$E$39=\"Non endémique\",IF($H40<>0,$D40*($H40-$G40),0),$D40*$H40),0)","v":0},0,null,0,null,0,0,null,0,0,null,0,0]
[{"$f":"IF(AND(INTRO!$E$37=\"Non endémique\",INTRO!$E$41=\"Non endémique\"),\" \",IF(COUNTRY_INFO!A41=0,\" \",COUNTRY_INFO!A41))","v":"Mauritania"},{"$f":"IF(AND(INTRO!$E$37=\"Non endémique\",INTRO!$E$41=\"Non endémique\"),\" \",IF(COUNTRY_INFO!B41=0,\" \",COUNTRY_INFO!B41))","v":"INCHIRI"},{"$f":"IF(AND(INTRO!$E$37=\"Non endémique\",INTRO!$E$41=\"Non endémique\"),\" \",IF(COUNTRY_INFO!C41=0,\" \",COUNTRY_INFO!C41))","v":"Akjoujt"},{"$f":"IF(AND(INTRO!$E$37=\"Non endémique\",INTRO!$E$41=\"Non endémique\"),0,IF(AND(OR(COUNTRY_INFO!$H41=0,COUNTRY_INFO!$H41=4,COUNTRY_INFO!$H41=99),OR(COUNTRY_INFO!$J41=0,COUNTRY_INFO!$J41=4)),0,COUNTRY_INFO!$E41))","v":2017},{"$f":"IF(AND(INTRO!$E$37=\"Non endémique\",INTRO!$E$41=\"Non endémique\"),0,IF(AND(OR(COUNTRY_INFO!$H41=0,COUNTRY_INFO!$H41=4,COUNTRY_INFO!$H41=99),OR(COUNTRY_INFO!$J41=0,COUNTRY_INFO!$J41=4)),0,COUNTRY_INFO!$F41))","v":3314},{"$f":"SUM(D41:E41)","v":5331},{"$f":"IF(AND(INTRO!$E$37=\"Non endémique\",INTRO!$E$41=\"Non endémique\"),0,COUNTRY_INFO!P41)","v":0},{"$f":"IF(AND(INTRO!$E$37=\"Non endémique\",INTRO!$E$41=\"Non endémique\"),0,COUNTRY_INFO!R41)","v":0},{"$f":"IF(INTRO!$E$39=\"Non endémique\",IF($G41=1,DEC!I41,0),IF($G41=1,IVM!G41,0))","v":0},null,{"$f":"IF($J41=\"ALB\", IF(INTRO!$E$39=\"Non endémique\",IF($H41<>0,$D41*($H41-$G41),0),$D41*$H41), 0)","v":0},{"$f":"IF($J41=\"ALB\", IF($H41<>0, IF($I41=0, $E41*$H41, $E41*($H41-$G41)),0), 0)","v":0},null,{"$f":"SUM(K41:M41)","v":0},{"$f":"IF($J41=\"MBD\", IF(INTRO!$E$39=\"Non endémique\",IF($H41<>0,$D41*($H41-$G41),0),$D41*$H41),0)","v":0},{"$f":"IF($J41=\"MBD\", IF($H41<>0,IF($I41=0, $E41*$H41, $E41*($H41-$G41)),0), 0 )","v":0},null,{"$f":"SUM(O41:Q41)","v":0},null,{"$f":"IF($I41>$S41, $I41-$S41,0)","v":0},{"$f":"ROUNDUP($I41/200,0)","v":0},null,{"$f":"IF($L41>$V41,$L41-$V41,0)","v":0},{"$f":"ROUNDUP($L41/200,0)","v":0},null,{"$f":"IF($P41>$Y41,$P41-$Y41,0)","v":0},{"$f":"ROUNDUP($P41/150,0)","v":0}]
[{"$f":"IF(AND(INTRO!$E$37=\"Non endémique\",INTRO!$E$41=\"Non endémique\"),\" \",IF(COUNTRY_INFO!A42=0,\" \",COUNTRY_INFO!A42))","v":"Mauritania"},{"$f":"IF(AND(INTRO!$E$37=\"Non endémique\",INTRO!$E$41=\"Non endémique\"),\" \",IF(COUNTRY_INFO!B42=0,\" \",COUNTRY_INFO!B42))","v":"INCHIRI"},{"$f":"IF(AND(INTRO!$E$37=\"Non endémique\",INTRO!$E$41=\"Non endémique\"),\" \",IF(COUNTRY_INFO!C42=0,\" \",COUNTRY_INFO!C42))","v":"BENICHAB"},{"$f":"IF(AND(INTRO!$E$37=\"Non endémique\",INTRO!$E$41=\"Non endémique\"),0,IF(AND(OR(COUNTRY_INFO!$H42=0,COUNTRY_INFO!$H42=4,COUNTRY_INFO!$H42=99),OR(COUNTRY_INFO!$J42=0,COUNTRY_INFO!$J42=4)),0,COUNTRY_INFO!$E42))","v":1011},{"$f":"IF(AND(INTRO!$E$37=\"Non endémique\",INTRO!$E$41=\"Non endémique\"),0,IF(AND(OR(COUNTRY_INFO!$H42=0,COUNTRY_INFO!$H42=4,COUNTRY_INFO!$H42=99),OR(COUNTRY_INFO!$J42=0,COUNTRY_INFO!$J42=4)),0,COUNTRY_INFO!$F42))","v":1660},2671,{"$f":"IF(AND(INTRO!$E$37=\"Non endémique\",INTRO!$E$41=\"Non endémique\"),0,COUNTRY_INFO!P42)","v":0},{"$f":"IF(AND(INTRO!$E$37=\"Non endémique\",INTRO!$E$41=\"Non endémique\"),0,COUNTRY_INFO!R42)","v":0},{"$f":"IF(INTRO!$E$39=\"Non endémique\",IF($G42=1,DEC!I42,0),IF($G42=1,IVM!G42,0))","v":0},null,{"$f":"IF($J42=\"ALB\", IF(INTRO!$E$39=\"Non endémique\",IF($H42<>0,$D42*($H42-$G42),0),$D42*$H42), 0)","v":0},0,null,0,{"$f":"IF($J42=\"MBD\", IF(INTRO!$E$39=\"Non endémique\",IF($H42<>0,$D42*($H42-$G42),0),$D42*$H42),0)","v":0},0,null,0,null,0,0,null,0,0,null,0,0]
[{"$f":"IF(AND(INTRO!$E$37=\"Non endémique\",INTRO!$E$41=\"Non endémique\"),\" \",IF(COUNTRY_INFO!A43=0,\" \",COUNTRY_INFO!A43))","v":"Mauritania"},{"$f":"IF(AND(INTRO!$E$37=\"Non endémique\",INTRO!$E$41=\"Non endémique\"),\" \",IF(COUNTRY_INFO!B43=0,\" \",COUNTRY_INFO!B43))","v":"NOUADHIBOU"},{"$f":"IF(AND(INTRO!$E$37=\"Non endémique\",INTRO!$E$41=\"Non endémique\"),\" \",IF(COUNTRY_INFO!C43=0,\" \",COUNTRY_INFO!C43))","v":"Chami"},{"$f":"IF(AND(INTRO!$E$37=\"Non endémique\",INTRO!$E$41=\"Non endémique\"),0,IF(AND(OR(COUNTRY_INFO!$H43=0,COUNTRY_INFO!$H43=4,COUNTRY_INFO!$H43=99),OR(COUNTRY_INFO!$J43=0,COUNTRY_INFO!$J43=4)),0,COUNTRY_INFO!$E43))","v":0},{"$f":"IF(AND(INTRO!$E$37=\"Non endémique\",INTRO!$E$41=\"Non endémique\"),0,IF(AND(OR(COUNTRY_INFO!$H43=0,COUNTRY_INFO!$H43=4,COUNTRY_INFO!$H43=99),OR(COUNTRY_INFO!$J43=0,COUNTRY_INFO!$J43=4)),0,COUNTRY_INFO!$F43))","v":0},0,{"$f":"IF(AND(INTRO!$E$37=\"Non endémique\",INTRO!$E$41=\"Non endémique\"),0,COUNTRY_INFO!P43)","v":0},{"$f":"IF(AND(INTRO!$E$37=\"Non endémique\",INTRO!$E$41=\"Non endémique\"),0,COUNTRY_INFO!R43)","v":0},{"$f":"IF(INTRO!$E$39=\"Non endémique\",IF($G43=1,DEC!I43,0),IF($G43=1,IVM!G43,0))","v":0},null,{"$f":"IF($J43=\"ALB\", IF(INTRO!$E$39=\"Non endémique\",IF($H43<>0,$D43*($H43-$G43),0),$D43*$H43), 0)","v":0},0,null,0,{"$f":"IF($J43=\"MBD\", IF(INTRO!$E$39=\"Non endémique\",IF($H43<>0,$D43*($H43-$G43),0),$D43*$H43),0)","v":0},0,null,0,null,0,0,null,0,0,null,0,0]
[{"$f":"IF(AND(INTRO!$E$37=\"Non endémique\",INTRO!$E$41=\"Non endémique\"),\" \",IF(COUNTRY_INFO!A44=0,\" \",COUNTRY_INFO!A44))","v":"Mauritania"},{"$f":"IF(AND(INTRO!$E$37=\"Non endémique\",INTRO!$E$41=\"Non endémique\"),\" \",IF(COUNTRY_INFO!B44=0,\" \",COUNTRY_INFO!B44))","v":"NOUADHIBOU"},{"$f":"IF(AND(INTRO!$E$37=\"Non endémique\",INTRO!$E$41=\"Non endémique\"),\" \",IF(COUNTRY_INFO!C44=0,\" \",COUNTRY_INFO!C44))","v":"Nouadhibou"},{"$f":"IF(AND(INTRO!$E$37=\"Non endémique\",INTRO!$E$41=\"Non endémique\"),0,IF(AND(OR(COUNTRY_INFO!$H44=0,COUNTRY_INFO!$H44=4,COUNTRY_INFO!$H44=99),OR(COUNTRY_INFO!$J44=0,COUNTRY_INFO!$J44=4)),0,COUNTRY_INFO!$E44))","v":0},{"$f":"IF(AND(INTRO!$E$37=\"Non endémique\",INTRO!$E$41=\"Non endémique\"),0,IF(AND(OR(COUNTRY_INFO!$H44=0,COUNTRY_INFO!$H44=4,COUNTRY_INFO!$H44=99),OR(COUNTRY_INFO!$J44=0,COUNTRY_INFO!$J44=4)),0,COUNTRY_INFO!$F44))","v":0},0,{"$f":"IF(AND(INTRO!$E$37=\"Non endémique\",INTRO!$E$41=\"Non endémique\"),0,COUNTRY_INFO!P44)","v":0},{"$f":"IF(AND(INTRO!$E$37=\"Non endémique\",INTRO!$E$41=\"Non endémique\"),0,COUNTRY_INFO!R44)","v":0},{"$f":"IF(INTRO!$E$39=\"Non endémique\",IF($G44=1,DEC!I44,0),IF($G44=1,IVM!G44,0))","v":0},null,{"$f":"IF($J44=\"ALB\", IF(INTRO!$E$39=\"Non endémique\",IF($H44<>0,$D44*($H44-$G44),0),$D44*$H44), 0)","v":0},0,null,0,{"$f":"IF($J44=\"MBD\", IF(INTRO!$E$39=\"Non endémique\",IF($H44<>0,$D44*($H44-$G44),0),$D44*$H44),0)","v":0},0,null,0,null,0,0,null,0,0,null,0,0]
[{"$f":"IF(AND(INTRO!$E$37=\"Non endémique\",INTRO!$E$41=\"Non endémique\"),\" \",IF(COUNTRY_INFO!A45=0,\" \",COUNTRY_INFO!A45))","v":"Mauritania"},{"$f":"IF(AND(INTRO!$E$37=\"Non endémique\",INTRO!$E$41=\"Non endémique\"),\" \",IF(COUNTRY_INFO!B45=0,\" \",COUNTRY_INFO!B45))","v":"NOUAKCHOTT"},{"$f":"IF(AND(INTRO!$E$37=\"Non endémique\",INTRO!$E$41=\"Non endémique\"),\" \",IF(COUNTRY_INFO!C45=0,\" \",COUNTRY_INFO!C45))","v":"ARAFAT"},{"$f":"IF(AND(INTRO!$E$37=\"Non endémique\",INTRO!$E$41=\"Non endémique\"),0,IF(AND(OR(COUNTRY_INFO!$H45=0,COUNTRY_INFO!$H45=4,COUNTRY_INFO!$H45=99),OR(COUNTRY_INFO!$J45=0,COUNTRY_INFO!$J45=4)),0,COUNTRY_INFO!$E45))","v":27129},{"$f":"IF(AND(INTRO!$E$37=\"Non endémique\",INTRO!$E$41=\"Non endémique\"),0,IF(AND(OR(COUNTRY_INFO!$H45=0,COUNTRY_INFO!$H45=4,COUNTRY_INFO!$H45=99),OR(COUNTRY_INFO!$J45=0,COUNTRY_INFO!$J45=4)),0,COUNTRY_INFO!$F45))","v":44569},71698,{"$f":"IF(AND(INTRO!$E$37=\"Non endémique\",INTRO!$E$41=\"Non endémique\"),0,COUNTRY_INFO!P45)","v":0},{"$f":"IF(AND(INTRO!$E$37=\"Non endémique\",INTRO!$E$41=\"Non endémique\"),0,COUNTRY_INFO!R45)","v":0},{"$f":"IF(INTRO!$E$39=\"Non endémique\",IF($G45=1,DEC!I45,0),IF($G45=1,IVM!G45,0))","v":0},null,{"$f":"IF($J45=\"ALB\", IF(INTRO!$E$39=\"Non endémique\",IF($H45<>0,$D45*($H45-$G45),0),$D45*$H45), 0)","v":0},0,null,0,{"$f":"IF($J45=\"MBD\", IF(INTRO!$E$39=\"Non endémique\",IF($H45<>0,$D45*($H45-$G45),0),$D45*$H45),0)","v":0},0,null,0,null,0,0,null,0,0,null,0,0]
[{"$f":"IF(AND(INTRO!$E$37=\"Non endémique\",INTRO!$E$41=\"Non endémique\"),\" \",IF(COUNTRY_INFO!A46=0,\" \",COUNTRY_INFO!A46))","v":"Mauritania"},{"$f":"IF(AND(INTRO!$E$37=\"Non endémique\",INTRO!$E$41=\"Non endémique\"),\" \",IF(COUNTRY_INFO!B46=0,\" \",COUNTRY_INFO!B46))","v":"NOUAKCHOTT"},{"$f":"IF(AND(INTRO!$E$37=\"Non endémique\",INTRO!$E$41=\"Non endémique\"),\" \",IF(COUNTRY_INFO!C46=0,\" \",COUNTRY_INFO!C46))","v":"DAR NAIM"},{"$f":"IF(AND(INTRO!$E$37=\"Non endémique\",INTRO!$E$41=\"Non endémique\"),0,IF(AND(OR(COUNTRY_INFO!$H46=0,COUNTRY_INFO!$H46=4,COUNTRY_INFO!$H46=99),OR(COUNTRY_INFO!$J46=0,COUNTRY_INFO!$J46=4)),0,COUNTRY_INFO!$E46))","v":22207},{"$f":"IF(AND(INTRO!$E$37=\"Non endémique\",INTRO!$E$41=\"Non endémique\"),0,IF(AND(OR(COUNTRY_INFO!$H46=0,COUNTRY_INFO!$H46=4,COUNTRY_INFO!$H46=99),OR(COUNTRY_INFO!$J46=0,COUNTRY_INFO!$J46=4)),0,COUNTRY_INFO!$F46))","v":36483},58690,{"$f":"IF(AND(INTRO!$E$37=\"Non endémique\",INTRO!$E$41=\"Non endémique\"),0,COUNTRY_INFO!P46)","v":0},{"$f":"IF(AND(INTRO!$E$37=\"Non endémique\",INTRO!$E$41=\"Non endémique\"),0,COUNTRY_INFO!R46)","v":0},{"$f":"IF(INTRO!$E$39=\"Non endémique\",IF($G46=1,DEC!I46,0),IF($G46=1,IVM!G46,0))","v":0},null,{"$f":"IF($J46=\"ALB\", IF(INTRO!$E$39=\"Non endémique\",IF($H46<>0,$D46*($H46-$G46),0),$D46*$H46), 0)","v":0},0,null,0,{"$f":"IF($J46=\"MBD\", IF(INTRO!$E$39=\"Non endémique\",IF($H46<>0,$D46*($H46-$G46),0),$D46*$H46),0)","v":0},0,null,0,null,0,0,null,0,0,null,0,0]
[{"$f":"IF(AND(INTRO!$E$37=\"Non endémique\",INTRO!$E$41=\"Non endémique\"),\" \",IF(COUNTRY_INFO!A47=0,\" \",COUNTRY_INFO!A47))","v":"Mauritania"},{"$f":"IF(AND(INTRO!$E$37=\"Non endémique\",INTRO!$E$41=\"Non endémique\"),\" \",IF(COUNTRY_INFO!B47=0,\" \",COUNTRY_INFO!B47))","v":"NOUAKCHOTT"},{"$f":"IF(AND(INTRO!$E$37=\"Non endémique\",INTRO!$E$41=\"Non endémique\"),\" \",IF(COUNTRY_INFO!C47=0,\" \",COUNTRY_INFO!C47))","v":"ELMINA"},{"$f":"IF(AND(INTRO!$E$37=\"Non endémique\",INTRO!$E$41=\"Non endémique\"),0,IF(AND(OR(COUNTRY_INFO!$H47=0,COUNTRY_INFO!$H47=4,COUNTRY_INFO!$H47=99),OR(COUNTRY_INFO!$J47=0,COUNTRY_INFO!$J47=4)),0,COUNTRY_INFO!$E47))","v":20454},{"$f":"IF(AND(INTRO!$E$37=\"Non endémique\",INTRO!$E$41=\"Non endémique\"),0,IF(AND(OR(COUNTRY_INFO!$H47=0,COUNTRY_INFO!$H47=4,COUNTRY_INFO!$H47=99),OR(COUNTRY_INFO!$J47=0,COUNTRY_INFO!$J47=4)),0,COUNTRY_INFO!$F47))","v":33603},54057,{"$f":"IF(AND(INTRO!$E$37=\"Non endémique\",INTRO!$E$41=\"Non endémique\"),0,COUNTRY_INFO!P47)","v":0},{"$f":"IF(AND(INTRO!$E$37=\"Non endémique\",INTRO!$E$41=\"Non endémique\"),0,COUNTRY_INFO!R47)","v":0},{"$f":"IF(INTRO!$E$39=\"Non endémique\",IF($G47=1,DEC!I47,0),IF($G47=1,IVM!G47,0))","v":0},null,{"$f":"IF($J47=\"ALB\", IF(INTRO!$E$39=\"Non endémique\",IF($H47<>0,$D47*($H47-$G47),0),$D47*$H47), 0)","v":0},0,null,0,{"$f":"IF($J47=\"MBD\", IF(INTRO!$E$39=\"Non endémique\",IF($H47<>0,$D47*($H47-$G47),0),$D47*$H47),0)","v":0},0,null,0,null,0,0,null,0,0,null,0,0]
[{"$f":"IF(AND(INTRO!$E$37=\"Non endémique\",INTRO!$E$41=\"Non endémique\"),\" \",IF(COUNTRY_INFO!A48=0,\" \",COUNTRY_INFO!A48))","v":"Mauritania"},{"$f":"IF(AND(INTRO!$E$37=\"Non endémique\",INTRO!$E$41=\"Non endémique\"),\" \",IF(COUNTRY_INFO!B48=0,\" \",COUNTRY_INFO!B48))","v":"NOUAKCHOTT"},{"$f":"IF(AND(INTRO!$E$37=\"Non endémique\",INTRO!$E$41=\"Non endémique\"),\" \",IF(COUNTRY_INFO!C48=0,\" \",COUNTRY_INFO!C48))","v":"KSAR"},{"$f":"IF(AND(INTRO!$E$37=\"Non endémique\",INTRO!$E$41=\"Non endémique\"),0,IF(AND(OR(COUNTRY_INFO!$H48=0,COUNTRY_INFO!$H48=4,COUNTRY_INFO!$H48=99),OR(COUNTRY_INFO!$J48=0,COUNTRY_INFO!$J48=4)),0,COUNTRY_INFO!$E48))","v":7282},{"$f":"IF(AND(INTRO!$E$37=\"Non endémique\",INTRO!$E$41=\"Non endémique\"),0,IF(AND(OR(COUNTRY_INFO!$H48=0,COUNTRY_INFO!$H48=4,COUNTRY_INFO!$H48=99),OR(COUNTRY_INFO!$J48=0,COUNTRY_INFO!$J48=4)),0,COUNTRY_INFO!$F48))","v":11963},19245,{"$f":"IF(AND(INTRO!$E$37=\"Non endémique\",INTRO!$E$41=\"Non endémique\"),0,COUNTRY_INFO!P48)","v":0},{"$f":"IF(AND(INTRO!$E$37=\"Non endémique\",INTRO!$E$41=\"Non endémique\"),0,COUNTRY_INFO!R48)","v":1},{"$f":"IF(INTRO!$E$39=\"Non endémique\",IF($G48=1,DEC!I48,0),IF($G48=1,IVM!G48,0))","v":0},"ALB",{"$f":"IF($J48=\"ALB\", IF(INTRO!$E$39=\"Non endémique\",IF($H48<>0,$D48*($H48-$G48),0),$D48*$H48), 0)","v":7282},11963,null,19245,{"$f":"IF($J48=\"MBD\", IF(INTRO!$E$39=\"Non endémique\",IF($H48<>0,$D48*($H48-$G48),0),$D48*$H48),0)","v":0},0,null,0,null,0,0,null,11963,60,null,0,0]
[{"$f":"IF(AND(INTRO!$E$37=\"Non endémique\",INTRO!$E$41=\"Non endémique\"),\" \",IF(COUNTRY_INFO!A49=0,\" \",COUNTRY_INFO!A49))","v":"Mauritania"},{"$f":"IF(AND(INTRO!$E$37=\"Non endémique\",INTRO!$E$41=\"Non endémique\"),\" \",IF(COUNTRY_INFO!B49=0,\" \",COUNTRY_INFO!B49))","v":"NOUAKCHOTT"},{"$f":"IF(AND(INTRO!$E$37=\"Non endémique\",INTRO!$E$41=\"Non endémique\"),\" \",IF(COUNTRY_INFO!C49=0,\" \",COUNTRY_INFO!C49))","v":"RIYAD"},{"$f":"IF(AND(INTRO!$E$37=\"Non endémique\",INTRO!$E$41=\"Non endémique\"),0,IF(AND(OR(COUNTRY_INFO!$H49=0,COUNTRY_INFO!$H49=4,COUNTRY_INFO!$H49=99),OR(COUNTRY_INFO!$J49=0,COUNTRY_INFO!$J49=4)),0,COUNTRY_INFO!$E49))","v":18042},{"$f":"IF(AND(INTRO!$E$37=\"Non endémique\",INTRO!$E$41=\"Non endémique\"),0,IF(AND(OR(COUNTRY_INFO!$H49=0,COUNTRY_INFO!$H49=4,COUNTRY_INFO!$H49=99),OR(COUNTRY_INFO!$J49=0,COUNTRY_INFO!$J49=4)),0,COUNTRY_INFO!$F49))","v":29641},47683,{"$f":"IF(AND(INTRO!$E$37=\"Non endémique\",INTRO!$E$41=\"Non endémique\"),0,COUNTRY_INFO!P49)","v":0},{"$f":"IF(AND(INTRO!$E$37=\"Non endémique\",INTRO!$E$41=\"Non endémique\"),0,COUNTRY_INFO!R49)","v":1},{"$f":"IF(INTRO!$E$39=\"Non endémique\",IF($G49=1,DEC!I49,0),IF($G49=1,IVM!G49,0))","v":0},"ALB",{"$f":"IF($J49=\"ALB\", IF(INTRO!$E$39=\"Non endémique\",IF($H49<>0,$D49*($H49-$G49),0),$D49*$H49), 0)","v":18042},29641,null,47683,{"$f":"IF($J49=\"MBD\", IF(INTRO!$E$39=\"Non endémique\",IF($H49<>0,$D49*($H49-$G49),0),$D49*$H49),0)","v":0},0,null,0,null,0,0,null,29641,149,null,0,0]
[{"$f":"IF(AND(INTRO!$E$37=\"Non endémique\",INTRO!$E$41=\"Non endémique\"),\" \",IF(COUNTRY_INFO!A50=0,\" \",COUNTRY_INFO!A50))","v":"Mauritania"},{"$f":"IF(AND(INTRO!$E$37=\"Non endémique\",INTRO!$E$41=\"Non endémique\"),\" \",IF(COUNTRY_INFO!B50=0,\" \",COUNTRY_INFO!B50))","v":"NOUAKCHOTT"},{"$f":"IF(AND(INTRO!$E$37=\"Non endémique\",INTRO!$E$41=\"Non endémique\"),\" \",IF(COUNTRY_INFO!C50=0,\" \",COUNTRY_INFO!C50))","v":"SEBKHA"},{"$f":"IF(AND(INTRO!$E$37=\"Non endémique\",INTRO!$E$41=\"Non endémique\"),0,IF(AND(OR(COUNTRY_INFO!$H50=0,COUNTRY_INFO!$H50=4,COUNTRY_INFO!$H50=99),OR(COUNTRY_INFO!$J50=0,COUNTRY_INFO!$J50=4)),0,COUNTRY_INFO!$E50))","v":11138},{"$f":"IF(AND(INTRO!$E$37=\"Non endémique\",INTRO!$E$41=\"Non endémique\"),0,IF(AND(OR(COUNTRY_INFO!$H50=0,COUNTRY_INFO!$H50=4,COUNTRY_INFO!$H50=99),OR(COUNTRY_INFO!$J50=0,COUNTRY_INFO!$J50=4)),0,COUNTRY_INFO!$F50))","v":18298},29436,{"$f":"IF(AND(INTRO!$E$37=\"Non endémique\",INTRO!$E$41=\"Non endémique\"),0,COUNTRY_INFO!P50)","v":0},{"$f":"IF(AND(INTRO!$E$37=\"Non endémique\",INTRO!$E$41=\"Non endémique\"),0,COUNTRY_INFO!R50)","v":1},{"$f":"IF(INTRO!$E$39=\"Non endémique\",IF($G50=1,DEC!I50,0),IF($G50=1,IVM!G50,0))","v":0},"ALB",{"$f":"IF($J50=\"ALB\", IF(INTRO!$E$39=\"Non endémique\",IF($H50<>0,$D50*($H50-$G50),0),$D50*$H50), 0)","v":11138},18298,null,29436,{"$f":"IF($J50=\"MBD\", IF(INTRO!$E$39=\"Non endémique\",IF($H50<>0,$D50*($H50-$G50),0),$D50*$H50),0)","v":0},0,null,0,null,0,0,null,18298,92,null,0,0]
[{"$f":"IF(AND(INTRO!$E$37=\"Non endémique\",INTRO!$E$41=\"Non endémique\"),\" \",IF(COUNTRY_INFO!A51=0,\" \",COUNTRY_INFO!A51))","v":"Mauritania"},{"$f":"IF(AND(INTRO!$E$37=\"Non endémique\",INTRO!$E$41=\"Non endémique\"),\" \",IF(COUNTRY_INFO!B51=0,\" \",COUNTRY_INFO!B51))","v":"NOUAKCHOTT"},{"$f":"IF(AND(INTRO!$E$37=\"Non endémique\",INTRO!$E$41=\"Non endémique\"),\" \",IF(COUNTRY_INFO!C51=0,\" \",COUNTRY_INFO!C51))","v":"TEVRAGH ZEIN"},{"$f":"IF(AND(INTRO!$E$37=\"Non endémique\",INTRO!$E$41=\"Non endémique\"),0,IF(AND(OR(COUNTRY_INFO!$H51=0,COUNTRY_INFO!$H51=4,COUNTRY_INFO!$H51=99),OR(COUNTRY_INFO!$J51=0,COUNTRY_INFO!$J51=4)),0,COUNTRY_INFO!$E51))","v":7144},{"$f":"IF(AND(INTRO!$E$37=\"Non endémique\",INTRO!$E$41=\"Non endémique\"),0,IF(AND(OR(COUNTRY_INFO!$H51=0,COUNTRY_INFO!$H51=4,COUNTRY_INFO!$H51=99),OR(COUNTRY_INFO!$J51=0,COUNTRY_INFO!$J51=4)),0,COUNTRY_INFO!$F51))","v":11736},18880,{"$f":"IF(AND(INTRO!$E$37=\"Non endémique\",INTRO!$E$41=\"Non endémique\"),0,COUNTRY_INFO!P51)","v":0},{"$f":"IF(AND(INTRO!$E$37=\"Non endémique\",INTRO!$E$41=\"Non endémique\"),0,COUNTRY_INFO!R51)","v":0},{"$f":"IF(INTRO!$E$39=\"Non endémique\",IF($G51=1,DEC!I51,0),IF($G51=1,IVM!G51,0))","v":0},null,{"$f":"IF($J51=\"ALB\", IF(INTRO!$E$39=\"Non endémique\",IF($H51<>0,$D51*($H51-$G51),0),$D51*$H51), 0)","v":0},0,null,0,{"$f":"IF($J51=\"MBD\", IF(INTRO!$E$39=\"Non endémique\",IF($H51<>0,$D51*($H51-$G51),0),$D51*$H51),0)","v":0},0,null,0,null,0,0,null,0,0,null,0,0]
[{"$f":"IF(AND(INTRO!$E$37=\"Non endémique\",INTRO!$E$41=\"Non endémique\"),\" \",IF(COUNTRY_INFO!A52=0,\" \",COUNTRY_INFO!A52))","v":"Mauritania"},{"$f":"IF(AND(INTRO!$E$37=\"Non endémique\",INTRO!$E$41=\"Non endémique\"),\" \",IF(COUNTRY_INFO!B52=0,\" \",COUNTRY_INFO!B52))","v":"NOUAKCHOTT"},{"$f":"IF(AND(INTRO!$E$37=\"Non endémique\",INTRO!$E$41=\"Non endémique\"),\" \",IF(COUNTRY_INFO!C52=0,\" \",COUNTRY_INFO!C52))","v":"TEYARET"},{"$f":"IF(AND(INTRO!$E$37=\"Non endémique\",INTRO!$E$41=\"Non endémique\"),0,IF(AND(OR(COUNTRY_INFO!$H52=0,COUNTRY_INFO!$H52=4,COUNTRY_INFO!$H52=99),OR(COUNTRY_INFO!$J52=0,COUNTRY_INFO!$J52=4)),0,COUNTRY_INFO!$E52))","v":12153},{"$f":"IF(AND(INTRO!$E$37=\"Non endémique\",INTRO!$E$41=\"Non endémique\"),0,IF(AND(OR(COUNTRY_INFO!$H52=0,COUNTRY_INFO!$H52=4,COUNTRY_INFO!$H52=99),OR(COUNTRY_INFO!$J52=0,COUNTRY_INFO!$J52=4)),0,COUNTRY_INFO!$F52))","v":19965},32118,{"$f":"IF(AND(INTRO!$E$37=\"Non endémique\",INTRO!$E$41=\"Non endémique\"),0,COUNTRY_INFO!P52)","v":0},{"$f":"IF(AND(INTRO!$E$37=\"Non endémique\",INTRO!$E$41=\"Non endémique\"),0,COUNTRY_INFO!R52)","v":0},{"$f":"IF(INTRO!$E$39=\"Non endémique\",IF($G52=1,DEC!I52,0),IF($G52=1,IVM!G52,0))","v":0},null,{"$f":"IF($J52=\"ALB\", IF(INTRO!$E$39=\"Non endémique\",IF($H52<>0,$D52*($H52-$G52),0),$D52*$H52), 0)","v":0},0,null,0,{"$f":"IF($J52=\"MBD\", IF(INTRO!$E$39=\"Non endémique\",IF($H52<>0,$D52*($H52-$G52),0),$D52*$H52),0)","v":0},0,null,0,null,0,0,null,0,0,null,0,0]
[{"$f":"IF(AND(INTRO!$E$37=\"Non endémique\",INTRO!$E$41=\"Non endémique\"),\" \",IF(COUNTRY_INFO!A53=0,\" \",COUNTRY_INFO!A53))","v":"Mauritania"},{"$f":"IF(AND(INTRO!$E$37=\"Non endémique\",INTRO!$E$41=\"Non endémique\"),\" \",IF(COUNTRY_INFO!B53=0,\" \",COUNTRY_INFO!B53))","v":"NOUAKCHOTT"},{"$f":"IF(AND(INTRO!$E$37=\"Non endémique\",INTRO!$E$41=\"Non endémique\"),\" \",IF(COUNTRY_INFO!C53=0,\" \",COUNTRY_INFO!C53))","v":"TOUJENINE"},{"$f":"IF(AND(INTRO!$E$37=\"Non endémique\",INTRO!$E$41=\"Non endémique\"),0,IF(AND(OR(COUNTRY_INFO!$H53=0,COUNTRY_INFO!$H53=4,COUNTRY_INFO!$H53=99),OR(COUNTRY_INFO!$J53=0,COUNTRY_INFO!$J53=4)),0,COUNTRY_INFO!$E53))","v":22207},{"$f":"IF(AND(INTRO!$E$37=\"Non endémique\",INTRO!$E$41=\"Non endémique\"),0,IF(AND(OR(COUNTRY_INFO!$H53=0,COUNTRY_INFO!$H53=4,COUNTRY_INFO!$H53=99),OR(COUNTRY_INFO!$J53=0,COUNTRY_INFO!$J53=4)),0,COUNTRY_INFO!$F53))","v":36482},58689,{"$f":"IF(AND(INTRO!$E$37=\"Non endémique\",INTRO!$E$41=\"Non endémique\"),0,COUNTRY_INFO!P53)","v":0},{"$f":"IF(AND(INTRO!$E$37=\"Non endémique\",INTRO!$E$41=\"Non endémique\"),0,COUNTRY_INFO!R53)","v":0},{"$f":"IF(INTRO!$E$39=\"Non endémique\",IF($G53=1,DEC!I53,0),IF($G53=1,IVM!G53,0))","v":0},null,{"$f":"IF($J53=\"ALB\", IF(INTRO!$E$39=\"Non endémique\",IF($H53<>0,$D53*($H53-$G53),0),$D53*$H53), 0)","v":0},0,null,0,{"$f":"IF($J53=\"MBD\", IF(INTRO!$E$39=\"Non endémique\",IF($H53<>0,$D53*($H53-$G53),0),$D53*$H53),0)","v":0},0,null,0,null,0,0,null,0,0,null,0,0]
[{"$f":"IF(AND(INTRO!$E$37=\"Non endémique\",INTRO!$E$41=\"Non endémique\"),\" \",IF(COUNTRY_INFO!A54=0,\" \",COUNTRY_INFO!A54))","v":"Mauritania"},{"$f":"IF(AND(INTRO!$E$37=\"Non endémique\",INTRO!$E$41=\"Non endémique\"),\" \",IF(COUNTRY_INFO!B54=0,\" \",COUNTRY_INFO!B54))","v":"TAGANT"},{"$f":"IF(AND(INTRO!$E$37=\"Non endémique\",INTRO!$E$41=\"Non endémique\"),\" \",IF(COUNTRY_INFO!C54=0,\" \",COUNTRY_INFO!C54))","v":"Moudjéria"},{"$f":"IF(AND(INTRO!$E$37=\"Non endémique\",INTRO!$E$41=\"Non endémique\"),0,IF(AND(OR(COUNTRY_INFO!$H54=0,COUNTRY_INFO!$H54=4,COUNTRY_INFO!$H54=99),OR(COUNTRY_INFO!$J54=0,COUNTRY_INFO!$J54=4)),0,COUNTRY_INFO!$E54))","v":6435},{"$f":"IF(AND(INTRO!$E$37=\"Non endémique\",INTRO!$E$41=\"Non endémique\"),0,IF(AND(OR(COUNTRY_INFO!$H54=0,COUNTRY_INFO!$H54=4,COUNTRY_INFO!$H54=99),OR(COUNTRY_INFO!$J54=0,COUNTRY_INFO!$J54=4)),0,COUNTRY_INFO!$F54))","v":10571},17006,{"$f":"IF(AND(INTRO!$E$37=\"Non endémique\",INTRO!$E$41=\"Non endémique\"),0,COUNTRY_INFO!P54)","v":0},{"$f":"IF(AND(INTRO!$E$37=\"Non endémique\",INTRO!$E$41=\"Non endémique\"),0,COUNTRY_INFO!R54)","v":0},{"$f":"IF(INTRO!$E$39=\"Non endémique\",IF($G54=1,DEC!I54,0),IF($G54=1,IVM!G54,0))","v":0},null,{"$f":"IF($J54=\"ALB\", IF(INTRO!$E$39=\"Non endémique\",IF($H54<>0,$D54*($H54-$G54),0),$D54*$H54), 0)","v":0},0,null,0,{"$f":"IF($J54=\"MBD\", IF(INTRO!$E$39=\"Non endémique\",IF($H54<>0,$D54*($H54-$G54),0),$D54*$H54),0)","v":0},0,null,0,null,0,0,null,0,0,null,0,0]
[{"$f":"IF(AND(INTRO!$E$37=\"Non endémique\",INTRO!$E$41=\"Non endémique\"),\" \",IF(COUNTRY_INFO!A55=0,\" \",COUNTRY_INFO!A55))","v":"Mauritania"},{"$f":"IF(AND(INTRO!$E$37=\"Non endémique\",INTRO!$E$41=\"Non endémique\"),\" \",IF(COUNTRY_INFO!B55=0,\" \",COUNTRY_INFO!B55))","v":"TAGANT"},{"$f":"IF(AND(INTRO!$E$37=\"Non endémique\",INTRO!$E$41=\"Non endémique\"),\" \",IF(COUNTRY_INFO!C55=0,\" \",COUNTRY_INFO!C55))","v":"Tichitt"},{"$f":"IF(AND(INTRO!$E$37=\"Non endémique\",INTRO!$E$41=\"Non endémique\"),0,IF(AND(OR(COUNTRY_INFO!$H55=0,COUNTRY_INFO!$H55=4,COUNTRY_INFO!$H55=99),OR(COUNTRY_INFO!$J55=0,COUNTRY_INFO!$J55=4)),0,COUNTRY_INFO!$E55))","v":0},{"$f":"IF(AND(INTRO!$E$37=\"Non endémique\",INTRO!$E$41=\"Non endémique\"),0,IF(AND(OR(COUNTRY_INFO!$H55=0,COUNTRY_INFO!$H55=4,COUNTRY_INFO!$H55=99),OR(COUNTRY_INFO!$J55=0,COUNTRY_INFO!$J55=4)),0,COUNTRY_INFO!$F55))","v":0},0,{"$f":"IF(AND(INTRO!$E$37=\"Non endémique\",INTRO!$E$41=\"Non endémique\"),0,COUNTRY_INFO!P55)","v":0},{"$f":"IF(AND(INTRO!$E$37=\"Non endémique\",INTRO!$E$41=\"Non endémique\"),0,COUNTRY_INFO!R55)","v":0},{"$f":"IF(INTRO!$E$39=\"Non endémique\",IF($G55=1,DEC!I55,0),IF($G55=1,IVM!G55,0))","v":0},null,{"$f":"IF($J55=\"ALB\", IF(INTRO!$E$39=\"Non endémique\",IF($H55<>0,$D55*($H55-$G55),0),$D55*$H55), 0)","v":0},0,null,0,{"$f":"IF($J55=\"MBD\", IF(INTRO!$E$39=\"Non endémique\",IF($H55<>0,$D55*($H55-$G55),0),$D55*$H55),0)","v":0},0,null,0,null,0,0,null,0,0,null,0,0]
[{"$f":"IF(AND(INTRO!$E$37=\"Non endémique\",INTRO!$E$41=\"Non endémique\"),\" \",IF(COUNTRY_INFO!A56=0,\" \",COUNTRY_INFO!A56))","v":"Mauritania"},{"$f":"IF(AND(INTRO!$E$37=\"Non endémique\",INTRO!$E$41=\"Non endémique\"),\" \",IF(COUNTRY_INFO!B56=0,\" \",COUNTRY_INFO!B56))","v":"TAGANT"},{"$f":"IF(AND(INTRO!$E$37=\"Non endémique\",INTRO!$E$41=\"Non endémique\"),\" \",IF(COUNTRY_INFO!C56=0,\" \",COUNTRY_INFO!C56))","v":"Tidjikja"},{"$f":"IF(AND(INTRO!$E$37=\"Non endémique\",INTRO!$E$41=\"Non endémique\"),0,IF(AND(OR(COUNTRY_INFO!$H56=0,COUNTRY_INFO!$H56=4,COUNTRY_INFO!$H56=99),OR(COUNTRY_INFO!$J56=0,COUNTRY_INFO!$J56=4)),0,COUNTRY_INFO!$E56))","v":5377},{"$f":"IF(AND(INTRO!$E$37=\"Non endémique\",INTRO!$E$41=\"Non endémique\"),0,IF(AND(OR(COUNTRY_INFO!$H56=0,COUNTRY_INFO!$H56=4,COUNTRY_INFO!$H56=99),OR(COUNTRY_INFO!$J56=0,COUNTRY_INFO!$J56=4)),0,COUNTRY_INFO!$F56))","v":8833},14210,{"$f":"IF(AND(INTRO!$E$37=\"Non endémique\",INTRO!$E$41=\"Non endémique\"),0,COUNTRY_INFO!P56)","v":0},{"$f":"IF(AND(INTRO!$E$37=\"Non endémique\",INTRO!$E$41=\"Non endémique\"),0,COUNTRY_INFO!R56)","v":0},{"$f":"IF(INTRO!$E$39=\"Non endémique\",IF($G56=1,DEC!I56,0),IF($G56=1,IVM!G56,0))","v":0},null,{"$f":"IF($J56=\"ALB\", IF(INTRO!$E$39=\"Non endémique\",IF($H56<>0,$D56*($H56-$G56),0),$D56*$H56), 0)","v":0},0,null,0,{"$f":"IF($J56=\"MBD\", IF(INTRO!$E$39=\"Non endémique\",IF($H56<>0,$D56*($H56-$G56),0),$D56*$H56),0)","v":0},0,null,0,null,0,0,null,0,0,null,0,0]
[{"$f":"IF(AND(INTRO!$E$37=\"Non endémique\",INTRO!$E$41=\"Non endémique\"),\" \",IF(COUNTRY_INFO!A57=0,\" \",COUNTRY_INFO!A57))","v":"Mauritania"},{"$f":"IF(AND(INTRO!$E$37=\"Non endémique\",INTRO!$E$41=\"Non endémique\"),\" \",IF(COUNTRY_INFO!B57=0,\" \",COUNTRY_INFO!B57))","v":"TIRIS ZEMOUR"},{"$f":"IF(AND(INTRO!$E$37=\"Non endémique\",INTRO!$E$41=\"Non endémique\"),\" \",IF(COUNTRY_INFO!C57=0,\" \",COUNTRY_INFO!C57))","v":"Bir Moghrein"},{"$f":"IF(AND(INTRO!$E$37=\"Non endémique\",INTRO!$E$41=\"Non endémique\"),0,IF(AND(OR(COUNTRY_INFO!$H57=0,COUNTRY_INFO!$H57=4,COUNTRY_INFO!$H57=99),OR(COUNTRY_INFO!$J57=0,COUNTRY_INFO!$J57=4)),0,COUNTRY_INFO!$E57))","v":0},{"$f":"IF(AND(INTRO!$E$37=\"Non endémique\",INTRO!$E$41=\"Non endémique\"),0,IF(AND(OR(COUNTRY_INFO!$H57=0,COUNTRY_INFO!$H57=4,COUNTRY_INFO!$H57=99),OR(COUNTRY_INFO!$J57=0,COUNTRY_INFO!$J57=4)),0,COUNTRY_INFO!$F57))","v":0},0,{"$f":"IF(AND(INTRO!$E$37=\"Non endémique\",INTRO!$E$41=\"Non endémique\"),0,COUNTRY_INFO!P57)","v":0},{"$f":"IF(AND(INTRO!$E$37=\"Non endémique\",INTRO!$E$41=\"Non endémique\"),0,COUNTRY_INFO!R57)","v":0},{"$f":"IF(INTRO!$E$39=\"Non endémique\",IF($G57=1,DEC!I57,0),IF($G57=1,IVM!G57,0))","v":0},null,{"$f":"IF($J57=\"ALB\", IF(INTRO!$E$39=\"Non endémique\",IF($H57<>0,$D57*($H57-$G57),0),$D57*$H57), 0)","v":0},0,null,0,{"$f":"IF($J57=\"MBD\", IF(INTRO!$E$39=\"Non endémique\",IF($H57<>0,$D57*($H57-$G57),0),$D57*$H57),0)","v":0},0,null,0,null,0,0,null,0,0,null,0,0]
[{"$f":"IF(AND(INTRO!$E$37=\"Non endémique\",INTRO!$E$41=\"Non endémique\"),\" \",IF(COUNTRY_INFO!A58=0,\" \",COUNTRY_INFO!A58))","v":"Mauritania"},{"$f":"IF(AND(INTRO!$E$37=\"Non endémique\",INTRO!$E$41=\"Non endémique\"),\" \",IF(COUNTRY_INFO!B58=0,\" \",COUNTRY_INFO!B58))","v":"TIRIS ZEMOUR"},{"$f":"IF(AND(INTRO!$E$37=\"Non endémique\",INTRO!$E$41=\"Non endémique\"),\" \",IF(COUNTRY_INFO!C58=0,\" \",COUNTRY_INFO!C58))","v":"F'Dérick"},{"$f":"IF(AND(INTRO!$E$37=\"Non endémique\",INTRO!$E$41=\"Non endémique\"),0,IF(AND(OR(COUNTRY_INFO!$H58=0,COUNTRY_INFO!$H58=4,COUNTRY_INFO!$H58=99),OR(COUNTRY_INFO!$J58=0,COUNTRY_INFO!$J58=4)),0,COUNTRY_INFO!$E58))","v":727},{"$f":"IF(AND(INTRO!$E$37=\"Non endémique\",INTRO!$E$41=\"Non endémique\"),0,IF(AND(OR(COUNTRY_INFO!$H58=0,COUNTRY_INFO!$H58=4,COUNTRY_INFO!$H58=99),OR(COUNTRY_INFO!$J58=0,COUNTRY_INFO!$J58=4)),0,COUNTRY_INFO!$F58))","v":1194},1921,{"$f":"IF(AND(INTRO!$E$37=\"Non endémique\",INTRO!$E$41=\"Non endémique\"),0,COUNTRY_INFO!P58)","v":0},{"$f":"IF(AND(INTRO!$E$37=\"Non endémique\",INTRO!$E$41=\"Non endémique\"),0,COUNTRY_INFO!R58)","v":0},{"$f":"IF(INTRO!$E$39=\"Non endémique\",IF($G58=1,DEC!I58,0),IF($G58=1,IVM!G58,0))","v":0},null,{"$f":"IF($J58=\"ALB\", IF(INTRO!$E$39=\"Non endémique\",IF($H58<>0,$D58*($H58-$G58),0),$D58*$H58), 0)","v":0},0,null,0,{"$f":"IF($J58=\"MBD\", IF(INTRO!$E$39=\"Non endémique\",IF($H58<>0,$D58*($H58-$G58),0),$D58*$H58),0)","v":0},0,null,0,null,0,0,null,0,0,null,0,0]
[{"$f":"IF(AND(INTRO!$E$37=\"Non endémique\",INTRO!$E$41=\"Non endémique\"),\" \",IF(COUNTRY_INFO!A59=0,\" \",COUNTRY_INFO!A59))","v":"Mauritania"},{"$f":"IF(AND(INTRO!$E$37=\"Non endémique\",INTRO!$E$41=\"Non endémique\"),\" \",IF(COUNTRY_INFO!B59=0,\" \",COUNTRY_INFO!B59))","v":"TIRIS ZEMOUR"},{"$f":"IF(AND(INTRO!$E$37=\"Non endémique\",INTRO!$E$41=\"Non endémique\"),\" \",IF(COUNTRY_INFO!C59=0,\" \",COUNTRY_INFO!C59))","v":"Zouératt"},{"$f":"IF(AND(INTRO!$E$37=\"Non endémique\",INTRO!$E$41=\"Non endémique\"),0,IF(AND(OR(COUNTRY_INFO!$H59=0,COUNTRY_INFO!$H59=4,COUNTRY_INFO!$H59=99),OR(COUNTRY_INFO!$J59=0,COUNTRY_INFO!$J59=4)),0,COUNTRY_INFO!$E59))","v":6884},{"$f":"IF(AND(INTRO!$E$37=\"Non endémique\",INTRO!$E$41=\"Non endémique\"),0,IF(AND(OR(COUNTRY_INFO!$H59=0,COUNTRY_INFO!$H59=4,COUNTRY_INFO!$H59=99),OR(COUNTRY_INFO!$J59=0,COUNTRY_INFO!$J59=4)),0,COUNTRY_INFO!$F59))","v":11309},18193,{"$f":"IF(AND(INTRO!$E$37=\"Non endémique\",INTRO!$E$41=\"Non endémique\"),0,COUNTRY_INFO!P59)","v":0},{"$f":"IF(AND(INTRO!$E$37=\"Non endémique\",INTRO!$E$41=\"Non endémique\"),0,COUNTRY_INFO!R59)","v":0},{"$f":"IF(INTRO!$E$39=\"Non endémique\",IF($G59=1,DEC!I59,0),IF($G59=1,IVM!G59,0))","v":0},null,{"$f":"IF($J59=\"ALB\", IF(INTRO!$E$39=\"Non endémique\",IF($H59<>0,$D59*($H59-$G59),0),$D59*$H59), 0)","v":0},0,null,0,{"$f":"IF($J59=\"MBD\", IF(INTRO!$E$39=\"Non endémique\",IF($H59<>0,$D59*($H59-$G59),0),$D59*$H59),0)","v":0},0,null,0,null,0,0,null,0,0,null,0,0]
[{"$f":"IF(AND(INTRO!$E$37=\"Non endémique\",INTRO!$E$41=\"Non endémique\"),\" \",IF(COUNTRY_INFO!A60=0,\" \",COUNTRY_INFO!A60))","v":"Mauritania"},{"$f":"IF(AND(INTRO!$E$37=\"Non endémique\",INTRO!$E$41=\"Non endémique\"),\" \",IF(COUNTRY_INFO!B60=0,\" \",COUNTRY_INFO!B60))","v":"TRARZA"},{"$f":"IF(AND(INTRO!$E$37=\"Non endémique\",INTRO!$E$41=\"Non endémique\"),\" \",IF(COUNTRY_INFO!C60=0,\" \",COUNTRY_INFO!C60))","v":"Boutilimitt"},{"$f":"IF(AND(INTRO!$E$37=\"Non endémique\",INTRO!$E$41=\"Non endémique\"),0,IF(AND(OR(COUNTRY_INFO!$H60=0,COUNTRY_INFO!$H60=4,COUNTRY_INFO!$H60=99),OR(COUNTRY_INFO!$J60=0,COUNTRY_INFO!$J60=4)),0,COUNTRY_INFO!$E60))","v":0},{"$f":"IF(AND(INTRO!$E$37=\"Non endémique\",INTRO!$E$41=\"Non endémique\"),0,IF(AND(OR(COUNTRY_INFO!$H60=0,COUNTRY_INFO!$H60=4,COUNTRY_INFO!$H60=99),OR(COUNTRY_INFO!$J60=0,COUNTRY_INFO!$J60=4)),0,COUNTRY_INFO!$F60))","v":0},0,{"$f":"IF(AND(INTRO!$E$37=\"Non endémique\",INTRO!$E$41=\"Non endémique\"),0,COUNTRY_INFO!P60)","v":0},{"$f":"IF(AND(INTRO!$E$37=\"Non endémique\",INTRO!$E$41=\"Non endémique\"),0,COUNTRY_INFO!R60)","v":0},{"$f":"IF(INTRO!$E$39=\"Non endémique\",IF($G60=1,DEC!I60,0),IF($G60=1,IVM!G60,0))","v":0},null,{"$f":"IF($J60=\"ALB\", IF(INTRO!$E$39=\"Non endémique\",IF($H60<>0,$D60*($H60-$G60),0),$D60*$H60), 0)","v":0},0,null,0,{"$f":"IF($J60=\"MBD\", IF(INTRO!$E$39=\"Non endémique\",IF($H60<>0,$D60*($H60-$G60),0),$D60*$H60),0)","v":0},0,null,0,null,0,0,null,0,0,null,0,0]
[{"$f":"IF(AND(INTRO!$E$37=\"Non endémique\",INTRO!$E$41=\"Non endémique\"),\" \",IF(COUNTRY_INFO!A61=0,\" \",COUNTRY_INFO!A61))","v":"Mauritania"},{"$f":"IF(AND(INTRO!$E$37=\"Non endémique\",INTRO!$E$41=\"Non endémique\"),\" \",IF(COUNTRY_INFO!B61=0,\" \",COUNTRY_INFO!B61))","v":"TRARZA"},{"$f":"IF(AND(INTRO!$E$37=\"Non endémique\",INTRO!$E$41=\"Non endémique\"),\" \",IF(COUNTRY_INFO!C61=0,\" \",COUNTRY_INFO!C61))","v":"Keur Maceine"},{"$f":"IF(AND(INTRO!$E$37=\"Non endémique\",INTRO!$E$41=\"Non endémique\"),0,IF(AND(OR(COUNTRY_INFO!$H61=0,COUNTRY_INFO!$H61=4,COUNTRY_INFO!$H61=99),OR(COUNTRY_INFO!$J61=0,COUNTRY_INFO!$J61=4)),0,COUNTRY_INFO!$E61))","v":4126},{"$f":"IF(AND(INTRO!$E$37=\"Non endémique\",INTRO!$E$41=\"Non endémique\"),0,IF(AND(OR(COUNTRY_INFO!$H61=0,COUNTRY_INFO!$H61=4,COUNTRY_INFO!$H61=99),OR(COUNTRY_INFO!$J61=0,COUNTRY_INFO!$J61=4)),0,COUNTRY_INFO!$F61))","v":6778},10904,{"$f":"IF(AND(INTRO!$E$37=\"Non endémique\",INTRO!$E$41=\"Non endémique\"),0,COUNTRY_INFO!P61)","v":0},{"$f":"IF(AND(INTRO!$E$37=\"Non endémique\",INTRO!$E$41=\"Non endémique\"),0,COUNTRY_INFO!R61)","v":0},{"$f":"IF(INTRO!$E$39=\"Non endémique\",IF($G61=1,DEC!I61,0),IF($G61=1,IVM!G61,0))","v":0},null,{"$f":"IF($J61=\"ALB\", IF(INTRO!$E$39=\"Non endémique\",IF($H61<>0,$D61*($H61-$G61),0),$D61*$H61), 0)","v":0},0,null,0,{"$f":"IF($J61=\"MBD\", IF(INTRO!$E$39=\"Non endémique\",IF($H61<>0,$D61*($H61-$G61),0),$D61*$H61),0)","v":0},0,null,0,null,0,0,null,0,0,null,0,0]
[{"$f":"IF(AND(INTRO!$E$37=\"Non endémique\",INTRO!$E$41=\"Non endémique\"),\" \",IF(COUNTRY_INFO!A62=0,\" \",COUNTRY_INFO!A62))","v":"Mauritania"},{"$f":"IF(AND(INTRO!$E$37=\"Non endémique\",INTRO!$E$41=\"Non endémique\"),\" \",IF(COUNTRY_INFO!B62=0,\" \",COUNTRY_INFO!B62))","v":"TRARZA"},{"$f":"IF(AND(INTRO!$E$37=\"Non endémique\",INTRO!$E$41=\"Non endémique\"),\" \",IF(COUNTRY_INFO!C62=0,\" \",COUNTRY_INFO!C62))","v":"Mederdra"},{"$f":"IF(AND(INTRO!$E$37=\"Non endémique\",INTRO!$E$41=\"Non endémique\"),0,IF(AND(OR(COUNTRY_INFO!$H62=0,COUNTRY_INFO!$H62=4,COUNTRY_INFO!$H62=99),OR(COUNTRY_INFO!$J62=0,COUNTRY_INFO!$J62=4)),0,COUNTRY_INFO!$E62))","v":0},{"$f":"IF(AND(INTRO!$E$37=\"Non endémique\",INTRO!$E$41=\"Non endémique\"),0,IF(AND(OR(COUNTRY_INFO!$H62=0,COUNTRY_INFO!$H62=4,COUNTRY_INFO!$H62=99),OR(COUNTRY_INFO!$J62=0,COUNTRY_INFO!$J62=4)),0,COUNTRY_INFO!$F62))","v":0},0,{"$f":"IF(AND(INTRO!$E$37=\"Non endémique\",INTRO!$E$41=\"Non endémique\"),0,COUNTRY_INFO!P62)","v":0},{"$f":"IF(AND(INTRO!$E$37=\"Non endémique\",INTRO!$E$41=\"Non endémique\"),0,COUNTRY_INFO!R62)","v":0},{"$f":"IF(INTRO!$E$39=\"Non endémique\",IF($G62=1,DEC!I62,0),IF($G62=1,IVM!G62,0))","v":0},null,{"$f":"IF($J62=\"ALB\", IF(INTRO!$E$39=\"Non endémique\",IF($H62<>0,$D62*($H62-$G62),0),$D62*$H62), 0)","v":0},0,null,0,{"$f":"IF($J62=\"MBD\", IF(INTRO!$E$39=\"Non endémique\",IF($H62<>0,$D62*($H62-$G62),0),$D62*$H62),0)","v":0},0,null,0,null,0,0,null,0,0,null,0,0]
[{"$f":"IF(AND(INTRO!$E$37=\"Non endémique\",INTRO!$E$41=\"Non endémique\"),\" \",IF(COUNTRY_INFO!A63=0,\" \",COUNTRY_INFO!A63))","v":"Mauritania"},{"$f":"IF(AND(INTRO!$E$37=\"Non endémique\",INTRO!$E$41=\"Non endémique\"),\" \",IF(COUNTRY_INFO!B63=0,\" \",COUNTRY_INFO!B63))","v":"TRARZA"},{"$f":"IF(AND(INTRO!$E$37=\"Non endémique\",INTRO!$E$41=\"Non endémique\"),\" \",IF(COUNTRY_INFO!C63=0,\" \",COUNTRY_INFO!C63))","v":"Ouad Naga"},{"$f":"IF(AND(INTRO!$E$37=\"Non endémique\",INTRO!$E$41=\"Non endémique\"),0,IF(AND(OR(COUNTRY_INFO!$H63=0,COUNTRY_INFO!$H63=4,COUNTRY_INFO!$H63=99),OR(COUNTRY_INFO!$J63=0,COUNTRY_INFO!$J63=4)),0,COUNTRY_INFO!$E63))","v":0},{"$f":"IF(AND(INTRO!$E$37=\"Non endémique\",INTRO!$E$41=\"Non endémique\"),0,IF(AND(OR(COUNTRY_INFO!$H63=0,COUNTRY_INFO!$H63=4,COUNTRY_INFO!$H63=99),OR(COUNTRY_INFO!$J63=0,COUNTRY_INFO!$J63=4)),0,COUNTRY_INFO!$F63))","v":0},0,{"$f":"IF(AND(INTRO!$E$37=\"Non endémique\",INTRO!$E$41=\"Non endémique\"),0,COUNTRY_INFO!P63)","v":0},{"$f":"IF(AND(INTRO!$E$37=\"Non endémique\",INTRO!$E$41=\"Non endémique\"),0,COUNTRY_INFO!R63)","v":0},{"$f":"IF(INTRO!$E$39=\"Non endémique\",IF($G63=1,DEC!I63,0),IF($G63=1,IVM!G63,0))","v":0},null,{"$f":"IF($J63=\"ALB\", IF(INTRO!$E$39=\"Non endémique\",IF($H63<>0,$D63*($H63-$G63),0),$D63*$H63), 0)","v":0},0,null,0,{"$f":"IF($J63=\"MBD\", IF(INTRO!$E$39=\"Non endémique\",IF($H63<>0,$D63*($H63-$G63),0),$D63*$H63),0)","v":0},0,null,0,null,0,0,null,0,0,null,0,0]
[{"$f":"IF(AND(INTRO!$E$37=\"Non endémique\",INTRO!$E$41=\"Non endémique\"),\" \",IF(COUNTRY_INFO!A64=0,\" \",COUNTRY_INFO!A64))","v":"Mauritania"},{"$f":"IF(AND(INTRO!$E$37=\"Non endémique\",INTRO!$E$41=\"Non endémique\"),\" \",IF(COUNTRY_INFO!B64=0,\" \",COUNTRY_INFO!B64))","v":"TRARZA"},{"$f":"IF(AND(INTRO!$E$37=\"Non endémique\",INTRO!$E$41=\"Non endémique\"),\" \",IF(COUNTRY_INFO!C64=0,\" \",COUNTRY_INFO!C64))","v":"R'Kiz"},{"$f":"IF(AND(INTRO!$E$37=\"Non endémique\",INTRO!$E$41=\"Non endémique\"),0,IF(AND(OR(COUNTRY_INFO!$H64=0,COUNTRY_INFO!$H64=4,COUNTRY_INFO!$H64=99),OR(COUNTRY_INFO!$J64=0,COUNTRY_INFO!$J64=4)),0,COUNTRY_INFO!$E64))","v":10939},{"$f":"IF(AND(INTRO!$E$37=\"Non endémique\",INTRO!$E$41=\"Non endémique\"),0,IF(AND(OR(COUNTRY_INFO!$H64=0,COUNTRY_INFO!$H64=4,COUNTRY_INFO!$H64=99),OR(COUNTRY_INFO!$J64=0,COUNTRY_INFO!$J64=4)),0,COUNTRY_INFO!$F64))","v":17972},28911,{"$f":"IF(AND(INTRO!$E$37=\"Non endémique\",INTRO!$E$41=\"Non endémique\"),0,COUNTRY_INFO!P64)","v":0},{"$f":"IF(AND(INTRO!$E$37=\"Non endémique\",INTRO!$E$41=\"Non endémique\"),0,COUNTRY_INFO!R64)","v":0},{"$f":"IF(INTRO!$E$39=\"Non endémique\",IF($G64=1,DEC!I64,0),IF($G64=1,IVM!G64,0))","v":0},null,{"$f":"IF($J64=\"ALB\", IF(INTRO!$E$39=\"Non endémique\",IF($H64<>0,$D64*($H64-$G64),0),$D64*$H64), 0)","v":0},0,null,0,{"$f":"IF($J64=\"MBD\", IF(INTRO!$E$39=\"Non endémique\",IF($H64<>0,$D64*($H64-$G64),0),$D64*$H64),0)","v":0},0,null,0,null,0,0,null,0,0,null,0,0]
[{"$f":"IF(AND(INTRO!$E$37=\"Non endémique\",INTRO!$E$41=\"Non endémique\"),\" \",IF(COUNTRY_INFO!A65=0,\" \",COUNTRY_INFO!A65))","v":"Mauritania"},{"$f":"IF(AND(INTRO!$E$37=\"Non endémique\",INTRO!$E$41=\"Non endémique\"),\" \",IF(COUNTRY_INFO!B65=0,\" \",COUNTRY_INFO!B65))","v":"TRARZA"},{"$f":"IF(AND(INTRO!$E$37=\"Non endémique\",INTRO!$E$41=\"Non endémique\"),\" \",IF(COUNTRY_INFO!C65=0,\" \",COUNTRY_INFO!C65))","v":"Rosso"},{"$f":"IF(AND(INTRO!$E$37=\"Non endémique\",INTRO!$E$41=\"Non endémique\"),0,IF(AND(OR(COUNTRY_INFO!$H65=0,COUNTRY_INFO!$H65=4,COUNTRY_INFO!$H65=99),OR(COUNTRY_INFO!$J65=0,COUNTRY_INFO!$J65=4)),0,COUNTRY_INFO!$E65))","v":8900},{"$f":"IF(AND(INTRO!$E$37=\"Non endémique\",INTRO!$E$41=\"Non endémique\"),0,IF(AND(OR(COUNTRY_INFO!$H65=0,COUNTRY_INFO!$H65=4,COUNTRY_INFO!$H65=99),OR(COUNTRY_INFO!$J65=0,COUNTRY_INFO!$J65=4)),0,COUNTRY_INFO!$F65))","v":14621},23521,{"$f":"IF(AND(INTRO!$E$37=\"Non endémique\",INTRO!$E$41=\"Non endémique\"),0,COUNTRY_INFO!P65)","v":0},{"$f":"IF(AND(INTRO!$E$37=\"Non endémique\",INTRO!$E$41=\"Non endémique\"),0,COUNTRY_INFO!R65)","v":0},{"$f":"IF(INTRO!$E$39=\"Non endémique\",IF($G65=1,DEC!I65,0),IF($G65=1,IVM!G65,0))","v":0},null,{"$f":"IF($J65=\"ALB\", IF(INTRO!$E$39=\"Non endémique\",IF($H65<>0,$D65*($H65-$G65),0),$D65*$H65), 0)","v":0},0,null,0,{"$f":"IF($J65=\"MBD\", IF(INTRO!$E$39=\"Non endémique\",IF($H65<>0,$D65*($H65-$G65),0),$D65*$H65),0)","v":0},0,null,0,null,0,0,null,0,0,null,0,0]

{"sheet":"PZQ","index":4,"n_rows":65,"n_cols":18,"rows_kept":65,"cut":false,"hidden":false,"merged":[[6,16,7,16],[6,4,7,4],[6,5,7,5],[6,7,7,7],[6,0,7,0],[6,1,7,1],[6,2,7,2],[6,3,7,3],[5,12,5,17],[6,6,7,6],[6,8,7,8],[6,9,7,9],[3,0,3,2],[5,0,5,2],[5,3,5,5],[5,8,5,11],[5,6,5,7],[6,10,7,10],[6,17,7,17],[6,13,7,13],[6,14,7,14],[6,15,7,15],[6,11,7,11],[6,12,7,12]]}
["Praziquantel (PZQ)"]
["Structure administrative, population ciblée par groupe d'âge, plan de traitement et information sur les comprimés"]
[]
["TOTAL",null,null,{"$f":"SUM(D$9:D$1000)","v":345356.71999999991},{"$f":"SUM(E$9:E$1000)","v":434038.8},{"$f":"SUM(F$9:F$1000)","v":779395.52},null,null,{"$f":"SUM(I$9:I$1000)","v":267095},102359.22,277719.39999999997,533685.62000000011,639915.55000000005,833158.2,639915.55000000005,0,639915.55000000005,652]
[]
["Structure administrative du pays",null,null,"Population nécessitant un traitement avec PZQ",null,null,"Plan de traitement",null,"Population cible",null,null,null,"Praziquantel (PZQ)"]
["Pays","Région/Département","District","EAS","Adultes","Total","SCH","Tous EAS ciblés ?","EAS","EAS à un niveau inférieur","Adultes","Total","EAS","Adultes","Total requis\npour EAS","Reste en stock","Comprimés devant être fournis","Flacons (600mg)\n1000 comprimés"]
[]
[{"$f":"IF(INTRO!$E$43=\"Non endémique\",\" \", IF(COUNTRY_INFO!A9=0,\" \",COUNTRY_INFO!A9))","v":"Mauritania"},{"$f":"IF(INTRO!$E$43=\"Non endémique\",\" \", IF(COUNTRY_INFO!B9=0,\" \",COUNTRY_INFO!B9))","v":"ADRAR"},{"$f":"IF(INTRO!$E$43=\"Non endémique\",\" \", IF(COUNTRY_INFO!C9=0,\" \",COUNTRY_INFO!C9))","v":"Aoujeft"},{"$f":"IF(INTRO!$E$43=\"Non endémique\", 0, IF(COUNTRY_INFO!$K9>0, IF(COUNTRY_INFO!$K9=4, 0, IF(COUNTRY_INFO!$K9=1, COUNTRY_INFO!$F9*0.33, IF(COUNTRY_INFO!$K9=2, COUNTRY_INFO!$F9*0.5, COUNTRY_INFO!$F9))), 0))","v":0},{"$f":"IF(INTRO!$E$43=\"Non endémique\", 0, IF(COUNTRY_INFO!$K9>0, IF(COUNTRY_INFO!$K9=4, 0, IF(COUNTRY_INFO!$K9=1, 0, IF(COUNTRY_INFO!$K9=2, COUNTRY_INFO!$G9*0.2, COUNTRY_INFO!$G9))), 0))","v":0},{"$f":"SUM(D9:E9)","v":0},{"$f":"IF(INTRO!$E$43=\"Non endémique\", \"Non requis\", COUNTRY_INFO!S9)","v":0},null,{"$f":"IF($D9=0,0,IF(AND($G9>0,$H9<>\"Oui\"),D9,IF(AND($G9>0,$H9=\"Oui\"),COUNTRY_INFO!$F9,0)))","v":0},0,{"$f":"IF($G9>0,E9, 0)","v":0},{"$f":"IF($J9=0,SUM(I9,K9),SUM(J9,K9))","v":0},{"$f":"IF($J9=0,$I9*2.5,$J9*2.5)","v":0},{"$f":"$K9*3","v":0},{"$f":"M9","v":0},null,{"$f":"IF($O9>$P9,O9-P9,0)","v":0},{"$f":"ROUNDUP($O9/1000,0)","v":0}]
[{"$f":"IF(INTRO!$E$43=\"Non endémique\",\" \", IF(COUNTRY_INFO!A10=0,\" \",COUNTRY_INFO!A10))","v":"Mauritania"},{"$f":"IF(INTRO!$E$43=\"Non endémique\",\" \", IF(COUNTRY_INFO!B10=0,\" \",COUNTRY_INFO!B10))","v":"ADRAR"},{"$f":"IF(INTRO!$E$43=\"Non endémique\",\" \", IF(COUNTRY_INFO!C10=0,\" \",COUNTRY_INFO!C10))","v":"Atar"},{"$f":"IF(INTRO!$E$43=\"Non endémique\", 0, IF(COUNTRY_INFO!$K10>0, IF(COUNTRY_INFO!$K10=4, 0, IF(COUNTRY_INFO!$K10=1, COUNTRY_INFO!$F10*0.33, IF(COUNTRY_INFO!$K10=2, COUNTRY_INFO!$F10*0.5, COUNTRY_INFO!$F10))), 0))","v":3249.51},{"$f":"IF(INTRO!$E$43=\"Non endémique\", 0, IF(COUNTRY_INFO!$K10>0, IF(COUNTRY_INFO!$K10=4, 0, IF(COUNTRY_INFO!$K10=1, 0, IF(COUNTRY_INFO!$K10=2, COUNTRY_INFO!$G10*0.2, COUNTRY_INFO!$G10))), 0))","v":0},3249.51,{"$f":"IF(INTRO!$E$43=\"Non endémique\", \"Non requis\", COUNTRY_INFO!S10)","v":0},null,{"$f":"IF($D10=0,0,IF(AND($G10>0,$H10<>\"Oui\"),D10,IF(AND($G10>0,$H10=\"Oui\"),COUNTRY_INFO!$F10,0)))","v":0},0,0,0,0,0,0,null,0,0]
[{"$f":"IF(INTRO!$E$43=\"Non endémique\",\" \", IF(COUNTRY_INFO!A11=0,\" \",COUNTRY_INFO!A11))","v":"Mauritania"},{"$f":"IF(INTRO!$E$43=\"Non endémique\",\" \", IF(COUNTRY_INFO!B11=0,\" \",COUNTRY_INFO!B11))","v":"ADRAR"},{"$f":"IF(INTRO!$E$43=\"Non endémique\",\" \", IF(COUNTRY_INFO!C11=0,\" \",COUNTRY_INFO!C11))","v":"Chinguitty"},{"$f":"IF(INTRO!$E$43=\"Non endémique\", 0, IF(COUNTRY_INFO!$K11>0, IF(COUNTRY_INFO!$K11=4, 0, IF(COUNTRY_INFO!$K11=1, COUNTRY_INFO!$F11*0.33, IF(COUNTRY_INFO!$K11=2, COUNTRY_INFO!$F11*0.5, COUNTRY_INFO!$F11))), 0))","v":569.25},{"$f":"IF(INTRO!$E$43=\"Non endémique\", 0, IF(COUNTRY_INFO!$K11>0, IF(COUNTRY_INFO!$K11=4, 0, IF(COUNTRY_INFO!$K11=1, 0, IF(COUNTRY_INFO!$K11=2, COUNTRY_INFO!$G11*0.2, COUNTRY_INFO!$G11))), 0))","v":0},569.25,{"$f":"IF(INTRO!$E$43=\"Non endémique\", \"Non requis\", COUNTRY_INFO!S11)","v":0},null,{"$f":"IF($D11=0,0,IF(AND($G11>0,$H11<>\"Oui\"),D11,IF(AND($G11>0,$H11=\"Oui\"),COUNTRY_INFO!$F11,0)))","v":0},0,0,0,0,0,0,null,0,0]
[{"$f":"IF(INTRO!$E$43=\"Non endémique\",\" \", IF(COUNTRY_INFO!A12=0,\" \",COUNTRY_INFO!A12))","v":"Mauritania"},{"$f":"IF(INTRO!$E$43=\"Non endémique\",\" \", IF(COUNTRY_INFO!B12=0,\" \",COUNTRY_INFO!B12))","v":"ADRAR"},{"$f":"IF(INTRO!$E$43=\"Non endémique\",\" \", IF(COUNTRY_INFO!C12=0,\" \",COUNTRY_INFO!C12))","v":"Ouadane"},{"$f":"IF(INTRO!$E$43=\"Non endémique\", 0, IF(COUNTRY_INFO!$K12>0, IF(COUNTRY_INFO!$K12=4, 0, IF(COUNTRY_INFO!$K12=1, COUNTRY_INFO!$F12*0.33, IF(COUNTRY_INFO!$K12=2, COUNTRY_INFO!$F12*0.5, COUNTRY_INFO!$F12))), 0))","v":331.98},{"$f":"IF(INTRO!$E$43=\"Non endémique\", 0, IF(COUNTRY_INFO!$K12>0, IF(COUNTRY_INFO!$K12=4, 0, IF(COUNTRY_INFO!$K12=1, 0, IF(COUNTRY_INFO!$K12=2, COUNTRY_INFO!$G12*0.2, COUNTRY_INFO!$G12))), 0))","v":0},331.98,{"$f":"IF(INTRO!$E$43=\"Non endémique\", \"Non requis\", COUNTRY_INFO!S12)","v":0},null,{"$f":"IF($D12=0,0,IF(AND($G12>0,$H12<>\"Oui\"),D12,IF(AND($G12>0,$H12=\"Oui\"),COUNTRY_INFO!$F12,0)))","v":0},0,0,0,0,0,0,null,0,0]
[{"$f":"IF(INTRO!$E$43=\"Non endémique\",\" \", IF(COUNTRY_INFO!A13=0,\" \",COUNTRY_INFO!A13))","v":"Mauritania"},{"$f":"IF(INTRO!$E$43=\"Non endémique\",\" \", IF(COUNTRY_INFO!B13=0,\" \",COUNTRY_INFO!B13))","v":"ASSABA"},{"$f":"IF(INTRO!$E$43=\"Non endémique\",\" \", IF(COUNTRY_INFO!C13=0,\" \",COUNTRY_INFO!C13))","v":"Barkéol"},{"$f":"IF(INTRO!$E$43=\"Non endémique\", 0, IF(COUNTRY_INFO!$K13>0, IF(COUNTRY_INFO!$K13=4, 0, IF(COUNTRY_INFO!$K13=1, COUNTRY_INFO!$F13*0.33, IF(COUNTRY_INFO!$K13=2, COUNTRY_INFO!$F13*0.5, COUNTRY_INFO!$F13))), 0))","v":10118.5},{"$f":"IF(INTRO!$E$43=\"Non endémique\", 0, IF(COUNTRY_INFO!$K13>0, IF(COUNTRY_INFO!$K13=4, 0, IF(COUNTRY_INFO!$K13=1, 0, IF(COUNTRY_INFO!$K13=2, COUNTRY_INFO!$G13*0.2, COUNTRY_INFO!$G13))), 0))","v":10351},20469.5,{"$f":"IF(INTRO!$E$43=\"Non endémique\", \"Non requis\", COUNTRY_INFO!S13)","v":1},"Oui",{"$f":"IF($D13=0,0,IF(AND($G13>0,$H13<>\"Oui\"),D13,IF(AND($G13>0,$H13=\"Oui\"),COUNTRY_INFO!$F13,0)))","v":20237},6678.21,10351,17029.21,16695.525000000001,31053,16695.525000000001,null,16695.525000000001,17]
[{"$f":"IF(INTRO!$E$43=\"Non endémique\",\" \", IF(COUNTRY_INFO!A14=0,\" \",COUNTRY_INFO!A14))","v":"Mauritania"},{"$f":"IF(INTRO!$E$43=\"Non endémique\",\" \", IF(COUNTRY_INFO!B14=0,\" \",COUNTRY_INFO!B14))","v":"ASSABA"},{"$f":"IF(INTRO!$E$43=\"Non endémique\",\" \", IF(COUNTRY_INFO!C14=0,\" \",COUNTRY_INFO!C14))","v":"Boumdeid"},{"$f":"IF(INTRO!$E$43=\"Non endémique\", 0, IF(COUNTRY_INFO!$K14>0, IF(COUNTRY_INFO!$K14=4, 0, IF(COUNTRY_INFO!$K14=1, COUNTRY_INFO!$F14*0.33, IF(COUNTRY_INFO!$K14=2, COUNTRY_INFO!$F14*0.5, COUNTRY_INFO!$F14))), 0))","v":1002.5},{"$f":"IF(INTRO!$E$43=\"Non endémique\", 0, IF(COUNTRY_INFO!$K14>0, IF(COUNTRY_INFO!$K14=4, 0, IF(COUNTRY_INFO!$K14=1, 0, IF(COUNTRY_INFO!$K14=2, COUNTRY_INFO!$G14*0.2, COUNTRY_INFO!$G14))), 0))","v":1025.8},2028.3,{"$f":"IF(INTRO!$E$43=\"Non endémique\", \"Non requis\", COUNTRY_INFO!S14)","v":1},"Oui",{"$f":"IF($D14=0,0,IF(AND($G14>0,$H14<>\"Oui\"),D14,IF(AND($G14>0,$H14=\"Oui\"),COUNTRY_INFO!$F14,0)))","v":2005},661.65,1025.8,1687.4499999999998,1654.125,3077.3999999999996,1654.125,null,1654.125,2]
[{"$f":"IF(INTRO!$E$43=\"Non endémique\",\" \", IF(COUNTRY_INFO!A15=0,\" \",COUNTRY_INFO!A15))","v":"Mauritania"},{"$f":"IF(INTRO!$E$43=\"Non endémique\",\" \", IF(COUNTRY_INFO!B15=0,\" \",COUNTRY_INFO!B15))","v":"ASSABA"},{"$f":"IF(INTRO!$E$43=\"Non endémique\",\" \", IF(COUNTRY_INFO!C15=0,\" \",COUNTRY_INFO!C15))","v":"Guérrou"},{"$f":"IF(INTRO!$E$43=\"Non endémique\", 0, IF(COUNTRY_INFO!$K15>0, IF(COUNTRY_INFO!$K15=4, 0, IF(COUNTRY_INFO!$K15=1, COUNTRY_INFO!$F15*0.33, IF(COUNTRY_INFO!$K15=2, COUNTRY_INFO!$F15*0.5, COUNTRY_INFO!$F15))), 0))","v":5682.5},{"$f":"IF(INTRO!$E$43=\"Non endémique\", 0, IF(COUNTRY_INFO!$K15>0, IF(COUNTRY_INFO!$K15=4, 0, IF(COUNTRY_INFO!$K15=1, 0, IF(COUNTRY_INFO!$K15=2, COUNTRY_INFO!$G15*0.2, COUNTRY_INFO!$G15))), 0))","v":5812.8},11495.3,{"$f":"IF(INTRO!$E$43=\"Non endémique\", \"Non requis\", COUNTRY_INFO!S15)","v":1},"Oui",{"$f":"IF($D15=0,0,IF(AND($G15>0,$H15<>\"Oui\"),D15,IF(AND($G15>0,$H15=\"Oui\"),COUNTRY_INFO!$F15,0)))","v":11365},5682.5,5812.8,11495.3,14206.25,17438.400000000001,14206.25,null,14206.25,15]
[{"$f":"IF(INTRO!$E$43=\"Non endémique\",\" \", IF(COUNTRY_INFO!A16=0,\" \",COUNTRY_INFO!A16))","v":"Mauritania"},{"$f":"IF(INTRO!$E$43=\"Non endémique\",\" \", IF(COUNTRY_INFO!B16=0,\" \",COUNTRY_INFO!B16))","v":"ASSABA"},{"$f":"IF(INTRO!$E$43=\"Non endémique\",\" \", IF(COUNTRY_INFO!C16=0,\" \",COUNTRY_INFO!C16))","v":"Kankossa"},{"$f":"IF(INTRO!$E$43=\"Non endémique\", 0, IF(COUNTRY_INFO!$K16>0, IF(COUNTRY_INFO!$K16=4, 0, IF(COUNTRY_INFO!$K16=1, COUNTRY_INFO!$F16*0.33, IF(COUNTRY_INFO!$K16=2, COUNTRY_INFO!$F16*0.5, COUNTRY_INFO!$F16))), 0))","v":10447},{"$f":"IF(INTRO!$E$43=\"Non endémique\", 0, IF(COUNTRY_INFO!$K16>0, IF(COUNTRY_INFO!$K16=4, 0, IF(COUNTRY_INFO!$K16=1, 0, IF(COUNTRY_INFO!$K16=2, COUNTRY_INFO!$G16*0.2, COUNTRY_INFO!$G16))), 0))","v":10687},21134,{"$f":"IF(INTRO!$E$43=\"Non endémique\", \"Non requis\", COUNTRY_INFO!S16)","v":1},"Oui",{"$f":"IF($D16=0,0,IF(AND($G16>0,$H16<>\"Oui\"),D16,IF(AND($G16>0,$H16=\"Oui\"),COUNTRY_INFO!$F16,0)))","v":20894},10447,10687,21134,26117.5,32061,26117.5,null,26117.5,27]
[{"$f":"IF(INTRO!$E$43=\"Non endémique\",\" \", IF(COUNTRY_INFO!A17=0,\" \",COUNTRY_INFO!A17))","v":"Mauritania"},{"$f":"IF(INTRO!$E$43=\"Non endémique\",\" \", IF(COUNTRY_INFO!B17=0,\" \",COUNTRY_INFO!B17))","v":"ASSABA"},{"$f":"IF(INTRO!$E$43=\"Non endémique\",\" \", IF(COUNTRY_INFO!C17=0,\" \",COUNTRY_INFO!C17))","v":"Kiffa"},{"$f":"IF(INTRO!$E$43=\"Non endémique\", 0, IF(COUNTRY_INFO!$K17>0, IF(COUNTRY_INFO!$K17=4, 0, IF(COUNTRY_INFO!$K17=1, COUNTRY_INFO!$F17*0.33, IF(COUNTRY_INFO!$K17=2, COUNTRY_INFO!$F17*0.5, COUNTRY_INFO!$F17))), 0))","v":14021},{"$f":"IF(INTRO!$E$43=\"Non endémique\", 0, IF(COUNTRY_INFO!$K17>0, IF(COUNTRY_INFO!$K17=4, 0, IF(COUNTRY_INFO!$K17=1, 0, IF(COUNTRY_INFO!$K17=2, COUNTRY_INFO!$G17*0.2, COUNTRY_INFO!$G17))), 0))","v":14342.6},28363.599999999999,{"$f":"IF(INTRO!$E$43=\"Non endémique\", \"Non requis\", COUNTRY_INFO!S17)","v":1},"Oui",{"$f":"IF($D17=0,0,IF(AND($G17>0,$H17<>\"Oui\"),D17,IF(AND($G17>0,$H17=\"Oui\"),COUNTRY_INFO!$F17,0)))","v":28042},9253.86,14342.6,23596.46,23134.65,43027.8,23134.65,null,23134.65,24]
[{"$f":"IF(INTRO!$E$43=\"Non endémique\",\" \", IF(COUNTRY_INFO!A18=0,\" \",COUNTRY_INFO!A18))","v":"Mauritania"},{"$f":"IF(INTRO!$E$43=\"Non endémique\",\" \", IF(COUNTRY_INFO!B18=0,\" \",COUNTRY_INFO!B18))","v":"BRAKNA"},{"$f":"IF(INTRO!$E$43=\"Non endémique\",\" \", IF(COUNTRY_INFO!C18=0,\" \",COUNTRY_INFO!C18))","v":"Aleg"},{"$f":"IF(INTRO!$E$43=\"Non endémique\", 0, IF(COUNTRY_INFO!$K18>0, IF(COUNTRY_INFO!$K18=4, 0, IF(COUNTRY_INFO!$K18=1, COUNTRY_INFO!$F18*0.33, IF(COUNTRY_INFO!$K18=2, COUNTRY_INFO!$F18*0.5, COUNTRY_INFO!$F18))), 0))","v":12855.5},{"$f":"IF(INTRO!$E$43=\"Non endémique\", 0, IF(COUNTRY_INFO!$K18>0, IF(COUNTRY_INFO!$K18=4, 0, IF(COUNTRY_INFO!$K18=1, 0, IF(COUNTRY_INFO!$K18=2, COUNTRY_INFO!$G18*0.2, COUNTRY_INFO!$G18))), 0))","v":13150.6},26006.1,{"$f":"IF(INTRO!$E$43=\"Non endémique\", \"Non requis\", COUNTRY_INFO!S18)","v":1},"Oui",{"$f":"IF($D18=0,0,IF(AND($G18>0,$H18<>\"Oui\"),D18,IF(AND($G18>0,$H18=\"Oui\"),COUNTRY_INFO!$F18,0)))","v":25711},0,13150.6,38861.599999999999,64277.5,39451.800000000003,64277.5,null,64277.5,65]
[{"$f":"IF(INTRO!$E$43=\"Non endémique\",\" \", IF(COUNTRY_INFO!A19=0,\" \",COUNTRY_INFO!A19))","v":"Mauritania"},{"$f":"IF(INTRO!$E$43=\"Non endémique\",\" \", IF(COUNTRY_INFO!B19=0,\" \",COUNTRY_INFO!B19))","v":"BRAKNA"},{"$f":"IF(INTRO!$E$43=\"Non endémique\",\" \", IF(COUNTRY_INFO!C19=0,\" \",COUNTRY_INFO!C19))","v":"Bababé"},{"$f":"IF(INTRO!$E$43=\"Non endémique\", 0, IF(COUNTRY_INFO!$K19>0, IF(COUNTRY_INFO!$K19=4, 0, IF(COUNTRY_INFO!$K19=1, COUNTRY_INFO!$F19*0.33, IF(COUNTRY_INFO!$K19=2, COUNTRY_INFO!$F19*0.5, COUNTRY_INFO!$F19))), 0))","v":4717.5},{"$f":"IF(INTRO!$E$43=\"Non endémique\", 0, IF(COUNTRY_INFO!$K19>0, IF(COUNTRY_INFO!$K19=4, 0, IF(COUNTRY_INFO!$K19=1, 0, IF(COUNTRY_INFO!$K19=2, COUNTRY_INFO!$G19*0.2, COUNTRY_INFO!$G19))), 0))","v":4825.8},9543.2999999999993,{"$f":"IF(INTRO!$E$43=\"Non endémique\", \"Non requis\", COUNTRY_INFO!S19)","v":0},null,{"$f":"IF($D19=0,0,IF(AND($G19>0,$H19<>\"Oui\"),D19,IF(AND($G19>0,$H19=\"Oui\"),COUNTRY_INFO!$F19,0)))","v":0},0,0,0,0,0,0,null,0,0]
[{"$f":"IF(INTRO!$E$43=\"Non endémique\",\" \", IF(COUNTRY_INFO!A20=0,\" \",COUNTRY_INFO!A20))","v":"Mauritania"},{"$f":"IF(INTRO!$E$43=\"Non endémique\",\" \", IF(COUNTRY_INFO!B20=0,\" \",COUNTRY_INFO!B20))","v":"BRAKNA"},{"$f":"IF(INTRO!$E$43=\"Non endémique\",\" \", IF(COUNTRY_INFO!C20=0,\" \",COUNTRY_INFO!C20))","v":"Boghé"},{"$f":"IF(INTRO!$E$43=\"Non endémique\", 0, IF(COUNTRY_INFO!$K20>0, IF(COUNTRY_INFO!$K20=4, 0, IF(COUNTRY_INFO!$K20=1, COUNTRY_INFO!$F20*0.33, IF(COUNTRY_INFO!$K20=2, COUNTRY_INFO!$F20*0.5, COUNTRY_INFO!$F20))), 0))","v":18297},{"$f":"IF(INTRO!$E$43=\"Non endémique\", 0, IF(COUNTRY_INFO!$K20>0, IF(COUNTRY_INFO!$K20=4, 0, IF(COUNTRY_INFO!$K20=1, 0, IF(COUNTRY_INFO!$K20=2, COUNTRY_INFO!$G20*0.2, COUNTRY_INFO!$G20))), 0))","v":46794},65091,{"$f":"IF(INTRO!$E$43=\"Non endémique\", \"Non requis\", COUNTRY_INFO!S20)","v":1},"Oui",{"$f":"IF($D20=0,0,IF(AND($G20>0,$H20<>\"Oui\"),D20,IF(AND($G20>0,$H20=\"Oui\"),COUNTRY_INFO!$F20,0)))","v":18297},0,46794,65091,45742.5,140382,45742.5,null,45742.5,46]
[{"$f":"IF(INTRO!$E$43=\"Non endémique\",\" \", IF(COUNTRY_INFO!A21=0,\" \",COUNTRY_INFO!A21))","v":"Mauritania"},{"$f":"IF(INTRO!$E$43=\"Non endémique\",\" \", IF(COUNTRY_INFO!B21=0,\" \",COUNTRY_INFO!B21))","v":"BRAKNA"},{"$f":"IF(INTRO!$E$43=\"Non endémique\",\" \", IF(COUNTRY_INFO!C21=0,\" \",COUNTRY_INFO!C21))","v":"Maghtaa Lahjar"},{"$f":"IF(INTRO!$E$43=\"Non endémique\", 0, IF(COUNTRY_INFO!$K21>0, IF(COUNTRY_INFO!$K21=4, 0, IF(COUNTRY_INFO!$K21=1, COUNTRY_INFO!$F21*0.33, IF(COUNTRY_INFO!$K21=2, COUNTRY_INFO!$F21*0.5, COUNTRY_INFO!$F21))), 0))","v":7303.5},{"$f":"IF(INTRO!$E$43=\"Non endémique\", 0, IF(COUNTRY_INFO!$K21>0, IF(COUNTRY_INFO!$K21=4, 0, IF(COUNTRY_INFO!$K21=1, 0, IF(COUNTRY_INFO!$K21=2, COUNTRY_INFO!$G21*0.2, COUNTRY_INFO!$G21))), 0))","v":7471.2000000000007},14774.7,{"$f":"IF(INTRO!$E$43=\"Non endémique\", \"Non requis\", COUNTRY_INFO!S21)","v":0},null,{"$f":"IF($D21=0,0,IF(AND($G21>0,$H21<>\"Oui\"),D21,IF(AND($G21>0,$H21=\"Oui\"),COUNTRY_INFO!$F21,0)))","v":0},0,0,0,0,0,0,null,0,0]
[{"$f":"IF(INTRO!$E$43=\"Non endémique\",\" \", IF(COUNTRY_INFO!A22=0,\" \",COUNTRY_INFO!A22))","v":"Mauritania"},{"$f":"IF(INTRO!$E$43=\"Non endémique\",\" \", IF(COUNTRY_INFO!B22=0,\" \",COUNTRY_INFO!B22))","v":"BRAKNA"},{"$f":"IF(INTRO!$E$43=\"Non endémique\",\" \", IF(COUNTRY_INFO!C22=0,\" \",COUNTRY_INFO!C22))","v":"M'Bagne"},{"$f":"IF(INTRO!$E$43=\"Non endémique\", 0, IF(COUNTRY_INFO!$K22>0, IF(COUNTRY_INFO!$K22=4, 0, IF(COUNTRY_INFO!$K22=1, COUNTRY_INFO!$F22*0.33, IF(COUNTRY_INFO!$K22=2, COUNTRY_INFO!$F22*0.5, COUNTRY_INFO!$F22))), 0))","v":5521.5},{"$f":"IF(INTRO!$E$43=\"Non endémique\", 0, IF(COUNTRY_INFO!$K22>0, IF(COUNTRY_INFO!$K22=4, 0, IF(COUNTRY_INFO!$K22=1, 0, IF(COUNTRY_INFO!$K22=2, COUNTRY_INFO!$G22*0.2, COUNTRY_INFO!$G22))), 0))","v":5648.2000000000007},11169.7,{"$f":"IF(INTRO!$E$43=\"Non endémique\", \"Non requis\", COUNTRY_INFO!S22)","v":0},null,{"$f":"IF($D22=0,0,IF(AND($G22>0,$H22<>\"Oui\"),D22,IF(AND($G22>0,$H22=\"Oui\"),COUNTRY_INFO!$F22,0)))","v":0},0,0,0,0,0,0,null,0,0]
[{"$f":"IF(INTRO!$E$43=\"Non endémique\",\" \", IF(COUNTRY_INFO!A23=0,\" \",COUNTRY_INFO!A23))","v":"Mauritania"},{"$f":"IF(INTRO!$E$43=\"Non endémique\",\" \", IF(COUNTRY_INFO!B23=0,\" \",COUNTRY_INFO!B23))","v":"GORGOL"},{"$f":"IF(INTRO!$E$43=\"Non endémique\",\" \", IF(COUNTRY_INFO!C23=0,\" \",COUNTRY_INFO!C23))","v":"Kaédi"},{"$f":"IF(INTRO!$E$43=\"Non endémique\", 0, IF(COUNTRY_INFO!$K23>0, IF(COUNTRY_INFO!$K23=4, 0, IF(COUNTRY_INFO!$K23=1, COUNTRY_INFO!$F23*0.33, IF(COUNTRY_INFO!$K23=2, COUNTRY_INFO!$F23*0.5, COUNTRY_INFO!$F23))), 0))","v":15415.5},{"$f":"IF(INTRO!$E$43=\"Non endémique\", 0, IF(COUNTRY_INFO!$K23>0, IF(COUNTRY_INFO!$K23=4, 0, IF(COUNTRY_INFO!$K23=1, 0, IF(COUNTRY_INFO!$K23=2, COUNTRY_INFO!$G23*0.2, COUNTRY_INFO!$G23))), 0))","v":15769.2},31184.7,{"$f":"IF(INTRO!$E$43=\"Non endémique\", \"Non requis\", COUNTRY_INFO!S23)","v":0},null,{"$f":"IF($D23=0,0,IF(AND($G23>0,$H23<>\"Oui\"),D23,IF(AND($G23>0,$H23=\"Oui\"),COUNTRY_INFO!$F23,0)))","v":0},0,0,0,0,0,0,null,0,0]
[{"$f":"IF(INTRO!$E$43=\"Non endémique\",\" \", IF(COUNTRY_INFO!A24=0,\" \",COUNTRY_INFO!A24))","v":"Mauritania"},{"$f":"IF(INTRO!$E$43=\"Non endémique\",\" \", IF(COUNTRY_INFO!B24=0,\" \",COUNTRY_INFO!B24))","v":"GORGOL"},{"$f":"IF(INTRO!$E$43=\"Non endémique\",\" \", IF(COUNTRY_INFO!C24=0,\" \",COUNTRY_INFO!C24))","v":"Maghama"},{"$f":"IF(INTRO!$E$43=\"Non endémique\", 0, IF(COUNTRY_INFO!$K24>0, IF(COUNTRY_INFO!$K24=4, 0, IF(COUNTRY_INFO!$K24=1, COUNTRY_INFO!$F24*0.33, IF(COUNTRY_INFO!$K24=2, COUNTRY_INFO!$F24*0.5, COUNTRY_INFO!$F24))), 0))","v":8670.5},{"$f":"IF(INTRO!$E$43=\"Non endémique\", 0, IF(COUNTRY_INFO!$K24>0, IF(COUNTRY_INFO!$K24=4, 0, IF(COUNTRY_INFO!$K24=1, 0, IF(COUNTRY_INFO!$K24=2, COUNTRY_INFO!$G24*0.2, COUNTRY_INFO!$G24))), 0))","v":8869.4},17539.900000000001,{"$f":"IF(INTRO!$E$43=\"Non endémique\", \"Non requis\", COUNTRY_INFO!S24)","v":0},null,{"$f":"IF($D24=0,0,IF(AND($G24>0,$H24<>\"Oui\"),D24,IF(AND($G24>0,$H24=\"Oui\"),COUNTRY_INFO!$F24,0)))","v":0},0,0,0,0,0,0,null,0,0]
[{"$f":"IF(INTRO!$E$43=\"Non endémique\",\" \", IF(COUNTRY_INFO!A25=0,\" \",COUNTRY_INFO!A25))","v":"Mauritania"},{"$f":"IF(INTRO!$E$43=\"Non endémique\",\" \", IF(COUNTRY_INFO!B25=0,\" \",COUNTRY_INFO!B25))","v":"GORGOL"},{"$f":"IF(INTRO!$E$43=\"Non endémique\",\" \", IF(COUNTRY_INFO!C25=0,\" \",COUNTRY_INFO!C25))","v":"M'Bout"},{"$f":"IF(INTRO!$E$43=\"Non endémique\", 0, IF(COUNTRY_INFO!$K25>0, IF(COUNTRY_INFO!$K25=4, 0, IF(COUNTRY_INFO!$K25=1, COUNTRY_INFO!$F25*0.33, IF(COUNTRY_INFO!$K25=2, COUNTRY_INFO!$F25*0.5, COUNTRY_INFO!$F25))), 0))","v":12980.5},{"$f":"IF(INTRO!$E$43=\"Non endémique\", 0, IF(COUNTRY_INFO!$K25>0, IF(COUNTRY_INFO!$K25=4, 0, IF(COUNTRY_INFO!$K25=1, 0, IF(COUNTRY_INFO!$K25=2, COUNTRY_INFO!$G25*0.2, COUNTRY_INFO!$G25))), 0))","v":13278.800000000001},26259.300000000003,{"$f":"IF(INTRO!$E$43=\"Non endémique\", \"Non requis\", COUNTRY_INFO!S25)","v":1},"Oui",{"$f":"IF($D25=0,0,IF(AND($G25>0,$H25<>\"Oui\"),D25,IF(AND($G25>0,$H25=\"Oui\"),COUNTRY_INFO!$F25,0)))","v":25961},0,13278.800000000001,39239.800000000003,64902.5,39836.400000000001,64902.5,null,64902.5,65]
[{"$f":"IF(INTRO!$E$43=\"Non endémique\",\" \", IF(COUNTRY_INFO!A26=0,\" \",COUNTRY_INFO!A26))","v":"Mauritania"},{"$f":"IF(INTRO!$E$43=\"Non endémique\",\" \", IF(COUNTRY_INFO!B26=0,\" \",COUNTRY_INFO!B26))","v":"GORGOL"},{"$f":"IF(INTRO!$E$43=\"Non endémique\",\" \", IF(COUNTRY_INFO!C26=0,\" \",COUNTRY_INFO!C26))","v":"Monguel"},{"$f":"IF(INTRO!$E$43=\"Non endémique\", 0, IF(COUNTRY_INFO!$K26>0, IF(COUNTRY_INFO!$K26=4, 0, IF(COUNTRY_INFO!$K26=1, COUNTRY_INFO!$F26*0.33, IF(COUNTRY_INFO!$K26=2, COUNTRY_INFO!$F26*0.5, COUNTRY_INFO!$F26))), 0))","v":3612.84},{"$f":"IF(INTRO!$E$43=\"Non endémique\", 0, IF(COUNTRY_INFO!$K26>0, IF(COUNTRY_INFO!$K26=4, 0, IF(COUNTRY_INFO!$K26=1, 0, IF(COUNTRY_INFO!$K26=2, COUNTRY_INFO!$G26*0.2, COUNTRY_INFO!$G26))), 0))","v":0},3612.84,{"$f":"IF(INTRO!$E$43=\"Non endémique\", \"Non requis\", COUNTRY_INFO!S26)","v":0},null,{"$f":"IF($D26=0,0,IF(AND($G26>0,$H26<>\"Oui\"),D26,IF(AND($G26>0,$H26=\"Oui\"),COUNTRY_INFO!$F26,0)))","v":0},0,0,0,0,0,0,null,0,0]
[{"$f":"IF(INTRO!$E$43=\"Non endémique\",\" \", IF(COUNTRY_INFO!A27=0,\" \",COUNTRY_INFO!A27))","v":"Mauritania"},{"$f":"IF(INTRO!$E$43=\"Non endémique\",\" \", IF(COUNTRY_INFO!B27=0,\" \",COUNTRY_INFO!B27))","v":"GUIDIMAKHA"},{"$f":"IF(INTRO!$E$43=\"Non endémique\",\" \", IF(COUNTRY_INFO!C27=0,\" \",COUNTRY_INFO!C27))","v":"GHABOU"},{"$f":"IF(INTRO!$E$43=\"Non endémique\", 0, IF(COUNTRY_INFO!$K27>0, IF(COUNTRY_INFO!$K27=4, 0, IF(COUNTRY_INFO!$K27=1, COUNTRY_INFO!$F27*0.33, IF(COUNTRY_INFO!$K27=2, COUNTRY_INFO!$F27*0.5, COUNTRY_INFO!$F27))), 0))","v":22435},{"$f":"IF(INTRO!$E$43=\"Non endémique\", 0, IF(COUNTRY_INFO!$K27>0, IF(COUNTRY_INFO!$K27=4, 0, IF(COUNTRY_INFO!$K27=1, 0, IF(COUNTRY_INFO!$K27=2, COUNTRY_INFO!$G27*0.2, COUNTRY_INFO!$G27))), 0))","v":57374},79809,{"$f":"IF(INTRO!$E$43=\"Non endémique\", \"Non requis\", COUNTRY_INFO!S27)","v":1},"Oui",{"$f":"IF($D27=0,0,IF(AND($G27>0,$H27<>\"Oui\"),D27,IF(AND($G27>0,$H27=\"Oui\"),COUNTRY_INFO!$F27,0)))","v":22435},0,57374,79809,56087.5,172122,56087.5,null,56087.5,57]
[{"$f":"IF(INTRO!$E$43=\"Non endémique\",\" \", IF(COUNTRY_INFO!A28=0,\" \",COUNTRY_INFO!A28))","v":"Mauritania"},{"$f":"IF(INTRO!$E$43=\"Non endémique\",\" \", IF(COUNTRY_INFO!B28=0,\" \",COUNTRY_INFO!B28))","v":"GUIDIMAKHA"},{"$f":"IF(INTRO!$E$43=\"Non endémique\",\" \", IF(COUNTRY_INFO!C28=0,\" \",COUNTRY_INFO!C28))","v":"Ould Yengé"},{"$f":"IF(INTRO!$E$43=\"Non endémique\", 0, IF(COUNTRY_INFO!$K28>0, IF(COUNTRY_INFO!$K28=4, 0, IF(COUNTRY_INFO!$K28=1, COUNTRY_INFO!$F28*0.33, IF(COUNTRY_INFO!$K28=2, COUNTRY_INFO!$F28*0.5, COUNTRY_INFO!$F28))), 0))","v":8654.5},{"$f":"IF(INTRO!$E$43=\"Non endémique\", 0, IF(COUNTRY_INFO!$K28>0, IF(COUNTRY_INFO!$K28=4, 0, IF(COUNTRY_INFO!$K28=1, 0, IF(COUNTRY_INFO!$K28=2, COUNTRY_INFO!$G28*0.2, COUNTRY_INFO!$G28))), 0))","v":8853.4},17507.900000000001,{"$f":"IF(INTRO!$E$43=\"Non endémique\", \"Non requis\", COUNTRY_INFO!S28)","v":1},"Oui",{"$f":"IF($D28=0,0,IF(AND($G28>0,$H28<>\"Oui\"),D28,IF(AND($G28>0,$H28=\"Oui\"),COUNTRY_INFO!$F28,0)))","v":17309},0,8853.4,26162.400000000001,43272.5,26560.199999999997,43272.5,null,43272.5,44]
[{"$f":"IF(INTRO!$E$43=\"Non endémique\",\" \", IF(COUNTRY_INFO!A29=0,\" \",COUNTRY_INFO!A29))","v":"Mauritania"},{"$f":"IF(INTRO!$E$43=\"Non endémique\",\" \", IF(COUNTRY_INFO!B29=0,\" \",COUNTRY_INFO!B29))","v":"GUIDIMAKHA"},{"$f":"IF(INTRO!$E$43=\"Non endémique\",\" \", IF(COUNTRY_INFO!C29=0,\" \",COUNTRY_INFO!C29))","v":"Sélibaby"},{"$f":"IF(INTRO!$E$43=\"Non endémique\", 0, IF(COUNTRY_INFO!$K29>0, IF(COUNTRY_INFO!$K29=4, 0, IF(COUNTRY_INFO!$K29=1, COUNTRY_INFO!$F29*0.33, IF(COUNTRY_INFO!$K29=2, COUNTRY_INFO!$F29*0.5, COUNTRY_INFO!$F29))), 0))","v":13944.5},{"$f":"IF(INTRO!$E$43=\"Non endémique\", 0, IF(COUNTRY_INFO!$K29>0, IF(COUNTRY_INFO!$K29=4, 0, IF(COUNTRY_INFO!$K29=1, 0, IF(COUNTRY_INFO!$K29=2, COUNTRY_INFO!$G29*0.2, COUNTRY_INFO!$G29))), 0))","v":14264.400000000001},28208.9,{"$f":"IF(INTRO!$E$43=\"Non endémique\", \"Non requis\", COUNTRY_INFO!S29)","v":1},"Oui",{"$f":"IF($D29=0,0,IF(AND($G29>0,$H29<>\"Oui\"),D29,IF(AND($G29>0,$H29=\"Oui\"),COUNTRY_INFO!$F29,0)))","v":27889},0,14264.400000000001,42153.4,69722.5,42793.200000000004,69722.5,null,69722.5,70]
[{"$f":"IF(INTRO!$E$43=\"Non endémique\",\" \", IF(COUNTRY_INFO!A30=0,\" \",COUNTRY_INFO!A30))","v":"Mauritania"},{"$f":"IF(INTRO!$E$43=\"Non endémique\",\" \", IF(COUNTRY_INFO!B30=0,\" \",COUNTRY_INFO!B30))","v":"HODH CHARQUI"},{"$f":"IF(INTRO!$E$43=\"Non endémique\",\" \", IF(COUNTRY_INFO!C30=0,\" \",COUNTRY_INFO!C30))","v":"Amourj"},{"$f":"IF(INTRO!$E$43=\"Non endémique\", 0, IF(COUNTRY_INFO!$K30>0, IF(COUNTRY_INFO!$K30=4, 0, IF(COUNTRY_INFO!$K30=1, COUNTRY_INFO!$F30*0.33, IF(COUNTRY_INFO!$K30=2, COUNTRY_INFO!$F30*0.5, COUNTRY_INFO!$F30))), 0))","v":11975},{"$f":"IF(INTRO!$E$43=\"Non endémique\", 0, IF(COUNTRY_INFO!$K30>0, IF(COUNTRY_INFO!$K30=4, 0, IF(COUNTRY_INFO!$K30=1, 0, IF(COUNTRY_INFO!$K30=2, COUNTRY_INFO!$G30*0.2, COUNTRY_INFO!$G30))), 0))","v":12249.800000000001},24224.800000000003,{"$f":"IF(INTRO!$E$43=\"Non endémique\", \"Non requis\", COUNTRY_INFO!S30)","v":0},null,{"$f":"IF($D30=0,0,IF(AND($G30>0,$H30<>\"Oui\"),D30,IF(AND($G30>0,$H30=\"Oui\"),COUNTRY_INFO!$F30,0)))","v":0},0,0,0,0,0,0,null,0,0]
[{"$f":"IF(INTRO!$E$43=\"Non endémique\",\" \", IF(COUNTRY_INFO!A31=0,\" \",COUNTRY_INFO!A31))","v":"Mauritania"},{"$f":"IF(INTRO!$E$43=\"Non endémique\",\" \", IF(COUNTRY_INFO!B31=0,\" \",COUNTRY_INFO!B31))","v":"HODH CHARQUI"},{"$f":"IF(INTRO!$E$43=\"Non endémique\",\" \", IF(COUNTRY_INFO!C31=0,\" \",COUNTRY_INFO!C31))","v":"Bassiknou"},{"$f":"IF(INTRO!$E$43=\"Non endémique\", 0, IF(COUNTRY_INFO!$K31>0, IF(COUNTRY_INFO!$K31=4, 0, IF(COUNTRY_INFO!$K31=1, COUNTRY_INFO!$F31*0.33, IF(COUNTRY_INFO!$K31=2, COUNTRY_INFO!$F31*0.5, COUNTRY_INFO!$F31))), 0))","v":11199},{"$f":"IF(INTRO!$E$43=\"Non endémique\", 0, IF(COUNTRY_INFO!$K31>0, IF(COUNTRY_INFO!$K31=4, 0, IF(COUNTRY_INFO!$K31=1, 0, IF(COUNTRY_INFO!$K31=2, COUNTRY_INFO!$G31*0.2, COUNTRY_INFO!$G31))), 0))","v":11456},22655,{"$f":"IF(INTRO!$E$43=\"Non endémique\", \"Non requis\", COUNTRY_INFO!S31)","v":0},null,{"$f":"IF($D31=0,0,IF(AND($G31>0,$H31<>\"Oui\"),D31,IF(AND($G31>0,$H31=\"Oui\"),COUNTRY_INFO!$F31,0)))","v":0},0,0,0,0,0,0,null,0,0]
[{"$f":"IF(INTRO!$E$43=\"Non endémique\",\" \", IF(COUNTRY_INFO!A32=0,\" \",COUNTRY_INFO!A32))","v":"Mauritania"},{"$f":"IF(INTRO!$E$43=\"Non endémique\",\" \", IF(COUNTRY_INFO!B32=0,\" \",COUNTRY_INFO!B32))","v":"HODH CHARQUI"},{"$f":"IF(INTRO!$E$43=\"Non endémique\",\" \", IF(COUNTRY_INFO!C32=0,\" \",COUNTRY_INFO!C32))","v":"Djigueni"},{"$f":"IF(INTRO!$E$43=\"Non endémique\", 0, IF(COUNTRY_INFO!$K32>0, IF(COUNTRY_INFO!$K32=4, 0, IF(COUNTRY_INFO!$K32=1, COUNTRY_INFO!$F32*0.33, IF(COUNTRY_INFO!$K32=2, COUNTRY_INFO!$F32*0.5, COUNTRY_INFO!$F32))), 0))","v":7549.5},{"$f":"IF(INTRO!$E$43=\"Non endémique\", 0, IF(COUNTRY_INFO!$K32>0, IF(COUNTRY_INFO!$K32=4, 0, IF(COUNTRY_INFO!$K32=1, 0, IF(COUNTRY_INFO!$K32=2, COUNTRY_INFO!$G32*0.2, COUNTRY_INFO!$G32))), 0))","v":7722.8},15272.3,{"$f":"IF(INTRO!$E$43=\"Non endémique\", \"Non requis\", COUNTRY_INFO!S32)","v":0},null,{"$f":"IF($D32=0,0,IF(AND($G32>0,$H32<>\"Oui\"),D32,IF(AND($G32>0,$H32=\"Oui\"),COUNTRY_INFO!$F32,0)))","v":0},0,0,0,0,0,0,null,0,0]
[{"$f":"IF(INTRO!$E$43=\"Non endémique\",\" \", IF(COUNTRY_INFO!A33=0,\" \",COUNTRY_INFO!A33))","v":"Mauritania"},{"$f":"IF(INTRO!$E$43=\"Non endémique\",\" \", IF(COUNTRY_INFO!B33=0,\" \",COUNTRY_INFO!B33))","v":"HODH CHARQUI"},{"$f":"IF(INTRO!$E$43=\"Non endémique\",\" \", IF(COUNTRY_INFO!C33=0,\" \",COUNTRY_INFO!C33))","v":"Nbaikit Lahouache"},{"$f":"IF(INTRO!$E$43=\"Non endémique\", 0, IF(COUNTRY_INFO!$K33>0, IF(COUNTRY_INFO!$K33=4, 0, IF(COUNTRY_INFO!$K33=1, COUNTRY_INFO!$F33*0.33, IF(COUNTRY_INFO!$K33=2, COUNTRY_INFO!$F33*0.5, COUNTRY_INFO!$F33))), 0))","v":1122},{"$f":"IF(INTRO!$E$43=\"Non endémique\", 0, IF(COUNTRY_INFO!$K33>0, IF(COUNTRY_INFO!$K33=4, 0, IF(COUNTRY_INFO!$K33=1, 0, IF(COUNTRY_INFO!$K33=2, COUNTRY_INFO!$G33*0.2, COUNTRY_INFO!$G33))), 0))","v":1147.8},2269.8000000000002,{"$f":"IF(INTRO!$E$43=\"Non endémique\", \"Non requis\", COUNTRY_INFO!S33)","v":0},null,{"$f":"IF($D33=0,0,IF(AND($G33>0,$H33<>\"Oui\"),D33,IF(AND($G33>0,$H33=\"Oui\"),COUNTRY_INFO!$F33,0)))","v":0},0,0,0,0,0,0,null,0,0]
[{"$f":"IF(INTRO!$E$43=\"Non endémique\",\" \", IF(COUNTRY_INFO!A34=0,\" \",COUNTRY_INFO!A34))","v":"Mauritania"},{"$f":"IF(INTRO!$E$43=\"Non endémique\",\" \", IF(COUNTRY_INFO!B34=0,\" \",COUNTRY_INFO!B34))","v":"HODH CHARQUI"},{"$f":"IF(INTRO!$E$43=\"Non endémique\",\" \", IF(COUNTRY_INFO!C34=0,\" \",COUNTRY_INFO!C34))","v":"Néma"},{"$f":"IF(INTRO!$E$43=\"Non endémique\", 0, IF(COUNTRY_INFO!$K34>0, IF(COUNTRY_INFO!$K34=4, 0, IF(COUNTRY_INFO!$K34=1, COUNTRY_INFO!$F34*0.33, IF(COUNTRY_INFO!$K34=2, COUNTRY_INFO!$F34*0.5, COUNTRY_INFO!$F34))), 0))","v":11023.5},{"$f":"IF(INTRO!$E$43=\"Non endémique\", 0, IF(COUNTRY_INFO!$K34>0, IF(COUNTRY_INFO!$K34=4, 0, IF(COUNTRY_INFO!$K34=1, 0, IF(COUNTRY_INFO!$K34=2, COUNTRY_INFO!$G34*0.2, COUNTRY_INFO!$G34))), 0))","v":11276.800000000001},22300.300000000003,{"$f":"IF(INTRO!$E$43=\"Non endémique\", \"Non requis\", COUNTRY_INFO!S34)","v":0},null,{"$f":"IF($D34=0,0,IF(AND($G34>0,$H34<>\"Oui\"),D34,IF(AND($G34>0,$H34=\"Oui\"),COUNTRY_INFO!$F34,0)))","v":0},0,0,0,0,0,0,null,0,0]
[{"$f":"IF(INTRO!$E$43=\"Non endémique\",\" \", IF(COUNTRY_INFO!A35=0,\" \",COUNTRY_INFO!A35))","v":"Mauritania"},{"$f":"IF(INTRO!$E$43=\"Non endémique\",\" \", IF(COUNTRY_INFO!B35=0,\" \",COUNTRY_INFO!B35))","v":"HODH CHARQUI"},{"$f":"IF(INTRO!$E$43=\"Non endémique\",\" \", IF(COUNTRY_INFO!C35=0,\" \",COUNTRY_INFO!C35))","v":"Oualatta"},{"$f":"IF(INTRO!$E$43=\"Non endémique\", 0, IF(COUNTRY_INFO!$K35>0, IF(COUNTRY_INFO!$K35=4, 0, IF(COUNTRY_INFO!$K35=1, COUNTRY_INFO!$F35*0.33, IF(COUNTRY_INFO!$K35=2, COUNTRY_INFO!$F35*0.5, COUNTRY_INFO!$F35))), 0))","v":1093.6200000000001},{"$f":"IF(INTRO!$E$43=\"Non endémique\", 0, IF(COUNTRY_INFO!$K35>0, IF(COUNTRY_INFO!$K35=4, 0, IF(COUNTRY_INFO!$K35=1, 0, IF(COUNTRY_INFO!$K35=2, COUNTRY_INFO!$G35*0.2, COUNTRY_INFO!$G35))), 0))","v":0},1093.6200000000001,{"$f":"IF(INTRO!$E$43=\"Non endémique\", \"Non requis\", COUNTRY_INFO!S35)","v":0},null,{"$f":"IF($D35=0,0,IF(AND($G35>0,$H35<>\"Oui\"),D35,IF(AND($G35>0,$H35=\"Oui\"),COUNTRY_INFO!$F35,0)))","v":0},0,0,0,0,0,0,null,0,0]
[{"$f":"IF(INTRO!$E$43=\"Non endémique\",\" \", IF(COUNTRY_INFO!A36=0,\" \",COUNTRY_INFO!A36))","v":"Mauritania"},{"$f":"IF(INTRO!$E$43=\"Non endémique\",\" \", IF(COUNTRY_INFO!B36=0,\" \",COUNTRY_INFO!B36))","v":"HODH CHARQUI"},{"$f":"IF(INTRO!$E$43=\"Non endémique\",\" \", IF(COUNTRY_INFO!C36=0,\" \",COUNTRY_INFO!C36))","v":"Timbedra"},{"$f":"IF(INTRO!$E$43=\"Non endémique\", 0, IF(COUNTRY_INFO!$K36>0, IF(COUNTRY_INFO!$K36=4, 0, IF(COUNTRY_INFO!$K36=1, COUNTRY_INFO!$F36*0.33, IF(COUNTRY_INFO!$K36=2, COUNTRY_INFO!$F36*0.5, COUNTRY_INFO!$F36))), 0))","v":10013},{"$f":"IF(INTRO!$E$43=\"Non endémique\", 0, IF(COUNTRY_INFO!$K36>0, IF(COUNTRY_INFO!$K36=4, 0, IF(COUNTRY_INFO!$K36=1, 0, IF(COUNTRY_INFO!$K36=2, COUNTRY_INFO!$G36*0.2, COUNTRY_INFO!$G36))), 0))","v":10243},20256,{"$f":"IF(INTRO!$E$43=\"Non endémique\", \"Non requis\", COUNTRY_INFO!S36)","v":0},null,{"$f":"IF($D36=0,0,IF(AND($G36>0,$H36<>\"Oui\"),D36,IF(AND($G36>0,$H36=\"Oui\"),COUNTRY_INFO!$F36,0)))","v":0},0,0,0,0,0,0,null,0,0]
[{"$f":"IF(INTRO!$E$43=\"Non endémique\",\" \", IF(COUNTRY_INFO!A37=0,\" \",COUNTRY_INFO!A37))","v":"Mauritania"},{"$f":"IF(INTRO!$E$43=\"Non endémique\",\" \", IF(COUNTRY_INFO!B37=0,\" \",COUNTRY_INFO!B37))","v":"HODH GHARBI"},{"$f":"IF(INTRO!$E$43=\"Non endémique\",\" \", IF(COUNTRY_INFO!C37=0,\" \",COUNTRY_INFO!C37))","v":"Aioun"},{"$f":"IF(INTRO!$E$43=\"Non endémique\", 0, IF(COUNTRY_INFO!$K37>0, IF(COUNTRY_INFO!$K37=4, 0, IF(COUNTRY_INFO!$K37=1, COUNTRY_INFO!$F37*0.33, IF(COUNTRY_INFO!$K37=2, COUNTRY_INFO!$F37*0.5, COUNTRY_INFO!$F37))), 0))","v":8261.5},{"$f":"IF(INTRO!$E$43=\"Non endémique\", 0, IF(COUNTRY_INFO!$K37>0, IF(COUNTRY_INFO!$K37=4, 0, IF(COUNTRY_INFO!$K37=1, 0, IF(COUNTRY_INFO!$K37=2, COUNTRY_INFO!$G37*0.2, COUNTRY_INFO!$G37))), 0))","v":8451.2000000000007},16712.7,{"$f":"IF(INTRO!$E$43=\"Non endémique\", \"Non requis\", COUNTRY_INFO!S37)","v":0},null,{"$f":"IF($D37=0,0,IF(AND($G37>0,$H37<>\"Oui\"),D37,IF(AND($G37>0,$H37=\"Oui\"),COUNTRY_INFO!$F37,0)))","v":0},0,0,0,0,0,0,null,0,0]
[{"$f":"IF(INTRO!$E$43=\"Non endémique\",\" \", IF(COUNTRY_INFO!A38=0,\" \",COUNTRY_INFO!A38))","v":"Mauritania"},{"$f":"IF(INTRO!$E$43=\"Non endémique\",\" \", IF(COUNTRY_INFO!B38=0,\" \",COUNTRY_INFO!B38))","v":"HODH GHARBI"},{"$f":"IF(INTRO!$E$43=\"Non endémique\",\" \", IF(COUNTRY_INFO!C38=0,\" \",COUNTRY_INFO!C38))","v":"Kobeni"},{"$f":"IF(INTRO!$E$43=\"Non endémique\", 0, IF(COUNTRY_INFO!$K38>0, IF(COUNTRY_INFO!$K38=4, 0, IF(COUNTRY_INFO!$K38=1, COUNTRY_INFO!$F38*0.33, IF(COUNTRY_INFO!$K38=2, COUNTRY_INFO!$F38*0.5, COUNTRY_INFO!$F38))), 0))","v":11738},{"$f":"IF(INTRO!$E$43=\"Non endémique\", 0, IF(COUNTRY_INFO!$K38>0, IF(COUNTRY_INFO!$K38=4, 0, IF(COUNTRY_INFO!$K38=1, 0, IF(COUNTRY_INFO!$K38=2, COUNTRY_INFO!$G38*0.2, COUNTRY_INFO!$G38))), 0))","v":12007.6},23745.599999999999,{"$f":"IF(INTRO!$E$43=\"Non endémique\", \"Non requis\", COUNTRY_INFO!S38)","v":0},null,{"$f":"IF($D38=0,0,IF(AND($G38>0,$H38<>\"Oui\"),D38,IF(AND($G38>0,$H38=\"Oui\"),COUNTRY_INFO!$F38,0)))","v":0},0,0,0,0,0,0,null,0,0]
[{"$f":"IF(INTRO!$E$43=\"Non endémique\",\" \", IF(COUNTRY_INFO!A39=0,\" \",COUNTRY_INFO!A39))","v":"Mauritania"},{"$f":"IF(INTRO!$E$43=\"Non endémique\",\" \", IF(COUNTRY_INFO!B39=0,\" \",COUNTRY_INFO!B39))","v":"HODH GHARBI"},{"$f":"IF(INTRO!$E$43=\"Non endémique\",\" \", IF(COUNTRY_INFO!C39=0,\" \",COUNTRY_INFO!C39))","v":"Tamchekett"},{"$f":"IF(INTRO!$E$43=\"Non endémique\", 0, IF(COUNTRY_INFO!$K39>0, IF(COUNTRY_INFO!$K39=4, 0, IF(COUNTRY_INFO!$K39=1, COUNTRY_INFO!$F39*0.33, IF(COUNTRY_INFO!$K39=2, COUNTRY_INFO!$F39*0.5, COUNTRY_INFO!$F39))), 0))","v":4940.5},{"$f":"IF(INTRO!$E$43=\"Non endémique\", 0, IF(COUNTRY_INFO!$K39>0, IF(COUNTRY_INFO!$K39=4, 0, IF(COUNTRY_INFO!$K39=1, 0, IF(COUNTRY_INFO!$K39=2, COUNTRY_INFO!$G39*0.2, COUNTRY_INFO!$G39))), 0))","v":5054},9994.5,{"$f":"IF(INTRO!$E$43=\"Non endémique\", \"Non requis\", COUNTRY_INFO!S39)","v":1},"Oui",{"$f":"IF($D39=0,0,IF(AND($G39>0,$H39<>\"Oui\"),D39,IF(AND($G39>0,$H39=\"Oui\"),COUNTRY_INFO!$F39,0)))","v":9881},4940.5,5054,9994.5,12351.25,15162,12351.25,null,12351.25,13]
[{"$f":"IF(INTRO!$E$43=\"Non endémique\",\" \", IF(COUNTRY_INFO!A40=0,\" \",COUNTRY_INFO!A40))","v":"Mauritania"},{"$f":"IF(INTRO!$E$43=\"Non endémique\",\" \", IF(COUNTRY_INFO!B40=0,\" \",COUNTRY_INFO!B40))","v":"HODH GHARBI"},{"$f":"IF(INTRO!$E$43=\"Non endémique\",\" \", IF(COUNTRY_INFO!C40=0,\" \",COUNTRY_INFO!C40))","v":"Tintane"},{"$f":"IF(INTRO!$E$43=\"Non endémique\", 0, IF(COUNTRY_INFO!$K40>0, IF(COUNTRY_INFO!$K40=4, 0, IF(COUNTRY_INFO!$K40=1, COUNTRY_INFO!$F40*0.33, IF(COUNTRY_INFO!$K40=2, COUNTRY_INFO!$F40*0.5, COUNTRY_INFO!$F40))), 0))","v":12305.5},{"$f":"IF(INTRO!$E$43=\"Non endémique\", 0, IF(COUNTRY_INFO!$K40>0, IF(COUNTRY_INFO!$K40=4, 0, IF(COUNTRY_INFO!$K40=1, 0, IF(COUNTRY_INFO!$K40=2, COUNTRY_INFO!$G40*0.2, COUNTRY_INFO!$G40))), 0))","v":12588},24893.5,{"$f":"IF(INTRO!$E$43=\"Non endémique\", \"Non requis\", COUNTRY_INFO!S40)","v":0},null,{"$f":"IF($D40=0,0,IF(AND($G40>0,$H40<>\"Oui\"),D40,IF(AND($G40>0,$H40=\"Oui\"),COUNTRY_INFO!$F40,0)))","v":0},12305.5,0,12305.5,30763.75,0,30763.75,null,30763.75,31]
[{"$f":"IF(INTRO!$E$43=\"Non endémique\",\" \", IF(COUNTRY_INFO!A41=0,\" \",COUNTRY_INFO!A41))","v":"Mauritania"},{"$f":"IF(INTRO!$E$43=\"Non endémique\",\" \", IF(COUNTRY_INFO!B41=0,\" \",COUNTRY_INFO!B41))","v":"INCHIRI"},{"$f":"IF(INTRO!$E$43=\"Non endémique\",\" \", IF(COUNTRY_INFO!C41=0,\" \",COUNTRY_INFO!C41))","v":"Akjoujt"},{"$f":"IF(INTRO!$E$43=\"Non endémique\", 0, IF(COUNTRY_INFO!$K41>0, IF(COUNTRY_INFO!$K41=4, 0, IF(COUNTRY_INFO!$K41=1, COUNTRY_INFO!$F41*0.33, IF(COUNTRY_INFO!$K41=2, COUNTRY_INFO!$F41*0.5, COUNTRY_INFO!$F41))), 0))","v":1093.6200000000001},{"$f":"IF(INTRO!$E$43=\"Non endémique\", 0, IF(COUNTRY_INFO!$K41>0, IF(COUNTRY_INFO!$K41=4, 0, IF(COUNTRY_INFO!$K41=1, 0, IF(COUNTRY_INFO!$K41=2, COUNTRY_INFO!$G41*0.2, COUNTRY_INFO!$G41))), 0))","v":0},{"$f":"SUM(D41:E41)","v":1093.6200000000001},{"$f":"IF(INTRO!$E$43=\"Non endémique\", \"Non requis\", COUNTRY_INFO!S41)","v":0},null,{"$f":"IF($D41=0,0,IF(AND($G41>0,$H41<>\"Oui\"),D41,IF(AND($G41>0,$H41=\"Oui\"),COUNTRY_INFO!$F41,0)))","v":0},1657,{"$f":"IF($G41>0,E41, 0)","v":0},{"$f":"IF($J41=0,SUM(I41,K41),SUM(J41,K41))","v":1657},{"$f":"IF($J41=0,$I41*2.5,$J41*2.5)","v":4142.5},{"$f":"$K41*3","v":0},{"$f":"M41","v":4142.5},null,{"$f":"IF($O41>$P41,O41-P41,0)","v":4142.5},{"$f":"ROUNDUP($O41/1000,0)","v":5}]
[{"$f":"IF(INTRO!$E$43=\"Non endémique\",\" \", IF(COUNTRY_INFO!A42=0,\" \",COUNTRY_INFO!A42))","v":"Mauritania"},{"$f":"IF(INTRO!$E$43=\"Non endémique\",\" \", IF(COUNTRY_INFO!B42=0,\" \",COUNTRY_INFO!B42))","v":"INCHIRI"},{"$f":"IF(INTRO!$E$43=\"Non endémique\",\" \", IF(COUNTRY_INFO!C42=0,\" \",COUNTRY_INFO!C42))","v":"BENICHAB"},{"$f":"IF(INTRO!$E$43=\"Non endémique\", 0, IF(COUNTRY_INFO!$K42>0, IF(COUNTRY_INFO!$K42=4, 0, IF(COUNTRY_INFO!$K42=1, COUNTRY_INFO!$F42*0.33, IF(COUNTRY_INFO!$K42=2, COUNTRY_INFO!$F42*0.5, COUNTRY_INFO!$F42))), 0))","v":1660},{"$f":"IF(INTRO!$E$43=\"Non endémique\", 0, IF(COUNTRY_INFO!$K42>0, IF(COUNTRY_INFO!$K42=4, 0, IF(COUNTRY_INFO!$K42=1, 0, IF(COUNTRY_INFO!$K42=2, COUNTRY_INFO!$G42*0.2, COUNTRY_INFO!$G42))), 0))","v":4246},5906,{"$f":"IF(INTRO!$E$43=\"Non endémique\", \"Non requis\", COUNTRY_INFO!S42)","v":1},"Oui",{"$f":"IF($D42=0,0,IF(AND($G42>0,$H42<>\"Oui\"),D42,IF(AND($G42>0,$H42=\"Oui\"),COUNTRY_INFO!$F42,0)))","v":1660},1660,4246,5906,4150,12738,4150,null,4150,5]
[{"$f":"IF(INTRO!$E$43=\"Non endémique\",\" \", IF(COUNTRY_INFO!A43=0,\" \",COUNTRY_INFO!A43))","v":"Mauritania"},{"$f":"IF(INTRO!$E$43=\"Non endémique\",\" \", IF(COUNTRY_INFO!B43=0,\" \",COUNTRY_INFO!B43))","v":"NOUADHIBOU"},{"$f":"IF(INTRO!$E$43=\"Non endémique\",\" \", IF(COUNTRY_INFO!C43=0,\" \",COUNTRY_INFO!C43))","v":"Chami"},{"$f":"IF(INTRO!$E$43=\"Non endémique\", 0, IF(COUNTRY_INFO!$K43>0, IF(COUNTRY_INFO!$K43=4, 0, IF(COUNTRY_INFO!$K43=1, COUNTRY_INFO!$F43*0.33, IF(COUNTRY_INFO!$K43=2, COUNTRY_INFO!$F43*0.5, COUNTRY_INFO!$F43))), 0))","v":222.09},{"$f":"IF(INTRO!$E$43=\"Non endémique\", 0, IF(COUNTRY_INFO!$K43>0, IF(COUNTRY_INFO!$K43=4, 0, IF(COUNTRY_INFO!$K43=1, 0, IF(COUNTRY_INFO!$K43=2, COUNTRY_INFO!$G43*0.2, COUNTRY_INFO!$G43))), 0))","v":0},222.09,{"$f":"IF(INTRO!$E$43=\"Non endémique\", \"Non requis\", COUNTRY_INFO!S43)","v":0},null,{"$f":"IF($D43=0,0,IF(AND($G43>0,$H43<>\"Oui\"),D43,IF(AND($G43>0,$H43=\"Oui\"),COUNTRY_INFO!$F43,0)))","v":0},0,0,0,0,0,0,null,0,0]
[{"$f":"IF(INTRO!$E$43=\"Non endémique\",\" \", IF(COUNTRY_INFO!A44=0,\" \",COUNTRY_INFO!A44))","v":"Mauritania"},{"$f":"IF(INTRO!$E$43=\"Non endémique\",\" \", IF(COUNTRY_INFO!B44=0,\" \",COUNTRY_INFO!B44))","v":"NOUADHIBOU"},{"$f":"IF(INTRO!$E$43=\"Non endémique\",\" \", IF(COUNTRY_INFO!C44=0,\" \",COUNTRY_INFO!C44))","v":"Nouadhibou"},{"$f":"IF(INTRO!$E$43=\"Non endémique\", 0, IF(COUNTRY_INFO!$K44>0, IF(COUNTRY_INFO!$K44=4, 0, IF(COUNTRY_INFO!$K44=1, COUNTRY_INFO!$F44*0.33, IF(COUNTRY_INFO!$K44=2, COUNTRY_INFO!$F44*0.5, COUNTRY_INFO!$F44))), 0))","v":10123.41},{"$f":"IF(INTRO!$E$43=\"Non endémique\", 0, IF(COUNTRY_INFO!$K44>0, IF(COUNTRY_INFO!$K44=4, 0, IF(COUNTRY_INFO!$K44=1, 0, IF(COUNTRY_INFO!$K44=2, COUNTRY_INFO!$G44*0.2, COUNTRY_INFO!$G44))), 0))","v":0},10123.41,{"$f":"IF(INTRO!$E$43=\"Non endémique\", \"Non requis\", COUNTRY_INFO!S44)","v":0},null,{"$f":"IF($D44=0,0,IF(AND($G44>0,$H44<>\"Oui\"),D44,IF(AND($G44>0,$H44=\"Oui\"),COUNTRY_INFO!$F44,0)))","v":0},0,0,0,0,0,0,null,0,0]
[{"$f":"IF(INTRO!$E$43=\"Non endémique\",\" \", IF(COUNTRY_INFO!A45=0,\" \",COUNTRY_INFO!A45))","v":"Mauritania"},{"$f":"IF(INTRO!$E$43=\"Non endémique\",\" \", IF(COUNTRY_INFO!B45=0,\" \",COUNTRY_INFO!B45))","v":"NOUAKCHOTT"},{"$f":"IF(INTRO!$E$43=\"Non endémique\",\" \", IF(COUNTRY_INFO!C45=0,\" \",COUNTRY_INFO!C45))","v":"ARAFAT"},{"$f":"IF(INTRO!$E$43=\"Non endémique\", 0, IF(COUNTRY_INFO!$K45>0, IF(COUNTRY_INFO!$K45=4, 0, IF(COUNTRY_INFO!$K45=1, COUNTRY_INFO!$F45*0.33, IF(COUNTRY_INFO!$K45=2, COUNTRY_INFO!$F45*0.5, COUNTRY_INFO!$F45))), 0))","v":0},{"$f":"IF(INTRO!$E$43=\"Non endémique\", 0, IF(COUNTRY_INFO!$K45>0, IF(COUNTRY_INFO!$K45=4, 0, IF(COUNTRY_INFO!$K45=1, 0, IF(COUNTRY_INFO!$K45=2, COUNTRY_INFO!$G45*0.2, COUNTRY_INFO!$G45))), 0))","v":0},0,{"$f":"IF(INTRO!$E$43=\"Non endémique\", \"Non requis\", COUNTRY_INFO!S45)","v":0},null,{"$f":"IF($D45=0,0,IF(AND($G45>0,$H45<>\"Oui\"),D45,IF(AND($G45>0,$H45=\"Oui\"),COUNTRY_INFO!$F45,0)))","v":0},0,0,0,0,0,0,null,0,0]
[{"$f":"IF(INTRO!$E$43=\"Non endémique\",\" \", IF(COUNTRY_INFO!A46=0,\" \",COUNTRY_INFO!A46))","v":"Mauritania"},{"$f":"IF(INTRO!$E$43=\"Non endémique\",\" \", IF(COUNTRY_INFO!B46=0,\" \",COUNTRY_INFO!B46))","v":"NOUAKCHOTT"},{"$f":"IF(INTRO!$E$43=\"Non endémique\",\" \", IF(COUNTRY_INFO!C46=0,\" \",COUNTRY_INFO!C46))","v":"DAR NAIM"},{"$f":"IF(INTRO!$E$43=\"Non endémique\", 0, IF(COUNTRY_INFO!$K46>0, IF(COUNTRY_INFO!$K46=4, 0, IF(COUNTRY_INFO!$K46=1, COUNTRY_INFO!$F46*0.33, IF(COUNTRY_INFO!$K46=2, COUNTRY_INFO!$F46*0.5, COUNTRY_INFO!$F46))), 0))","v":0},{"$f":"IF(INTRO!$E$43=\"Non endémique\", 0, IF(COUNTRY_INFO!$K46>0, IF(COUNTRY_INFO!$K46=4, 0, IF(COUNTRY_INFO!$K46=1, 0, IF(COUNTRY_INFO!$K46=2, COUNTRY_INFO!$G46*0.2, COUNTRY_INFO!$G46))), 0))","v":0},0,{"$f":"IF(INTRO!$E$43=\"Non endémique\", \"Non requis\", COUNTRY_INFO!S46)","v":0},null,{"$f":"IF($D46=0,0,IF(AND($G46>0,$H46<>\"Oui\"),D46,IF(AND($G46>0,$H46=\"Oui\"),COUNTRY_INFO!$F46,0)))","v":0},0,0,0,0,0,0,null,0,0]
[{"$f":"IF(INTRO!$E$43=\"Non endémique\",\" \", IF(COUNTRY_INFO!A47=0,\" \",COUNTRY_INFO!A47))","v":"Mauritania"},{"$f":"IF(INTRO!$E$43=\"Non endémique\",\" \", IF(COUNTRY_INFO!B47=0,\" \",COUNTRY_INFO!B47))","v":"NOUAKCHOTT"},{"$f":"IF(INTRO!$E$43=\"Non endémique\",\" \", IF(COUNTRY_INFO!C47=0,\" \",COUNTRY_INFO!C47))","v":"ELMINA"},{"$f":"IF(INTRO!$E$43=\"Non endémique\", 0, IF(COUNTRY_INFO!$K47>0, IF(COUNTRY_INFO!$K47=4, 0, IF(COUNTRY_INFO!$K47=1, COUNTRY_INFO!$F47*0.33, IF(COUNTRY_INFO!$K47=2, COUNTRY_INFO!$F47*0.5, COUNTRY_INFO!$F47))), 0))","v":0},{"$f":"IF(INTRO!$E$43=\"Non endémique\", 0, IF(COUNTRY_INFO!$K47>0, IF(COUNTRY_INFO!$K47=4, 0, IF(COUNTRY_INFO!$K47=1, 0, IF(COUNTRY_INFO!$K47=2, COUNTRY_INFO!$G47*0.2, COUNTRY_INFO!$G47))), 0))","v":0},0,{"$f":"IF(INTRO!$E$43=\"Non endémique\", \"Non requis\", COUNTRY_INFO!S47)","v":0},null,{"$f":"IF($D47=0,0,IF(AND($G47>0,$H47<>\"Oui\"),D47,IF(AND($G47>0,$H47=\"Oui\"),COUNTRY_INFO!$F47,0)))","v":0},0,0,0,0,0,0,null,0,0]
[{"$f":"IF(INTRO!$E$43=\"Non endémique\",\" \", IF(COUNTRY_INFO!A48=0,\" \",COUNTRY_INFO!A48))","v":"Mauritania"},{"$f":"IF(INTRO!$E$43=\"Non endémique\",\" \", IF(COUNTRY_INFO!B48=0,\" \",COUNTRY_INFO!B48))","v":"NOUAKCHOTT"},{"$f":"IF(INTRO!$E$43=\"Non endémique\",\" \", IF(COUNTRY_INFO!C48=0,\" \",COUNTRY_INFO!C48))","v":"KSAR"},{"$f":"IF(INTRO!$E$43=\"Non endémique\", 0, IF(COUNTRY_INFO!$K48>0, IF(COUNTRY_INFO!$K48=4, 0, IF(COUNTRY_INFO!$K48=1, COUNTRY_INFO!$F48*0.33, IF(COUNTRY_INFO!$K48=2, COUNTRY_INFO!$F48*0.5, COUNTRY_INFO!$F48))), 0))","v":0},{"$f":"IF(INTRO!$E$43=\"Non endémique\", 0, IF(COUNTRY_INFO!$K48>0, IF(COUNTRY_INFO!$K48=4, 0, IF(COUNTRY_INFO!$K48=1, 0, IF(COUNTRY_INFO!$K48=2, COUNTRY_INFO!$G48*0.2, COUNTRY_INFO!$G48))), 0))","v":0},0,{"$f":"IF(INTRO!$E$43=\"Non endémique\", \"Non requis\", COUNTRY_INFO!S48)","v":0},null,{"$f":"IF($D48=0,0,IF(AND($G48>0,$H48<>\"Oui\"),D48,IF(AND($G48>0,$H48=\"Oui\"),COUNTRY_INFO!$F48,0)))","v":0},0,0,0,0,0,0,null,0,0]
[{"$f":"IF(INTRO!$E$43=\"Non endémique\",\" \", IF(COUNTRY_INFO!A49=0,\" \",COUNTRY_INFO!A49))","v":"Mauritania"},{"$f":"IF(INTRO!$E$43=\"Non endémique\",\" \", IF(COUNTRY_INFO!B49=0,\" \",COUNTRY_INFO!B49))","v":"NOUAKCHOTT"},{"$f":"IF(INTRO!$E$43=\"Non endémique\",\" \", IF(COUNTRY_INFO!C49=0,\" \",COUNTRY_INFO!C49))","v":"RIYAD"},{"$f":"IF(INTRO!$E$43=\"Non endémique\", 0, IF(COUNTRY_INFO!$K49>0, IF(COUNTRY_INFO!$K49=4, 0, IF(COUNTRY_INFO!$K49=1, COUNTRY_INFO!$F49*0.33, IF(COUNTRY_INFO!$K49=2, COUNTRY_INFO!$F49*0.5, COUNTRY_INFO!$F49))), 0))","v":0},{"$f":"IF(INTRO!$E$43=\"Non endémique\", 0, IF(COUNTRY_INFO!$K49>0, IF(COUNTRY_INFO!$K49=4, 0, IF(COUNTRY_INFO!$K49=1, 0, IF(COUNTRY_INFO!$K49=2, COUNTRY_INFO!$G49*0.2, COUNTRY_INFO!$G49))), 0))","v":0},0,{"$f":"IF(INTRO!$E$43=\"Non endémique\", \"Non requis\", COUNTRY_INFO!S49)","v":0},null,{"$f":"IF($D49=0,0,IF(AND($G49>0,$H49<>\"Oui\"),D49,IF(AND($G49>0,$H49=\"Oui\"),COUNTRY_INFO!$F49,0)))","v":0},0,0,0,0,0,0,null,0,0]
[{"$f":"IF(INTRO!$E$43=\"Non endémique\",\" \", IF(COUNTRY_INFO!A50=0,\" \",COUNTRY_INFO!A50))","v":"Mauritania"},{"$f":"IF(INTRO!$E$43=\"Non endémique\",\" \", IF(COUNTRY_INFO!B50=0,\" \",COUNTRY_INFO!B50))","v":"NOUAKCHOTT"},{"$f":"IF(INTRO!$E$43=\"Non endémique\",\" \", IF(COUNTRY_INFO!C50=0,\" \",COUNTRY_INFO!C50))","v":"SEBKHA"},{"$f":"IF(INTRO!$E$43=\"Non endémique\", 0, IF(COUNTRY_INFO!$K50>0, IF(COUNTRY_INFO!$K50=4, 0, IF(COUNTRY_INFO!$K50=1, COUNTRY_INFO!$F50*0.33, IF(COUNTRY_INFO!$K50=2, COUNTRY_INFO!$F50*0.5, COUNTRY_INFO!$F50))), 0))","v":9149},{"$f":"IF(INTRO!$E$43=\"Non endémique\", 0, IF(COUNTRY_INFO!$K50>0, IF(COUNTRY_INFO!$K50=4, 0, IF(COUNTRY_INFO!$K50=1, 0, IF(COUNTRY_INFO!$K50=2, COUNTRY_INFO!$G50*0.2, COUNTRY_INFO!$G50))), 0))","v":9359},18508,{"$f":"IF(INTRO!$E$43=\"Non endémique\", \"Non requis\", COUNTRY_INFO!S50)","v":0},null,{"$f":"IF($D50=0,0,IF(AND($G50>0,$H50<>\"Oui\"),D50,IF(AND($G50>0,$H50=\"Oui\"),COUNTRY_INFO!$F50,0)))","v":0},0,0,0,0,0,0,null,0,0]
[{"$f":"IF(INTRO!$E$43=\"Non endémique\",\" \", IF(COUNTRY_INFO!A51=0,\" \",COUNTRY_INFO!A51))","v":"Mauritania"},{"$f":"IF(INTRO!$E$43=\"Non endémique\",\" \", IF(COUNTRY_INFO!B51=0,\" \",COUNTRY_INFO!B51))","v":"NOUAKCHOTT"},{"$f":"IF(INTRO!$E$43=\"Non endémique\",\" \", IF(COUNTRY_INFO!C51=0,\" \",COUNTRY_INFO!C51))","v":"TEVRAGH ZEIN"},{"$f":"IF(INTRO!$E$43=\"Non endémique\", 0, IF(COUNTRY_INFO!$K51>0, IF(COUNTRY_INFO!$K51=4, 0, IF(COUNTRY_INFO!$K51=1, COUNTRY_INFO!$F51*0.33, IF(COUNTRY_INFO!$K51=2, COUNTRY_INFO!$F51*0.5, COUNTRY_INFO!$F51))), 0))","v":0},{"$f":"IF(INTRO!$E$43=\"Non endémique\", 0, IF(COUNTRY_INFO!$K51>0, IF(COUNTRY_INFO!$K51=4, 0, IF(COUNTRY_INFO!$K51=1, 0, IF(COUNTRY_INFO!$K51=2, COUNTRY_INFO!$G51*0.2, COUNTRY_INFO!$G51))), 0))","v":0},0,{"$f":"IF(INTRO!$E$43=\"Non endémique\", \"Non requis\", COUNTRY_INFO!S51)","v":0},null,{"$f":"IF($D51=0,0,IF(AND($G51>0,$H51<>\"Oui\"),D51,IF(AND($G51>0,$H51=\"Oui\"),COUNTRY_INFO!$F51,0)))","v":0},0,0,0,0,0,0,null,0,0]
[{"$f":"IF(INTRO!$E$43=\"Non endémique\",\" \", IF(COUNTRY_INFO!A52=0,\" \",COUNTRY_INFO!A52))","v":"Mauritania"},{"$f":"IF(INTRO!$E$43=\"Non endémique\",\" \", IF(COUNTRY_INFO!B52=0,\" \",COUNTRY_INFO!B52))","v":"NOUAKCHOTT"},{"$f":"IF(INTRO!$E$43=\"Non endémique\",\" \", IF(COUNTRY_INFO!C52=0,\" \",COUNTRY_INFO!C52))","v":"TEYARET"},{"$f":"IF(INTRO!$E$43=\"Non endémique\", 0, IF(COUNTRY_INFO!$K52>0, IF(COUNTRY_INFO!$K52=4, 0, IF(COUNTRY_INFO!$K52=1, COUNTRY_INFO!$F52*0.33, IF(COUNTRY_INFO!$K52=2, COUNTRY_INFO!$F52*0.5, COUNTRY_INFO!$F52))), 0))","v":0},{"$f":"IF(INTRO!$E$43=\"Non endémique\", 0, IF(COUNTRY_INFO!$K52>0, IF(COUNTRY_INFO!$K52=4, 0, IF(COUNTRY_INFO!$K52=1, 0, IF(COUNTRY_INFO!$K52=2, COUNTRY_INFO!$G52*0.2, COUNTRY_INFO!$G52))), 0))","v":0},0,{"$f":"IF(INTRO!$E$43=\"Non endémique\", \"Non requis\", COUNTRY_INFO!S52)","v":0},null,{"$f":"IF($D52=0,0,IF(AND($G52>0,$H52<>\"Oui\"),D52,IF(AND($G52>0,$H52=\"Oui\"),COUNTRY_INFO!$F52,0)))","v":0},0,0,0,0,0,0,null,0,0]
[{"$f":"IF(INTRO!$E$43=\"Non endémique\",\" \", IF(COUNTRY_INFO!A53=0,\" \",COUNTRY_INFO!A53))","v":"Mauritania"},{"$f":"IF(INTRO!$E$43=\"Non endémique\",\" \", IF(COUNTRY_INFO!B53=0,\" \",COUNTRY_INFO!B53))","v":"NOUAKCHOTT"},{"$f":"IF(INTRO!$E$43=\"Non endémique\",\" \", IF(COUNTRY_INFO!C53=0,\" \",COUNTRY_INFO!C53))","v":"TOUJENINE"},{"$f":"IF(INTRO!$E$43=\"Non endémique\", 0, IF(COUNTRY_INFO!$K53>0, IF(COUNTRY_INFO!$K53=4, 0, IF(COUNTRY_INFO!$K53=1, COUNTRY_INFO!$F53*0.33, IF(COUNTRY_INFO!$K53=2, COUNTRY_INFO!$F53*0.5, COUNTRY_INFO!$F53))), 0))","v":0},{"$f":"IF(INTRO!$E$43=\"Non endémique\", 0, IF(COUNTRY_INFO!$K53>0, IF(COUNTRY_INFO!$K53=4, 0, IF(COUNTRY_INFO!$K53=1, 0, IF(COUNTRY_INFO!$K53=2, COUNTRY_INFO!$G53*0.2, COUNTRY_INFO!$G53))), 0))","v":0},0,{"$f":"IF(INTRO!$E$43=\"Non endémique\", \"Non requis\", COUNTRY_INFO!S53)","v":0},null,{"$f":"IF($D53=0,0,IF(AND($G53>0,$H53<>\"Oui\"),D53,IF(AND($G53>0,$H53=\"Oui\"),COUNTRY_INFO!$F53,0)))","v":0},0,0,0,0,0,0,null,0,0]
[{"$f":"IF(INTRO!$E$43=\"Non endémique\",\" \", IF(COUNTRY_INFO!A54=0,\" \",COUNTRY_INFO!A54))","v":"Mauritania"},{"$f":"IF(INTRO!$E$43=\"Non endémique\",\" \", IF(COUNTRY_INFO!B54=0,\" \",COUNTRY_INFO!B54))","v":"TAGANT"},{"$f":"IF(INTRO!$E$43=\"Non endémique\",\" \", IF(COUNTRY_INFO!C54=0,\" \",COUNTRY_INFO!C54))","v":"Moudjéria"},{"$f":"IF(INTRO!$E$43=\"Non endémique\", 0, IF(COUNTRY_INFO!$K54>0, IF(COUNTRY_INFO!$K54=4, 0, IF(COUNTRY_INFO!$K54=1, COUNTRY_INFO!$F54*0.33, IF(COUNTRY_INFO!$K54=2, COUNTRY_INFO!$F54*0.5, COUNTRY_INFO!$F54))), 0))","v":10571},{"$f":"IF(INTRO!$E$43=\"Non endémique\", 0, IF(COUNTRY_INFO!$K54>0, IF(COUNTRY_INFO!$K54=4, 0, IF(COUNTRY_INFO!$K54=1, 0, IF(COUNTRY_INFO!$K54=2, COUNTRY_INFO!$G54*0.2, COUNTRY_INFO!$G54))), 0))","v":27035},37606,{"$f":"IF(INTRO!$E$43=\"Non endémique\", \"Non requis\", COUNTRY_INFO!S54)","v":1},"Oui",{"$f":"IF($D54=0,0,IF(AND($G54>0,$H54<>\"Oui\"),D54,IF(AND($G54>0,$H54=\"Oui\"),COUNTRY_INFO!$F54,0)))","v":10571},5285.5,27035,32320.5,13213.75,81105,13213.75,null,13213.75,14]
[{"$f":"IF(INTRO!$E$43=\"Non endémique\",\" \", IF(COUNTRY_INFO!A55=0,\" \",COUNTRY_INFO!A55))","v":"Mauritania"},{"$f":"IF(INTRO!$E$43=\"Non endémique\",\" \", IF(COUNTRY_INFO!B55=0,\" \",COUNTRY_INFO!B55))","v":"TAGANT"},{"$f":"IF(INTRO!$E$43=\"Non endémique\",\" \", IF(COUNTRY_INFO!C55=0,\" \",COUNTRY_INFO!C55))","v":"Tichitt"},{"$f":"IF(INTRO!$E$43=\"Non endémique\", 0, IF(COUNTRY_INFO!$K55>0, IF(COUNTRY_INFO!$K55=4, 0, IF(COUNTRY_INFO!$K55=1, COUNTRY_INFO!$F55*0.33, IF(COUNTRY_INFO!$K55=2, COUNTRY_INFO!$F55*0.5, COUNTRY_INFO!$F55))), 0))","v":550.5},{"$f":"IF(INTRO!$E$43=\"Non endémique\", 0, IF(COUNTRY_INFO!$K55>0, IF(COUNTRY_INFO!$K55=4, 0, IF(COUNTRY_INFO!$K55=1, 0, IF(COUNTRY_INFO!$K55=2, COUNTRY_INFO!$G55*0.2, COUNTRY_INFO!$G55))), 0))","v":563.4},1113.9000000000001,{"$f":"IF(INTRO!$E$43=\"Non endémique\", \"Non requis\", COUNTRY_INFO!S55)","v":0},null,{"$f":"IF($D55=0,0,IF(AND($G55>0,$H55<>\"Oui\"),D55,IF(AND($G55>0,$H55=\"Oui\"),COUNTRY_INFO!$F55,0)))","v":0},0,0,0,0,0,0,null,0,0]
[{"$f":"IF(INTRO!$E$43=\"Non endémique\",\" \", IF(COUNTRY_INFO!A56=0,\" \",COUNTRY_INFO!A56))","v":"Mauritania"},{"$f":"IF(INTRO!$E$43=\"Non endémique\",\" \", IF(COUNTRY_INFO!B56=0,\" \",COUNTRY_INFO!B56))","v":"TAGANT"},{"$f":"IF(INTRO!$E$43=\"Non endémique\",\" \", IF(COUNTRY_INFO!C56=0,\" \",COUNTRY_INFO!C56))","v":"Tidjikja"},{"$f":"IF(INTRO!$E$43=\"Non endémique\", 0, IF(COUNTRY_INFO!$K56>0, IF(COUNTRY_INFO!$K56=4, 0, IF(COUNTRY_INFO!$K56=1, COUNTRY_INFO!$F56*0.33, IF(COUNTRY_INFO!$K56=2, COUNTRY_INFO!$F56*0.5, COUNTRY_INFO!$F56))), 0))","v":4416.5},{"$f":"IF(INTRO!$E$43=\"Non endémique\", 0, IF(COUNTRY_INFO!$K56>0, IF(COUNTRY_INFO!$K56=4, 0, IF(COUNTRY_INFO!$K56=1, 0, IF(COUNTRY_INFO!$K56=2, COUNTRY_INFO!$G56*0.2, COUNTRY_INFO!$G56))), 0))","v":4518},8934.5,{"$f":"IF(INTRO!$E$43=\"Non endémique\", \"Non requis\", COUNTRY_INFO!S56)","v":1},"Oui",{"$f":"IF($D56=0,0,IF(AND($G56>0,$H56<>\"Oui\"),D56,IF(AND($G56>0,$H56=\"Oui\"),COUNTRY_INFO!$F56,0)))","v":8833},4416.5,4518,8934.5,11041.25,13554,11041.25,null,11041.25,12]
[{"$f":"IF(INTRO!$E$43=\"Non endémique\",\" \", IF(COUNTRY_INFO!A57=0,\" \",COUNTRY_INFO!A57))","v":"Mauritania"},{"$f":"IF(INTRO!$E$43=\"Non endémique\",\" \", IF(COUNTRY_INFO!B57=0,\" \",COUNTRY_INFO!B57))","v":"TIRIS ZEMOUR"},{"$f":"IF(INTRO!$E$43=\"Non endémique\",\" \", IF(COUNTRY_INFO!C57=0,\" \",COUNTRY_INFO!C57))","v":"Bir Moghrein"},{"$f":"IF(INTRO!$E$43=\"Non endémique\", 0, IF(COUNTRY_INFO!$K57>0, IF(COUNTRY_INFO!$K57=4, 0, IF(COUNTRY_INFO!$K57=1, COUNTRY_INFO!$F57*0.33, IF(COUNTRY_INFO!$K57=2, COUNTRY_INFO!$F57*0.5, COUNTRY_INFO!$F57))), 0))","v":0},{"$f":"IF(INTRO!$E$43=\"Non endémique\", 0, IF(COUNTRY_INFO!$K57>0, IF(COUNTRY_INFO!$K57=4, 0, IF(COUNTRY_INFO!$K57=1, 0, IF(COUNTRY_INFO!$K57=2, COUNTRY_INFO!$G57*0.2, COUNTRY_INFO!$G57))), 0))","v":0},0,{"$f":"IF(INTRO!$E$43=\"Non endémique\", \"Non requis\", COUNTRY_INFO!S57)","v":0},null,{"$f":"IF($D57=0,0,IF(AND($G57>0,$H57<>\"Oui\"),D57,IF(AND($G57>0,$H57=\"Oui\"),COUNTRY_INFO!$F57,0)))","v":0},0,0,0,0,0,0,null,0,0]
[{"$f":"IF(INTRO!$E$43=\"Non endémique\",\" \", IF(COUNTRY_INFO!A58=0,\" \",COUNTRY_INFO!A58))","v":"Mauritania"},{"$f":"IF(INTRO!$E$43=\"Non endémique\",\" \", IF(COUNTRY_INFO!B58=0,\" \",COUNTRY_INFO!B58))","v":"TIRIS ZEMOUR"},{"$f":"IF(INTRO!$E$43=\"Non endémique\",\" \", IF(COUNTRY_INFO!C58=0,\" \",COUNTRY_INFO!C58))","v":"F'Dérick"},{"$f":"IF(INTRO!$E$43=\"Non endémique\", 0, IF(COUNTRY_INFO!$K58>0, IF(COUNTRY_INFO!$K58=4, 0, IF(COUNTRY_INFO!$K58=1, COUNTRY_INFO!$F58*0.33, IF(COUNTRY_INFO!$K58=2, COUNTRY_INFO!$F58*0.5, COUNTRY_INFO!$F58))), 0))","v":0},{"$f":"IF(INTRO!$E$43=\"Non endémique\", 0, IF(COUNTRY_INFO!$K58>0, IF(COUNTRY_INFO!$K58=4, 0, IF(COUNTRY_INFO!$K58=1, 0, IF(COUNTRY_INFO!$K58=2, COUNTRY_INFO!$G58*0.2, COUNTRY_INFO!$G58))), 0))","v":0},0,{"$f":"IF(INTRO!$E$43=\"Non endémique\", \"Non requis\", COUNTRY_INFO!S58)","v":0},null,{"$f":"IF($D58=0,0,IF(AND($G58>0,$H58<>\"Oui\"),D58,IF(AND($G58>0,$H58=\"Oui\"),COUNTRY_INFO!$F58,0)))","v":0},0,0,0,0,0,0,null,0,0]
[{"$f":"IF(INTRO!$E$43=\"Non endémique\",\" \", IF(COUNTRY_INFO!A59=0,\" \",COUNTRY_INFO!A59))","v":"Mauritania"},{"$f":"IF(INTRO!$E$43=\"Non endémique\",\" \", IF(COUNTRY_INFO!B59=0,\" \",COUNTRY_INFO!B59))","v":"TIRIS ZEMOUR"},{"$f":"IF(INTRO!$E$43=\"Non endémique\",\" \", IF(COUNTRY_INFO!C59=0,\" \",COUNTRY_INFO!C59))","v":"Zouératt"},{"$f":"IF(INTRO!$E$43=\"Non endémique\", 0, IF(COUNTRY_INFO!$K59>0, IF(COUNTRY_INFO!$K59=4, 0, IF(COUNTRY_INFO!$K59=1, COUNTRY_INFO!$F59*0.33, IF(COUNTRY_INFO!$K59=2, COUNTRY_INFO!$F59*0.5, COUNTRY_INFO!$F59))), 0))","v":0},{"$f":"IF(INTRO!$E$43=\"Non endémique\", 0, IF(COUNTRY_INFO!$K59>0, IF(COUNTRY_INFO!$K59=4, 0, IF(COUNTRY_INFO!$K59=1, 0, IF(COUNTRY_INFO!$K59=2, COUNTRY_INFO!$G59*0.2, COUNTRY_INFO!$G59))), 0))","v":0},0,{"$f":"IF(INTRO!$E$43=\"Non endémique\", \"Non requis\", COUNTRY_INFO!S59)","v":0},null,{"$f":"IF($D59=0,0,IF(AND($G59>0,$H59<>\"Oui\"),D59,IF(AND($G59>0,$H59=\"Oui\"),COUNTRY_INFO!$F59,0)))","v":0},0,0,0,0,0,0,null,0,0]
[{"$f":"IF(INTRO!$E$43=\"Non endémique\",\" \", IF(COUNTRY_INFO!A60=0,\" \",COUNTRY_INFO!A60))","v":"Mauritania"},{"$f":"IF(INTRO!$E$43=\"Non endémique\",\" \", IF(COUNTRY_INFO!B60=0,\" \",COUNTRY_INFO!B60))","v":"TRARZA"},{"$f":"IF(INTRO!$E$43=\"Non endémique\",\" \", IF(COUNTRY_INFO!C60=0,\" \",COUNTRY_INFO!C60))","v":"Boutilimitt"},{"$f":"IF(INTRO!$E$43=\"Non endémique\", 0, IF(COUNTRY_INFO!$K60>0, IF(COUNTRY_INFO!$K60=4, 0, IF(COUNTRY_INFO!$K60=1, COUNTRY_INFO!$F60*0.33, IF(COUNTRY_INFO!$K60=2, COUNTRY_INFO!$F60*0.5, COUNTRY_INFO!$F60))), 0))","v":16005},{"$f":"IF(INTRO!$E$43=\"Non endémique\", 0, IF(COUNTRY_INFO!$K60>0, IF(COUNTRY_INFO!$K60=4, 0, IF(COUNTRY_INFO!$K60=1, 0, IF(COUNTRY_INFO!$K60=2, COUNTRY_INFO!$G60*0.2, COUNTRY_INFO!$G60))), 0))","v":40932},56937,{"$f":"IF(INTRO!$E$43=\"Non endémique\", \"Non requis\", COUNTRY_INFO!S60)","v":1},"Oui",{"$f":"IF($D60=0,0,IF(AND($G60>0,$H60<>\"Oui\"),D60,IF(AND($G60>0,$H60=\"Oui\"),COUNTRY_INFO!$F60,0)))","v":16005},0,40932,56937,40012.5,122796,40012.5,null,40012.5,41]
[{"$f":"IF(INTRO!$E$43=\"Non endémique\",\" \", IF(COUNTRY_INFO!A61=0,\" \",COUNTRY_INFO!A61))","v":"Mauritania"},{"$f":"IF(INTRO!$E$43=\"Non endémique\",\" \", IF(COUNTRY_INFO!B61=0,\" \",COUNTRY_INFO!B61))","v":"TRARZA"},{"$f":"IF(INTRO!$E$43=\"Non endémique\",\" \", IF(COUNTRY_INFO!C61=0,\" \",COUNTRY_INFO!C61))","v":"Keur Maceine"},{"$f":"IF(INTRO!$E$43=\"Non endémique\", 0, IF(COUNTRY_INFO!$K61>0, IF(COUNTRY_INFO!$K61=4, 0, IF(COUNTRY_INFO!$K61=1, COUNTRY_INFO!$F61*0.33, IF(COUNTRY_INFO!$K61=2, COUNTRY_INFO!$F61*0.5, COUNTRY_INFO!$F61))), 0))","v":2236.7400000000002},{"$f":"IF(INTRO!$E$43=\"Non endémique\", 0, IF(COUNTRY_INFO!$K61>0, IF(COUNTRY_INFO!$K61=4, 0, IF(COUNTRY_INFO!$K61=1, 0, IF(COUNTRY_INFO!$K61=2, COUNTRY_INFO!$G61*0.2, COUNTRY_INFO!$G61))), 0))","v":0},2236.7400000000002,{"$f":"IF(INTRO!$E$43=\"Non endémique\", \"Non requis\", COUNTRY_INFO!S61)","v":0},null,{"$f":"IF($D61=0,0,IF(AND($G61>0,$H61<>\"Oui\"),D61,IF(AND($G61>0,$H61=\"Oui\"),COUNTRY_INFO!$F61,0)))","v":0},6778,0,6778,16945,0,16945,null,16945,17]
[{"$f":"IF(INTRO!$E$43=\"Non endémique\",\" \", IF(COUNTRY_INFO!A62=0,\" \",COUNTRY_INFO!A62))","v":"Mauritania"},{"$f":"IF(INTRO!$E$43=\"Non endémique\",\" \", IF(COUNTRY_INFO!B62=0,\" \",COUNTRY_INFO!B62))","v":"TRARZA"},{"$f":"IF(INTRO!$E$43=\"Non endémique\",\" \", IF(COUNTRY_INFO!C62=0,\" \",COUNTRY_INFO!C62))","v":"Mederdra"},{"$f":"IF(INTRO!$E$43=\"Non endémique\", 0, IF(COUNTRY_INFO!$K62>0, IF(COUNTRY_INFO!$K62=4, 0, IF(COUNTRY_INFO!$K62=1, COUNTRY_INFO!$F62*0.33, IF(COUNTRY_INFO!$K62=2, COUNTRY_INFO!$F62*0.5, COUNTRY_INFO!$F62))), 0))","v":0},{"$f":"IF(INTRO!$E$43=\"Non endémique\", 0, IF(COUNTRY_INFO!$K62>0, IF(COUNTRY_INFO!$K62=4, 0, IF(COUNTRY_INFO!$K62=1, 0, IF(COUNTRY_INFO!$K62=2, COUNTRY_INFO!$G62*0.2, COUNTRY_INFO!$G62))), 0))","v":0},0,{"$f":"IF(INTRO!$E$43=\"Non endémique\", \"Non requis\", COUNTRY_INFO!S62)","v":0},null,{"$f":"IF($D62=0,0,IF(AND($G62>0,$H62<>\"Oui\"),D62,IF(AND($G62>0,$H62=\"Oui\"),COUNTRY_INFO!$F62,0)))","v":0},0,0,0,0,0,0,null,0,0]
[{"$f":"IF(INTRO!$E$43=\"Non endémique\",\" \", IF(COUNTRY_INFO!A63=0,\" \",COUNTRY_INFO!A63))","v":"Mauritania"},{"$f":"IF(INTRO!$E$43=\"Non endémique\",\" \", IF(COUNTRY_INFO!B63=0,\" \",COUNTRY_INFO!B63))","v":"TRARZA"},{"$f":"IF(INTRO!$E$43=\"Non endémique\",\" \", IF(COUNTRY_INFO!C63=0,\" \",COUNTRY_INFO!C63))","v":"Ouad Naga"},{"$f":"IF(INTRO!$E$43=\"Non endémique\", 0, IF(COUNTRY_INFO!$K63>0, IF(COUNTRY_INFO!$K63=4, 0, IF(COUNTRY_INFO!$K63=1, COUNTRY_INFO!$F63*0.33, IF(COUNTRY_INFO!$K63=2, COUNTRY_INFO!$F63*0.5, COUNTRY_INFO!$F63))), 0))","v":1980.66},{"$f":"IF(INTRO!$E$43=\"Non endémique\", 0, IF(COUNTRY_INFO!$K63>0, IF(COUNTRY_INFO!$K63=4, 0, IF(COUNTRY_INFO!$K63=1, 0, IF(COUNTRY_INFO!$K63=2, COUNTRY_INFO!$G63*0.2, COUNTRY_INFO!$G63))), 0))","v":0},1980.66,{"$f":"IF(INTRO!$E$43=\"Non endémique\", \"Non requis\", COUNTRY_INFO!S63)","v":0},null,{"$f":"IF($D63=0,0,IF(AND($G63>0,$H63<>\"Oui\"),D63,IF(AND($G63>0,$H63=\"Oui\"),COUNTRY_INFO!$F63,0)))","v":0},0,0,0,0,0,0,null,0,0]
[{"$f":"IF(INTRO!$E$43=\"Non endémique\",\" \", IF(COUNTRY_INFO!A64=0,\" \",COUNTRY_INFO!A64))","v":"Mauritania"},{"$f":"IF(INTRO!$E$43=\"Non endémique\",\" \", IF(COUNTRY_INFO!B64=0,\" \",COUNTRY_INFO!B64))","v":"TRARZA"},{"$f":"IF(INTRO!$E$43=\"Non endémique\",\" \", IF(COUNTRY_INFO!C64=0,\" \",COUNTRY_INFO!C64))","v":"R'Kiz"},{"$f":"IF(INTRO!$E$43=\"Non endémique\", 0, IF(COUNTRY_INFO!$K64>0, IF(COUNTRY_INFO!$K64=4, 0, IF(COUNTRY_INFO!$K64=1, COUNTRY_INFO!$F64*0.33, IF(COUNTRY_INFO!$K64=2, COUNTRY_INFO!$F64*0.5, COUNTRY_INFO!$F64))), 0))","v":8986},{"$f":"IF(INTRO!$E$43=\"Non endémique\", 0, IF(COUNTRY_INFO!$K64>0, IF(COUNTRY_INFO!$K64=4, 0, IF(COUNTRY_INFO!$K64=1, 0, IF(COUNTRY_INFO!$K64=2, COUNTRY_INFO!$G64*0.2, COUNTRY_INFO!$G64))), 0))","v":9192},18178,{"$f":"IF(INTRO!$E$43=\"Non endémique\", \"Non requis\", COUNTRY_INFO!S64)","v":0},null,{"$f":"IF($D64=0,0,IF(AND($G64>0,$H64<>\"Oui\"),D64,IF(AND($G64>0,$H64=\"Oui\"),COUNTRY_INFO!$F64,0)))","v":0},17972,0,17972,44930,0,44930,null,44930,45]
[{"$f":"IF(INTRO!$E$43=\"Non endémique\",\" \", IF(COUNTRY_INFO!A65=0,\" \",COUNTRY_INFO!A65))","v":"Mauritania"},{"$f":"IF(INTRO!$E$43=\"Non endémique\",\" \", IF(COUNTRY_INFO!B65=0,\" \",COUNTRY_INFO!B65))","v":"TRARZA"},{"$f":"IF(INTRO!$E$43=\"Non endémique\",\" \", IF(COUNTRY_INFO!C65=0,\" \",COUNTRY_INFO!C65))","v":"Rosso"},{"$f":"IF(INTRO!$E$43=\"Non endémique\", 0, IF(COUNTRY_INFO!$K65>0, IF(COUNTRY_INFO!$K65=4, 0, IF(COUNTRY_INFO!$K65=1, COUNTRY_INFO!$F65*0.33, IF(COUNTRY_INFO!$K65=2, COUNTRY_INFO!$F65*0.5, COUNTRY_INFO!$F65))), 0))","v":7310.5},{"$f":"IF(INTRO!$E$43=\"Non endémique\", 0, IF(COUNTRY_INFO!$K65>0, IF(COUNTRY_INFO!$K65=4, 0, IF(COUNTRY_INFO!$K65=1, 0, IF(COUNTRY_INFO!$K65=2, COUNTRY_INFO!$G65*0.2, COUNTRY_INFO!$G65))), 0))","v":7478.2000000000007},14788.7,{"$f":"IF(INTRO!$E$43=\"Non endémique\", \"Non requis\", COUNTRY_INFO!S65)","v":0},null,{"$f":"IF($D65=0,0,IF(AND($G65>0,$H65<>\"Oui\"),D65,IF(AND($G65>0,$H65=\"Oui\"),COUNTRY_INFO!$F65,0)))","v":0},14621,0,14621,36552.5,0,36552.5,null,36552.5,37]

{"sheet":"IVM","index":5,"n_rows":65,"n_cols":17,"rows_kept":65,"cut":false,"hidden":true,"merged":[[5,0,5,2],[5,4,5,5],[5,6,5,9],[6,6,7,6],[3,0,3,2],[3,4,3,5],[6,3,7,3],[6,4,7,4],[6,5,7,5],[6,0,7,0],[6,1,7,1],[6,2,7,2],[6,7,6,9],[5,10,5,16],[6,15,7,15],[6,16,7,16],[6,14,7,14],[6,10,7,10],[6,11,7,11],[6,12,7,12],[6,13,7,13]]}
["Ivermectine (IVM)"]
["Structure administrative, population ciblée par groupe d'âge, plan de traitement et information sur les comprimés"]
[]
["TOTAL",null,null,{"$f":"SUM(D$9:D$1000)","v":0},null,null,{"$f":"SUM(G$9:G$1000)","v":0},0,0,0,0,0,0,0,0,0,0]
[]
["Structure administrative du pays",null,null,null,"Plan de traitement",null,"Population cible",null,null,null,"Ivermectine (IVM)"]
["Pays","Région/Département","District","Population nécessitant un traitement avec IVM","FL","Oncho","FL","Oncho",null,null,"FL uniquement","Oncho uniquement","FL+Oncho","Total requis","Reste en stock","Comprimés devant être fournis","Flacons (3mg)\n500 comprimés"]
[null,null,null,null,null,null,null,"dans le district","dans les village","total"]
[{"$f":"IF(INTRO!$E$39=\"Non endémique\",\" \",IF(COUNTRY_INFO!A9=0,\" \",COUNTRY_INFO!A9))","v":" "},{"$f":"IF(INTRO!$E$39=\"Non endémique\",\" \",IF(COUNTRY_INFO!B9=0,\" \",COUNTRY_INFO!B9))","v":" "},{"$f":"IF(INTRO!$E$39=\"Non endémique\",\" \",IF(COUNTRY_INFO!C9=0,\" \",COUNTRY_INFO!C9))","v":" "},{"$f":"IF(INTRO!$E$39=\"Non endémique\",0,IF(INTRO!$E$39=\"Endémique mais pas de CP\",IF(COUNTRY_INFO!$H9=1,COUNTRY_INFO!F9+COUNTRY_INFO!G9,0),IF(COUNTRY_INFO!$H9=1,COUNTRY_INFO!F9+COUNTRY_INFO!G9,IF(COUNTRY_INFO!$I9=1,IF(COUNTRY_INFO!M9>=(COUNTRY_INFO!F9+COUNTRY_INFO!G9),COUNTRY_INFO!F9+COUNTRY_INFO!G9,COUNTRY_INFO!$M9),0))))","v":0},{"$f":"IF(AND(INTRO!$E$39=\"Non endémique\",INTRO!$E$37=\"Non endémique\"),\"Non requis\",IF(INTRO!$E$39=\"Non endémique\",\"Traiter avec DEC\",COUNTRY_INFO!P9))","v":"Non requis"},{"$f":"IF(INTRO!$E$39<>\"Non endémique\",COUNTRY_INFO!Q9,\"Non requis\")","v":"Non requis"},{"$f":"IF(COUNTRY_INFO!H9=1, IF($E9=1,$D9, 0),0)","v":0},{"$f":"IF(INTRO!$E$39<>\"Endémique\",0, IF(AND(COUNTRY_INFO!$I9=1,$F9<>0),IF(COUNTRY_INFO!M9>=(COUNTRY_INFO!F9+COUNTRY_INFO!G9),COUNTRY_INFO!F9+COUNTRY_INFO!G9,COUNTRY_INFO!$M9), 0))","v":0},null,{"$f":"IF(I9=0,H9,IF(I9>H9,H9,I9))","v":0},{"$f":"IF(G9<J9,0,IF($E9=1, (G9-J9)*2.8, 0))","v":0},{"$f":"IF($E9<$F9, J9*(F9-E9)*2.8, 0)","v":0},{"$f":"IF(AND($E9=1, $F9<>0), J9*2.8, 0)","v":0},{"$f":"SUM(K9:M9)","v":0},null,{"$f":"IF($N9>$O9,$N9-$O9,0)","v":0},{"$f":"ROUNDUP($N9/500,0)","v":0}]
[{"$f":"IF(INTRO!$E$39=\"Non endémique\",\" \",IF(COUNTRY_INFO!A10=0,\" \",COUNTRY_INFO!A10))","v":" "},{"$f":"IF(INTRO!$E$39=\"Non endémique\",\" \",IF(COUNTRY_INFO!B10=0,\" \",COUNTRY_INFO!B10))","v":" "},{"$f":"IF(INTRO!$E$39=\"Non endémique\",\" \",IF(COUNTRY_INFO!C10=0,\" \",COUNTRY_INFO!C10))","v":" "},{"$f":"IF(INTRO!$E$39=\"Non endémique\",0,IF(INTRO!$E$39=\"Endémique mais pas de CP\",IF(COUNTRY_INFO!$H10=1,COUNTRY_INFO!F10+COUNTRY_INFO!G10,0),IF(COUNTRY_INFO!$H10=1,COUNTRY_INFO!F10+COUNTRY_INFO!G10,IF(COUNTRY_INFO!$I10=1,IF(COUNTRY_INFO!M10>=(COUNTRY_INFO!F10+COUNTRY_INFO!G10),COUNTRY_INFO!F10+COUNTRY_INFO!G10,COUNTRY_INFO!$M10),0))))","v":0},{"$f":"IF(AND(INTRO!$E$39=\"Non endémique\",INTRO!$E$37=\"Non endémique\"),\"Non requis\",IF(INTRO!$E$39=\"Non endémique\",\"Traiter avec DEC\",COUNTRY_INFO!P10))","v":"Non requis"},{"$f":"IF(INTRO!$E$39<>\"Non endémique\",COUNTRY_INFO!Q10,\"Non requis\")","v":"Non requis"},{"$f":"IF(COUNTRY_INFO!H10=1, IF($E10=1,$D10, 0),0)","v":0},{"$f":"IF(INTRO!$E$39<>\"Endémique\",0, IF(AND(COUNTRY_INFO!$I10=1,$F10<>0),IF(COUNTRY_INFO!M10>=(COUNTRY_INFO!F10+COUNTRY_INFO!G10),COUNTRY_INFO!F10+COUNTRY_INFO!G10,COUNTRY_INFO!$M10), 0))","v":0},null,0,0,0,0,0,null,0,0]
[{"$f":"IF(INTRO!$E$39=\"Non endémique\",\" \",IF(COUNTRY_INFO!A11=0,\" \",COUNTRY_INFO!A11))","v":" "},{"$f":"IF(INTRO!$E$39=\"Non endémique\",\" \",IF(COUNTRY_INFO!B11=0,\" \",COUNTRY_INFO!B11))","v":" "},{"$f":"IF(INTRO!$E$39=\"Non endémique\",\" \",IF(COUNTRY_INFO!C11=0,\" \",COUNTRY_INFO!C11))","v":" "},{"$f":"IF(INTRO!$E$39=\"Non endémique\",0,IF(INTRO!$E$39=\"Endémique mais pas de CP\",IF(COUNTRY_INFO!$H11=1,COUNTRY_INFO!F11+COUNTRY_INFO!G11,0),IF(COUNTRY_INFO!$H11=1,COUNTRY_INFO!F11+COUNTRY_INFO!G11,IF(COUNTRY_INFO!$I11=1,IF(COUNTRY_INFO!M11>=(COUNTRY_INFO!F11+COUNTRY_INFO!G11),COUNTRY_INFO!F11+COUNTRY_INFO!G11,COUNTRY_INFO!$M11),0))))","v":0},{"$f":"IF(AND(INTRO!$E$39=\"Non endémique\",INTRO!$E$37=\"Non endémique\"),\"Non requis\",IF(INTRO!$E$39=\"Non endémique\",\"Traiter avec DEC\",COUNTRY_INFO!P11))","v":"Non requis"},{"$f":"IF(INTRO!$E$39<>\"Non endémique\",COUNTRY_INFO!Q11,\"Non requis\")","v":"Non requis"},{"$f":"IF(COUNTRY_INFO!H11=1, IF($E11=1,$D11, 0),0)","v":0},{"$f":"IF(INTRO!$E$39<>\"Endémique\",0, IF(AND(COUNTRY_INFO!$I11=1,$F11<>0),IF(COUNTRY_INFO!M11>=(COUNTRY_INFO!F11+COUNTRY_INFO!G11),COUNTRY_INFO!F11+COUNTRY_INFO!G11,COUNTRY_INFO!$M11), 0))","v":0},null,0,0,0,0,0,null,0,0]
[{"$f":"IF(INTRO!$E$39=\"Non endémique\",\" \",IF(COUNTRY_INFO!A12=0,\" \",COUNTRY_INFO!A12))","v":" "},{"$f":"IF(INTRO!$E$39=\"Non endémique\",\" \",IF(COUNTRY_INFO!B12=0,\" \",COUNTRY_INFO!B12))","v":" "},{"$f":"IF(INTRO!$E$39=\"Non endémique\",\" \",IF(COUNTRY_INFO!C12=0,\" \",COUNTRY_INFO!C12))","v":" "},{"$f":"IF(INTRO!$E$39=\"Non endémique\",0,IF(INTRO!$E$39=\"Endémique mais pas de CP\",IF(COUNTRY_INFO!$H12=1,COUNTRY_INFO!F12+COUNTRY_INFO!G12,0),IF(COUNTRY_INFO!$H12=1,COUNTRY_INFO!F12+COUNTRY_INFO!G12,IF(COUNTRY_INFO!$I12=1,IF(COUNTRY_INFO!M12>=(COUNTRY_INFO!F12+COUNTRY_INFO!G12),COUNTRY_INFO!F12+COUNTRY_INFO!G12,COUNTRY_INFO!$M12),0))))","v":0},{"$f":"IF(AND(INTRO!$E$39=\"Non endémique\",INTRO!$E$37=\"Non endémique\"),\"Non requis\",IF(INTRO!$E$39=\"Non endémique\",\"Traiter avec DEC\",COUNTRY_INFO!P12))","v":"Non requis"},{"$f":"IF(INTRO!$E$39<>\"Non endémique\",COUNTRY_INFO!Q12,\"Non requis\")","v":"Non requis"},{"$f":"IF(COUNTRY_INFO!H12=1, IF($E12=1,$D12, 0),0)","v":0},{"$f":"IF(INTRO!$E$39<>\"Endémique\",0, IF(AND(COUNTRY_INFO!$I12=1,$F12<>0),IF(COUNTRY_INFO!M12>=(COUNTRY_INFO!F12+COUNTRY_INFO!G12),COUNTRY_INFO!F12+COUNTRY_INFO!G12,COUNTRY_INFO!$M12), 0))","v":0},null,0,0,0,0,0,null,0,0]
[{"$f":"IF(INTRO!$E$39=\"Non endémique\",\" \",IF(COUNTRY_INFO!A13=0,\" \",COUNTRY_INFO!A13))","v":" "},{"$f":"IF(INTRO!$E$39=\"Non endémique\",\" \",IF(COUNTRY_INFO!B13=0,\" \",COUNTRY_INFO!B13))","v":" "},{"$f":"IF(INTRO!$E$39=\"Non endémique\",\" \",IF(COUNTRY_INFO!C13=0,\" \",COUNTRY_INFO!C13))","v":" "},{"$f":"IF(INTRO!$E$39=\"Non endémique\",0,IF(INTRO!$E$39=\"Endémique mais pas de CP\",IF(COUNTRY_INFO!$H13=1,COUNTRY_INFO!F13+COUNTRY_INFO!G13,0),IF(COUNTRY_INFO!$H13=1,COUNTRY_INFO!F13+COUNTRY_INFO!G13,IF(COUNTRY_INFO!$I13=1,IF(COUNTRY_INFO!M13>=(COUNTRY_INFO!F13+COUNTRY_INFO!G13),COUNTRY_INFO!F13+COUNTRY_INFO!G13,COUNTRY_INFO!$M13),0))))","v":0},{"$f":"IF(AND(INTRO!$E$39=\"Non endémique\",INTRO!$E$37=\"Non endémique\"),\"Non requis\",IF(INTRO!$E$39=\"Non endémique\",\"Traiter avec DEC\",COUNTRY_INFO!P13))","v":"Non requis"},{"$f":"IF(INTRO!$E$39<>\"Non endémique\",COUNTRY_INFO!Q13,\"Non requis\")","v":"Non requis"},{"$f":"IF(COUNTRY_INFO!H13=1, IF($E13=1,$D13, 0),0)","v":0},{"$f":"IF(INTRO!$E$39<>\"Endémique\",0, IF(AND(COUNTRY_INFO!$I13=1,$F13<>0),IF(COUNTRY_INFO!M13>=(COUNTRY_INFO!F13+COUNTRY_INFO!G13),COUNTRY_INFO!F13+COUNTRY_INFO!G13,COUNTRY_INFO!$M13), 0))","v":0},null,0,0,0,0,0,null,0,0]
[{"$f":"IF(INTRO!$E$39=\"Non endémique\",\" \",IF(COUNTRY_INFO!A14=0,\" \",COUNTRY_INFO!A14))","v":" "},{"$f":"IF(INTRO!$E$39=\"Non endémique\",\" \",IF(COUNTRY_INFO!B14=0,\" \",COUNTRY_INFO!B14))","v":" "},{"$f":"IF(INTRO!$E$39=\"Non endémique\",\" \",IF(COUNTRY_INFO!C14=0,\" \",COUNTRY_INFO!C14))","v":" "},{"$f":"IF(INTRO!$E$39=\"Non endémique\",0,IF(INTRO!$E$39=\"Endémique mais pas de CP\",IF(COUNTRY_INFO!$H14=1,COUNTRY_INFO!F14+COUNTRY_INFO!G14,0),IF(COUNTRY_INFO!$H14=1,COUNTRY_INFO!F14+COUNTRY_INFO!G14,IF(COUNTRY_INFO!$I14=1,IF(COUNTRY_INFO!M14>=(COUNTRY_INFO!F14+COUNTRY_INFO!G14),COUNTRY_INFO!F14+COUNTRY_INFO!G14,COUNTRY_INFO!$M14),0))))","v":0},{"$f":"IF(AND(INTRO!$E$39=\"Non endémique\",INTRO!$E$37=\"Non endémique\"),\"Non requis\",IF(INTRO!$E$39=\"Non endémique\",\"Traiter avec DEC\",COUNTRY_INFO!P14))","v":"Non requis"},{"$f":"IF(INTRO!$E$39<>\"Non endémique\",COUNTRY_INFO!Q14,\"Non requis\")","v":"Non requis"},{"$f":"IF(COUNTRY_INFO!H14=1, IF($E14=1,$D14, 0),0)","v":0},{"$f":"IF(INTRO!$E$39<>\"Endémique\",0, IF(AND(COUNTRY_INFO!$I14=1,$F14<>0),IF(COUNTRY_INFO!M14>=(COUNTRY_INFO!F14+COUNTRY_INFO!G14),COUNTRY_INFO!F14+COUNTRY_INFO!G14,COUNTRY_INFO!$M14), 0))","v":0},null,0,0,0,0,0,null,0,0]
[{"$f":"IF(INTRO!$E$39=\"Non endémique\",\" \",IF(COUNTRY_INFO!A15=0,\" \",COUNTRY_INFO!A15))","v":" "},{"$f":"IF(INTRO!$E$39=\"Non endémique\",\" \",IF(COUNTRY_INFO!B15=0,\" \",COUNTRY_INFO!B15))","v":" "},{"$f":"IF(INTRO!$E$39=\"Non endémique\",\" \",IF(COUNTRY_INFO!C15=0,\" \",COUNTRY_INFO!C15))","v":" "},{"$f":"IF(INTRO!$E$39=\"Non endémique\",0,IF(INTRO!$E$39=\"Endémique mais pas de CP\",IF(COUNTRY_INFO!$H15=1,COUNTRY_INFO!F15+COUNTRY_INFO!G15,0),IF(COUNTRY_INFO!$H15=1,COUNTRY_INFO!F15+COUNTRY_INFO!G15,IF(COUNTRY_INFO!$I15=1,IF(COUNTRY_INFO!M15>=(COUNTRY_INFO!F15+COUNTRY_INFO!G15),COUNTRY_INFO!F15+COUNTRY_INFO!G15,COUNTRY_INFO!$M15),0))))","v":0},{"$f":"IF(AND(INTRO!$E$39=\"Non endémique\",INTRO!$E$37=\"Non endémique\"),\"Non requis\",IF(INTRO!$E$39=\"Non endémique\",\"Traiter avec DEC\",COUNTRY_INFO!P15))","v":"Non requis"},{"$f":"IF(INTRO!$E$39<>\"Non endémique\",COUNTRY_INFO!Q15,\"Non requis\")","v":"Non requis"},{"$f":"IF(COUNTRY_INFO!H15=1, IF($E15=1,$D15, 0),0)","v":0},{"$f":"IF(INTRO!$E$39<>\"Endémique\",0, IF(AND(COUNTRY_INFO!$I15=1,$F15<>0),IF(COUNTRY_INFO!M15>=(COUNTRY_INFO!F15+COUNTRY_INFO!G15),COUNTRY_INFO!F15+COUNTRY_INFO!G15,COUNTRY_INFO!$M15), 0))","v":0},null,0,0,0,0,0,null,0,0]
[{"$f":"IF(INTRO!$E$39=\"Non endémique\",\" \",IF(COUNTRY_INFO!A16=0,\" \",COUNTRY_INFO!A16))","v":" "},{"$f":"IF(INTRO!$E$39=\"Non endémique\",\" \",IF(COUNTRY_INFO!B16=0,\" \",COUNTRY_INFO!B16))","v":" "},{"$f":"IF(INTRO!$E$39=\"Non endémique\",\" \",IF(COUNTRY_INFO!C16=0,\" \",COUNTRY_INFO!C16))","v":" "},{"$f":"IF(INTRO!$E$39=\"Non endémique\",0,IF(INTRO!$E$39=\"Endémique mais pas de CP\",IF(COUNTRY_INFO!$H16=1,COUNTRY_INFO!F16+COUNTRY_INFO!G16,0),IF(COUNTRY_INFO!$H16=1,COUNTRY_INFO!F16+COUNTRY_INFO!G16,IF(COUNTRY_INFO!$I16=1,IF(COUNTRY_INFO!M16>=(COUNTRY_INFO!F16+COUNTRY_INFO!G16),COUNTRY_INFO!F16+COUNTRY_INFO!G16,COUNTRY_INFO!$M16),0))))","v":0},{"$f":"IF(AND(INTRO!$E$39=\"Non endémique\",INTRO!$E$37=\"Non endémique\"),\"Non requis\",IF(INTRO!$E$39=\"Non endémique\",\"Traiter avec DEC\",COUNTRY_INFO!P16))","v":"Non requis"},{"$f":"IF(INTRO!$E$39<>\"Non endémique\",COUNTRY_INFO!Q16,\"Non requis\")","v":"Non requis"},{"$f":"IF(COUNTRY_INFO!H16=1, IF($E16=1,$D16, 0),0)","v":0},{"$f":"IF(INTRO!$E$39<>\"Endémique\",0, IF(AND(COUNTRY_INFO!$I16=1,$F16<>0),IF(COUNTRY_INFO!M16>=(COUNTRY_INFO!F16+COUNTRY_INFO!G16),COUNTRY_INFO!F16+COUNTRY_INFO!G16,COUNTRY_INFO!$M16), 0))","v":0},null,0,0,0,0,0,null,0,0]
[{"$f":"IF(INTRO!$E$39=\"Non endémique\",\" \",IF(COUNTRY_INFO!A17=0,\" \",COUNTRY_INFO!A17))","v":" "},{"$f":"IF(INTRO!$E$39=\"Non endémique\",\" \",IF(COUNTRY_INFO!B17=0,\" \",COUNTRY_INFO!B17))","v":" "},{"$f":"IF(INTRO!$E$39=\"Non endémique\",\" \",IF(COUNTRY_INFO!C17=0,\" \",COUNTRY_INFO!C17))","v":" "},{"$f":"IF(INTRO!$E$39=\"Non endémique\",0,IF(INTRO!$E$39=\"Endémique mais pas de CP\",IF(COUNTRY_INFO!$H17=1,COUNTRY_INFO!F17+COUNTRY_INFO!G17,0),IF(COUNTRY_INFO!$H17=1,COUNTRY_INFO!F17+COUNTRY_INFO!G17,IF(COUNTRY_INFO!$I17=1,IF(COUNTRY_INFO!M17>=(COUNTRY_INFO!F17+COUNTRY_INFO!G17),COUNTRY_INFO!F17+COUNTRY_INFO!G17,COUNTRY_INFO!$M17),0))))","v":0},{"$f":"IF(AND(INTRO!$E$39=\"Non endémique\",INTRO!$E$37=\"Non endémique\"),\"Non requis\",IF(INTRO!$E$39=\"Non endémique\",\"Traiter avec DEC\",COUNTRY_INFO!P17))","v":"Non requis"},{"$f":"IF(INTRO!$E$39<>\"Non endémique\",COUNTRY_INFO!Q17,\"Non requis\")","v":"Non requis"},{"$f":"IF(COUNTRY_INFO!H17=1, IF($E17=1,$D17, 0),0)","v":0},{"$f":"IF(INTRO!$E$39<>\"Endémique\",0, IF(AND(COUNTRY_INFO!$I17=1,$F17<>0),IF(COUNTRY_INFO!M17>=(COUNTRY_INFO!F17+COUNTRY_INFO!G17),COUNTRY_INFO!F17+COUNTRY_INFO!G17,COUNTRY_INFO!$M17), 0))","v":0},null,0,0,0,0,0,null,0,0]
[{"$f":"IF(INTRO!$E$39=\"Non endémique\",\" \",IF(COUNTRY_INFO!A18=0,\" \",COUNTRY_INFO!A18))","v":" "},{"$f":"IF(INTRO!$E$39=\"Non endémique\",\" \",IF(COUNTRY_INFO!B18=0,\" \",COUNTRY_INFO!B18))","v":" "},{"$f":"IF(INTRO!$E$39=\"Non endémique\",\" \",IF(COUNTRY_INFO!C18=0,\" \",COUNTRY_INFO!C18))","v":" "},{"$f":"IF(INTRO!$E$39=\"Non endémique\",0,IF(INTRO!$E$39=\"Endémique mais pas de CP\",IF(COUNTRY_INFO!$H18=1,COUNTRY_INFO!F18+COUNTRY_INFO!G18,0),IF(COUNTRY_INFO!$H18=1,COUNTRY_INFO!F18+COUNTRY_INFO!G18,IF(COUNTRY_INFO!$I18=1,IF(COUNTRY_INFO!M18>=(COUNTRY_INFO!F18+COUNTRY_INFO!G18),COUNTRY_INFO!F18+COUNTRY_INFO!G18,COUNTRY_INFO!$M18),0))))","v":0},{"$f":"IF(AND(INTRO!$E$39=\"Non endémique\",INTRO!$E$37=\"Non endémique\"),\"Non requis\",IF(INTRO!$E$39=\"Non endémique\",\"Traiter avec DEC\",COUNTRY_INFO!P18))","v":"Non requis"},{"$f":"IF(INTRO!$E$39<>\"Non endémique\",COUNTRY_INFO!Q18,\"Non requis\")","v":"Non requis"},{"$f":"IF(COUNTRY_INFO!H18=1, IF($E18=1,$D18, 0),0)","v":0},{"$f":"IF(INTRO!$E$39<>\"Endémique\",0, IF(AND(COUNTRY_INFO!$I18=1,$F18<>0),IF(COUNTRY_INFO!M18>=(COUNTRY_INFO!F18+COUNTRY_INFO!G18),COUNTRY_INFO!F18+COUNTRY_INFO!G18,COUNTRY_INFO!$M18), 0))","v":0},null,0,0,0,0,0,null,0,0]
[{"$f":"IF(INTRO!$E$39=\"Non endémique\",\" \",IF(COUNTRY_INFO!A19=0,\" \",COUNTRY_INFO!A19))","v":" "},{"$f":"IF(INTRO!$E$39=\"Non endémique\",\" \",IF(COUNTRY_INFO!B19=0,\" \",COUNTRY_INFO!B19))","v":" "},{"$f":"IF(INTRO!$E$39=\"Non endémique\",\" \",IF(COUNTRY_INFO!C19=0,\" \",COUNTRY_INFO!C19))","v":" "},{"$f":"IF(INTRO!$E$39=\"Non endémique\",0,IF(INTRO!$E$39=\"Endémique mais pas de CP\",IF(COUNTRY_INFO!$H19=1,COUNTRY_INFO!F19+COUNTRY_INFO!G19,0),IF(COUNTRY_INFO!$H19=1,COUNTRY_INFO!F19+COUNTRY_INFO!G19,IF(COUNTRY_INFO!$I19=1,IF(COUNTRY_INFO!M19>=(COUNTRY_INFO!F19+COUNTRY_INFO!G19),COUNTRY_INFO!F19+COUNTRY_INFO!G19,COUNTRY_INFO!$M19),0))))","v":0},{"$f":"IF(AND(INTRO!$E$39=\"Non endémique\",INTRO!$E$37=\"Non endémique\"),\"Non requis\",IF(INTRO!$E$39=\"Non endémique\",\"Traiter avec DEC\",COUNTRY_INFO!P19))","v":"Non requis"},{"$f":"IF(INTRO!$E$39<>\"Non endémique\",COUNTRY_INFO!Q19,\"Non requis\")","v":"Non requis"},{"$f":"IF(COUNTRY_INFO!H19=1, IF($E19=1,$D19, 0),0)","v":0},{"$f":"IF(INTRO!$E$39<>\"Endémique\",0, IF(AND(COUNTRY_INFO!$I19=1,$F19<>0),IF(COUNTRY_INFO!M19>=(COUNTRY_INFO!F19+COUNTRY_INFO!G19),COUNTRY_INFO!F19+COUNTRY_INFO!G19,COUNTRY_INFO!$M19), 0))","v":0},null,0,0,0,0,0,null,0,0]
[{"$f":"IF(INTRO!$E$39=\"Non endémique\",\" \",IF(COUNTRY_INFO!A20=0,\" \",COUNTRY_INFO!A20))","v":" "},{"$f":"IF(INTRO!$E$39=\"Non endémique\",\" \",IF(COUNTRY_INFO!B20=0,\" \",COUNTRY_INFO!B20))","v":" "},{"$f":"IF(INTRO!$E$39=\"Non endémique\",\" \",IF(COUNTRY_INFO!C20=0,\" \",COUNTRY_INFO!C20))","v":" "},{"$f":"IF(INTRO!$E$39=\"Non endémique\",0,IF(INTRO!$E$39=\"Endémique mais pas de CP\",IF(COUNTRY_INFO!$H20=1,COUNTRY_INFO!F20+COUNTRY_INFO!G20,0),IF(COUNTRY_INFO!$H20=1,COUNTRY_INFO!F20+COUNTRY_INFO!G20,IF(COUNTRY_INFO!$I20=1,IF(COUNTRY_INFO!M20>=(COUNTRY_INFO!F20+COUNTRY_INFO!G20),COUNTRY_INFO!F20+COUNTRY_INFO!G20,COUNTRY_INFO!$M20),0))))","v":0},{"$f":"IF(AND(INTRO!$E$39=\"Non endémique\",INTRO!$E$37=\"Non endémique\"),\"Non requis\",IF(INTRO!$E$39=\"Non endémique\",\"Traiter avec DEC\",COUNTRY_INFO!P20))","v":"Non requis"},{"$f":"IF(INTRO!$E$39<>\"Non endémique\",COUNTRY_INFO!Q20,\"Non requis\")","v":"Non requis"},{"$f":"IF(COUNTRY_INFO!H20=1, IF($E20=1,$D20, 0),0)","v":0},{"$f":"IF(INTRO!$E$39<>\"Endémique\",0, IF(AND(COUNTRY_INFO!$I20=1,$F20<>0),IF(COUNTRY_INFO!M20>=(COUNTRY_INFO!F20+COUNTRY_INFO!G20),COUNTRY_INFO!F20+COUNTRY_INFO!G20,COUNTRY_INFO!$M20), 0))","v":0},null,0,0,0,0,0,null,0,0]
[{"$f":"IF(INTRO!$E$39=\"Non endémique\",\" \",IF(COUNTRY_INFO!A21=0,\" \",COUNTRY_INFO!A21))","v":" "},{"$f":"IF(INTRO!$E$39=\"Non endémique\",\" \",IF(COUNTRY_INFO!B21=0,\" \",COUNTRY_INFO!B21))","v":" "},{"$f":"IF(INTRO!$E$39=\"Non endémique\",\" \",IF(COUNTRY_INFO!C21=0,\" \",COUNTRY_INFO!C21))","v":" "},{"$f":"IF(INTRO!$E$39=\"Non endémique\",0,IF(INTRO!$E$39=\"Endémique mais pas de CP\",IF(COUNTRY_INFO!$H21=1,COUNTRY_INFO!F21+COUNTRY_INFO!G21,0),IF(COUNTRY_INFO!$H21=1,COUNTRY_INFO!F21+COUNTRY_INFO!G21,IF(COUNTRY_INFO!$I21=1,IF(COUNTRY_INFO!M21>=(COUNTRY_INFO!F21+COUNTRY_INFO!G21),COUNTRY_INFO!F21+COUNTRY_INFO!G21,COUNTRY_INFO!$M21),0))))","v":0},{"$f":"IF(AND(INTRO!$E$39=\"Non endémique\",INTRO!$E$37=\"Non endémique\"),\"Non requis\",IF(INTRO!$E$39=\"Non endémique\",\"Traiter avec DEC\",COUNTRY_INFO!P21))","v":"Non requis"},{"$f":"IF(INTRO!$E$39<>\"Non endémique\",COUNTRY_INFO!Q21,\"Non requis\")","v":"Non requis"},{"$f":"IF(COUNTRY_INFO!H21=1, IF($E21=1,$D21, 0),0)","v":0},{"$f":"IF(INTRO!$E$39<>\"Endémique\",0, IF(AND(COUNTRY_INFO!$I21=1,$F21<>0),IF(COUNTRY_INFO!M21>=(COUNTRY_INFO!F21+COUNTRY_INFO!G21),COUNTRY_INFO!F21+COUNTRY_INFO!G21,COUNTRY_INFO!$M21), 0))","v":0},null,0,0,0,0,0,null,0,0]
[{"$f":"IF(INTRO!$E$39=\"Non endémique\",\" \",IF(COUNTRY_INFO!A22=0,\" \",COUNTRY_INFO!A22))","v":" "},{"$f":"IF(INTRO!$E$39=\"Non endémique\",\" \",IF(COUNTRY_INFO!B22=0,\" \",COUNTRY_INFO!B22))","v":" "},{"$f":"IF(INTRO!$E$39=\"Non endémique\",\" \",IF(COUNTRY_INFO!C22=0,\" \",COUNTRY_INFO!C22))","v":" "},{"$f":"IF(INTRO!$E$39=\"Non endémique\",0,IF(INTRO!$E$39=\"Endémique mais pas de CP\",IF(COUNTRY_INFO!$H22=1,COUNTRY_INFO!F22+COUNTRY_INFO!G22,0),IF(COUNTRY_INFO!$H22=1,COUNTRY_INFO!F22+COUNTRY_INFO!G22,IF(COUNTRY_INFO!$I22=1,IF(COUNTRY_INFO!M22>=(COUNTRY_INFO!F22+COUNTRY_INFO!G22),COUNTRY_INFO!F22+COUNTRY_INFO!G22,COUNTRY_INFO!$M22),0))))","v":0},{"$f":"IF(AND(INTRO!$E$39=\"Non endémique\",INTRO!$E$37=\"Non endémique\"),\"Non requis\",IF(INTRO!$E$39=\"Non endémique\",\"Traiter avec DEC\",COUNTRY_INFO!P22))","v":"Non requis"},{"$f":"IF(INTRO!$E$39<>\"Non endémique\",COUNTRY_INFO!Q22,\"Non requis\")","v":"Non requis"},{"$f":"IF(COUNTRY_INFO!H22=1, IF($E22=1,$D22, 0),0)","v":0},{"$f":"IF(INTRO!$E$39<>\"Endémique\",0, IF(AND(COUNTRY_INFO!$I22=1,$F22<>0),IF(COUNTRY_INFO!M22>=(COUNTRY_INFO!F22+COUNTRY_INFO!G22),COUNTRY_INFO!F22+COUNTRY_INFO!G22,COUNTRY_INFO!$M22), 0))","v":0},null,0,0,0,0,0,null,0,0]
[{"$f":"IF(INTRO!$E$39=\"Non endémique\",\" \",IF(COUNTRY_INFO!A23=0,\" \",COUNTRY_INFO!A23))","v":" "},{"$f":"IF(INTRO!$E$39=\"Non endémique\",\" \",IF(COUNTRY_INFO!B23=0,\" \",COUNTRY_INFO!B23))","v":" "},{"$f":"IF(INTRO!$E$39=\"Non endémique\",\" \",IF(COUNTRY_INFO!C23=0,\" \",COUNTRY_INFO!C23))","v":" "},{"$f":"IF(INTRO!$E$39=\"Non endémique\",0,IF(INTRO!$E$39=\"Endémique mais pas de CP\",IF(COUNTRY_INFO!$H23=1,COUNTRY_INFO!F23+COUNTRY_INFO!G23,0),IF(COUNTRY_INFO!$H23=1,COUNTRY_INFO!F23+COUNTRY_INFO!G23,IF(COUNTRY_INFO!$I23=1,IF(COUNTRY_INFO!M23>=(COUNTRY_INFO!F23+COUNTRY_INFO!G23),COUNTRY_INFO!F23+COUNTRY_INFO!G23,COUNTRY_INFO!$M23),0))))","v":0},{"$f":"IF(AND(INTRO!$E$39=\"Non endémique\",INTRO!$E$37=\"Non endémique\"),\"Non requis\",IF(INTRO!$E$39=\"Non endémique\",\"Traiter avec DEC\",COUNTRY_INFO!P23))","v":"Non requis"},{"$f":"IF(INTRO!$E$39<>\"Non endémique\",COUNTRY_INFO!Q23,\"Non requis\")","v":"Non requis"},{"$f":"IF(COUNTRY_INFO!H23=1, IF($E23=1,$D23, 0),0)","v":0},{"$f":"IF(INTRO!$E$39<>\"Endémique\",0, IF(AND(COUNTRY_INFO!$I23=1,$F23<>0),IF(COUNTRY_INFO!M23>=(COUNTRY_INFO!F23+COUNTRY_INFO!G23),COUNTRY_INFO!F23+COUNTRY_INFO!G23,COUNTRY_INFO!$M23), 0))","v":0},null,0,0,0,0,0,null,0,0]
[{"$f":"IF(INTRO!$E$39=\"Non endémique\",\" \",IF(COUNTRY_INFO!A24=0,\" \",COUNTRY_INFO!A24))","v":" "},{"$f":"IF(INTRO!$E$39=\"Non endémique\",\" \",IF(COUNTRY_INFO!B24=0,\" \",COUNTRY_INFO!B24))","v":" "},{"$f":"IF(INTRO!$E$39=\"Non endémique\",\" \",IF(COUNTRY_INFO!C24=0,\" \",COUNTRY_INFO!C24))","v":" "},{"$f":"IF(INTRO!$E$39=\"Non endémique\",0,IF(INTRO!$E$39=\"Endémique mais pas de CP\",IF(COUNTRY_INFO!$H24=1,COUNTRY_INFO!F24+COUNTRY_INFO!G24,0),IF(COUNTRY_INFO!$H24=1,COUNTRY_INFO!F24+COUNTRY_INFO!G24,IF(COUNTRY_INFO!$I24=1,IF(COUNTRY_INFO!M24>=(COUNTRY_INFO!F24+COUNTRY_INFO!G24),COUNTRY_INFO!F24+COUNTRY_INFO!G24,COUNTRY_INFO!$M24),0))))","v":0},{"$f":"IF(AND(INTRO!$E$39=\"Non endémique\",INTRO!$E$37=\"Non endémique\"),\"Non requis\",IF(INTRO!$E$39=\"Non endémique\",\"Traiter avec DEC\",COUNTRY_INFO!P24))","v":"Non requis"},{"$f":"IF(INTRO!$E$39<>\"Non endémique\",COUNTRY_INFO!Q24,\"Non requis\")","v":"Non requis"},{"$f":"IF(COUNTRY_INFO!H24=1, IF($E24=1,$D24, 0),0)","v":0},{"$f":"IF(INTRO!$E$39<>\"Endémique\",0, IF(AND(COUNTRY_INFO!$I24=1,$F24<>0),IF(COUNTRY_INFO!M24>=(COUNTRY_INFO!F24+COUNTRY_INFO!G24),COUNTRY_INFO!F24+COUNTRY_INFO!G24,COUNTRY_INFO!$M24), 0))","v":0},null,0,0,0,0,0,null,0,0]
[{"$f":"IF(INTRO!$E$39=\"Non endémique\",\" \",IF(COUNTRY_INFO!A25=0,\" \",COUNTRY_INFO!A25))","v":" "},{"$f":"IF(INTRO!$E$39=\"Non endémique\",\" \",IF(COUNTRY_INFO!B25=0,\" \",COUNTRY_INFO!B25))","v":" "},{"$f":"IF(INTRO!$E$39=\"Non endémique\",\" \",IF(COUNTRY_INFO!C25=0,\" \",COUNTRY_INFO!C25))","v":" "},{"$f":"IF(INTRO!$E$39=\"Non endémique\",0,IF(INTRO!$E$39=\"Endémique mais pas de CP\",IF(COUNTRY_INFO!$H25=1,COUNTRY_INFO!F25+COUNTRY_INFO!G25,0),IF(COUNTRY_INFO!$H25=1,COUNTRY_INFO!F25+COUNTRY_INFO!G25,IF(COUNTRY_INFO!$I25=1,IF(COUNTRY_INFO!M25>=(COUNTRY_INFO!F25+COUNTRY_INFO!G25),COUNTRY_INFO!F25+COUNTRY_INFO!G25,COUNTRY_INFO!$M25),0))))","v":0},{"$f":"IF(AND(INTRO!$E$39=\"Non endémique\",INTRO!$E$37=\"Non endémique\"),\"Non requis\",IF(INTRO!$E$39=\"Non endémique\",\"Traiter avec DEC\",COUNTRY_INFO!P25))","v":"Non requis"},{"$f":"IF(INTRO!$E$39<>\"Non endémique\",COUNTRY_INFO!Q25,\"Non requis\")","v":"Non requis"},{"$f":"IF(COUNTRY_INFO!H25=1, IF($E25=1,$D25, 0),0)","v":0},{"$f":"IF(INTRO!$E$39<>\"Endémique\",0, IF(AND(COUNTRY_INFO!$I25=1,$F25<>0),IF(COUNTRY_INFO!M25>=(COUNTRY_INFO!F25+COUNTRY_INFO!G25),COUNTRY_INFO!F25+COUNTRY_INFO!G25,COUNTRY_INFO!$M25), 0))","v":0},null,0,0,0,0,0,null,0,0]
[{"$f":"IF(INTRO!$E$39=\"Non endémique\",\" \",IF(COUNTRY_INFO!A26=0,\" \",COUNTRY_INFO!A26))","v":" "},{"$f":"IF(INTRO!$E$39=\"Non endémique\",\" \",IF(COUNTRY_INFO!B26=0,\" \",COUNTRY_INFO!B26))","v":" "},{"$f":"IF(INTRO!$E$39=\"Non endémique\",\" \",IF(COUNTRY_INFO!C26=0,\" \",COUNTRY_INFO!C26))","v":" "},{"$f":"IF(INTRO!$E$39=\"Non endémique\",0,IF(INTRO!$E$39=\"Endémique mais pas de CP\",IF(COUNTRY_INFO!$H26=1,COUNTRY_INFO!F26+COUNTRY_INFO!G26,0),IF(COUNTRY_INFO!$H26=1,COUNTRY_INFO!F26+COUNTRY_INFO!G26,IF(COUNTRY_INFO!$I26=1,IF(COUNTRY_INFO!M26>=(COUNTRY_INFO!F26+COUNTRY_INFO!G26),COUNTRY_INFO!F26+COUNTRY_INFO!G26,COUNTRY_INFO!$M26),0))))","v":0},{"$f":"IF(AND(INTRO!$E$39=\"Non endémique\",INTRO!$E$37=\"Non endémique\"),\"Non requis\",IF(INTRO!$E$39=\"Non endémique\",\"Traiter avec DEC\",COUNTRY_INFO!P26))","v":"Non requis"},{"$f":"IF(INTRO!$E$39<>\"Non endémique\",COUNTRY_INFO!Q26,\"Non requis\")","v":"Non requis"},{"$f":"IF(COUNTRY_INFO!H26=1, IF($E26=1,$D26, 0),0)","v":0},{"$f":"IF(INTRO!$E$39<>\"Endémique\",0, IF(AND(COUNTRY_INFO!$I26=1,$F26<>0),IF(COUNTRY_INFO!M26>=(COUNTRY_INFO!F26+COUNTRY_INFO!G26),COUNTRY_INFO!F26+COUNTRY_INFO!G26,COUNTRY_INFO!$M26), 0))","v":0},null,0,0,0,0,0,null,0,0]
[{"$f":"IF(INTRO!$E$39=\"Non endémique\",\" \",IF(COUNTRY_INFO!A27=0,\" \",COUNTRY_INFO!A27))","v":" "},{"$f":"IF(INTRO!$E$39=\"Non endémique\",\" \",IF(COUNTRY_INFO!B27=0,\" \",COUNTRY_INFO!B27))","v":" "},{"$f":"IF(INTRO!$E$39=\"Non endémique\",\" \",IF(COUNTRY_INFO!C27=0,\" \",COUNTRY_INFO!C27))","v":" "},{"$f":"IF(INTRO!$E$39=\"Non endémique\",0,IF(INTRO!$E$39=\"Endémique mais pas de CP\",IF(COUNTRY_INFO!$H27=1,COUNTRY_INFO!F27+COUNTRY_INFO!G27,0),IF(COUNTRY_INFO!$H27=1,COUNTRY_INFO!F27+COUNTRY_INFO!G27,IF(COUNTRY_INFO!$I27=1,IF(COUNTRY_INFO!M27>=(COUNTRY_INFO!F27+COUNTRY_INFO!G27),COUNTRY_INFO!F27+COUNTRY_INFO!G27,COUNTRY_INFO!$M27),0))))","v":0},{"$f":"IF(AND(INTRO!$E$39=\"Non endémique\",INTRO!$E$37=\"Non endémique\"),\"Non requis\",IF(INTRO!$E$39=\"Non endémique\",\"Traiter avec DEC\",COUNTRY_INFO!P27))","v":"Non requis"},{"$f":"IF(INTRO!$E$39<>\"Non endémique\",COUNTRY_INFO!Q27,\"Non requis\")","v":"Non requis"},{"$f":"IF(COUNTRY_INFO!H27=1, IF($E27=1,$D27, 0),0)","v":0},{"$f":"IF(INTRO!$E$39<>\"Endémique\",0, IF(AND(COUNTRY_INFO!$I27=1,$F27<>0),IF(COUNTRY_INFO!M27>=(COUNTRY_INFO!F27+COUNTRY_INFO!G27),COUNTRY_INFO!F27+COUNTRY_INFO!G27,COUNTRY_INFO!$M27), 0))","v":0},null,0,0,0,0,0,null,0,0]
[{"$f":"IF(INTRO!$E$39=\"Non endémique\",\" \",IF(COUNTRY_INFO!A28=0,\" \",COUNTRY_INFO!A28))","v":" "},{"$f":"IF(INTRO!$E$39=\"Non endémique\",\" \",IF(COUNTRY_INFO!B28=0,\" \",COUNTRY_INFO!B28))","v":" "},{"$f":"IF(INTRO!$E$39=\"Non endémique\",\" \",IF(COUNTRY_INFO!C28=0,\" \",COUNTRY_INFO!C28))","v":" "},{"$f":"IF(INTRO!$E$39=\"Non endémique\",0,IF(INTRO!$E$39=\"Endémique mais pas de CP\",IF(COUNTRY_INFO!$H28=1,COUNTRY_INFO!F28+COUNTRY_INFO!G28,0),IF(COUNTRY_INFO!$H28=1,COUNTRY_INFO!F28+COUNTRY_INFO!G28,IF(COUNTRY_INFO!$I28=1,IF(COUNTRY_INFO!M28>=(COUNTRY_INFO!F28+COUNTRY_INFO!G28),COUNTRY_INFO!F28+COUNTRY_INFO!G28,COUNTRY_INFO!$M28),0))))","v":0},{"$f":"IF(AND(INTRO!$E$39=\"Non endémique\",INTRO!$E$37=\"Non endémique\"),\"Non requis\",IF(INTRO!$E$39=\"Non endémique\",\"Traiter avec DEC\",COUNTRY_INFO!P28))","v":"Non requis"},{"$f":"IF(INTRO!$E$39<>\"Non endémique\",COUNTRY_INFO!Q28,\"Non requis\")","v":"Non requis"},{"$f":"IF(COUNTRY_INFO!H28=1, IF($E28=1,$D28, 0),0)","v":0},{"$f":"IF(INTRO!$E$39<>\"Endémique\",0, IF(AND(COUNTRY_INFO!$I28=1,$F28<>0),IF(COUNTRY_INFO!M28>=(COUNTRY_INFO!F28+COUNTRY_INFO!G28),COUNTRY_INFO!F28+COUNTRY_INFO!G28,COUNTRY_INFO!$M28), 0))","v":0},null,0,0,0,0,0,null,0,0]
[{"$f":"IF(INTRO!$E$39=\"Non endémique\",\" \",IF(COUNTRY_INFO!A29=0,\" \",COUNTRY_INFO!A29))","v":" "},{"$f":"IF(INTRO!$E$39=\"Non endémique\",\" \",IF(COUNTRY_INFO!B29=0,\" \",COUNTRY_INFO!B29))","v":" "},{"$f":"IF(INTRO!$E$39=\"Non endémique\",\" \",IF(COUNTRY_INFO!C29=0,\" \",COUNTRY_INFO!C29))","v":" "},{"$f":"IF(INTRO!$E$39=\"Non endémique\",0,IF(INTRO!$E$39=\"Endémique mais pas de CP\",IF(COUNTRY_INFO!$H29=1,COUNTRY_INFO!F29+COUNTRY_INFO!G29,0),IF(COUNTRY_INFO!$H29=1,COUNTRY_INFO!F29+COUNTRY_INFO!G29,IF(COUNTRY_INFO!$I29=1,IF(COUNTRY_INFO!M29>=(COUNTRY_INFO!F29+COUNTRY_INFO!G29),COUNTRY_INFO!F29+COUNTRY_INFO!G29,COUNTRY_INFO!$M29),0))))","v":0},{"$f":"IF(AND(INTRO!$E$39=\"Non endémique\",INTRO!$E$37=\"Non endémique\"),\"Non requis\",IF(INTRO!$E$39=\"Non endémique\",\"Traiter avec DEC\",COUNTRY_INFO!P29))","v":"Non requis"},{"$f":"IF(INTRO!$E$39<>\"Non endémique\",COUNTRY_INFO!Q29,\"Non requis\")","v":"Non requis"},{"$f":"IF(COUNTRY_INFO!H29=1, IF($E29=1,$D29, 0),0)","v":0},{"$f":"IF(INTRO!$E$39<>\"Endémique\",0, IF(AND(COUNTRY_INFO!$I29=1,$F29<>0),IF(COUNTRY_INFO!M29>=(COUNTRY_INFO!F29+COUNTRY_INFO!G29),COUNTRY_INFO!F29+COUNTRY_INFO!G29,COUNTRY_INFO!$M29), 0))","v":0},null,0,0,0,0,0,null,0,0]
[{"$f":"IF(INTRO!$E$39=\"Non endémique\",\" \",IF(COUNTRY_INFO!A30=0,\" \",COUNTRY_INFO!A30))","v":" "},{"$f":"IF(INTRO!$E$39=\"Non endémique\",\" \",IF(COUNTRY_INFO!B30=0,\" \",COUNTRY_INFO!B30))","v":" "},{"$f":"IF(INTRO!$E$39=\"Non endémique\",\" \",IF(COUNTRY_INFO!C30=0,\" \",COUNTRY_INFO!C30))","v":" "},{"$f":"IF(INTRO!$E$39=\"Non endémique\",0,IF(INTRO!$E$39=\"Endémique mais pas de CP\",IF(COUNTRY_INFO!$H30=1,COUNTRY_INFO!F30+COUNTRY_INFO!G30,0),IF(COUNTRY_INFO!$H30=1,COUNTRY_INFO!F30+COUNTRY_INFO!G30,IF(COUNTRY_INFO!$I30=1,IF(COUNTRY_INFO!M30>=(COUNTRY_INFO!F30+COUNTRY_INFO!G30),COUNTRY_INFO!F30+COUNTRY_INFO!G30,COUNTRY_INFO!$M30),0))))","v":0},{"$f":"IF(AND(INTRO!$E$39=\"Non endémique\",INTRO!$E$37=\"Non endémique\"),\"Non requis\",IF(INTRO!$E$39=\"Non endémique\",\"Traiter avec DEC\",COUNTRY_INFO!P30))","v":"Non requis"},{"$f":"IF(INTRO!$E$39<>\"Non endémique\",COUNTRY_INFO!Q30,\"Non requis\")","v":"Non requis"},{"$f":"IF(COUNTRY_INFO!H30=1, IF($E30=1,$D30, 0),0)","v":0},{"$f":"IF(INTRO!$E$39<>\"Endémique\",0, IF(AND(COUNTRY_INFO!$I30=1,$F30<>0),IF(COUNTRY_INFO!M30>=(COUNTRY_INFO!F30+COUNTRY_INFO!G30),COUNTRY_INFO!F30+COUNTRY_INFO!G30,COUNTRY_INFO!$M30), 0))","v":0},null,0,0,0,0,0,null,0,0]
[{"$f":"IF(INTRO!$E$39=\"Non endémique\",\" \",IF(COUNTRY_INFO!A31=0,\" \",COUNTRY_INFO!A31))","v":" "},{"$f":"IF(INTRO!$E$39=\"Non endémique\",\" \",IF(COUNTRY_INFO!B31=0,\" \",COUNTRY_INFO!B31))","v":" "},{"$f":"IF(INTRO!$E$39=\"Non endémique\",\" \",IF(COUNTRY_INFO!C31=0,\" \",COUNTRY_INFO!C31))","v":" "},{"$f":"IF(INTRO!$E$39=\"Non endémique\",0,IF(INTRO!$E$39=\"Endémique mais pas de CP\",IF(COUNTRY_INFO!$H31=1,COUNTRY_INFO!F31+COUNTRY_INFO!G31,0),IF(COUNTRY_INFO!$H31=1,COUNTRY_INFO!F31+COUNTRY_INFO!G31,IF(COUNTRY_INFO!$I31=1,IF(COUNTRY_INFO!M31>=(COUNTRY_INFO!F31+COUNTRY_INFO!G31),COUNTRY_INFO!F31+COUNTRY_INFO!G31,COUNTRY_INFO!$M31),0))))","v":0},{"$f":"IF(AND(INTRO!$E$39=\"Non endémique\",INTRO!$E$37=\"Non endémique\"),\"Non requis\",IF(INTRO!$E$39=\"Non endémique\",\"Traiter avec DEC\",COUNTRY_INFO!P31))","v":"Non requis"},{"$f":"IF(INTRO!$E$39<>\"Non endémique\",COUNTRY_INFO!Q31,\"Non requis\")","v":"Non requis"},{"$f":"IF(COUNTRY_INFO!H31=1, IF($E31=1,$D31, 0),0)","v":0},{"$f":"IF(INTRO!$E$39<>\"Endémique\",0, IF(AND(COUNTRY_INFO!$I31=1,$F31<>0),IF(COUNTRY_INFO!M31>=(COUNTRY_INFO!F31+COUNTRY_INFO!G31),COUNTRY_INFO!F31+COUNTRY_INFO!G31,COUNTRY_INFO!$M31), 0))","v":0},null,0,0,0,0,0,null,0,0]
[{"$f":"IF(INTRO!$E$39=\"Non endémique\",\" \",IF(COUNTRY_INFO!A32=0,\" \",COUNTRY_INFO!A32))","v":" "},{"$f":"IF(INTRO!$E$39=\"Non endémique\",\" \",IF(COUNTRY_INFO!B32=0,\" \",COUNTRY_INFO!B32))","v":" "},{"$f":"IF(INTRO!$E$39=\"Non endémique\",\" \",IF(COUNTRY_INFO!C32=0,\" \",COUNTRY_INFO!C32))","v":" "},{"$f":"IF(INTRO!$E$39=\"Non endémique\",0,IF(INTRO!$E$39=\"Endémique mais pas de CP\",IF(COUNTRY_INFO!$H32=1,COUNTRY_INFO!F32+COUNTRY_INFO!G32,0),IF(COUNTRY_INFO!$H32=1,COUNTRY_INFO!F32+COUNTRY_INFO!G32,IF(COUNTRY_INFO!$I32=1,IF(COUNTRY_INFO!M32>=(COUNTRY_INFO!F32+COUNTRY_INFO!G32),COUNTRY_INFO!F32+COUNTRY_INFO!G32,COUNTRY_INFO!$M32),0))))","v":0},{"$f":"IF(AND(INTRO!$E$39=\"Non endémique\",INTRO!$E$37=\"Non endémique\"),\"Non requis\",IF(INTRO!$E$39=\"Non endémique\",\"Traiter avec DEC\",COUNTRY_INFO!P32))","v":"Non requis"},{"$f":"IF(INTRO!$E$39<>\"Non endémique\",COUNTRY_INFO!Q32,\"Non requis\")","v":"Non requis"},{"$f":"IF(COUNTRY_INFO!H32=1, IF($E32=1,$D32, 0),0)","v":0},{"$f":"IF(INTRO!$E$39<>\"Endémique\",0, IF(AND(COUNTRY_INFO!$I32=1,$F32<>0),IF(COUNTRY_INFO!M32>=(COUNTRY_INFO!F32+COUNTRY_INFO!G32),COUNTRY_INFO!F32+COUNTRY_INFO!G32,COUNTRY_INFO!$M32), 0))","v":0},null,0,0,0,0,0,null,0,0]
[{"$f":"IF(INTRO!$E$39=\"Non endémique\",\" \",IF(COUNTRY_INFO!A33=0,\" \",COUNTRY_INFO!A33))","v":" "},{"$f":"IF(INTRO!$E$39=\"Non endémique\",\" \",IF(COUNTRY_INFO!B33=0,\" \",COUNTRY_INFO!B33))","v":" "},{"$f":"IF(INTRO!$E$39=\"Non endémique\",\" \",IF(COUNTRY_INFO!C33=0,\" \",COUNTRY_INFO!C33))","v":" "},{"$f":"IF(INTRO!$E$39=\"Non endémique\",0,IF(INTRO!$E$39=\"Endémique mais pas de CP\",IF(COUNTRY_INFO!$H33=1,COUNTRY_INFO!F33+COUNTRY_INFO!G33,0),IF(COUNTRY_INFO!$H33=1,COUNTRY_INFO!F33+COUNTRY_INFO!G33,IF(COUNTRY_INFO!$I33=1,IF(COUNTRY_INFO!M33>=(COUNTRY_INFO!F33+COUNTRY_INFO!G33),COUNTRY_INFO!F33+COUNTRY_INFO!G33,COUNTRY_INFO!$M33),0))))","v":0},{"$f":"IF(AND(INTRO!$E$39=\"Non endémique\",INTRO!$E$37=\"Non endémique\"),\"Non requis\",IF(INTRO!$E$39=\"Non endémique\",\"Traiter avec DEC\",COUNTRY_INFO!P33))","v":"Non requis"},{"$f":"IF(INTRO!$E$39<>\"Non endémique\",COUNTRY_INFO!Q33,\"Non requis\")","v":"Non requis"},{"$f":"IF(COUNTRY_INFO!H33=1, IF($E33=1,$D33, 0),0)","v":0},{"$f":"IF(INTRO!$E$39<>\"Endémique\",0, IF(AND(COUNTRY_INFO!$I33=1,$F33<>0),IF(COUNTRY_INFO!M33>=(COUNTRY_INFO!F33+COUNTRY_INFO!G33),COUNTRY_INFO!F33+COUNTRY_INFO!G33,COUNTRY_INFO!$M33), 0))","v":0},null,0,0,0,0,0,null,0,0]
[{"$f":"IF(INTRO!$E$39=\"Non endémique\",\" \",IF(COUNTRY_INFO!A34=0,\" \",COUNTRY_INFO!A34))","v":" "},{"$f":"IF(INTRO!$E$39=\"Non endémique\",\" \",IF(COUNTRY_INFO!B34=0,\" \",COUNTRY_INFO!B34))","v":" "},{"$f":"IF(INTRO!$E$39=\"Non endémique\",\" \",IF(COUNTRY_INFO!C34=0,\" \",COUNTRY_INFO!C34))","v":" "},{"$f":"IF(INTRO!$E$39=\"Non endémique\",0,IF(INTRO!$E$39=\"Endémique mais pas de CP\",IF(COUNTRY_INFO!$H34=1,COUNTRY_INFO!F34+COUNTRY_INFO!G34,0),IF(COUNTRY_INFO!$H34=1,COUNTRY_INFO!F34+COUNTRY_INFO!G34,IF(COUNTRY_INFO!$I34=1,IF(COUNTRY_INFO!M34>=(COUNTRY_INFO!F34+COUNTRY_INFO!G34),COUNTRY_INFO!F34+COUNTRY_INFO!G34,COUNTRY_INFO!$M34),0))))","v":0},{"$f":"IF(AND(INTRO!$E$39=\"Non endémique\",INTRO!$E$37=\"Non endémique\"),\"Non requis\",IF(INTRO!$E$39=\"Non endémique\",\"Traiter avec DEC\",COUNTRY_INFO!P34))","v":"Non requis"},{"$f":"IF(INTRO!$E$39<>\"Non endémique\",COUNTRY_INFO!Q34,\"Non requis\")","v":"Non requis"},{"$f":"IF(COUNTRY_INFO!H34=1, IF($E34=1,$D34, 0),0)","v":0},{"$f":"IF(INTRO!$E$39<>\"Endémique\",0, IF(AND(COUNTRY_INFO!$I34=1,$F34<>0),IF(COUNTRY_INFO!M34>=(COUNTRY_INFO!F34+COUNTRY_INFO!G34),COUNTRY_INFO!F34+COUNTRY_INFO!G34,COUNTRY_INFO!$M34), 0))","v":0},null,0,0,0,0,0,null,0,0]
[{"$f":"IF(INTRO!$E$39=\"Non endémique\",\" \",IF(COUNTRY_INFO!A35=0,\" \",COUNTRY_INFO!A35))","v":" "},{"$f":"IF(INTRO!$E$39=\"Non endémique\",\" \",IF(COUNTRY_INFO!B35=0,\" \",COUNTRY_INFO!B35))","v":" "},{"$f":"IF(INTRO!$E$39=\"Non endémique\",\" \",IF(COUNTRY_INFO!C35=0,\" \",COUNTRY_INFO!C35))","v":" "},{"$f":"IF(INTRO!$E$39=\"Non endémique\",0,IF(INTRO!$E$39=\"Endémique mais pas de CP\",IF(COUNTRY_INFO!$H35=1,COUNTRY_INFO!F35+COUNTRY_INFO!G35,0),IF(COUNTRY_INFO!$H35=1,COUNTRY_INFO!F35+COUNTRY_INFO!G35,IF(COUNTRY_INFO!$I35=1,IF(COUNTRY_INFO!M35>=(COUNTRY_INFO!F35+COUNTRY_INFO!G35),COUNTRY_INFO!F35+COUNTRY_INFO!G35,COUNTRY_INFO!$M35),0))))","v":0},{"$f":"IF(AND(INTRO!$E$39=\"Non endémique\",INTRO!$E$37=\"Non endémique\"),\"Non requis\",IF(INTRO!$E$39=\"Non endémique\",\"Traiter avec DEC\",COUNTRY_INFO!P35))","v":"Non requis"},{"$f":"IF(INTRO!$E$39<>\"Non endémique\",COUNTRY_INFO!Q35,\"Non requis\")","v":"Non requis"},{"$f":"IF(COUNTRY_INFO!H35=1, IF($E35=1,$D35, 0),0)","v":0},{"$f":"IF(INTRO!$E$39<>\"Endémique\",0, IF(AND(COUNTRY_INFO!$I35=1,$F35<>0),IF(COUNTRY_INFO!M35>=(COUNTRY_INFO!F35+COUNTRY_INFO!G35),COUNTRY_INFO!F35+COUNTRY_INFO!G35,COUNTRY_INFO!$M35), 0))","v":0},null,0,0,0,0,0,null,0,0]
[{"$f":"IF(INTRO!$E$39=\"Non endémique\",\" \",IF(COUNTRY_INFO!A36=0,\" \",COUNTRY_INFO!A36))","v":" "},{"$f":"IF(INTRO!$E$39=\"Non endémique\",\" \",IF(COUNTRY_INFO!B36=0,\" \",COUNTRY_INFO!B36))","v":" "},{"$f":"IF(INTRO!$E$39=\"Non endémique\",\" \",IF(COUNTRY_INFO!C36=0,\" \",COUNTRY_INFO!C36))","v":" "},{"$f":"IF(INTRO!$E$39=\"Non endémique\",0,IF(INTRO!$E$39=\"Endémique mais pas de CP\",IF(COUNTRY_INFO!$H36=1,COUNTRY_INFO!F36+COUNTRY_INFO!G36,0),IF(COUNTRY_INFO!$H36=1,COUNTRY_INFO!F36+COUNTRY_INFO!G36,IF(COUNTRY_INFO!$I36=1,IF(COUNTRY_INFO!M36>=(COUNTRY_INFO!F36+COUNTRY_INFO!G36),COUNTRY_INFO!F36+COUNTRY_INFO!G36,COUNTRY_INFO!$M36),0))))","v":0},{"$f":"IF(AND(INTRO!$E$39=\"Non endémique\",INTRO!$E$37=\"Non endémique\"),\"Non requis\",IF(INTRO!$E$39=\"Non endémique\",\"Traiter avec DEC\",COUNTRY_INFO!P36))","v":"Non requis"},{"$f":"IF(INTRO!$E$39<>\"Non endémique\",COUNTRY_INFO!Q36,\"Non requis\")","v":"Non requis"},{"$f":"IF(COUNTRY_INFO!H36=1, IF($E36=1,$D36, 0),0)","v":0},{"$f":"IF(INTRO!$E$39<>\"Endémique\",0, IF(AND(COUNTRY_INFO!$I36=1,$F36<>0),IF(COUNTRY_INFO!M36>=(COUNTRY_INFO!F36+COUNTRY_INFO!G36),COUNTRY_INFO!F36+COUNTRY_INFO!G36,COUNTRY_INFO!$M36), 0))","v":0},null,0,0,0,0,0,null,0,0]
[{"$f":"IF(INTRO!$E$39=\"Non endémique\",\" \",IF(COUNTRY_INFO!A37=0,\" \",COUNTRY_INFO!A37))","v":" "},{"$f":"IF(INTRO!$E$39=\"Non endémique\",\" \",IF(COUNTRY_INFO!B37=0,\" \",COUNTRY_INFO!B37))","v":" "},{"$f":"IF(INTRO!$E$39=\"Non endémique\",\" \",IF(COUNTRY_INFO!C37=0,\" \",COUNTRY_INFO!C37))","v":" "},{"$f":"IF(INTRO!$E$39=\"Non endémique\",0,IF(INTRO!$E$39=\"Endémique mais pas de CP\",IF(COUNTRY_INFO!$H37=1,COUNTRY_INFO!F37+COUNTRY_INFO!G37,0),IF(COUNTRY_INFO!$H37=1,COUNTRY_INFO!F37+COUNTRY_INFO!G37,IF(COUNTRY_INFO!$I37=1,IF(COUNTRY_INFO!M37>=(COUNTRY_INFO!F37+COUNTRY_INFO!G37),COUNTRY_INFO!F37+COUNTRY_INFO!G37,COUNTRY_INFO!$M37),0))))","v":0},{"$f":"IF(AND(INTRO!$E$39=\"Non endémique\",INTRO!$E$37=\"Non endémique\"),\"Non requis\",IF(INTRO!$E$39=\"Non endémique\",\"Traiter avec DEC\",COUNTRY_INFO!P37))","v":"Non requis"},{"$f":"IF(INTRO!$E$39<>\"Non endémique\",COUNTRY_INFO!Q37,\"Non requis\")","v":"Non requis"},{"$f":"IF(COUNTRY_INFO!H37=1, IF($E37=1,$D37, 0),0)","v":0},{"$f":"IF(INTRO!$E$39<>\"Endémique\",0, IF(AND(COUNTRY_INFO!$I37=1,$F37<>0),IF(COUNTRY_INFO!M37>=(COUNTRY_INFO!F37+COUNTRY_INFO!G37),COUNTRY_INFO!F37+COUNTRY_INFO!G37,COUNTRY_INFO!$M37), 0))","v":0},null,0,0,0,0,0,null,0,0]
[{"$f":"IF(INTRO!$E$39=\"Non endémique\",\" \",IF(COUNTRY_INFO!A38=0,\" \",COUNTRY_INFO!A38))","v":" "},{"$f":"IF(INTRO!$E$39=\"Non endémique\",\" \",IF(COUNTRY_INFO!B38=0,\" \",COUNTRY_INFO!B38))","v":" "},{"$f":"IF(INTRO!$E$39=\"Non endémique\",\" \",IF(COUNTRY_INFO!C38=0,\" \",COUNTRY_INFO!C38))","v":" "},{"$f":"IF(INTRO!$E$39=\"Non endémique\",0,IF(INTRO!$E$39=\"Endémique mais pas de CP\",IF(COUNTRY_INFO!$H38=1,COUNTRY_INFO!F38+COUNTRY_INFO!G38,0),IF(COUNTRY_INFO!$H38=1,COUNTRY_INFO!F38+COUNTRY_INFO!G38,IF(COUNTRY_INFO!$I38=1,IF(COUNTRY_INFO!M38>=(COUNTRY_INFO!F38+COUNTRY_INFO!G38),COUNTRY_INFO!F38+COUNTRY_INFO!G38,COUNTRY_INFO!$M38),0))))","v":0},{"$f":"IF(AND(INTRO!$E$39=\"Non endémique\",INTRO!$E$37=\"Non endémique\"),\"Non requis\",IF(INTRO!$E$39=\"Non endémique\",\"Traiter avec DEC\",COUNTRY_INFO!P38))","v":"Non requis"},{"$f":"IF(INTRO!$E$39<>\"Non endémique\",COUNTRY_INFO!Q38,\"Non requis\")","v":"Non requis"},{"$f":"IF(COUNTRY_INFO!H38=1, IF($E38=1,$D38, 0),0)","v":0},{"$f":"IF(INTRO!$E$39<>\"Endémique\",0, IF(AND(COUNTRY_INFO!$I38=1,$F38<>0),IF(COUNTRY_INFO!M38>=(COUNTRY_INFO!F38+COUNTRY_INFO!G38),COUNTRY_INFO!F38+COUNTRY_INFO!G38,COUNTRY_INFO!$M38), 0))","v":0},null,0,0,0,0,0,null,0,0]
[{"$f":"IF(INTRO!$E$39=\"Non endémique\",\" \",IF(COUNTRY_INFO!A39=0,\" \",COUNTRY_INFO!A39))","v":" "},{"$f":"IF(INTRO!$E$39=\"Non endémique\",\" \",IF(COUNTRY_INFO!B39=0,\" \",COUNTRY_INFO!B39))","v":" "},{"$f":"IF(INTRO!$E$39=\"Non endémique\",\" \",IF(COUNTRY_INFO!C39=0,\" \",COUNTRY_INFO!C39))","v":" "},{"$f":"IF(INTRO!$E$39=\"Non endémique\",0,IF(INTRO!$E$39=\"Endémique mais pas de CP\",IF(COUNTRY_INFO!$H39=1,COUNTRY_INFO!F39+COUNTRY_INFO!G39,0),IF(COUNTRY_INFO!$H39=1,COUNTRY_INFO!F39+COUNTRY_INFO!G39,IF(COUNTRY_INFO!$I39=1,IF(COUNTRY_INFO!M39>=(COUNTRY_INFO!F39+COUNTRY_INFO!G39),COUNTRY_INFO!F39+COUNTRY_INFO!G39,COUNTRY_INFO!$M39),0))))","v":0},{"$f":"IF(AND(INTRO!$E$39=\"Non endémique\",INTRO!$E$37=\"Non endémique\"),\"Non requis\",IF(INTRO!$E$39=\"Non endémique\",\"Traiter avec DEC\",COUNTRY_INFO!P39))","v":"Non requis"},{"$f":"IF(INTRO!$E$39<>\"Non endémique\",COUNTRY_INFO!Q39,\"Non requis\")","v":"Non requis"},{"$f":"IF(COUNTRY_INFO!H39=1, IF($E39=1,$D39, 0),0)","v":0},{"$f":"IF(INTRO!$E$39<>\"Endémique\",0, IF(AND(COUNTRY_INFO!$I39=1,$F39<>0),IF(COUNTRY_INFO!M39>=(COUNTRY_INFO!F39+COUNTRY_INFO!G39),COUNTRY_INFO!F39+COUNTRY_INFO!G39,COUNTRY_INFO!$M39), 0))","v":0},null,0,0,0,0,0,null,0,0]
[{"$f":"IF(INTRO!$E$39=\"Non endémique\",\" \",IF(COUNTRY_INFO!A40=0,\" \",COUNTRY_INFO!A40))","v":" "},{"$f":"IF(INTRO!$E$39=\"Non endémique\",\" \",IF(COUNTRY_INFO!B40=0,\" \",COUNTRY_INFO!B40))","v":" "},{"$f":"IF(INTRO!$E$39=\"Non endémique\",\" \",IF(COUNTRY_INFO!C40=0,\" \",COUNTRY_INFO!C40))","v":" "},{"$f":"IF(INTRO!$E$39=\"Non endémique\",0,IF(INTRO!$E$39=\"Endémique mais pas de CP\",IF(COUNTRY_INFO!$H40=1,COUNTRY_INFO!F40+COUNTRY_INFO!G40,0),IF(COUNTRY_INFO!$H40=1,COUNTRY_INFO!F40+COUNTRY_INFO!G40,IF(COUNTRY_INFO!$I40=1,IF(COUNTRY_INFO!M40>=(COUNTRY_INFO!F40+COUNTRY_INFO!G40),COUNTRY_INFO!F40+COUNTRY_INFO!G40,COUNTRY_INFO!$M40),0))))","v":0},{"$f":"IF(AND(INTRO!$E$39=\"Non endémique\",INTRO!$E$37=\"Non endémique\"),\"Non requis\",IF(INTRO!$E$39=\"Non endémique\",\"Traiter avec DEC\",COUNTRY_INFO!P40))","v":"Non requis"},{"$f":"IF(INTRO!$E$39<>\"Non endémique\",COUNTRY_INFO!Q40,\"Non requis\")","v":"Non requis"},{"$f":"IF(COUNTRY_INFO!H40=1, IF($E40=1,$D40, 0),0)","v":0},{"$f":"IF(INTRO!$E$39<>\"Endémique\",0, IF(AND(COUNTRY_INFO!$I40=1,$F40<>0),IF(COUNTRY_INFO!M40>=(COUNTRY_INFO!F40+COUNTRY_INFO!G40),COUNTRY_INFO!F40+COUNTRY_INFO!G40,COUNTRY_INFO!$M40), 0))","v":0},null,0,0,0,0,0,null,0,0]
[{"$f":"IF(INTRO!$E$39=\"Non endémique\",\" \",IF(COUNTRY_INFO!A41=0,\" \",COUNTRY_INFO!A41))","v":" "},{"$f":"IF(INTRO!$E$39=\"Non endémique\",\" \",IF(COUNTRY_INFO!B41=0,\" \",COUNTRY_INFO!B41))","v":" "},{"$f":"IF(INTRO!$E$39=\"Non endémique\",\" \",IF(COUNTRY_INFO!C41=0,\" \",COUNTRY_INFO!C41))","v":" "},{"$f":"IF(INTRO!$E$39=\"Non endémique\",0,IF(INTRO!$E$39=\"Endémique mais pas de CP\",IF(COUNTRY_INFO!$H41=1,COUNTRY_INFO!F41+COUNTRY_INFO!G41,0),IF(COUNTRY_INFO!$H41=1,COUNTRY_INFO!F41+COUNTRY_INFO!G41,IF(COUNTRY_INFO!$I41=1,IF(COUNTRY_INFO!M41>=(COUNTRY_INFO!F41+COUNTRY_INFO!G41),COUNTRY_INFO!F41+COUNTRY_INFO!G41,COUNTRY_INFO!$M41),0))))","v":0},{"$f":"IF(AND(INTRO!$E$39=\"Non endémique\",INTRO!$E$37=\"Non endémique\"),\"Non requis\",IF(INTRO!$E$39=\"Non endémique\",\"Traiter avec DEC\",COUNTRY_INFO!P41))","v":"Non requis"},{"$f":"IF(INTRO!$E$39<>\"Non endémique\",COUNTRY_INFO!Q41,\"Non requis\")","v":"Non requis"},{"$f":"IF(COUNTRY_INFO!H41=1, IF($E41=1,$D41, 0),0)","v":0},{"$f":"IF(INTRO!$E$39<>\"Endémique\",0, IF(AND(COUNTRY_INFO!$I41=1,$F41<>0),IF(COUNTRY_INFO!M41>=(COUNTRY_INFO!F41+COUNTRY_INFO!G41),COUNTRY_INFO!F41+COUNTRY_INFO!G41,COUNTRY_INFO!$M41), 0))","v":0},null,{"$f":"IF(I41=0,H41,IF(I41>H41,H41,I41))","v":0},{"$f":"IF(G41<J41,0,IF($E41=1, (G41-J41)*2.8, 0))","v":0},{"$f":"IF($E41<$F41, J41*(F41-E41)*2.8, 0)","v":0},{"$f":"IF(AND($E41=1, $F41<>0), J41*2.8, 0)","v":0},{"$f":"SUM(K41:M41)","v":0},null,{"$f":"IF($N41>$O41,$N41-$O41,0)","v":0},{"$f":"ROUNDUP($N41/500,0)","v":0}]
[{"$f":"IF(INTRO!$E$39=\"Non endémique\",\" \",IF(COUNTRY_INFO!A42=0,\" \",COUNTRY_INFO!A42))","v":" "},{"$f":"IF(INTRO!$E$39=\"Non endémique\",\" \",IF(COUNTRY_INFO!B42=0,\" \",COUNTRY_INFO!B42))","v":" "},{"$f":"IF(INTRO!$E$39=\"Non endémique\",\" \",IF(COUNTRY_INFO!C42=0,\" \",COUNTRY_INFO!C42))","v":" "},{"$f":"IF(INTRO!$E$39=\"Non endémique\",0,IF(INTRO!$E$39=\"Endémique mais pas de CP\",IF(COUNTRY_INFO!$H42=1,COUNTRY_INFO!F42+COUNTRY_INFO!G42,0),IF(COUNTRY_INFO!$H42=1,COUNTRY_INFO!F42+COUNTRY_INFO!G42,IF(COUNTRY_INFO!$I42=1,IF(COUNTRY_INFO!M42>=(COUNTRY_INFO!F42+COUNTRY_INFO!G42),COUNTRY_INFO!F42+COUNTRY_INFO!G42,COUNTRY_INFO!$M42),0))))","v":0},{"$f":"IF(AND(INTRO!$E$39=\"Non endémique\",INTRO!$E$37=\"Non endémique\"),\"Non requis\",IF(INTRO!$E$39=\"Non endémique\",\"Traiter avec DEC\",COUNTRY_INFO!P42))","v":"Non requis"},{"$f":"IF(INTRO!$E$39<>\"Non endémique\",COUNTRY_INFO!Q42,\"Non requis\")","v":"Non requis"},{"$f":"IF(COUNTRY_INFO!H42=1, IF($E42=1,$D42, 0),0)","v":0},{"$f":"IF(INTRO!$E$39<>\"Endémique\",0, IF(AND(COUNTRY_INFO!$I42=1,$F42<>0),IF(COUNTRY_INFO!M42>=(COUNTRY_INFO!F42+COUNTRY_INFO!G42),COUNTRY_INFO!F42+COUNTRY_INFO!G42,COUNTRY_INFO!$M42), 0))","v":0},null,0,0,0,0,0,null,0,0]
[{"$f":"IF(INTRO!$E$39=\"Non endémique\",\" \",IF(COUNTRY_INFO!A43=0,\" \",COUNTRY_INFO!A43))","v":" "},{"$f":"IF(INTRO!$E$39=\"Non endémique\",\" \",IF(COUNTRY_INFO!B43=0,\" \",COUNTRY_INFO!B43))","v":" "},{"$f":"IF(INTRO!$E$39=\"Non endémique\",\" \",IF(COUNTRY_INFO!C43=0,\" \",COUNTRY_INFO!C43))","v":" "},{"$f":"IF(INTRO!$E$39=\"Non endémique\",0,IF(INTRO!$E$39=\"Endémique mais pas de CP\",IF(COUNTRY_INFO!$H43=1,COUNTRY_INFO!F43+COUNTRY_INFO!G43,0),IF(COUNTRY_INFO!$H43=1,COUNTRY_INFO!F43+COUNTRY_INFO!G43,IF(COUNTRY_INFO!$I43=1,IF(COUNTRY_INFO!M43>=(COUNTRY_INFO!F43+COUNTRY_INFO!G43),COUNTRY_INFO!F43+COUNTRY_INFO!G43,COUNTRY_INFO!$M43),0))))","v":0},{"$f":"IF(AND(INTRO!$E$39=\"Non endémique\",INTRO!$E$37=\"Non endémique\"),\"Non requis\",IF(INTRO!$E$39=\"Non endémique\",\"Traiter avec DEC\",COUNTRY_INFO!P43))","v":"Non requis"},{"$f":"IF(INTRO!$E$39<>\"Non endémique\",COUNTRY_INFO!Q43,\"Non requis\")","v":"Non requis"},{"$f":"IF(COUNTRY_INFO!H43=1, IF($E43=1,$D43, 0),0)","v":0},{"$f":"IF(INTRO!$E$39<>\"Endémique\",0, IF(AND(COUNTRY_INFO!$I43=1,$F43<>0),IF(COUNTRY_INFO!M43>=(COUNTRY_INFO!F43+COUNTRY_INFO!G43),COUNTRY_INFO!F43+COUNTRY_INFO!G43,COUNTRY_INFO!$M43), 0))","v":0},null,0,0,0,0,0,null,0,0]
[{"$f":"IF(INTRO!$E$39=\"Non endémique\",\" \",IF(COUNTRY_INFO!A44=0,\" \",COUNTRY_INFO!A44))","v":" "},{"$f":"IF(INTRO!$E$39=\"Non endémique\",\" \",IF(COUNTRY_INFO!B44=0,\" \",COUNTRY_INFO!B44))","v":" "},{"$f":"IF(INTRO!$E$39=\"Non endémique\",\" \",IF(COUNTRY_INFO!C44=0,\" \",COUNTRY_INFO!C44))","v":" "},{"$f":"IF(INTRO!$E$39=\"Non endémique\",0,IF(INTRO!$E$39=\"Endémique mais pas de CP\",IF(COUNTRY_INFO!$H44=1,COUNTRY_INFO!F44+COUNTRY_INFO!G44,0),IF(COUNTRY_INFO!$H44=1,COUNTRY_INFO!F44+COUNTRY_INFO!G44,IF(COUNTRY_INFO!$I44=1,IF(COUNTRY_INFO!M44>=(COUNTRY_INFO!F44+COUNTRY_INFO!G44),COUNTRY_INFO!F44+COUNTRY_INFO!G44,COUNTRY_INFO!$M44),0))))","v":0},{"$f":"IF(AND(INTRO!$E$39=\"Non endémique\",INTRO!$E$37=\"Non endémique\"),\"Non requis\",IF(INTRO!$E$39=\"Non endémique\",\"Traiter avec DEC\",COUNTRY_INFO!P44))","v":"Non requis"},{"$f":"IF(INTRO!$E$39<>\"Non endémique\",COUNTRY_INFO!Q44,\"Non requis\")","v":"Non requis"},{"$f":"IF(COUNTRY_INFO!H44=1, IF($E44=1,$D44, 0),0)","v":0},{"$f":"IF(INTRO!$E$39<>\"Endémique\",0, IF(AND(COUNTRY_INFO!$I44=1,$F44<>0),IF(COUNTRY_INFO!M44>=(COUNTRY_INFO!F44+COUNTRY_INFO!G44),COUNTRY_INFO!F44+COUNTRY_INFO!G44,COUNTRY_INFO!$M44), 0))","v":0},null,0,0,0,0,0,null,0,0]
[{"$f":"IF(INTRO!$E$39=\"Non endémique\",\" \",IF(COUNTRY_INFO!A45=0,\" \",COUNTRY_INFO!A45))","v":" "},{"$f":"IF(INTRO!$E$39=\"Non endémique\",\" \",IF(COUNTRY_INFO!B45=0,\" \",COUNTRY_INFO!B45))","v":" "},{"$f":"IF(INTRO!$E$39=\"Non endémique\",\" \",IF(COUNTRY_INFO!C45=0,\" \",COUNTRY_INFO!C45))","v":" "},{"$f":"IF(INTRO!$E$39=\"Non endémique\",0,IF(INTRO!$E$39=\"Endémique mais pas de CP\",IF(COUNTRY_INFO!$H45=1,COUNTRY_INFO!F45+COUNTRY_INFO!G45,0),IF(COUNTRY_INFO!$H45=1,COUNTRY_INFO!F45+COUNTRY_INFO!G45,IF(COUNTRY_INFO!$I45=1,IF(COUNTRY_INFO!M45>=(COUNTRY_INFO!F45+COUNTRY_INFO!G45),COUNTRY_INFO!F45+COUNTRY_INFO!G45,COUNTRY_INFO!$M45),0))))","v":0},{"$f":"IF(AND(INTRO!$E$39=\"Non endémique\",INTRO!$E$37=\"Non endémique\"),\"Non requis\",IF(INTRO!$E$39=\"Non endémique\",\"Traiter avec DEC\",COUNTRY_INFO!P45))","v":"Non requis"},{"$f":"IF(INTRO!$E$39<>\"Non endémique\",COUNTRY_INFO!Q45,\"Non requis\")","v":"Non requis"},{"$f":"IF(COUNTRY_INFO!H45=1, IF($E45=1,$D45, 0),0)","v":0},{"$f":"IF(INTRO!$E$39<>\"Endémique\",0, IF(AND(COUNTRY_INFO!$I45=1,$F45<>0),IF(COUNTRY_INFO!M45>=(COUNTRY_INFO!F45+COUNTRY_INFO!G45),COUNTRY_INFO!F45+COUNTRY_INFO!G45,COUNTRY_INFO!$M45), 0))","v":0},null,0,0,0,0,0,null,0,0]
[{"$f":"IF(INTRO!$E$39=\"Non endémique\",\" \",IF(COUNTRY_INFO!A46=0,\" \",COUNTRY_INFO!A46))","v":" "},{"$f":"IF(INTRO!$E$39=\"Non endémique\",\" \",IF(COUNTRY_INFO!B46=0,\" \",COUNTRY_INFO!B46))","v":" "},{"$f":"IF(INTRO!$E$39=\"Non endémique\",\" \",IF(COUNTRY_INFO!C46=0,\" \",COUNTRY_INFO!C46))","v":" "},{"$f":"IF(INTRO!$E$39=\"Non endémique\",0,IF(INTRO!$E$39=\"Endémique mais pas de CP\",IF(COUNTRY_INFO!$H46=1,COUNTRY_INFO!F46+COUNTRY_INFO!G46,0),IF(COUNTRY_INFO!$H46=1,COUNTRY_INFO!F46+COUNTRY_INFO!G46,IF(COUNTRY_INFO!$I46=1,IF(COUNTRY_INFO!M46>=(COUNTRY_INFO!F46+COUNTRY_INFO!G46),COUNTRY_INFO!F46+COUNTRY_INFO!G46,COUNTRY_INFO!$M46),0))))","v":0},{"$f":"IF(AND(INTRO!$E$39=\"Non endémique\",INTRO!$E$37=\"Non endémique\"),\"Non requis\",IF(INTRO!$E$39=\"Non endémique\",\"Traiter avec DEC\",COUNTRY_INFO!P46))","v":"Non requis"},{"$f":"IF(INTRO!$E$39<>\"Non endémique\",COUNTRY_INFO!Q46,\"Non requis\")","v":"Non requis"},{"$f":"IF(COUNTRY_INFO!H46=1, IF($E46=1,$D46, 0),0)","v":0},{"$f":"IF(INTRO!$E$39<>\"Endémique\",0, IF(AND(COUNTRY_INFO!$I46=1,$F46<>0),IF(COUNTRY_INFO!M46>=(COUNTRY_INFO!F46+COUNTRY_INFO!G46),COUNTRY_INFO!F46+COUNTRY_INFO!G46,COUNTRY_INFO!$M46), 0))","v":0},null,0,0,0,0,0,null,0,0]
[{"$f":"IF(INTRO!$E$39=\"Non endémique\",\" \",IF(COUNTRY_INFO!A47=0,\" \",COUNTRY_INFO!A47))","v":" "},{"$f":"IF(INTRO!$E$39=\"Non endémique\",\" \",IF(COUNTRY_INFO!B47=0,\" \",COUNTRY_INFO!B47))","v":" "},{"$f":"IF(INTRO!$E$39=\"Non endémique\",\" \",IF(COUNTRY_INFO!C47=0,\" \",COUNTRY_INFO!C47))","v":" "},{"$f":"IF(INTRO!$E$39=\"Non endémique\",0,IF(INTRO!$E$39=\"Endémique mais pas de CP\",IF(COUNTRY_INFO!$H47=1,COUNTRY_INFO!F47+COUNTRY_INFO!G47,0),IF(COUNTRY_INFO!$H47=1,COUNTRY_INFO!F47+COUNTRY_INFO!G47,IF(COUNTRY_INFO!$I47=1,IF(COUNTRY_INFO!M47>=(COUNTRY_INFO!F47+COUNTRY_INFO!G47),COUNTRY_INFO!F47+COUNTRY_INFO!G47,COUNTRY_INFO!$M47),0))))","v":0},{"$f":"IF(AND(INTRO!$E$39=\"Non endémique\",INTRO!$E$37=\"Non endémique\"),\"Non requis\",IF(INTRO!$E$39=\"Non endémique\",\"Traiter avec DEC\",COUNTRY_INFO!P47))","v":"Non requis"},{"$f":"IF(INTRO!$E$39<>\"Non endémique\",COUNTRY_INFO!Q47,\"Non requis\")","v":"Non requis"},{"$f":"IF(COUNTRY_INFO!H47=1, IF($E47=1,$D47, 0),0)","v":0},{"$f":"IF(INTRO!$E$39<>\"Endémique\",0, IF(AND(COUNTRY_INFO!$I47=1,$F47<>0),IF(COUNTRY_INFO!M47>=(COUNTRY_INFO!F47+COUNTRY_INFO!G47),COUNTRY_INFO!F47+COUNTRY_INFO!G47,COUNTRY_INFO!$M47), 0))","v":0},null,0,0,0,0,0,null,0,0]
[{"$f":"IF(INTRO!$E$39=\"Non endémique\",\" \",IF(COUNTRY_INFO!A48=0,\" \",COUNTRY_INFO!A48))","v":" "},{"$f":"IF(INTRO!$E$39=\"Non endémique\",\" \",IF(COUNTRY_INFO!B48=0,\" \",COUNTRY_INFO!B48))","v":" "},{"$f":"IF(INTRO!$E$39=\"Non endémique\",\" \",IF(COUNTRY_INFO!C48=0,\" \",COUNTRY_INFO!C48))","v":" "},{"$f":"IF(INTRO!$E$39=\"Non endémique\",0,IF(INTRO!$E$39=\"Endémique mais pas de CP\",IF(COUNTRY_INFO!$H48=1,COUNTRY_INFO!F48+COUNTRY_INFO!G48,0),IF(COUNTRY_INFO!$H48=1,COUNTRY_INFO!F48+COUNTRY_INFO!G48,IF(COUNTRY_INFO!$I48=1,IF(COUNTRY_INFO!M48>=(COUNTRY_INFO!F48+COUNTRY_INFO!G48),COUNTRY_INFO!F48+COUNTRY_INFO!G48,COUNTRY_INFO!$M48),0))))","v":0},{"$f":"IF(AND(INTRO!$E$39=\"Non endémique\",INTRO!$E$37=\"Non endémique\"),\"Non requis\",IF(INTRO!$E$39=\"Non endémique\",\"Traiter avec DEC\",COUNTRY_INFO!P48))","v":"Non requis"},{"$f":"IF(INTRO!$E$39<>\"Non endémique\",COUNTRY_INFO!Q48,\"Non requis\")","v":"Non requis"},{"$f":"IF(COUNTRY_INFO!H48=1, IF($E48=1,$D48, 0),0)","v":0},{"$f":"IF(INTRO!$E$39<>\"Endémique\",0, IF(AND(COUNTRY_INFO!$I48=1,$F48<>0),IF(COUNTRY_INFO!M48>=(COUNTRY_INFO!F48+COUNTRY_INFO!G48),COUNTRY_INFO!F48+COUNTRY_INFO!G48,COUNTRY_INFO!$M48), 0))","v":0},null,0,0,0,0,0,null,0,0]
[{"$f":"IF(INTRO!$E$39=\"Non endémique\",\" \",IF(COUNTRY_INFO!A49=0,\" \",COUNTRY_INFO!A49))","v":" "},{"$f":"IF(INTRO!$E$39=\"Non endémique\",\" \",IF(COUNTRY_INFO!B49=0,\" \",COUNTRY_INFO!B49))","v":" "},{"$f":"IF(INTRO!$E$39=\"Non endémique\",\" \",IF(COUNTRY_INFO!C49=0,\" \",COUNTRY_INFO!C49))","v":" "},{"$f":"IF(INTRO!$E$39=\"Non endémique\",0,IF(INTRO!$E$39=\"Endémique mais pas de CP\",IF(COUNTRY_INFO!$H49=1,COUNTRY_INFO!F49+COUNTRY_INFO!G49,0),IF(COUNTRY_INFO!$H49=1,COUNTRY_INFO!F49+COUNTRY_INFO!G49,IF(COUNTRY_INFO!$I49=1,IF(COUNTRY_INFO!M49>=(COUNTRY_INFO!F49+COUNTRY_INFO!G49),COUNTRY_INFO!F49+COUNTRY_INFO!G49,COUNTRY_INFO!$M49),0))))","v":0},{"$f":"IF(AND(INTRO!$E$39=\"Non endémique\",INTRO!$E$37=\"Non endémique\"),\"Non requis\",IF(INTRO!$E$39=\"Non endémique\",\"Traiter avec DEC\",COUNTRY_INFO!P49))","v":"Non requis"},{"$f":"IF(INTRO!$E$39<>\"Non endémique\",COUNTRY_INFO!Q49,\"Non requis\")","v":"Non requis"},{"$f":"IF(COUNTRY_INFO!H49=1, IF($E49=1,$D49, 0),0)","v":0},{"$f":"IF(INTRO!$E$39<>\"Endémique\",0, IF(AND(COUNTRY_INFO!$I49=1,$F49<>0),IF(COUNTRY_INFO!M49>=(COUNTRY_INFO!F49+COUNTRY_INFO!G49),COUNTRY_INFO!F49+COUNTRY_INFO!G49,COUNTRY_INFO!$M49), 0))","v":0},null,0,0,0,0,0,null,0,0]
[{"$f":"IF(INTRO!$E$39=\"Non endémique\",\" \",IF(COUNTRY_INFO!A50=0,\" \",COUNTRY_INFO!A50))","v":" "},{"$f":"IF(INTRO!$E$39=\"Non endémique\",\" \",IF(COUNTRY_INFO!B50=0,\" \",COUNTRY_INFO!B50))","v":" "},{"$f":"IF(INTRO!$E$39=\"Non endémique\",\" \",IF(COUNTRY_INFO!C50=0,\" \",COUNTRY_INFO!C50))","v":" "},{"$f":"IF(INTRO!$E$39=\"Non endémique\",0,IF(INTRO!$E$39=\"Endémique mais pas de CP\",IF(COUNTRY_INFO!$H50=1,COUNTRY_INFO!F50+COUNTRY_INFO!G50,0),IF(COUNTRY_INFO!$H50=1,COUNTRY_INFO!F50+COUNTRY_INFO!G50,IF(COUNTRY_INFO!$I50=1,IF(COUNTRY_INFO!M50>=(COUNTRY_INFO!F50+COUNTRY_INFO!G50),COUNTRY_INFO!F50+COUNTRY_INFO!G50,COUNTRY_INFO!$M50),0))))","v":0},{"$f":"IF(AND(INTRO!$E$39=\"Non endémique\",INTRO!$E$37=\"Non endémique\"),\"Non requis\",IF(INTRO!$E$39=\"Non endémique\",\"Traiter avec DEC\",COUNTRY_INFO!P50))","v":"Non requis"},{"$f":"IF(INTRO!$E$39<>\"Non endémique\",COUNTRY_INFO!Q50,\"Non requis\")","v":"Non requis"},{"$f":"IF(COUNTRY_INFO!H50=1, IF($E50=1,$D50, 0),0)","v":0},{"$f":"IF(INTRO!$E$39<>\"Endémique\",0, IF(AND(COUNTRY_INFO!$I50=1,$F50<>0),IF(COUNTRY_INFO!M50>=(COUNTRY_INFO!F50+COUNTRY_INFO!G50),COUNTRY_INFO!F50+COUNTRY_INFO!G50,COUNTRY_INFO!$M50), 0))","v":0},null,0,0,0,0,0,null,0,0]
[{"$f":"IF(INTRO!$E$39=\"Non endémique\",\" \",IF(COUNTRY_INFO!A51=0,\" \",COUNTRY_INFO!A51))","v":" "},{"$f":"IF(INTRO!$E$39=\"Non endémique\",\" \",IF(COUNTRY_INFO!B51=0,\" \",COUNTRY_INFO!B51))","v":" "},{"$f":"IF(INTRO!$E$39=\"Non endémique\",\" \",IF(COUNTRY_INFO!C51=0,\" \",COUNTRY_INFO!C51))","v":" "},{"$f":"IF(INTRO!$E$39=\"Non endémique\",0,IF(INTRO!$E$39=\"Endémique mais pas de CP\",IF(COUNTRY_INFO!$H51=1,COUNTRY_INFO!F51+COUNTRY_INFO!G51,0),IF(COUNTRY_INFO!$H51=1,COUNTRY_INFO!F51+COUNTRY_INFO!G51,IF(COUNTRY_INFO!$I51=1,IF(COUNTRY_INFO!M51>=(COUNTRY_INFO!F51+COUNTRY_INFO!G51),COUNTRY_INFO!F51+COUNTRY_INFO!G51,COUNTRY_INFO!$M51),0))))","v":0},{"$f":"IF(AND(INTRO!$E$39=\"Non endémique\",INTRO!$E$37=\"Non endémique\"),\"Non requis\",IF(INTRO!$E$39=\"Non endémique\",\"Traiter avec DEC\",COUNTRY_INFO!P51))","v":"Non requis"},{"$f":"IF(INTRO!$E$39<>\"Non endémique\",COUNTRY_INFO!Q51,\"Non requis\")","v":"Non requis"},{"$f":"IF(COUNTRY_INFO!H51=1, IF($E51=1,$D51, 0),0)","v":0},{"$f":"IF(INTRO!$E$39<>\"Endémique\",0, IF(AND(COUNTRY_INFO!$I51=1,$F51<>0),IF(COUNTRY_INFO!M51>=(COUNTRY_INFO!F51+COUNTRY_INFO!G51),COUNTRY_INFO!F51+COUNTRY_INFO!G51,COUNTRY_INFO!$M51), 0))","v":0},null,0,0,0,0,0,null,0,0]
[{"$f":"IF(INTRO!$E$39=\"Non endémique\",\" \",IF(COUNTRY_INFO!A52=0,\" \",COUNTRY_INFO!A52))","v":" "},{"$f":"IF(INTRO!$E$39=\"Non endémique\",\" \",IF(COUNTRY_INFO!B52=0,\" \",COUNTRY_INFO!B52))","v":" "},{"$f":"IF(INTRO!$E$39=\"Non endémique\",\" \",IF(COUNTRY_INFO!C52=0,\" \",COUNTRY_INFO!C52))","v":" "},{"$f":"IF(INTRO!$E$39=\"Non endémique\",0,IF(INTRO!$E$39=\"Endémique mais pas de CP\",IF(COUNTRY_INFO!$H52=1,COUNTRY_INFO!F52+COUNTRY_INFO!G52,0),IF(COUNTRY_INFO!$H52=1,COUNTRY_INFO!F52+COUNTRY_INFO!G52,IF(COUNTRY_INFO!$I52=1,IF(COUNTRY_INFO!M52>=(COUNTRY_INFO!F52+COUNTRY_INFO!G52),COUNTRY_INFO!F52+COUNTRY_INFO!G52,COUNTRY_INFO!$M52),0))))","v":0},{"$f":"IF(AND(INTRO!$E$39=\"Non endémique\",INTRO!$E$37=\"Non endémique\"),\"Non requis\",IF(INTRO!$E$39=\"Non endémique\",\"Traiter avec DEC\",COUNTRY_INFO!P52))","v":"Non requis"},{"$f":"IF(INTRO!$E$39<>\"Non endémique\",COUNTRY_INFO!Q52,\"Non requis\")","v":"Non requis"},{"$f":"IF(COUNTRY_INFO!H52=1, IF($E52=1,$D52, 0),0)","v":0},{"$f":"IF(INTRO!$E$39<>\"Endémique\",0, IF(AND(COUNTRY_INFO!$I52=1,$F52<>0),IF(COUNTRY_INFO!M52>=(COUNTRY_INFO!F52+COUNTRY_INFO!G52),COUNTRY_INFO!F52+COUNTRY_INFO!G52,COUNTRY_INFO!$M52), 0))","v":0},null,0,0,0,0,0,null,0,0]
[{"$f":"IF(INTRO!$E$39=\"Non endémique\",\" \",IF(COUNTRY_INFO!A53=0,\" \",COUNTRY_INFO!A53))","v":" "},{"$f":"IF(INTRO!$E$39=\"Non endémique\",\" \",IF(COUNTRY_INFO!B53=0,\" \",COUNTRY_INFO!B53))","v":" "},{"$f":"IF(INTRO!$E$39=\"Non endémique\",\" \",IF(COUNTRY_INFO!C53=0,\" \",COUNTRY_INFO!C53))","v":" "},{"$f":"IF(INTRO!$E$39=\"Non endémique\",0,IF(INTRO!$E$39=\"Endémique mais pas de CP\",IF(COUNTRY_INFO!$H53=1,COUNTRY_INFO!F53+COUNTRY_INFO!G53,0),IF(COUNTRY_INFO!$H53=1,COUNTRY_INFO!F53+COUNTRY_INFO!G53,IF(COUNTRY_INFO!$I53=1,IF(COUNTRY_INFO!M53>=(COUNTRY_INFO!F53+COUNTRY_INFO!G53),COUNTRY_INFO!F53+COUNTRY_INFO!G53,COUNTRY_INFO!$M53),0))))","v":0},{"$f":"IF(AND(INTRO!$E$39=\"Non endémique\",INTRO!$E$37=\"Non endémique\"),\"Non requis\",IF(INTRO!$E$39=\"Non endémique\",\"Traiter avec DEC\",COUNTRY_INFO!P53))","v":"Non requis"},{"$f":"IF(INTRO!$E$39<>\"Non endémique\",COUNTRY_INFO!Q53,\"Non requis\")","v":"Non requis"},{"$f":"IF(COUNTRY_INFO!H53=1, IF($E53=1,$D53, 0),0)","v":0},{"$f":"IF(INTRO!$E$39<>\"Endémique\",0, IF(AND(COUNTRY_INFO!$I53=1,$F53<>0),IF(COUNTRY_INFO!M53>=(COUNTRY_INFO!F53+COUNTRY_INFO!G53),COUNTRY_INFO!F53+COUNTRY_INFO!G53,COUNTRY_INFO!$M53), 0))","v":0},null,0,0,0,0,0,null,0,0]
[{"$f":"IF(INTRO!$E$39=\"Non endémique\",\" \",IF(COUNTRY_INFO!A54=0,\" \",COUNTRY_INFO!A54))","v":" "},{"$f":"IF(INTRO!$E$39=\"Non endémique\",\" \",IF(COUNTRY_INFO!B54=0,\" \",COUNTRY_INFO!B54))","v":" "},{"$f":"IF(INTRO!$E$39=\"Non endémique\",\" \",IF(COUNTRY_INFO!C54=0,\" \",COUNTRY_INFO!C54))","v":" "},{"$f":"IF(INTRO!$E$39=\"Non endémique\",0,IF(INTRO!$E$39=\"Endémique mais pas de CP\",IF(COUNTRY_INFO!$H54=1,COUNTRY_INFO!F54+COUNTRY_INFO!G54,0),IF(COUNTRY_INFO!$H54=1,COUNTRY_INFO!F54+COUNTRY_INFO!G54,IF(COUNTRY_INFO!$I54=1,IF(COUNTRY_INFO!M54>=(COUNTRY_INFO!F54+COUNTRY_INFO!G54),COUNTRY_INFO!F54+COUNTRY_INFO!G54,COUNTRY_INFO!$M54),0))))","v":0},{"$f":"IF(AND(INTRO!$E$39=\"Non endémique\",INTRO!$E$37=\"Non endémique\"),\"Non requis\",IF(INTRO!$E$39=\"Non endémique\",\"Traiter avec DEC\",COUNTRY_INFO!P54))","v":"Non requis"},{"$f":"IF(INTRO!$E$39<>\"Non endémique\",COUNTRY_INFO!Q54,\"Non requis\")","v":"Non requis"},{"$f":"IF(COUNTRY_INFO!H54=1, IF($E54=1,$D54, 0),0)","v":0},{"$f":"IF(INTRO!$E$39<>\"Endémique\",0, IF(AND(COUNTRY_INFO!$I54=1,$F54<>0),IF(COUNTRY_INFO!M54>=(COUNTRY_INFO!F54+COUNTRY_INFO!G54),COUNTRY_INFO!F54+COUNTRY_INFO!G54,COUNTRY_INFO!$M54), 0))","v":0},null,0,0,0,0,0,null,0,0]
[{"$f":"IF(INTRO!$E$39=\"Non endémique\",\" \",IF(COUNTRY_INFO!A55=0,\" \",COUNTRY_INFO!A55))","v":" "},{"$f":"IF(INTRO!$E$39=\"Non endémique\",\" \",IF(COUNTRY_INFO!B55=0,\" \",COUNTRY_INFO!B55))","v":" "},{"$f":"IF(INTRO!$E$39=\"Non endémique\",\" \",IF(COUNTRY_INFO!C55=0,\" \",COUNTRY_INFO!C55))","v":" "},{"$f":"IF(INTRO!$E$39=\"Non endémique\",0,IF(INTRO!$E$39=\"Endémique mais pas de CP\",IF(COUNTRY_INFO!$H55=1,COUNTRY_INFO!F55+COUNTRY_INFO!G55,0),IF(COUNTRY_INFO!$H55=1,COUNTRY_INFO!F55+COUNTRY_INFO!G55,IF(COUNTRY_INFO!$I55=1,IF(COUNTRY_INFO!M55>=(COUNTRY_INFO!F55+COUNTRY_INFO!G55),COUNTRY_INFO!F55+COUNTRY_INFO!G55,COUNTRY_INFO!$M55),0))))","v":0},{"$f":"IF(AND(INTRO!$E$39=\"Non endémique\",INTRO!$E$37=\"Non endémique\"),\"Non requis\",IF(INTRO!$E$39=\"Non endémique\",\"Traiter avec DEC\",COUNTRY_INFO!P55))","v":"Non requis"},{"$f":"IF(INTRO!$E$39<>\"Non endémique\",COUNTRY_INFO!Q55,\"Non requis\")","v":"Non requis"},{"$f":"IF(COUNTRY_INFO!H55=1, IF($E55=1,$D55, 0),0)","v":0},{"$f":"IF(INTRO!$E$39<>\"Endémique\",0, IF(AND(COUNTRY_INFO!$I55=1,$F55<>0),IF(COUNTRY_INFO!M55>=(COUNTRY_INFO!F55+COUNTRY_INFO!G55),COUNTRY_INFO!F55+COUNTRY_INFO!G55,COUNTRY_INFO!$M55), 0))","v":0},null,0,0,0,0,0,null,0,0]
[{"$f":"IF(INTRO!$E$39=\"Non endémique\",\" \",IF(COUNTRY_INFO!A56=0,\" \",COUNTRY_INFO!A56))","v":" "},{"$f":"IF(INTRO!$E$39=\"Non endémique\",\" \",IF(COUNTRY_INFO!B56=0,\" \",COUNTRY_INFO!B56))","v":" "},{"$f":"IF(INTRO!$E$39=\"Non endémique\",\" \",IF(COUNTRY_INFO!C56=0,\" \",COUNTRY_INFO!C56))","v":" "},{"$f":"IF(INTRO!$E$39=\"Non endémique\",0,IF(INTRO!$E$39=\"Endémique mais pas de CP\",IF(COUNTRY_INFO!$H56=1,COUNTRY_INFO!F56+COUNTRY_INFO!G56,0),IF(COUNTRY_INFO!$H56=1,COUNTRY_INFO!F56+COUNTRY_INFO!G56,IF(COUNTRY_INFO!$I56=1,IF(COUNTRY_INFO!M56>=(COUNTRY_INFO!F56+COUNTRY_INFO!G56),COUNTRY_INFO!F56+COUNTRY_INFO!G56,COUNTRY_INFO!$M56),0))))","v":0},{"$f":"IF(AND(INTRO!$E$39=\"Non endémique\",INTRO!$E$37=\"Non endémique\"),\"Non requis\",IF(INTRO!$E$39=\"Non endémique\",\"Traiter avec DEC\",COUNTRY_INFO!P56))","v":"Non requis"},{"$f":"IF(INTRO!$E$39<>\"Non endémique\",COUNTRY_INFO!Q56,\"Non requis\")","v":"Non requis"},{"$f":"IF(COUNTRY_INFO!H56=1, IF($E56=1,$D56, 0),0)","v":0},{"$f":"IF(INTRO!$E$39<>\"Endémique\",0, IF(AND(COUNTRY_INFO!$I56=1,$F56<>0),IF(COUNTRY_INFO!M56>=(COUNTRY_INFO!F56+COUNTRY_INFO!G56),COUNTRY_INFO!F56+COUNTRY_INFO!G56,COUNTRY_INFO!$M56), 0))","v":0},null,0,0,0,0,0,null,0,0]
[{"$f":"IF(INTRO!$E$39=\"Non endémique\",\" \",IF(COUNTRY_INFO!A57=0,\" \",COUNTRY_INFO!A57))","v":" "},{"$f":"IF(INTRO!$E$39=\"Non endémique\",\" \",IF(COUNTRY_INFO!B57=0,\" \",COUNTRY_INFO!B57))","v":" "},{"$f":"IF(INTRO!$E$39=\"Non endémique\",\" \",IF(COUNTRY_INFO!C57=0,\" \",COUNTRY_INFO!C57))","v":" "},{"$f":"IF(INTRO!$E$39=\"Non endémique\",0,IF(INTRO!$E$39=\"Endémique mais pas de CP\",IF(COUNTRY_INFO!$H57=1,COUNTRY_INFO!F57+COUNTRY_INFO!G57,0),IF(COUNTRY_INFO!$H57=1,COUNTRY_INFO!F57+COUNTRY_INFO!G57,IF(COUNTRY_INFO!$I57=1,IF(COUNTRY_INFO!M57>=(COUNTRY_INFO!F57+COUNTRY_INFO!G57),COUNTRY_INFO!F57+COUNTRY_INFO!G57,COUNTRY_INFO!$M57),0))))","v":0},{"$f":"IF(AND(INTRO!$E$39=\"Non endémique\",INTRO!$E$37=\"Non endémique\"),\"Non requis\",IF(INTRO!$E$39=\"Non endémique\",\"Traiter avec DEC\",COUNTRY_INFO!P57))","v":"Non requis"},{"$f":"IF(INTRO!$E$39<>\"Non endémique\",COUNTRY_INFO!Q57,\"Non requis\")","v":"Non requis"},{"$f":"IF(COUNTRY_INFO!H57=1, IF($E57=1,$D57, 0),0)","v":0},{"$f":"IF(INTRO!$E$39<>\"Endémique\",0, IF(AND(COUNTRY_INFO!$I57=1,$F57<>0),IF(COUNTRY_INFO!M57>=(COUNTRY_INFO!F57+COUNTRY_INFO!G57),COUNTRY_INFO!F57+COUNTRY_INFO!G57,COUNTRY_INFO!$M57), 0))","v":0},null,0,0,0,0,0,null,0,0]
[{"$f":"IF(INTRO!$E$39=\"Non endémique\",\" \",IF(COUNTRY_INFO!A58=0,\" \",COUNTRY_INFO!A58))","v":" "},{"$f":"IF(INTRO!$E$39=\"Non endémique\",\" \",IF(COUNTRY_INFO!B58=0,\" \",COUNTRY_INFO!B58))","v":" "},{"$f":"IF(INTRO!$E$39=\"Non endémique\",\" \",IF(COUNTRY_INFO!C58=0,\" \",COUNTRY_INFO!C58))","v":" "},{"$f":"IF(INTRO!$E$39=\"Non endémique\",0,IF(INTRO!$E$39=\"Endémique mais pas de CP\",IF(COUNTRY_INFO!$H58=1,COUNTRY_INFO!F58+COUNTRY_INFO!G58,0),IF(COUNTRY_INFO!$H58=1,COUNTRY_INFO!F58+COUNTRY_INFO!G58,IF(COUNTRY_INFO!$I58=1,IF(COUNTRY_INFO!M58>=(COUNTRY_INFO!F58+COUNTRY_INFO!G58),COUNTRY_INFO!F58+COUNTRY_INFO!G58,COUNTRY_INFO!$M58),0))))","v":0},{"$f":"IF(AND(INTRO!$E$39=\"Non endémique\",INTRO!$E$37=\"Non endémique\"),\"Non requis\",IF(INTRO!$E$39=\"Non endémique\",\"Traiter avec DEC\",COUNTRY_INFO!P58))","v":"Non requis"},{"$f":"IF(INTRO!$E$39<>\"Non endémique\",COUNTRY_INFO!Q58,\"Non requis\")","v":"Non requis"},{"$f":"IF(COUNTRY_INFO!H58=1, IF($E58=1,$D58, 0),0)","v":0},{"$f":"IF(INTRO!$E$39<>\"Endémique\",0, IF(AND(COUNTRY_INFO!$I58=1,$F58<>0),IF(COUNTRY_INFO!M58>=(COUNTRY_INFO!F58+COUNTRY_INFO!G58),COUNTRY_INFO!F58+COUNTRY_INFO!G58,COUNTRY_INFO!$M58), 0))","v":0},null,0,0,0,0,0,null,0,0]
[{"$f":"IF(INTRO!$E$39=\"Non endémique\",\" \",IF(COUNTRY_INFO!A59=0,\" \",COUNTRY_INFO!A59))","v":" "},{"$f":"IF(INTRO!$E$39=\"Non endémique\",\" \",IF(COUNTRY_INFO!B59=0,\" \",COUNTRY_INFO!B59))","v":" "},{"$f":"IF(INTRO!$E$39=\"Non endémique\",\" \",IF(COUNTRY_INFO!C59=0,\" \",COUNTRY_INFO!C59))","v":" "},{"$f":"IF(INTRO!$E$39=\"Non endémique\",0,IF(INTRO!$E$39=\"Endémique mais pas de CP\",IF(COUNTRY_INFO!$H59=1,COUNTRY_INFO!F59+COUNTRY_INFO!G59,0),IF(COUNTRY_INFO!$H59=1,COUNTRY_INFO!F59+COUNTRY_INFO!G59,IF(COUNTRY_INFO!$I59=1,IF(COUNTRY_INFO!M59>=(COUNTRY_INFO!F59+COUNTRY_INFO!G59),COUNTRY_INFO!F59+COUNTRY_INFO!G59,COUNTRY_INFO!$M59),0))))","v":0},{"$f":"IF(AND(INTRO!$E$39=\"Non endémique\",INTRO!$E$37=\"Non endémique\"),\"Non requis\",IF(INTRO!$E$39=\"Non endémique\",\"Traiter avec DEC\",COUNTRY_INFO!P59))","v":"Non requis"},{"$f":"IF(INTRO!$E$39<>\"Non endémique\",COUNTRY_INFO!Q59,\"Non requis\")","v":"Non requis"},{"$f":"IF(COUNTRY_INFO!H59=1, IF($E59=1,$D59, 0),0)","v":0},{"$f":"IF(INTRO!$E$39<>\"Endémique\",0, IF(AND(COUNTRY_INFO!$I59=1,$F59<>0),IF(COUNTRY_INFO!M59>=(COUNTRY_INFO!F59+COUNTRY_INFO!G59),COUNTRY_INFO!F59+COUNTRY_INFO!G59,COUNTRY_INFO!$M59), 0))","v":0},null,0,0,0,0,0,null,0,0]
[{"$f":"IF(INTRO!$E$39=\"Non endémique\",\" \",IF(COUNTRY_INFO!A60=0,\" \",COUNTRY_INFO!A60))","v":" "},{"$f":"IF(INTRO!$E$39=\"Non endémique\",\" \",IF(COUNTRY_INFO!B60=0,\" \",COUNTRY_INFO!B60))","v":" "},{"$f":"IF(INTRO!$E$39=\"Non endémique\",\" \",IF(COUNTRY_INFO!C60=0,\" \",COUNTRY_INFO!C60))","v":" "},{"$f":"IF(INTRO!$E$39=\"Non endémique\",0,IF(INTRO!$E$39=\"Endémique mais pas de CP\",IF(COUNTRY_INFO!$H60=1,COUNTRY_INFO!F60+COUNTRY_INFO!G60,0),IF(COUNTRY_INFO!$H60=1,COUNTRY_INFO!F60+COUNTRY_INFO!G60,IF(COUNTRY_INFO!$I60=1,IF(COUNTRY_INFO!M60>=(COUNTRY_INFO!F60+COUNTRY_INFO!G60),COUNTRY_INFO!F60+COUNTRY_INFO!G60,COUNTRY_INFO!$M60),0))))","v":0},{"$f":"IF(AND(INTRO!$E$39=\"Non endémique\",INTRO!$E$37=\"Non endémique\"),\"Non requis\",IF(INTRO!$E$39=\"Non endémique\",\"Traiter avec DEC\",COUNTRY_INFO!P60))","v":"Non requis"},{"$f":"IF(INTRO!$E$39<>\"Non endémique\",COUNTRY_INFO!Q60,\"Non requis\")","v":"Non requis"},{"$f":"IF(COUNTRY_INFO!H60=1, IF($E60=1,$D60, 0),0)","v":0},{"$f":"IF(INTRO!$E$39<>\"Endémique\",0, IF(AND(COUNTRY_INFO!$I60=1,$F60<>0),IF(COUNTRY_INFO!M60>=(COUNTRY_INFO!F60+COUNTRY_INFO!G60),COUNTRY_INFO!F60+COUNTRY_INFO!G60,COUNTRY_INFO!$M60), 0))","v":0},null,0,0,0,0,0,null,0,0]
[{"$f":"IF(INTRO!$E$39=\"Non endémique\",\" \",IF(COUNTRY_INFO!A61=0,\" \",COUNTRY_INFO!A61))","v":" "},{"$f":"IF(INTRO!$E$39=\"Non endémique\",\" \",IF(COUNTRY_INFO!B61=0,\" \",COUNTRY_INFO!B61))","v":" "},{"$f":"IF(INTRO!$E$39=\"Non endémique\",\" \",IF(COUNTRY_INFO!C61=0,\" \",COUNTRY_INFO!C61))","v":" "},{"$f":"IF(INTRO!$E$39=\"Non endémique\",0,IF(INTRO!$E$39=\"Endémique mais pas de CP\",IF(COUNTRY_INFO!$H61=1,COUNTRY_INFO!F61+COUNTRY_INFO!G61,0),IF(COUNTRY_INFO!$H61=1,COUNTRY_INFO!F61+COUNTRY_INFO!G61,IF(COUNTRY_INFO!$I61=1,IF(COUNTRY_INFO!M61>=(COUNTRY_INFO!F61+COUNTRY_INFO!G61),COUNTRY_INFO!F61+COUNTRY_INFO!G61,COUNTRY_INFO!$M61),0))))","v":0},{"$f":"IF(AND(INTRO!$E$39=\"Non endémique\",INTRO!$E$37=\"Non endémique\"),\"Non requis\",IF(INTRO!$E$39=\"Non endémique\",\"Traiter avec DEC\",COUNTRY_INFO!P61))","v":"Non requis"},{"$f":"IF(INTRO!$E$39<>\"Non endémique\",COUNTRY_INFO!Q61,\"Non requis\")","v":"Non requis"},{"$f":"IF(COUNTRY_INFO!H61=1, IF($E61=1,$D61, 0),0)","v":0},{"$f":"IF(INTRO!$E$39<>\"Endémique\",0, IF(AND(COUNTRY_INFO!$I61=1,$F61<>0),IF(COUNTRY_INFO!M61>=(COUNTRY_INFO!F61+COUNTRY_INFO!G61),COUNTRY_INFO!F61+COUNTRY_INFO!G61,COUNTRY_INFO!$M61), 0))","v":0},null,0,0,0,0,0,null,0,0]
[{"$f":"IF(INTRO!$E$39=\"Non endémique\",\" \",IF(COUNTRY_INFO!A62=0,\" \",COUNTRY_INFO!A62))","v":" "},{"$f":"IF(INTRO!$E$39=\"Non endémique\",\" \",IF(COUNTRY_INFO!B62=0,\" \",COUNTRY_INFO!B62))","v":" "},{"$f":"IF(INTRO!$E$39=\"Non endémique\",\" \",IF(COUNTRY_INFO!C62=0,\" \",COUNTRY_INFO!C62))","v":" "},{"$f":"IF(INTRO!$E$39=\"Non endémique\",0,IF(INTRO!$E$39=\"Endémique mais pas de CP\",IF(COUNTRY_INFO!$H62=1,COUNTRY_INFO!F62+COUNTRY_INFO!G62,0),IF(COUNTRY_INFO!$H62=1,COUNTRY_INFO!F62+COUNTRY_INFO!G62,IF(COUNTRY_INFO!$I62=1,IF(COUNTRY_INFO!M62>=(COUNTRY_INFO!F62+COUNTRY_INFO!G62),COUNTRY_INFO!F62+COUNTRY_INFO!G62,COUNTRY_INFO!$M62),0))))","v":0},{"$f":"IF(AND(INTRO!$E$39=\"Non endémique\",INTRO!$E$37=\"Non endémique\"),\"Non requis\",IF(INTRO!$E$39=\"Non endémique\",\"Traiter avec DEC\",COUNTRY_INFO!P62))","v":"Non requis"},{"$f":"IF(INTRO!$E$39<>\"Non endémique\",COUNTRY_INFO!Q62,\"Non requis\")","v":"Non requis"},{"$f":"IF(COUNTRY_INFO!H62=1, IF($E62=1,$D62, 0),0)","v":0},{"$f":"IF(INTRO!$E$39<>\"Endémique\",0, IF(AND(COUNTRY_INFO!$I62=1,$F62<>0),IF(COUNTRY_INFO!M62>=(COUNTRY_INFO!F62+COUNTRY_INFO!G62),COUNTRY_INFO!F62+COUNTRY_INFO!G62,COUNTRY_INFO!$M62), 0))","v":0},null,0,0,0,0,0,null,0,0]
[{"$f":"IF(INTRO!$E$39=\"Non endémique\",\" \",IF(COUNTRY_INFO!A63=0,\" \",COUNTRY_INFO!A63))","v":" "},{"$f":"IF(INTRO!$E$39=\"Non endémique\",\" \",IF(COUNTRY_INFO!B63=0,\" \",COUNTRY_INFO!B63))","v":" "},{"$f":"IF(INTRO!$E$39=\"Non endémique\",\" \",IF(COUNTRY_INFO!C63=0,\" \",COUNTRY_INFO!C63))","v":" "},{"$f":"IF(INTRO!$E$39=\"Non endémique\",0,IF(INTRO!$E$39=\"Endémique mais pas de CP\",IF(COUNTRY_INFO!$H63=1,COUNTRY_INFO!F63+COUNTRY_INFO!G63,0),IF(COUNTRY_INFO!$H63=1,COUNTRY_INFO!F63+COUNTRY_INFO!G63,IF(COUNTRY_INFO!$I63=1,IF(COUNTRY_INFO!M63>=(COUNTRY_INFO!F63+COUNTRY_INFO!G63),COUNTRY_INFO!F63+COUNTRY_INFO!G63,COUNTRY_INFO!$M63),0))))","v":0},{"$f":"IF(AND(INTRO!$E$39=\"Non endémique\",INTRO!$E$37=\"Non endémique\"),\"Non requis\",IF(INTRO!$E$39=\"Non endémique\",\"Traiter avec DEC\",COUNTRY_INFO!P63))","v":"Non requis"},{"$f":"IF(INTRO!$E$39<>\"Non endémique\",COUNTRY_INFO!Q63,\"Non requis\")","v":"Non requis"},{"$f":"IF(COUNTRY_INFO!H63=1, IF($E63=1,$D63, 0),0)","v":0},{"$f":"IF(INTRO!$E$39<>\"Endémique\",0, IF(AND(COUNTRY_INFO!$I63=1,$F63<>0),IF(COUNTRY_INFO!M63>=(COUNTRY_INFO!F63+COUNTRY_INFO!G63),COUNTRY_INFO!F63+COUNTRY_INFO!G63,COUNTRY_INFO!$M63), 0))","v":0},null,0,0,0,0,0,null,0,0]
[{"$f":"IF(INTRO!$E$39=\"Non endémique\",\" \",IF(COUNTRY_INFO!A64=0,\" \",COUNTRY_INFO!A64))","v":" "},{"$f":"IF(INTRO!$E$39=\"Non endémique\",\" \",IF(COUNTRY_INFO!B64=0,\" \",COUNTRY_INFO!B64))","v":" "},{"$f":"IF(INTRO!$E$39=\"Non endémique\",\" \",IF(COUNTRY_INFO!C64=0,\" \",COUNTRY_INFO!C64))","v":" "},{"$f":"IF(INTRO!$E$39=\"Non endémique\",0,IF(INTRO!$E$39=\"Endémique mais pas de CP\",IF(COUNTRY_INFO!$H64=1,COUNTRY_INFO!F64+COUNTRY_INFO!G64,0),IF(COUNTRY_INFO!$H64=1,COUNTRY_INFO!F64+COUNTRY_INFO!G64,IF(COUNTRY_INFO!$I64=1,IF(COUNTRY_INFO!M64>=(COUNTRY_INFO!F64+COUNTRY_INFO!G64),COUNTRY_INFO!F64+COUNTRY_INFO!G64,COUNTRY_INFO!$M64),0))))","v":0},{"$f":"IF(AND(INTRO!$E$39=\"Non endémique\",INTRO!$E$37=\"Non endémique\"),\"Non requis\",IF(INTRO!$E$39=\"Non endémique\",\"Traiter avec DEC\",COUNTRY_INFO!P64))","v":"Non requis"},{"$f":"IF(INTRO!$E$39<>\"Non endémique\",COUNTRY_INFO!Q64,\"Non requis\")","v":"Non requis"},{"$f":"IF(COUNTRY_INFO!H64=1, IF($E64=1,$D64, 0),0)","v":0},{"$f":"IF(INTRO!$E$39<>\"Endémique\",0, IF(AND(COUNTRY_INFO!$I64=1,$F64<>0),IF(COUNTRY_INFO!M64>=(COUNTRY_INFO!F64+COUNTRY_INFO!G64),COUNTRY_INFO!F64+COUNTRY_INFO!G64,COUNTRY_INFO!$M64), 0))","v":0},null,0,0,0,0,0,null,0,0]
[{"$f":"IF(INTRO!$E$39=\"Non endémique\",\" \",IF(COUNTRY_INFO!A65=0,\" \",COUNTRY_INFO!A65))","v":" "},{"$f":"IF(INTRO!$E$39=\"Non endémique\",\" \",IF(COUNTRY_INFO!B65=0,\" \",COUNTRY_INFO!B65))","v":" "},{"$f":"IF(INTRO!$E$39=\"Non endémique\",\" \",IF(COUNTRY_INFO!C65=0,\" \",COUNTRY_INFO!C65))","v":" "},{"$f":"IF(INTRO!$E$39=\"Non endémique\",0,IF(INTRO!$E$39=\"Endémique mais pas de CP\",IF(COUNTRY_INFO!$H65=1,COUNTRY_INFO!F65+COUNTRY_INFO!G65,0),IF(COUNTRY_INFO!$H65=1,COUNTRY_INFO!F65+COUNTRY_INFO!G65,IF(COUNTRY_INFO!$I65=1,IF(COUNTRY_INFO!M65>=(COUNTRY_INFO!F65+COUNTRY_INFO!G65),COUNTRY_INFO!F65+COUNTRY_INFO!G65,COUNTRY_INFO!$M65),0))))","v":0},{"$f":"IF(AND(INTRO!$E$39=\"Non endémique\",INTRO!$E$37=\"Non endémique\"),\"Non requis\",IF(INTRO!$E$39=\"Non endémique\",\"Traiter avec DEC\",COUNTRY_INFO!P65))","v":"Non requis"},{"$f":"IF(INTRO!$E$39<>\"Non endémique\",COUNTRY_INFO!Q65,\"Non requis\")","v":"Non requis"},{"$f":"IF(COUNTRY_INFO!H65=1, IF($E65=1,$D65, 0),0)","v":0},{"$f":"IF(INTRO!$E$39<>\"Endémique\",0, IF(AND(COUNTRY_INFO!$I65=1,$F65<>0),IF(COUNTRY_INFO!M65>=(COUNTRY_INFO!F65+COUNTRY_INFO!G65),COUNTRY_INFO!F65+COUNTRY_INFO!G65,COUNTRY_INFO!$M65), 0))","v":0},null,0,0,0,0,0,null,0,0]

{"sheet":"SUMMARY","index":6,"n_rows":92,"n_cols":8,"rows_kept":92,"cut":false,"hidden":false,"merged":[[0,1,0,7],[1,1,1,7],[2,1,2,5],[3,1,3,7],[4,1,4,7],[9,1,10,1],[9,2,9,5],[9,6,9,7],[5,2,5,5],[91,1,91,7],[86,1,86,7],[90,1,90,7],[57,1,57,7],[30,4,30,5],[56,1,56,7],[76,2,76,3],[38,1,38,7],[79,1,79,7],[80,1,80,7],[6,1,6,7],[55,1,55,7],[30,2,30,3],[81,1,81,7],[82,3,82,7],[68,1,68,7],[76,4,76,5],[43,5,43,6],[44,5,44,6],[45,5,45,6],[40,5,40,6],[41,5,41,6],[60,1,60,7],[63,4,63,6],[64,4,64,6],[65,4,65,6],[62,4,62,6],[21,2,24,5],[25,1,25,7],[53,1,53,7],[75,2,75,3],[75,4,75,5],[46,5,46,6],[47,5,47,6],[74,2,74,3],[58,1,58,7],[54,1,54,7],[66,4,66,6],[48,5,48,6],[49,5,49,6],[50,5,50,6],[30,6,30,7],[42,5,42,6],[85,1,85,7],[77,2,77,3],[77,4,77,5],[69,1,69,7],[82,1,82,2],[73,2,73,3],[73,4,73,5],[74,4,74,5],[83,3,83,7],[83,1,83,2]]}
[]
[null,"Formulaire de demande commune de médicaments pour CP v.3"]
[]
[null,"Ce formulaire constitue une demande officielle du Gouvernement à l'OMS pour l'approvisionnement des médicaments mentionnés ci-dessus. Ce formulaire peut-être soumis à n'importe quel moment, avant le 15 août de l'année en cours, pour une livraison de médicaments au courant de l'année suivante, mais au moins 6-8 mois avant l’intervention planifiée afin de laisser le temps nécessaire pour réviser et approuver la demande, placer la commande, élaborer les médicaments et les expédier vers les pays."]
[]
[null,"Pays",{"$f":"IF(INTRO!$E$33<>0,INTRO!$E$33,\" \")","v":"Mauritania"},null,null,null,"Année",{"$f":"IF(INTRO!$E$35<>0,INTRO!$E$35,\" \")","v":2019}]
[]
[null,"Informations concernant les médicaments CP demandés à l’OMS"]
[]
[null,"Le médicament","Nombre de comprimés",null,null,null,"Nombre total de flacons"]
[null,null,"Requis","En stock","En cours de demande","Demandés","Requis","Demandés"]
[null,"Albendazole pour STH (EAS)",59902,59902,null,{"$f":"IF(C12>(D12+E12),C12-D12-E12, 0)","v":0},{"$f":"IF($C12=0,0, IF($B12=\"Albendazole pour FL\", IF($C12=ALB_MBD!$I$4,ALB_MBD!$U$4,ROUNDUP($C12/200,0)), IF($B12=\"Albendazole pour STH (EAS)\", IF($C12=ALB_MBD!$L$4,ALB_MBD!$X$4,ROUNDUP($C12/200,0)), IF($B12=\"Mebendazole (EAS)\", IF($C12=ALB_MBD!$P$4,ALB_MBD!$AA$4,ROUNDUP($C12/150,0)), IF($B12=\"Diethylcarbamazine\", IF($C12=DEC!$J$4,DEC!$M$4,ROUNDUP($C12/1000,0)), IF($B12=\"Praziquantel (EAS)\", IF($C12=PZQ!$O$4,PZQ!$R$4,ROUNDUP($C12/1000,0)), IF($B12=\"Ivermectine\", IF($C12=IVM!$N$4,IVM!$Q$4,$C12/500+0.49),0)))))))","v":301},{"$f":"IF($F12=0,0,IF(OR($B12=\"Albendazole pour FL\",$B12=\"Albendazole pour STH (EAS)\"),$G12-ROUNDUP(($E12+$D12)/200,0),IF($B12=\"Ivermectine\",$G12-ROUNDUP(($E12+$D12)/500,0),IF($B12=\"Mebendazole (EAS)\",$G12-ROUNDUP(($E12+$D12)/150,0),$G12-ROUNDUP(($E12+$D12)/1000,0)))))","v":0}]
[null,"Praziquantel (EAS)",639915.55000000005,0,null,639915.55000000005,{"$f":"IF($C13=0,0, IF($B13=\"Albendazole pour FL\", IF($C13=ALB_MBD!$I$4,ALB_MBD!$U$4,ROUNDUP($C13/200,0)), IF($B13=\"Albendazole pour STH (EAS)\", IF($C13=ALB_MBD!$L$4,ALB_MBD!$X$4,ROUNDUP($C13/200,0)), IF($B13=\"Mebendazole (EAS)\", IF($C13=ALB_MBD!$P$4,ALB_MBD!$AA$4,ROUNDUP($C13/150,0)), IF($B13=\"Diethylcarbamazine\", IF($C13=DEC!$J$4,DEC!$M$4,ROUNDUP($C13/1000,0)), IF($B13=\"Praziquantel (EAS)\", IF($C13=PZQ!$O$4,PZQ!$R$4,ROUNDUP($C13/1000,0)), IF($B13=\"Ivermectine\", IF($C13=IVM!$N$4,IVM!$Q$4,$C13/500+0.49),0)))))))","v":652},652]
[null,null,0,0,null,0,{"$f":"IF($C14=0,0, IF($B14=\"Albendazole pour FL\", IF($C14=ALB_MBD!$I$4,ALB_MBD!$U$4,ROUNDUP($C14/200,0)), IF($B14=\"Albendazole pour STH (EAS)\", IF($C14=ALB_MBD!$L$4,ALB_MBD!$X$4,ROUNDUP($C14/200,0)), IF($B14=\"Mebendazole (EAS)\", IF($C14=ALB_MBD!$P$4,ALB_MBD!$AA$4,ROUNDUP($C14/150,0)), IF($B14=\"Diethylcarbamazine\", IF($C14=DEC!$J$4,DEC!$M$4,ROUNDUP($C14/1000,0)), IF($B14=\"Praziquantel (EAS)\", IF($C14=PZQ!$O$4,PZQ!$R$4,ROUNDUP($C14/1000,0)), IF($B14=\"Ivermectine\", IF($C14=IVM!$N$4,IVM!$Q$4,$C14/500+0.49),0)))))))","v":0},0]
[null,null,0,0,null,0,{"$f":"IF($C15=0,0, IF($B15=\"Albendazole pour FL\", IF($C15=ALB_MBD!$I$4,ALB_MBD!$U$4,ROUNDUP($C15/200,0)), IF($B15=\"Albendazole pour STH (EAS)\", IF($C15=ALB_MBD!$L$4,ALB_MBD!$X$4,ROUNDUP($C15/200,0)), IF($B15=\"Mebendazole (EAS)\", IF($C15=ALB_MBD!$P$4,ALB_MBD!$AA$4,ROUNDUP($C15/150,0)), IF($B15=\"Diethylcarbamazine\", IF($C15=DEC!$J$4,DEC!$M$4,ROUNDUP($C15/1000,0)), IF($B15=\"Praziquantel (EAS)\", IF($C15=PZQ!$O$4,PZQ!$R$4,ROUNDUP($C15/1000,0)), IF($B15=\"Ivermectine\", IF($C15=IVM!$N$4,IVM!$Q$4,$C15/500+0.49),0)))))))","v":0},0]
[null,null,0,0,null,0,{"$f":"IF($C16=0,0, IF($B16=\"Albendazole pour FL\", IF($C16=ALB_MBD!$I$4,ALB_MBD!$U$4,ROUNDUP($C16/200,0)), IF($B16=\"Albendazole pour STH (EAS)\", IF($C16=ALB_MBD!$L$4,ALB_MBD!$X$4,ROUNDUP($C16/200,0)), IF($B16=\"Mebendazole (EAS)\", IF($C16=ALB_MBD!$P$4,ALB_MBD!$AA$4,ROUNDUP($C16/150,0)), IF($B16=\"Diethylcarbamazine\", IF($C16=DEC!$J$4,DEC!$M$4,ROUNDUP($C16/1000,0)), IF($B16=\"Praziquantel (EAS)\", IF($C16=PZQ!$O$4,PZQ!$R$4,ROUNDUP($C16/1000,0)), IF($B16=\"Ivermectine\", IF($C16=IVM!$N$4,IVM!$Q$4,$C16/500+0.49),0)))))))","v":0},0]
[null,null,0,0,null,0,{"$f":"IF($C17=0,0, IF($B17=\"Albendazole pour FL\", IF($C17=ALB_MBD!$I$4,ALB_MBD!$U$4,ROUNDUP($C17/200,0)), IF($B17=\"Albendazole pour STH (EAS)\", IF($C17=ALB_MBD!$L$4,ALB_MBD!$X$4,ROUNDUP($C17/200,0)), IF($B17=\"Mebendazole (EAS)\", IF($C17=ALB_MBD!$P$4,ALB_MBD!$AA$4,ROUNDUP($C17/150,0)), IF($B17=\"Diethylcarbamazine\", IF($C17=DEC!$J$4,DEC!$M$4,ROUNDUP($C17/1000,0)), IF($B17=\"Praziquantel (EAS)\", IF($C17=PZQ!$O$4,PZQ!$R$4,ROUNDUP($C17/1000,0)), IF($B17=\"Ivermectine\", IF($C17=IVM!$N$4,IVM!$Q$4,$C17/500+0.49),0)))))))","v":0},0]
[]
[null,"Nombre de personnes devant être traitées avec le médicament donné"]
[]
[null,"Veuillez sélectionner la maladie",null,null,null,null,"1er tour","2ème tour"]
[null,"Géohelminthiases","Ces chiffres sont estimés uniquement pour les goupes d'âge ciblés pour le traitement avec les médicaments donnés, dans les régions où le traitement de maladies spécifiques est requis",null,null,null,59902,0]
[null,"Schistosomiase",null,null,null,null,255966.22000000003," "]
[null,null,null,null,null,null," "," "]
[null,null,null,null,null,null," "," "]
[]
[]
[]
[null,"Informations sur les interventions CP planifiées "]
[]
[null,"Le médicament","Veuillez sélectionner une date (mois et année) pour la 1ère tournée de CP",null,"Veuillez sélectionner une date (mois et année) pour la 2ème tournée de CP",null,"Date à laquelle les médicaments devraient atteindre l’entrepôt national"]
[null,"Albendazole pour STH (EAS)","Octobre",2019,null,null,"Août",2019]
[null,"Praziquantel (EAS)","Octobre",2019,null,null,"Août",2019]
[]
[]
[]
[]
[]
[null,"Informations sur les médicaments de chimiothérapie préventive pour le traitement de populations non ciblées par la donation en cours via l’OMS"]
[]
[null,"Le médicament","Groupe d'âge","# de personnes","# de comprimés","Source",null,"Statut"]
[]
[]
[]
[]
[]
[]
[]
[]
[]
[]
[]
[null,"Récapitulatif - Checklist"]
[null,"Submission"]
[null,"Que faut-il soumettre ?"]
[null,"L'approvisionnement des médicaments demandés doit être basé sur des données épidémiologiques à jour, des plans d'utilisation des médicaments spécifiques et sur la capacité de mise en oeuvre. La liste suivante permet d'assurer que tous les formulaires et toutes les informations sont fournis à l'OMS (en format électronique)."]
[null,"Formulaire de demande commune de médicaments pour chimioprévention"]
[null,"Formulaire de rapport commun"]
[null,"Déclaration des données épidémiologiques pour la CP"]
[]
[null,"Disponibilité de financement pour la mise en oeuvre de tournées pendant l’année pour laquelle les medicaments ont été demandés"]
[]
[null,"Maladies ciblées pour la mise en oeuvre","# de traitements ","Financement assuré pour","Origine",null,null,"Montant"]
[null,{"$f":"B22","v":"Géohelminthiases"},{"$f":"SUM(G22:H22)","v":59902},"OUI","SCI"]
[null,{"$f":"B23","v":"Schistosomiase"},{"$f":"SUM(G23:H23)","v":255966.22000000003},"OUI","SCI"]
[null,{"$f":"B24","v":0},{"$f":"SUM(G24:H24)","v":0}]
[null,{"$f":"B25","v":0},{"$f":"SUM(G25:H25)","v":0}]
[]
[null,"Qui doit remplir le formulaire ?"]
[null,"Le Coordonnateur national MTN doit compiler toutes les informations nécessaires pour compléter le formulaire de demande.  En l'absence d'un coordonnateur, les gestionnaires de programmes spécifiques devraient coordonner leurs sections respectives. Une fois finalisée, chaque demande individuelle doit être approuvée par le Ministère de la Santé."]
[]
[null,"Informations concernant la (les) personne(s) ayant rempli le formulaire"]
[]
[null,"Titre/fonction ","Nom",null,"Téléphone",null,"Email","Date"]
[null,"Coordonnateur MTN/CP","Dr Barro Abass",null,"222 22243786 OU 46565780",null,"barro_abass64@yahoo,fr"]
[]
[]
[]
[]
[null,"L’OMS recommende que tous les effets secondaires graves suspectés d’être associés à l’ingestion de médicaments de CP soient rapportés en suivant les lignes directrices nationales de pharmacovigilance.  En l’absence d’un système de pharmacovigilance national, contactez le département de Contrôle des Maladies Tropicales Négligées pour être conseillé."]
[null,"L’OMS s’est engagée à rendre possible la donation de médicaments en fournissant gratuitement: a) albendazole, mebendazole et praziquantel à l’entrepôt national du Ministère de la Santé et b) diethylcarbamazine au port d’entrée du pays receveur."]
[null,"L’institution soumettant la présente requête est responsable de: a) l’organisation du déchargement des médicaments du camion, du stockage dans l’entrepôt national et de l’expédition vers les centres où aura lieu la distribution finale; b) de l’enregistrement, si nécessaire, des médicaments donnés, auprès des autorités nationales en charge; et de c) de l’information de n’importe quels changements ayant trait à leurs campagnes de traitement (par exemple le report d’une date planifiée de distribution en masse de médicaments, le remplacement d’un coordonateur MTN, etc.)."]
[null,"Nom et signature \ndu Coordonnateur MTN ou du \nReprésentant du Ministère de la Santé",null,"Dr Barro Abass"]
[null,"Date",null,"2018-10-12"]
[]
[null,"Si vous avez plus d'un destinataire final pour les médicaments de chimioprévention demandés, veuillez compléter les informations de la rubrique \"Informations concernant l'envoi et le destinataire\" dans la feuille de travail SHIPMENT."]
[null,"Veuillez envoyer le rapport national (signé et sous format électronique) au représentant de I'OMS du pays en mettant en copie:"]
[null,"Siège de l'OMS ","PC_JointForms@who.int"]
[null,"Bureau régional de l'OMS","Conseiller régional MTN"]
[null,"Mectizan donation programme","Dr Yao Sodahlon, email: ysodahlon@taskforce.org"]
[]
[null,"Veuillez noter que votre demande sera examinée par un panel d'experts indépendants (Comité ad hoc d’évaluation conjointe). Les informations contenues dans ce formulaire, le rapport commun d'activités (ou rapport national d'activités) et le plan d'action annuel sont essentiels à l'OMS pour assurer un usage optimal des médicaments. Dans le cadre de ses activités courantes de suivi et d'évaluation, et afin d'honorer ses obligations contractuelles envers les bailleurs de fonds  et autres partenaires, l'OMS et ses agents affiliés se réservent le droit d'inspecter, périodiquement, les stocks de médicaments au niveau national. "]

{"sheet":"SHIPMENT","index":7,"n_rows":46,"n_cols":8,"rows_kept":46,"cut":false,"hidden":false,"merged":[[23,5,23,7],[16,2,16,4],[16,5,16,7],[22,2,22,4],[22,5,22,7],[9,5,9,7],[10,2,10,4],[10,5,10,7],[3,2,3,5],[4,1,4,7],[8,5,8,7],[0,1,0,7],[1,1,1,7],[2,1,2,5],[12,2,12,4],[15,1,15,7],[14,2,14,4],[14,5,14,7],[12,5,12,7],[13,2,13,4],[11,5,11,7],[11,2,11,4],[6,1,6,7],[9,2,9,4],[7,2,7,4],[7,5,7,7],[8,2,8,4],[13,5,13,7],[17,5,17,7],[26,2,26,4],[20,2,20,4],[20,5,20,7],[26,5,26,7],[21,5,21,7],[18,5,18,7],[19,2,19,4],[19,5,19,7],[23,2,23,4],[21,2,21,4],[17,2,17,4],[25,2,25,4],[25,5,25,7],[18,2,18,4],[28,2,28,4],[28,5,28,7],[29,2,29,4],[29,5,29,7],[27,2,27,4],[27,5,27,7],[35,1,35,7],[47,1,57,7],[45,1,45,7],[30,2,30,4],[30,5,30,7],[31,2,31,4],[31,5,31,7],[32,2,32,4],[32,5,32,7],[36,1,36,6],[37,1,37,5],[39,1,39,7],[40,1,40,6],[38,1,38,6],[41,1,41,6],[42,1,42,7]]}
[]
[null,"Formulaire de demande commune de médicaments pour CP v.3"]
[]
[null,"Pays",{"$f":"IF(INTRO!$E$33<>0,INTRO!$E$33,\" \")","v":"Mauritania"},null,null,null,"Année",{"$f":"IF(INTRO!$E$35<>0,INTRO!$E$35,\" \")","v":2019}]
[]
[null,"Informations sur l'envoi et le destinataire "]
[]
[null,null,"Destinataire",null,null,"Destinataire final\nsi différent du destinaire précédent"]
[null,"Nom"]
[null,"Département/Unité"]
[null,"Organisation"]
[null,"Téléphone"]
[null,"Fax"]
[null,"E-mail"]
[null,"Adresse postale"]
[]
[null,null,"Destinataire",null,null,"Destinataire final\nsi différent du destinaire précédent"]
[null,"Nom"]
[null,"Département/Unité"]
[null,"Organisation"]
[null,"Téléphone"]
[null,"Fax"]
[null,"E-mail"]
[null,"Adresse postale"]
[]
[null,null,"Destinataire",null,null,"Destinataire final\nsi différent du destinaire précédent"]
[null,"Nom"]
[null,"Département/Unité"]
[null,"Organisation"]
[null,"Téléphone"]
[null,"Fax"]
[null,"E-mail"]
[null,"Adresse postale"]
[]
[null,"Information concernant les obligations légales d’importation"]
[]
[null,"Est le permis d'importation nécessaire?"]
[null,"Combien de temps cela prend-il pour obtenir le permis d’importation?"]
[null,"Avez vous besoin que certains documents soient remis en même temps que la demande de permis d’importation?"]
[null,"Si oui, merci de bien vouloir spécifier lesquels ici"]
[null,"Est-ce que le destinataire doit procéder au dédouanement avant que l’expédition puisse avoir lieu?"]
[null,"Y a-t-il des informations supplémentaires qui pourraient être utiles afin d’assurer un dédouanement et une livraison rapide des médicaments dans votre pays?"]
[null,"Si oui, merci de bien vouloir spécifier lesquels ici"]
[]
[]
[null,"Remarques supplémentaires éventuelles liées à cette requête"]